Workbook

Sheet DOE - FIPStoPayeeCodeConvTable
B1: Manually edit this file | F1: FY= | G1: 2018
A2: FIPS | B2: FIPS DESC | C2: PAYEE | D2: PAYEE DESC | E2: Pool Rate
A3: 1 | B3: Accomack Co | C3: 00001 | D3: Accomack County | E3: 0.2332
A4: 3 | B4: Albemarle Co | C4: 00002 | D4: Albemarle County | E4: 0.4474
A5: 5 | B5: Alleghany Co | C5: 00003 | D5: Alleghany County | E5: 0.1924
A6: 7 | B6: Amelia Co | C6: 00004 | D6: Amelia County | E6: 0.3268
A7: 9 | B7: Amherst Co | C7: 00005 | D7: Amherst County | E7: 0.2722
A8: 11 | B8: Appomattox Co | C8: 00006 | D8: Appomattox County | E8: 0.2639
A9: 13 | B9: Arlington Co | C9: 00007 | D9: Arlington County | E9: 0.4602
A10: 15 | B10: Augusta Co | C10: 00008 | D10: Augusta County | E10: 0.3302
A11: 17 | B11: Bath Co | C11: 00009 | D11: Bath County | E11: 0.4278
A12: 19 | B12: Bedford Co | C12: 00010 | D12: Bedford County | E12: 0.31112
A13: 21 | B13: Bland Co | C13: 00011 | D13: Bland County | E13: 0.2109
A14: 23 | B14: Botetourt Co | C14: 00012 | D14: Botetourt County | E14: 0.3602
A15: 25 | B15: Brunswick Co | C15: 00013 | D15: Brunswick County | E15: 0.2439
A16: 27 | B16: Buchanan Co | C16: 00014 | D16: Buchanan County | E16: 0.3156
A17: 29 | B17: Buckingham Co | C17: 00015 | D17: Buckingham County | E17: 0.2023
A18: 31 | B18: Campbell Co | C18: 00016 | D18: Campbell County | E18: 0.3107
A19: 33 | B19: Caroline Co | C19: 00017 | D19: Caroline County | E19: 0.3308
A20: 35 | B20: Carroll Co | C20: 00018 | D20: Carroll County | E20: 0.291
A21: 36 | B21: Charles City Co | C21: 00019 | D21: Charles City | E21: 0.3131
A22: 37 | B22: Charlotte Co | C22: 00020 | D22: Charlotte County | E22: 0.2204
A23: 41 | B23: Chesterfield Co | C23: 00021 | D23: Chesterfield County | E23: 0.3853
A24: 43 | B24: Clarke Co | C24: 00022 | D24: Clarke County | E24: 0.4797
A25: 45 | B25: Craig Co | C25: 00023 | D25: Craig County | E25: 0.2901
A26: 47 | B26: Culpeper Co | C26: 00024 | D26: Culpeper County | E26: 0.3767
A27: 49 | B27: Cumberland Co | C27: 00025 | D27: Cumberland County | E27: 0.304
A28: 51 | B28: Dickenson Co | C28: 00026 | D28: Dickenson County | E28: 0.3042
A29: 53 | B29: Dinwiddie Co | C29: 00027 | D29: Dinwiddie County | E29: 0.3358
A30: 57 | B30: Essex Co | C30: 00028 | D30: Essex County | E30: 0.3853
A31: 59 | B31: Fairfax Co | C31: 00029 | D31: Fairfax County | E31: 0.4611
A32: 61 | B32: Fauquier Co | C32: 00030 | D32: Fauquier County | E32: 0.4584
A33: 63 | B33: Floyd Co | C33: 00031 | D33: Floyd County | E33: 0.2324
A34: 65 | B34: Fluvanna Co | C34: 00032 | D34: Fluvanna County | E34: 0.3811
A35: 67 | B35: Franklin Co | C35: 00033 | D35: Franklin County | E35: 0.283
A36: 69 | B36: Frederick Co | C36: 00034 | D36: Frederick County | E36: 0.4348
A37: 71 | B37: Giles Co | C37: 00035 | D37: Giles County | E37: 0.2898
A38: 73 | B38: Gloucester Co | C38: 00036 | D38: Gloucester County | E38: 0.3687
A39: 75 | B39: Goochland Co | C39: 00037 | D39: Goochland County | E39: 0.4871
A40: 77 | B40: Grayson Co | C40: 00038 | D40: Grayson County | E40: 0.2109
A41: 79 | B41: Greene Co | C41: 00039 | D41: Greene County | E41: 0.3471
A42: 81 | B42: Greensville Co | C42: 00040 | D42: Greensville County | E42: 0.2266
A43: 83 | B43: Halifax Co | C43: 00041 | D43: Halifax County | E43: 0.2335
A44: 85 | B44: Hanover Co | C44: 00042 | D44: Hanover County | E44: 0.4444
A45: 87 | B45: Henrico Co | C45: 00043 | D45: Henrico County | E45: 0.3755
A46: 89 | B46: Henry Co | C46: 00044 | D46: Henry County | E46: 0.2786
A47: 91 | B47: Highland Co | C47: 00045 | D47: Highland County | E47: 0.3822
A48: 93 | B48: Isle Of Wight Co | C48: 00046 | D48: Isle of Wight | E48: 0.3613
A49: 95 | B49: James City Co | C49: 00047 | D49: James City County | E49: 0.4483
A50: 97 | B50: King And Queen Co | C50: 00049 | D50: King and Queen County | E50: 0.3144
A51: 99 | B51: King George Co | C51: 00048 | D51: King George County | E51: 0.3627
A52: 101 | B52: King William Co | C52: 00050 | D52: King William County | E52: 0.3853
A53: 103 | B53: Lancaster Co | C53: 00051 | D53: Lancaster County | E53: 0.4391
A54: 105 | B54: Lee Co | C54: 00052 | D54: Lee County | E54: 0.2245
A55: 107 | B55: Loudoun Co | C55: 00053 | D55: Loudoun County | E55: 0.4764
A56: 109 | B56: Louisa Co | C56: 00054 | D56: Louisa County | E56: 0.4401
A57: 111 | B57: Lunenburg Co | C57: 00055 | D57: Lunenburg County | E57: 0.1698
A58: 113 | B58: Madison Co | C58: 00056 | D58: Madison County | E58: 0.3355
A59: 115 | B59: Mathews Co | C59: 00057 | D59: Mathews County | E59: 0.4271
A60: 117 | B60: Mecklenburg Co | C60: 00058 | D60: Mecklenburg County | E60: 0.2286
A61: 119 | B61: Middlesex Co | C61: 00059 | D61: Middlesex County | E61: 0.4333
A62: 121 | B62: Montgomery Co | C62: 00060 | D62: Montgomery County | E62: 0.2834
A63: 125 | B63: Nelson Co | C63: 00062 | D63: Nelson County | E63: 0.3132
A64: 127 | B64: New Kent Co | C64: 00063 | D64: New Kent County | E64: 0.4329
A65: 131 | B65: Northampton Co | C65: 00001 | D65: Accomack County | E65: 0.1971
A66: 133 | B66: Northumberland Co | C66: 00066 | D66: Northumberland County | E66: 0.3304
A67: 135 | B67: Nottoway Co | C67: 00067 | D67: Nottoway County | E67: 0.2686
A68: 137 | B68: Orange Co | C68: 00068 | D68: Orange County | E68: 0.4083
A69: 139 | B69: Page Co | C69: 00069 | D69: Page County | E69: 0.2865
A70: 141 | B70: Patrick Co | C70: 00070 | D70: Patrick County | E70: 0.2539
A71: 143 | B71: Pittsylvania Co | C71: 00071 | D71: Pittsylvania County | E71: 0.2355
A72: 145 | B72: Powhatan Co | C72: 00072 | D72: Powhatan County | E72: 0.4342
A73: 147 | B73: Prince Edward Co | C73: 00073 | D73: Prince Edward County | E73: 0.2232
A74: 149 | B74: Prince George Co | C74: 00074 | D74: Prince George County | E74: 0.3716
A75: 153 | B75: Prince William Co | C75: 00075 | D75: Prince William County | E75: 0.3414
A76: 155 | B76: Pulaski Co | C76: 00077 | D76: Pulaski County | E76: 0.2923
A77: 157 | B77: Rappahannock Co | C77: 00078 | D77: Rappahannock County | E77: 0.4199
A78: 159 | B78: Richmond Co | C78: 00079 | D78: Richmond County | E78: 0.3227
A79: 161 | B79: Roanoke Co | C79: 00080 | D79: Roanoke County | E79: 0.4397
A80: 163 | B80: Rockbridge Co | C80: 00081 | D80: Rockbridge County | E80: 0.2336
A81: 165 | B81: Rockingham Co | C81: 00082 | D81: Rockingham County | E81: 0.3445
A82: 167 | B82: Russell Co | C82: 00083 | D82: Russell County | E82: 0.1894
A83: 169 | B83: Scott Co | C83: 00084 | D83: Scott County | E83: 0.3154
A84: 171 | B84: Shenandoah Co | C84: 00085 | D84: Shenandoah County | E84: 0.3517
A85: 173 | B85: Smyth Co | C85: 00086 | D85: Smyth County | E85: 0.2337
A86: 175 | B86: Southampton Co | C86: 00087 | D86: Southampton County | E86: 0.323
A87: 177 | B87: Spotsylvania Co | C87: 00088 | D87: Spotsylvania County | E87: 0.4588
A88: 179 | B88: Stafford Co | C88: 00089 | D88: Stafford County | E88: 0.4439
A89: 181 | B89: Surry Co | C89: 00090 | D89: Surry County | E89: 0.3979
A90: 183 | B90: Sussex Co | C90: 00091 | D90: Sussex County | E90: 0.2387
A91: 185 | B91: Tazewell Co | C91: 00092 | D91: Tazewell County | E91: 0.2455
A92: 187 | B92: Warren Co | C92: 00093 | D92: Warren County | E92: 0.3853
A93: 191 | B93: Washington Co | C93: 00094 | D93: Washington County | E93: 0.276
A94: 193 | B94: Westmoreland Co | C94: 00095 | D94: Westmoreland County | E94: 0.3025
A95: 195 | B95: Wise Co | C95: 00096 | D95: Wise County | E95: 0.2755
A96: 197 | B96: Wythe Co | C96: 00097 | D96: Wythe County | E96: 0.2708
A97: 199 | B97: York Co | C97: 00098 | D97: York County | E97: 0.3888
A98: 510 | B98: Alexandria City | C98: 00101 | D98: Alexandria City | E98: 0.5309
A99: 520 | B99: Bristol City | C99: 00094 | D99: Washington County | E99: 0.2547
A100: 530 | B100: Buena Vista City | C100: 00081 | D100: Rockbridge County | E100: 0.2329
A101: 540 | B101: Charlottesville City | C101: 00104 | D101: Charlottesville City | E101: 0.3068
A102: 550 | B102: Chesapeake City | C102: 00136 | D102: Chesapeake City | E102: 0.3715
A103: 570 | B103: Colonial Heights City | C103: 00021 | D103: Chesterfield County | E103: 0.4027
A104: 580 | B104: Covington City | C104: 00107 | D104: Covington City | E104: 0.2496
A105: 590 | B105: Danville City | C105: 00108 | D105: Danville City | E105: 0.2223
A106: 620 | B106: Franklin City | C106: 00135 | D106: Franklin City | E106: 0.371
A107: 630 | B107: Fredericksburg City | C107: 00110 | D107: Fredericksburg City | E107: 0.3441
A108: 640 | B108: Galax City | C108: 00111 | D108: Galax City | E108: 0.3146
A109: 650 | B109: Hampton City | C109: 00112 | D109: Hampton City | E109: 0.3223
A110: 660 | B110: Harrisonburg City | C110: 00082 | D110: Rockingham County | E110: 0.3808
A111: 670 | B111: Hopewell City | C111: 00114 | D111: Hopewell City | E111: 0.2667
A112: 678 | B112: Lexington City | C112: 00081 | D112: Rockbridge County | E112: 0.3302
A113: 680 | B113: Lynchburg City | C113: 00115 | D113: Lynchburg City | E113: 0.2736
A114: 683 | B114: Manassas City | C114: 00143 | D114: Manassas City | E114: 0.4168
A115: 685 | B115: Manassas Park City | C115: 00144 | D115: Manassas Park City | E115: 0.4273
A116: 690 | B116: Martinsville City | C116: 00116 | D116: Martinsville City | E116: 0.3321
A117: 700 | B117: Newport News City | C117: 00117 | D117: Newport News City | E117: 0.2773
A118: 710 | B118: Norfolk City | C118: 00118 | D118: Norfolk City | E118: 0.2455
A119: 720 | B119: Norton City | C119: 00119 | D119: Norton City | E119: 0.3254
A120: 730 | B120: Petersburg City | C120: 00120 | D120: Petersburg City | E120: 0.3535
A121: 735 | B121: Poquoson City | C121: 00142 | D121: Poquoson City | E121: 0.2787
A122: 740 | B122: Portsmouth City | C122: 00121 | D122: Portsmouth City | E122: 0.2605
A123: 750 | B123: Radford City | C123: 00122 | D123: Radford City | E123: 0.2035
A124: 760 | B124: Richmond City | C124: 00123 | D124: Richmond City | E124: 0.3691
A125: 770 | B125: Roanoke City | C125: 00124 | D125: Roanoke City | E125: 0.3072
A126: 775 | B126: Salem City | C126: 00139 | D126: Salem City | E126: 0.3513
A127: 790 | B127: Staunton City | C127: 00126 | D127: Staunton City | E127: 0.2699
A128: 800 | B128: Suffolk City | C128: 00127 | D128: Suffolk City | E128: 0.2432
A129: 810 | B129: Virginia Beach City | C129: 00128 | D129: Virginia Beach City | E129: 0.3569
A130: 820 | B130: Waynesboro City | C130: 00130 | D130: Waynesboro City | E130: 0.3843
A131: 830 | B131: Williamsburg City | C131: 00850 | D131: Williamsburg City | E131: 0.4553
A132: 840 | B132: Winchester City | C132: 00132 | D132: Winchester City | E132: 0.4587

Sheet Extended (hidden)
A1: FY | B1: ='DOE - FIPStoPayeeCodeConvTable'!G1 -> 2018 | C1: MEDICAID ADJUSTMENTS--EXTENDED PAYMENTS TO PROVIDERS | O1: ="Extended to be paided in this SFY = " & B1 -> Extended to be paided in this SFY = 2018 | T1: xx | U1: 0.88 | V1: 0.12 | W1: (POOL) | X1: 1.25
U2: FEDERAL | V2: STATE/ | W2: (RATE) | X2: Factor
A3: FIPS | S3: Grand | U3: MEDICAID | V3: LOCAL | W3: LOCAL | Y3: LOCAL | Z3: STATE
A4: CODE | B4: LOCALITY | C4: =TEXT("7/1/" & $B$1-1,"mmm-yyyy") -> Jul-2017 | D4: =TEXT("8/1/" & $B$1-1,"mmm-yyyy") -> Aug-2017 | E4: =TEXT("9/1/" & $B$1-1,"mmm-yyyy") -> Sep-2017 | F4: =TEXT("10/1/" & $B$1-1,"mmm-yyyy") -> Oct-2017 | G4: =TEXT("11/1/" & $B$1-1,"mmm-yyyy") -> Nov-2017 | H4: =TEXT("12/1/" & $B$1-1,"mmm-yyyy") -> Dec-2017 | I4: =TEXT("1/1/" & $B$1,"mmm-yyyy") -> Jan-2018 | J4: =TEXT("2/1/" & $B$1,"mmm-yyyy") -> Feb-2018 | K4: =TEXT("3/1/" & $B$1,"mmm-yyyy") -> Mar-2018 | L4: =TEXT("4/1/" & $B$1,"mmm-yyyy") -> Apr-2018 | M4: =TEXT("5/1/" & $B$1,"mmm-yyyy") -> May-2018 | N4: =TEXT("6/1/" & $B$1,"mmm-yyyy") -> Jun-2018 | O4: =TEXT("7/1/" & $B$1,"mmm-yyyy") -> Jul-2018 | P4: =TEXT("8/1/" & $B$1,"mmm-yyyy") -> Aug-2018 | Q4: =TEXT("9/1/" & $B$1,"mmm-yyyy") -> Sep-2018 | R4: =TEXT("10/1/" & $B$1,"mmm-yyyy") -> Oct-2018 | S4: Total | U4: RATE/Share | V4: SHARE | W4: MATCH Rate | Y4: MATCH | Z4: SHARE
A5: Totals | C5: =SUM(C6:C1200) -> 225446.77 | D5: 135041.4 | E5: 239641.5 | F5: 275508.1 | G5: 137591.72 | H5: 130822.52 | I5: 189570.34 | J5: 189804.38 | K5: 166442.16 | L5: 258672.1 | M5: 207959.09 | N5: =SUM(N6:N1200) -> 202758.22 | O5: 0 | P5: =SUM(P6:P1200) -> 0 | Q5: 0 | R5: 0 | S5: =SUM(C5:R5) -> 2359258.3 | T5: = | U5: =SUM(U6:U399) -> 2076147.32 | V5: =SUM(V6:V399) -> 283110.98 | W5: = | Y5: =SUM(Y6:Y399) -> 126337.52 | Z5: =SUM(Z6:Z399) -> 156773.46
A6: 1 | B6: =LOOKUP(A6,'DOE - FIPStoPayeeCodeConvTable'!$A$3:$A$213,'DOE - FIPStoPayeeCodeConvTable'!$B$3:$B$213) -> Accomack Co | C6: 0 | D6: 0 | E6: 0 | F6: 0 | G6: 3801.72 | H6: 4386.6 | I6: 4532.82 | J6: 146.22 | K6: 0 | L6: 0 | M6: 0 | N6: 0 | S6: =SUM(C6:R6) -> 12867.36 | U6: =ROUND($U$1*S6,2) -> 11323.28 | V6: =SUM(S6)-SUM(U6) -> 1544.08 | W6: =LOOKUP(A6,'DOE - FIPStoPayeeCodeConvTable'!$A$3:$A$213,'DOE - FIPStoPayeeCodeConvTable'!$E$3:$E$213) -> 0.2332 | X6: =$X$1*W6 -> 0.2915 | Y6: =ROUND(X6*V6,2) -> 450.1 | Z6: =SUM(V6)-SUM(Y6) -> 1093.98
A7: 3 | B7: =LOOKUP(A7,'DOE - FIPStoPayeeCodeConvTable'!$A$3:$A$213,'DOE - FIPStoPayeeCodeConvTable'!$B$3:$B$213) -> Albemarle Co | C7: 0 | D7: 0 | E7: 0 | F7: 0 | G7: 0 | H7: 0 | I7: 0 | J7: 0 | K7: 0 | L7: 0 | M7: 0 | N7: 0 | S7: =SUM(C7:R7) -> 0 | U7: =ROUND($U$1*S7,2) -> 0 | V7: 0 | W7: =LOOKUP(A7,'DOE - FIPStoPayeeCodeConvTable'!$A$3:$A$213,'DOE - FIPStoPayeeCodeConvTable'!$E$3:$E$213) -> 0.4474 | X7: =$X$1*W7 -> 0.55925 | Y7: =ROUND(X7*V7,2) -> 0 | Z7: =SUM(V7)-SUM(Y7) -> 0
A8: 5 | B8: =LOOKUP(A8,'DOE - FIPStoPayeeCodeConvTable'!$A$3:$A$213,'DOE - FIPStoPayeeCodeConvTable'!$B$3:$B$213) -> Alleghany Co | C8: 0 | D8: 0 | E8: 0 | F8: 0 | G8: 0 | H8: 0 | I8: 0 | J8: 0 | K8: 0 | L8: 0 | M8: 0 | N8: 0 | S8: 0 | U8: 0 | V8: 0 | W8: =LOOKUP(A8,'DOE - FIPStoPayeeCodeConvTable'!$A$3:$A$213,'DOE - FIPStoPayeeCodeConvTable'!$E$3:$E$213) -> 0.1924 | X8: 0.2405 | Y8: 0 | Z8: 0
A9: 7 | B9: =LOOKUP(A9,'DOE - FIPStoPayeeCodeConvTable'!$A$3:$A$213,'DOE - FIPStoPayeeCodeConvTable'!$B$3:$B$213) -> Amelia Co | C9: 0 | D9: 9837.5 | E9: 0 | F9: 0 | G9: 0 | H9: 0 | I9: 0 | J9: 0 | K9: 0 | L9: 0 | M9: 0 | N9: 0 | S9: 9837.5 | U9: 8657 | V9: 1180.5 | W9: =LOOKUP(A9,'DOE - FIPStoPayeeCodeConvTable'!$A$3:$A$213,'DOE - FIPStoPayeeCodeConvTable'!$E$3:$E$213) -> 0.3268 | X9: 0.4085 | Y9: 482.23 | Z9: 698.27
A10: 9 | B10: =LOOKUP(A10,'DOE - FIPStoPayeeCodeConvTable'!$A$3:$A$213,'DOE - FIPStoPayeeCodeConvTable'!$B$3:$B$213) -> Amherst Co | C10: 0 | D10: 0 | E10: 0 | F10: 0 | G10: 0 | H10: 0 | I10: 0 | J10: 0 | K10: 0 | L10: 0 | M10: 0 | N10: 0 | S10: 0 | U10: 0 | V10: 0 | W10: =LOOKUP(A10,'DOE - FIPStoPayeeCodeConvTable'!$A$3:$A$213,'DOE - FIPStoPayeeCodeConvTable'!$E$3:$E$213) -> 0.2722 | X10: 0.34025 | Y10: 0 | Z10: 0
A11: 11 | B11: =LOOKUP(A11,'DOE - FIPStoPayeeCodeConvTable'!$A$3:$A$213,'DOE - FIPStoPayeeCodeConvTable'!$B$3:$B$213) -> Appomattox Co | C11: 0 | D11: 0 | E11: 0 | F11: 0 | G11: 0 | H11: 0 | I11: 0 | J11: 0 | K11: 0 | L11: 0 | M11: 0 | N11: 0 | S11: 0 | U11: 0 | V11: 0 | W11: =LOOKUP(A11,'DOE - FIPStoPayeeCodeConvTable'!$A$3:$A$213,'DOE - FIPStoPayeeCodeConvTable'!$E$3:$E$213) -> 0.2639 | X11: 0.329875 | Y11: 0 | Z11: 0
A12: 13 | B12: =LOOKUP(A12,'DOE - FIPStoPayeeCodeConvTable'!$A$3:$A$213,'DOE - FIPStoPayeeCodeConvTable'!$B$3:$B$213) -> Arlington Co | C12: 1574 | D12: 393.5 | E12: 12198.5 | F12: 1967.5 | G12: 0 | H12: 0 | I12: 0 | J12: 12198.5 | K12: 0 | L12: 0 | M12: 0 | N12: 0 | S12: 28332 | U12: 24932.16 | V12: 3399.84 | W12: =LOOKUP(A12,'DOE - FIPStoPayeeCodeConvTable'!$A$3:$A$213,'DOE - FIPStoPayeeCodeConvTable'!$E$3:$E$213) -> 0.4602 | X12: 0.57525 | Y12: 1955.76 | Z12: 1444.08
A13: 15 | B13: =LOOKUP(A13,'DOE - FIPStoPayeeCodeConvTable'!$A$3:$A$213,'DOE - FIPStoPayeeCodeConvTable'!$B$3:$B$213) -> Augusta Co | C13: 0 | D13: 11805 | E13: 1967.5 | F13: 22429.5 | G13: 11805 | H13: 35808.5 | I13: 13379 | J13: 25577.5 | K13: 35021.5 | L13: 46826.5 | M13: 35808.5 | N13: 30424.24 | S13: 270852.74 | U13: 238350.41 | V13: 32502.33 | W13: =LOOKUP(A13,'DOE - FIPStoPayeeCodeConvTable'!$A$3:$A$213,'DOE - FIPStoPayeeCodeConvTable'!$E$3:$E$213) -> 0.3302 | X13: 0.41275 | Y13: 13415.34 | Z13: 19086.99
A14: 17 | B14: =LOOKUP(A14,'DOE - FIPStoPayeeCodeConvTable'!$A$3:$A$213,'DOE - FIPStoPayeeCodeConvTable'!$B$3:$B$213) -> Bath Co | C14: 0 | D14: 0 | E14: 0 | F14: 0 | G14: 0 | H14: 0 | I14: 0 | J14: 0 | K14: 0 | L14: 0 | M14: 0 | N14: 0 | S14: 0 | U14: 0 | V14: 0 | W14: =LOOKUP(A14,'DOE - FIPStoPayeeCodeConvTable'!$A$3:$A$213,'DOE - FIPStoPayeeCodeConvTable'!$E$3:$E$213) -> 0.4278 | X14: 0.53475 | Y14: 0 | Z14: 0
A15: 19 | B15: =LOOKUP(A15,'DOE - FIPStoPayeeCodeConvTable'!$A$3:$A$213,'DOE - FIPStoPayeeCodeConvTable'!$B$3:$B$213) -> Bedford Co | C15: 9050.5 | D15: 11805 | E15: 12198.5 | F15: 24003.5 | G15: 0 | H15: 11411.5 | I15: 0 | J15: 0 | K15: 0 | L15: 16527 | M15: 12198.5 | N15: 18101 | S15: 115295.5 | U15: 101460.04 | V15: 13835.46 | W15: =LOOKUP(A15,'DOE - FIPStoPayeeCodeConvTable'!$A$3:$A$213,'DOE - FIPStoPayeeCodeConvTable'!$E$3:$E$213) -> 0.31112 | X15: 0.3889 | Y15: 5380.61 | Z15: 8454.85
A16: 21 | B16: =LOOKUP(A16,'DOE - FIPStoPayeeCodeConvTable'!$A$3:$A$213,'DOE - FIPStoPayeeCodeConvTable'!$B$3:$B$213) -> Bland Co | C16: 0 | D16: 0 | E16: 0 | F16: 0 | G16: 0 | H16: 0 | I16: 0 | J16: 0 | K16: 0 | L16: 0 | M16: 0 | N16: 0 | S16: 0 | U16: 0 | V16: 0 | W16: =LOOKUP(A16,'DOE - FIPStoPayeeCodeConvTable'!$A$3:$A$213,'DOE - FIPStoPayeeCodeConvTable'!$E$3:$E$213) -> 0.2109 | X16: 0.263625 | Y16: 0 | Z16: 0
A17: 23 | B17: =LOOKUP(A17,'DOE - FIPStoPayeeCodeConvTable'!$A$3:$A$213,'DOE - FIPStoPayeeCodeConvTable'!$B$3:$B$213) -> Botetourt Co | C17: 0 | D17: 1180.5 | E17: 17314 | F17: 21249 | G17: 0 | H17: 2754.5 | I17: 0 | J17: 0 | K17: 0 | L17: 42498 | M17: 28725.5 | N17: 5509 | S17: 119230.5 | U17: 104922.84 | V17: 14307.66 | W17: =LOOKUP(A17,'DOE - FIPStoPayeeCodeConvTable'!$A$3:$A$213,'DOE - FIPStoPayeeCodeConvTable'!$E$3:$E$213) -> 0.3602 | X17: 0.45025 | Y17: 6442.02 | Z17: 7865.64
A18: 25 | B18: =LOOKUP(A18,'DOE - FIPStoPayeeCodeConvTable'!$A$3:$A$213,'DOE - FIPStoPayeeCodeConvTable'!$B$3:$B$213) -> Brunswick Co | C18: 11805 | D18: 0 | E18: 24397 | F18: 11805 | G18: 12198.5 | H18: 3541.5 | I18: 4722 | J18: 0 | K18: 0 | L18: 0 | M18: 0 | N18: 0 | S18: 68469 | U18: 60252.72 | V18: 8216.28 | W18: =LOOKUP(A18,'DOE - FIPStoPayeeCodeConvTable'!$A$3:$A$213,'DOE - FIPStoPayeeCodeConvTable'!$E$3:$E$213) -> 0.2439 | X18: 0.304875 | Y18: 2504.94 | Z18: 5711.34
A19: 27 | B19: =LOOKUP(A19,'DOE - FIPStoPayeeCodeConvTable'!$A$3:$A$213,'DOE - FIPStoPayeeCodeConvTable'!$B$3:$B$213) -> Buchanan Co | C19: 0 | D19: 0 | E19: 0 | F19: 0 | G19: 0 | H19: 0 | I19: 0 | J19: 0 | K19: 0 | L19: 0 | M19: 0 | N19: 0 | S19: 0 | U19: 0 | V19: 0 | W19: =LOOKUP(A19,'DOE - FIPStoPayeeCodeConvTable'!$A$3:$A$213,'DOE - FIPStoPayeeCodeConvTable'!$E$3:$E$213) -> 0.3156 | X19: 0.3945 | Y19: 0 | Z19: 0
A20: 29 | B20: =LOOKUP(A20,'DOE - FIPStoPayeeCodeConvTable'!$A$3:$A$213,'DOE - FIPStoPayeeCodeConvTable'!$B$3:$B$213) -> Buckingham Co | C20: 0 | D20: 0 | E20: 0 | F20: 0 | G20: 0 | H20: 0 | I20: 0 | J20: 0 | K20: 0 | L20: 0 | M20: 0 | N20: 0 | S20: 0 | U20: 0 | V20: 0 | W20: =LOOKUP(A20,'DOE - FIPStoPayeeCodeConvTable'!$A$3:$A$213,'DOE - FIPStoPayeeCodeConvTable'!$E$3:$E$213) -> 0.2023 | X20: 0.252875 | Y20: 0 | Z20: 0
A21: 31 | B21: =LOOKUP(A21,'DOE - FIPStoPayeeCodeConvTable'!$A$3:$A$213,'DOE - FIPStoPayeeCodeConvTable'!$B$3:$B$213) -> Campbell Co | C21: 0 | D21: 0 | E21: 0 | F21: 0 | G21: 0 | H21: 0 | I21: 0 | J21: 0 | K21: 10117.81 | L21: 6280.02 | M21: 0 | N21: 0 | S21: 16397.83 | U21: 14430.09 | V21: 1967.74 | W21: =LOOKUP(A21,'DOE - FIPStoPayeeCodeConvTable'!$A$3:$A$213,'DOE - FIPStoPayeeCodeConvTable'!$E$3:$E$213) -> 0.3107 | X21: 0.388375 | Y21: 764.22 | Z21: 1203.52
A22: 33 | B22: =LOOKUP(A22,'DOE - FIPStoPayeeCodeConvTable'!$A$3:$A$213,'DOE - FIPStoPayeeCodeConvTable'!$B$3:$B$213) -> Caroline Co | C22: 0 | D22: 0 | E22: 0 | F22: 0 | G22: 0 | H22: 0 | I22: 0 | J22: 12198.5 | K22: 23610 | L22: 10231 | M22: 0 | N22: 11805 | S22: 57844.5 | U22: 50903.16 | V22: 6941.34 | W22: =LOOKUP(A22,'DOE - FIPStoPayeeCodeConvTable'!$A$3:$A$213,'DOE - FIPStoPayeeCodeConvTable'!$E$3:$E$213) -> 0.3308 | X22: 0.4135 | Y22: 2870.24 | Z22: 4071.1
A23: 35 | B23: =LOOKUP(A23,'DOE - FIPStoPayeeCodeConvTable'!$A$3:$A$213,'DOE - FIPStoPayeeCodeConvTable'!$B$3:$B$213) -> Carroll Co | C23: 0 | D23: 0 | E23: 0 | F23: 0 | G23: 0 | H23: 0 | I23: 0 | J23: 0 | K23: 0 | L23: 0 | M23: 0 | N23: 0 | S23: 0 | U23: 0 | V23: 0 | W23: =LOOKUP(A23,'DOE - FIPStoPayeeCodeConvTable'!$A$3:$A$213,'DOE - FIPStoPayeeCodeConvTable'!$E$3:$E$213) -> 0.291 | X23: 0.36375 | Y23: 0 | Z23: 0
A24: 36 | B24: =LOOKUP(A24,'DOE - FIPStoPayeeCodeConvTable'!$A$3:$A$213,'DOE - FIPStoPayeeCodeConvTable'!$B$3:$B$213) -> Charles City Co | C24: 0 | D24: 0 | E24: 0 | F24: 0 | G24: 0 | H24: 0 | I24: 0 | J24: 0 | K24: 0 | L24: 0 | M24: 0 | N24: 0 | S24: 0 | U24: 0 | V24: 0 | W24: =LOOKUP(A24,'DOE - FIPStoPayeeCodeConvTable'!$A$3:$A$213,'DOE - FIPStoPayeeCodeConvTable'!$E$3:$E$213) -> 0.3131 | X24: 0.391375 | Y24: 0 | Z24: 0
A25: 37 | B25: =LOOKUP(A25,'DOE - FIPStoPayeeCodeConvTable'!$A$3:$A$213,'DOE - FIPStoPayeeCodeConvTable'!$B$3:$B$213) -> Charlotte Co | C25: 0 | D25: 0 | E25: 0 | F25: 0 | G25: 0 | H25: 0 | I25: 0 | J25: 0 | K25: 0 | L25: 0 | M25: 0 | N25: 0 | S25: 0 | U25: 0 | V25: 0 | W25: =LOOKUP(A25,'DOE - FIPStoPayeeCodeConvTable'!$A$3:$A$213,'DOE - FIPStoPayeeCodeConvTable'!$E$3:$E$213) -> 0.2204 | X25: 0.2755 | Y25: 0 | Z25: 0
A26: 41 | B26: =LOOKUP(A26,'DOE - FIPStoPayeeCodeConvTable'!$A$3:$A$213,'DOE - FIPStoPayeeCodeConvTable'!$B$3:$B$213) -> Chesterfield Co | C26: 0 | D26: 9837.5 | E26: 25971 | F26: 28332 | G26: 23610 | H26: 14953 | I26: 15740 | J26: 9837.5 | K26: 10815.59 | L26: 7675.58 | M26: 0 | N26: 0 | S26: 146772.17 | U26: 129159.51 | V26: 17612.66 | W26: =LOOKUP(A26,'DOE - FIPStoPayeeCodeConvTable'!$A$3:$A$213,'DOE - FIPStoPayeeCodeConvTable'!$E$3:$E$213) -> 0.3853 | X26: 0.481625 | Y26: 8482.7 | Z26: 9129.96
A27: 43 | B27: =LOOKUP(A27,'DOE - FIPStoPayeeCodeConvTable'!$A$3:$A$213,'DOE - FIPStoPayeeCodeConvTable'!$B$3:$B$213) -> Clarke Co | C27: 0 | D27: 0 | E27: 0 | F27: 0 | G27: 0 | H27: 0 | I27: 0 | J27: 0 | K27: 0 | L27: 0 | M27: 0 | N27: 0 | S27: 0 | U27: 0 | V27: 0 | W27: =LOOKUP(A27,'DOE - FIPStoPayeeCodeConvTable'!$A$3:$A$213,'DOE - FIPStoPayeeCodeConvTable'!$E$3:$E$213) -> 0.4797 | X27: 0.599625 | Y27: 0 | Z27: 0
A28: 45 | B28: =LOOKUP(A28,'DOE - FIPStoPayeeCodeConvTable'!$A$3:$A$213,'DOE - FIPStoPayeeCodeConvTable'!$B$3:$B$213) -> Craig Co | C28: 0 | D28: 0 | E28: 0 | F28: 0 | G28: 0 | H28: 0 | I28: 0 | J28: 0 | K28: 0 | L28: 0 | M28: 0 | N28: 0 | S28: 0 | U28: 0 | V28: 0 | W28: =LOOKUP(A28,'DOE - FIPStoPayeeCodeConvTable'!$A$3:$A$213,'DOE - FIPStoPayeeCodeConvTable'!$E$3:$E$213) -> 0.2901 | X28: 0.362625 | Y28: 0 | Z28: 0
A29: 47 | B29: =LOOKUP(A29,'DOE - FIPStoPayeeCodeConvTable'!$A$3:$A$213,'DOE - FIPStoPayeeCodeConvTable'!$B$3:$B$213) -> Culpeper Co | C29: 0 | D29: 0 | E29: 0 | F29: 0 | G29: 0 | H29: 0 | I29: 0 | J29: 0 | K29: 0 | L29: 0 | M29: 0 | N29: 0 | S29: 0 | U29: 0 | V29: 0 | W29: =LOOKUP(A29,'DOE - FIPStoPayeeCodeConvTable'!$A$3:$A$213,'DOE - FIPStoPayeeCodeConvTable'!$E$3:$E$213) -> 0.3767 | X29: 0.470875 | Y29: 0 | Z29: 0
A30: 49 | B30: =LOOKUP(A30,'DOE - FIPStoPayeeCodeConvTable'!$A$3:$A$213,'DOE - FIPStoPayeeCodeConvTable'!$B$3:$B$213) -> Cumberland Co | C30: 0 | D30: 0 | E30: 0 | F30: 0 | G30: 0 | H30: 0 | I30: 0 | J30: 0 | K30: 0 | L30: 0 | M30: 0 | N30: 0 | S30: 0 | U30: 0 | V30: 0 | W30: =LOOKUP(A30,'DOE - FIPStoPayeeCodeConvTable'!$A$3:$A$213,'DOE - FIPStoPayeeCodeConvTable'!$E$3:$E$213) -> 0.304 | X30: 0.38 | Y30: 0 | Z30: 0
A31: 51 | B31: =LOOKUP(A31,'DOE - FIPStoPayeeCodeConvTable'!$A$3:$A$213,'DOE - FIPStoPayeeCodeConvTable'!$B$3:$B$213) -> Dickenson Co | C31: 0 | D31: 0 | E31: 0 | F31: 0 | G31: 0 | H31: 0 | I31: 0 | J31: 0 | K31: 0 | L31: 0 | M31: 0 | N31: 0 | S31: 0 | U31: 0 | V31: 0 | W31: =LOOKUP(A31,'DOE - FIPStoPayeeCodeConvTable'!$A$3:$A$213,'DOE - FIPStoPayeeCodeConvTable'!$E$3:$E$213) -> 0.3042 | X31: 0.38025 | Y31: 0 | Z31: 0
A32: 53 | B32: =LOOKUP(A32,'DOE - FIPStoPayeeCodeConvTable'!$A$3:$A$213,'DOE - FIPStoPayeeCodeConvTable'!$B$3:$B$213) -> Dinwiddie Co | C32: 0 | D32: 0 | E32: 0 | F32: 0 | G32: 0 | H32: 0 | I32: 3935 | J32: 24397 | K32: 11018 | L32: 5509 | M32: 0 | N32: 0 | S32: 44859 | U32: 39475.92 | V32: 5383.08 | W32: =LOOKUP(A32,'DOE - FIPStoPayeeCodeConvTable'!$A$3:$A$213,'DOE - FIPStoPayeeCodeConvTable'!$E$3:$E$213) -> 0.3358 | X32: 0.41975 | Y32: 2259.55 | Z32: 3123.53
A33: 57 | B33: =LOOKUP(A33,'DOE - FIPStoPayeeCodeConvTable'!$A$3:$A$213,'DOE - FIPStoPayeeCodeConvTable'!$B$3:$B$213) -> Essex Co | C33: 0 | D33: 0 | E33: 0 | F33: 0 | G33: 0 | H33: 0 | I33: 0 | J33: 0 | K33: 0 | L33: 0 | M33: 0 | N33: 0 | S33: 0 | U33: 0 | V33: 0 | W33: =LOOKUP(A33,'DOE - FIPStoPayeeCodeConvTable'!$A$3:$A$213,'DOE - FIPStoPayeeCodeConvTable'!$E$3:$E$213) -> 0.3853 | X33: 0.481625 | Y33: 0 | Z33: 0
A34: 59 | B34: =LOOKUP(A34,'DOE - FIPStoPayeeCodeConvTable'!$A$3:$A$213,'DOE - FIPStoPayeeCodeConvTable'!$B$3:$B$213) -> Fairfax Co | C34: 12198.5 | D34: 0 | E34: 0 | F34: 47220 | G34: 13772.5 | H34: 3935 | I34: 22036 | J34: 14166 | K34: 0 | L34: 16133.5 | M34: 20068.5 | N34: 42891.5 | S34: 192421.5 | U34: 169330.92 | V34: 23090.58 | W34: =LOOKUP(A34,'DOE - FIPStoPayeeCodeConvTable'!$A$3:$A$213,'DOE - FIPStoPayeeCodeConvTable'!$E$3:$E$213) -> 0.4611 | X34: 0.576375 | Y34: 13308.83 | Z34: 9781.75
A35: 61 | B35: =LOOKUP(A35,'DOE - FIPStoPayeeCodeConvTable'!$A$3:$A$213,'DOE - FIPStoPayeeCodeConvTable'!$B$3:$B$213) -> Fauquier Co | C35: 5154.02 | D35: 1644.9 | E35: 0 | F35: 0 | G35: 0 | H35: 0 | I35: 0 | J35: 0 | K35: 0 | L35: 0 | M35: 0 | N35: 0 | S35: 6798.92 | U35: 5983.05 | V35: 815.87 | W35: =LOOKUP(A35,'DOE - FIPStoPayeeCodeConvTable'!$A$3:$A$213,'DOE - FIPStoPayeeCodeConvTable'!$E$3:$E$213) -> 0.4584 | X35: 0.573 | Y35: 467.49 | Z35: 348.38
A36: 63 | B36: =LOOKUP(A36,'DOE - FIPStoPayeeCodeConvTable'!$A$3:$A$213,'DOE - FIPStoPayeeCodeConvTable'!$B$3:$B$213) -> Floyd Co | C36: 0 | D36: 0 | E36: 0 | F36: 0 | G36: 0 | H36: 0 | I36: 0 | J36: 0 | K36: 0 | L36: 0 | M36: 0 | N36: 0 | S36: 0 | U36: 0 | V36: 0 | W36: =LOOKUP(A36,'DOE - FIPStoPayeeCodeConvTable'!$A$3:$A$213,'DOE - FIPStoPayeeCodeConvTable'!$E$3:$E$213) -> 0.2324 | X36: 0.2905 | Y36: 0 | Z36: 0
A37: 65 | B37: =LOOKUP(A37,'DOE - FIPStoPayeeCodeConvTable'!$A$3:$A$213,'DOE - FIPStoPayeeCodeConvTable'!$B$3:$B$213) -> Fluvanna Co | C37: 8722.25 | D37: 0 | E37: 0 | F37: 0 | G37: 0 | H37: 0 | I37: 0 | J37: 0 | K37: 0 | L37: 0 | M37: 0 | N37: 0 | S37: 8722.25 | U37: 7675.58 | V37: 1046.67 | W37: =LOOKUP(A37,'DOE - FIPStoPayeeCodeConvTable'!$A$3:$A$213,'DOE - FIPStoPayeeCodeConvTable'!$E$3:$E$213) -> 0.3811 | X37: 0.476375 | Y37: 498.61 | Z37: 548.06
A38: 67 | B38: =LOOKUP(A38,'DOE - FIPStoPayeeCodeConvTable'!$A$3:$A$213,'DOE - FIPStoPayeeCodeConvTable'!$B$3:$B$213) -> Franklin Co | C38: 0 | D38: 0 | E38: 0 | F38: 0 | G38: 0 | H38: 0 | I38: 0 | J38: 0 | K38: 0 | L38: 0 | M38: 0 | N38: 0 | S38: 0 | U38: =ROUND($U$1*S38,2) -> 0 | V38: =SUM(S38)-SUM(U38) -> 0 | W38: =LOOKUP(A38,'DOE - FIPStoPayeeCodeConvTable'!$A$3:$A$213,'DOE - FIPStoPayeeCodeConvTable'!$E$3:$E$213) -> 0.283 | X38: 0.35375 | Y38: 0 | Z38: 0
A39: 69 | B39: =LOOKUP(A39,'DOE - FIPStoPayeeCodeConvTable'!$A$3:$A$213,'DOE - FIPStoPayeeCodeConvTable'!$B$3:$B$213) -> Frederick Co | C39: 0 | D39: 0 | E39: 0 | F39: 0 | G39: 0 | H39: 0 | I39: 0 | J39: 0 | K39: 0 | L39: 0 | M39: 0 | N39: 0 | S39: 0 | U39: 0 | V39: 0 | W39: =LOOKUP(A39,'DOE - FIPStoPayeeCodeConvTable'!$A$3:$A$213,'DOE - FIPStoPayeeCodeConvTable'!$E$3:$E$213) -> 0.4348 | X39: 0.5435 | Y39: 0 | Z39: 0
A40: 71 | B40: =LOOKUP(A40,'DOE - FIPStoPayeeCodeConvTable'!$A$3:$A$213,'DOE - FIPStoPayeeCodeConvTable'!$B$3:$B$213) -> Giles Co | C40: 0 | D40: 11018 | E40: 2361 | F40: 0 | G40: 0 | H40: 0 | I40: 0 | J40: 0 | K40: 0 | L40: 0 | M40: 0 | N40: 0 | S40: 13379 | U40: 11773.52 | V40: 1605.48 | W40: =LOOKUP(A40,'DOE - FIPStoPayeeCodeConvTable'!$A$3:$A$213,'DOE - FIPStoPayeeCodeConvTable'!$E$3:$E$213) -> 0.2898 | X40: 0.36225 | Y40: 581.59 | Z40: 1023.89
A41: 73 | B41: =LOOKUP(A41,'DOE - FIPStoPayeeCodeConvTable'!$A$3:$A$213,'DOE - FIPStoPayeeCodeConvTable'!$B$3:$B$213) -> Gloucester Co | C41: 0 | D41: 0 | E41: 0 | F41: 0 | G41: 0 | H41: 0 | I41: 0 | J41: 0 | K41: 0 | L41: 0 | M41: 0 | N41: 0 | S41: 0 | U41: 0 | V41: 0 | W41: =LOOKUP(A41,'DOE - FIPStoPayeeCodeConvTable'!$A$3:$A$213,'DOE - FIPStoPayeeCodeConvTable'!$E$3:$E$213) -> 0.3687 | X41: 0.460875 | Y41: 0 | Z41: 0
A42: 75 | B42: =LOOKUP(A42,'DOE - FIPStoPayeeCodeConvTable'!$A$3:$A$213,'DOE - FIPStoPayeeCodeConvTable'!$B$3:$B$213) -> Goochland Co | C42: 0 | D42: 0 | E42: 0 | F42: 0 | G42: 0 | H42: 0 | I42: 0 | J42: 0 | K42: 0 | L42: 0 | M42: 0 | N42: 0 | S42: 0 | U42: 0 | V42: 0 | W42: =LOOKUP(A42,'DOE - FIPStoPayeeCodeConvTable'!$A$3:$A$213,'DOE - FIPStoPayeeCodeConvTable'!$E$3:$E$213) -> 0.4871 | X42: 0.608875 | Y42: 0 | Z42: 0
A43: 77 | B43: =LOOKUP(A43,'DOE - FIPStoPayeeCodeConvTable'!$A$3:$A$213,'DOE - FIPStoPayeeCodeConvTable'!$B$3:$B$213) -> Grayson Co | C43: 0 | D43: 0 | E43: 0 | F43: 0 | G43: 0 | H43: 0 | I43: 0 | J43: 0 | K43: 0 | L43: 0 | M43: 0 | N43: 0 | S43: 0 | U43: 0 | V43: 0 | W43: =LOOKUP(A43,'DOE - FIPStoPayeeCodeConvTable'!$A$3:$A$213,'DOE - FIPStoPayeeCodeConvTable'!$E$3:$E$213) -> 0.2109 | X43: 0.263625 | Y43: 0 | Z43: 0
A44: 79 | B44: =LOOKUP(A44,'DOE - FIPStoPayeeCodeConvTable'!$A$3:$A$213,'DOE - FIPStoPayeeCodeConvTable'!$B$3:$B$213) -> Greene Co | C44: 18494.5 | D44: 0 | E44: 12198.5 | F44: 13772.5 | G44: 0 | H44: 0 | I44: 0 | J44: 0 | K44: 0 | L44: 0 | M44: 0 | N44: 0 | S44: 44465.5 | U44: 39129.64 | V44: 5335.86 | W44: =LOOKUP(A44,'DOE - FIPStoPayeeCodeConvTable'!$A$3:$A$213,'DOE - FIPStoPayeeCodeConvTable'!$E$3:$E$213) -> 0.3471 | X44: 0.433875 | Y44: 2315.1 | Z44: 3020.76
A45: 81 | B45: =LOOKUP(A45,'DOE - FIPStoPayeeCodeConvTable'!$A$3:$A$213,'DOE - FIPStoPayeeCodeConvTable'!$B$3:$B$213) -> Greensville Co | C45: 0 | D45: 0 | E45: 0 | F45: 0 | G45: 0 | H45: 0 | I45: 0 | J45: 0 | K45: 0 | L45: 0 | M45: 0 | N45: 0 | S45: 0 | U45: 0 | V45: 0 | W45: =LOOKUP(A45,'DOE - FIPStoPayeeCodeConvTable'!$A$3:$A$213,'DOE - FIPStoPayeeCodeConvTable'!$E$3:$E$213) -> 0.2266 | X45: 0.28325 | Y45: 0 | Z45: 0
A46: 83 | B46: =LOOKUP(A46,'DOE - FIPStoPayeeCodeConvTable'!$A$3:$A$213,'DOE - FIPStoPayeeCodeConvTable'!$B$3:$B$213) -> Halifax Co | C46: 0 | D46: 0 | E46: 0 | F46: 0 | G46: 0 | H46: 0 | I46: 0 | J46: 0 | K46: 0 | L46: 0 | M46: 0 | N46: 0 | S46: 0 | U46: 0 | V46: 0 | W46: =LOOKUP(A46,'DOE - FIPStoPayeeCodeConvTable'!$A$3:$A$213,'DOE - FIPStoPayeeCodeConvTable'!$E$3:$E$213) -> 0.2335 | X46: 0.291875 | Y46: 0 | Z46: 0
A47: 85 | B47: =LOOKUP(A47,'DOE - FIPStoPayeeCodeConvTable'!$A$3:$A$213,'DOE - FIPStoPayeeCodeConvTable'!$B$3:$B$213) -> Hanover Co | C47: 0 | D47: 0 | E47: 0 | F47: 0 | G47: 0 | H47: 0 | I47: 0 | J47: 0 | K47: 0 | L47: 0 | M47: 0 | N47: 0 | S47: 0 | U47: 0 | V47: 0 | W47: =LOOKUP(A47,'DOE - FIPStoPayeeCodeConvTable'!$A$3:$A$213,'DOE - FIPStoPayeeCodeConvTable'!$E$3:$E$213) -> 0.4444 | X47: 0.5555 | Y47: 0 | Z47: 0
A48: 87 | B48: =LOOKUP(A48,'DOE - FIPStoPayeeCodeConvTable'!$A$3:$A$213,'DOE - FIPStoPayeeCodeConvTable'!$B$3:$B$213) -> Henrico Co | C48: 0 | D48: 0 | E48: 0 | F48: 0 | G48: 0 | H48: 0 | I48: 0 | J48: 0 | K48: 0 | L48: 0 | M48: 0 | N48: 0 | S48: 0 | U48: 0 | V48: 0 | W48: =LOOKUP(A48,'DOE - FIPStoPayeeCodeConvTable'!$A$3:$A$213,'DOE - FIPStoPayeeCodeConvTable'!$E$3:$E$213) -> 0.3755 | X48: 0.469375 | Y48: 0 | Z48: 0
A49: 89 | B49: =LOOKUP(A49,'DOE - FIPStoPayeeCodeConvTable'!$A$3:$A$213,'DOE - FIPStoPayeeCodeConvTable'!$B$3:$B$213) -> Henry Co | C49: 0 | D49: 0 | E49: 0 | F49: 0 | G49: 0 | H49: 0 | I49: 0 | J49: 0 | K49: 0 | L49: 0 | M49: 0 | N49: 0 | S49: 0 | U49: 0 | V49: 0 | W49: =LOOKUP(A49,'DOE - FIPStoPayeeCodeConvTable'!$A$3:$A$213,'DOE - FIPStoPayeeCodeConvTable'!$E$3:$E$213) -> 0.2786 | X49: 0.34825 | Y49: 0 | Z49: 0
A50: 91 | B50: =LOOKUP(A50,'DOE - FIPStoPayeeCodeConvTable'!$A$3:$A$213,'DOE - FIPStoPayeeCodeConvTable'!$B$3:$B$213) -> Highland Co | C50: 0 | D50: 0 | E50: 0 | F50: 0 | G50: 0 | H50: 0 | I50: 0 | J50: 0 | K50: 0 | L50: 0 | M50: 0 | N50: 0 | S50: 0 | U50: 0 | V50: 0 | W50: =LOOKUP(A50,'DOE - FIPStoPayeeCodeConvTable'!$A$3:$A$213,'DOE - FIPStoPayeeCodeConvTable'!$E$3:$E$213) -> 0.3822 | X50: 0.47775 | Y50: 0 | Z50: 0
A51: 93 | B51: =LOOKUP(A51,'DOE - FIPStoPayeeCodeConvTable'!$A$3:$A$213,'DOE - FIPStoPayeeCodeConvTable'!$B$3:$B$213) -> Isle Of Wight Co | C51: 0 | D51: 0 | E51: 0 | F51: 0 | G51: 0 | H51: 0 | I51: 0 | J51: 0 | K51: 0 | L51: 0 | M51: 0 | N51: 0 | S51: 0 | U51: 0 | V51: 0 | W51: =LOOKUP(A51,'DOE - FIPStoPayeeCodeConvTable'!$A$3:$A$213,'DOE - FIPStoPayeeCodeConvTable'!$E$3:$E$213) -> 0.3613 | X51: 0.451625 | Y51: 0 | Z51: 0
A52: 95 | B52: =LOOKUP(A52,'DOE - FIPStoPayeeCodeConvTable'!$A$3:$A$213,'DOE - FIPStoPayeeCodeConvTable'!$B$3:$B$213) -> James City Co | C52: 0 | D52: 0 | E52: 0 | F52: 0 | G52: 0 | H52: 0 | I52: 0 | J52: 0 | K52: 0 | L52: 0 | M52: 0 | N52: 0 | S52: 0 | U52: 0 | V52: 0 | W52: =LOOKUP(A52,'DOE - FIPStoPayeeCodeConvTable'!$A$3:$A$213,'DOE - FIPStoPayeeCodeConvTable'!$E$3:$E$213) -> 0.4483 | X52: 0.560375 | Y52: 0 | Z52: 0
A53: 97 | B53: =LOOKUP(A53,'DOE - FIPStoPayeeCodeConvTable'!$A$3:$A$213,'DOE - FIPStoPayeeCodeConvTable'!$B$3:$B$213) -> King And Queen Co | C53: 0 | D53: 0 | E53: 0 | F53: 0 | G53: 0 | H53: 0 | I53: 0 | J53: 0 | K53: 0 | L53: 0 | M53: 0 | N53: 0 | S53: 0 | U53: 0 | V53: 0 | W53: =LOOKUP(A53,'DOE - FIPStoPayeeCodeConvTable'!$A$3:$A$213,'DOE - FIPStoPayeeCodeConvTable'!$E$3:$E$213) -> 0.3144 | X53: 0.393 | Y53: 0 | Z53: 0
A54: 99 | B54: =LOOKUP(A54,'DOE - FIPStoPayeeCodeConvTable'!$A$3:$A$213,'DOE - FIPStoPayeeCodeConvTable'!$B$3:$B$213) -> King George Co | C54: 0 | D54: 0 | E54: 0 | F54: 0 | G54: 0 | H54: 0 | I54: 0 | J54: 0 | K54: 0 | L54: 0 | M54: 0 | N54: 11411.5 | S54: 11411.5 | U54: 10042.12 | V54: 1369.38 | W54: =LOOKUP(A54,'DOE - FIPStoPayeeCodeConvTable'!$A$3:$A$213,'DOE - FIPStoPayeeCodeConvTable'!$E$3:$E$213) -> 0.3627 | X54: 0.453375 | Y54: 620.84 | Z54: 748.54
A55: 101 | B55: =LOOKUP(A55,'DOE - FIPStoPayeeCodeConvTable'!$A$3:$A$213,'DOE - FIPStoPayeeCodeConvTable'!$B$3:$B$213) -> King William Co | C55: 0 | D55: 0 | E55: 0 | F55: 0 | G55: 0 | H55: 0 | I55: 0 | J55: 0 | K55: 0 | L55: 0 | M55: 0 | N55: 0 | S55: 0 | U55: 0 | V55: 0 | W55: =LOOKUP(A55,'DOE - FIPStoPayeeCodeConvTable'!$A$3:$A$213,'DOE - FIPStoPayeeCodeConvTable'!$E$3:$E$213) -> 0.3853 | X55: 0.481625 | Y55: 0 | Z55: 0
A56: 103 | B56: =LOOKUP(A56,'DOE - FIPStoPayeeCodeConvTable'!$A$3:$A$213,'DOE - FIPStoPayeeCodeConvTable'!$B$3:$B$213) -> Lancaster Co | C56: 0 | D56: 0 | E56: 0 | F56: 0 | G56: 0 | H56: 0 | I56: 0 | J56: 0 | K56: 0 | L56: 0 | M56: 0 | N56: 0 | S56: 0 | U56: 0 | V56: 0 | W56: =LOOKUP(A56,'DOE - FIPStoPayeeCodeConvTable'!$A$3:$A$213,'DOE - FIPStoPayeeCodeConvTable'!$E$3:$E$213) -> 0.4391 | X56: 0.548875 | Y56: 0 | Z56: 0
A57: 105 | B57: =LOOKUP(A57,'DOE - FIPStoPayeeCodeConvTable'!$A$3:$A$213,'DOE - FIPStoPayeeCodeConvTable'!$B$3:$B$213) -> Lee Co | C57: 0 | D57: 0 | E57: 0 | F57: 0 | G57: 0 | H57: 0 | I57: 0 | J57: 0 | K57: 0 | L57: 0 | M57: 0 | N57: 0 | S57: 0 | U57: 0 | V57: 0 | W57: =LOOKUP(A57,'DOE - FIPStoPayeeCodeConvTable'!$A$3:$A$213,'DOE - FIPStoPayeeCodeConvTable'!$E$3:$E$213) -> 0.2245 | X57: 0.280625 | Y57: 0 | Z57: 0
A58: 107 | B58: =LOOKUP(A58,'DOE - FIPStoPayeeCodeConvTable'!$A$3:$A$213,'DOE - FIPStoPayeeCodeConvTable'!$B$3:$B$213) -> Loudoun Co | C58: 0 | D58: 0 | E58: 3935 | F58: 3148 | G58: 0 | H58: 0 | I58: 0 | J58: 0 | K58: 0 | L58: 0 | M58: 14559.5 | N58: 19675 | S58: 41317.5 | U58: 36359.4 | V58: 4958.1 | W58: =LOOKUP(A58,'DOE - FIPStoPayeeCodeConvTable'!$A$3:$A$213,'DOE - FIPStoPayeeCodeConvTable'!$E$3:$E$213) -> 0.4764 | X58: 0.5955 | Y58: 2952.55 | Z58: 2005.55
A59: 109 | B59: =LOOKUP(A59,'DOE - FIPStoPayeeCodeConvTable'!$A$3:$A$213,'DOE - FIPStoPayeeCodeConvTable'!$B$3:$B$213) -> Louisa Co | C59: 7870 | D59: 393.5 | E59: 10624.5 | F59: 0 | G59: 0 | H59: 0 | I59: 0 | J59: 0 | K59: 0 | L59: 0 | M59: 0 | N59: 0 | S59: 18888 | U59: 16621.44 | V59: 2266.56 | W59: =LOOKUP(A59,'DOE - FIPStoPayeeCodeConvTable'!$A$3:$A$213,'DOE - FIPStoPayeeCodeConvTable'!$E$3:$E$213) -> 0.4401 | X59: 0.550125 | Y59: 1246.89 | Z59: 1019.67
A60: 111 | B60: =LOOKUP(A60,'DOE - FIPStoPayeeCodeConvTable'!$A$3:$A$213,'DOE - FIPStoPayeeCodeConvTable'!$B$3:$B$213) -> Lunenburg Co | C60: 0 | D60: 0 | E60: 0 | F60: 0 | G60: 0 | H60: 0 | I60: 0 | J60: 0 | K60: 0 | L60: 0 | M60: 0 | N60: 0 | S60: 0 | U60: 0 | V60: 0 | W60: =LOOKUP(A60,'DOE - FIPStoPayeeCodeConvTable'!$A$3:$A$213,'DOE - FIPStoPayeeCodeConvTable'!$E$3:$E$213) -> 0.1698 | X60: 0.21225 | Y60: 0 | Z60: 0
A61: 113 | B61: =LOOKUP(A61,'DOE - FIPStoPayeeCodeConvTable'!$A$3:$A$213,'DOE - FIPStoPayeeCodeConvTable'!$B$3:$B$213) -> Madison Co | C61: 0 | D61: 0 | E61: 0 | F61: 0 | G61: 0 | H61: 0 | I61: 0 | J61: 0 | K61: 0 | L61: 0 | M61: 0 | N61: 0 | S61: 0 | U61: 0 | V61: 0 | W61: =LOOKUP(A61,'DOE - FIPStoPayeeCodeConvTable'!$A$3:$A$213,'DOE - FIPStoPayeeCodeConvTable'!$E$3:$E$213) -> 0.3355 | X61: 0.419375 | Y61: 0 | Z61: 0
A62: 115 | B62: =LOOKUP(A62,'DOE - FIPStoPayeeCodeConvTable'!$A$3:$A$213,'DOE - FIPStoPayeeCodeConvTable'!$B$3:$B$213) -> Mathews Co | C62: 0 | D62: 0 | E62: 0 | F62: 0 | G62: 0 | H62: 0 | I62: 0 | J62: 0 | K62: 0 | L62: 0 | M62: 0 | N62: 0 | S62: 0 | U62: 0 | V62: 0 | W62: =LOOKUP(A62,'DOE - FIPStoPayeeCodeConvTable'!$A$3:$A$213,'DOE - FIPStoPayeeCodeConvTable'!$E$3:$E$213) -> 0.4271 | X62: 0.533875 | Y62: 0 | Z62: 0
A63: 117 | B63: =LOOKUP(A63,'DOE - FIPStoPayeeCodeConvTable'!$A$3:$A$213,'DOE - FIPStoPayeeCodeConvTable'!$B$3:$B$213) -> Mecklenburg Co | C63: 0 | D63: 0 | E63: 0 | F63: 0 | G63: 0 | H63: 0 | I63: 0 | J63: 0 | K63: 0 | L63: 0 | M63: 0 | N63: 0 | S63: 0 | U63: 0 | V63: 0 | W63: =LOOKUP(A63,'DOE - FIPStoPayeeCodeConvTable'!$A$3:$A$213,'DOE - FIPStoPayeeCodeConvTable'!$E$3:$E$213) -> 0.2286 | X63: 0.28575 | Y63: 0 | Z63: 0
A64: 119 | B64: =LOOKUP(A64,'DOE - FIPStoPayeeCodeConvTable'!$A$3:$A$213,'DOE - FIPStoPayeeCodeConvTable'!$B$3:$B$213) -> Middlesex Co | C64: 0 | D64: 0 | E64: 0 | F64: 0 | G64: 0 | H64: 0 | I64: 0 | J64: 0 | K64: 0 | L64: 0 | M64: 0 | N64: 0 | S64: 0 | U64: 0 | V64: 0 | W64: =LOOKUP(A64,'DOE - FIPStoPayeeCodeConvTable'!$A$3:$A$213,'DOE - FIPStoPayeeCodeConvTable'!$E$3:$E$213) -> 0.4333 | X64: 0.541625 | Y64: 0 | Z64: 0
A65: 121 | B65: =LOOKUP(A65,'DOE - FIPStoPayeeCodeConvTable'!$A$3:$A$213,'DOE - FIPStoPayeeCodeConvTable'!$B$3:$B$213) -> Montgomery Co | C65: 0 | D65: 0 | E65: 0 | F65: 0 | G65: 0 | H65: 0 | I65: 0 | J65: 0 | K65: 0 | L65: 0 | M65: 0 | N65: 0 | S65: 0 | U65: 0 | V65: 0 | W65: =LOOKUP(A65,'DOE - FIPStoPayeeCodeConvTable'!$A$3:$A$213,'DOE - FIPStoPayeeCodeConvTable'!$E$3:$E$213) -> 0.2834 | X65: 0.35425 | Y65: 0 | Z65: 0
A66: 125 | B66: =LOOKUP(A66,'DOE - FIPStoPayeeCodeConvTable'!$A$3:$A$213,'DOE - FIPStoPayeeCodeConvTable'!$B$3:$B$213) -> Nelson Co | C66: 0 | D66: 0 | E66: 0 | F66: 0 | G66: 0 | H66: 0 | I66: 0 | J66: 0 | K66: 0 | L66: 0 | M66: 0 | N66: 0 | S66: 0 | U66: 0 | V66: 0 | W66: =LOOKUP(A66,'DOE - FIPStoPayeeCodeConvTable'!$A$3:$A$213,'DOE - FIPStoPayeeCodeConvTable'!$E$3:$E$213) -> 0.3132 | X66: 0.3915 | Y66: 0 | Z66: 0
A67: 127 | B67: =LOOKUP(A67,'DOE - FIPStoPayeeCodeConvTable'!$A$3:$A$213,'DOE - FIPStoPayeeCodeConvTable'!$B$3:$B$213) -> New Kent Co | C67: 0 | D67: 0 | E67: 0 | F67: 0 | G67: 0 | H67: 0 | I67: 0 | J67: 0 | K67: 0 | L67: 0 | M67: 0 | N67: 0 | S67: 0 | U67: 0 | V67: 0 | W67: =LOOKUP(A67,'DOE - FIPStoPayeeCodeConvTable'!$A$3:$A$213,'DOE - FIPStoPayeeCodeConvTable'!$E$3:$E$213) -> 0.4329 | X67: 0.541125 | Y67: 0 | Z67: 0
A68: 131 | B68: =LOOKUP(A68,'DOE - FIPStoPayeeCodeConvTable'!$A$3:$A$213,'DOE - FIPStoPayeeCodeConvTable'!$B$3:$B$213) -> Northampton Co | C68: 0 | D68: 0 | E68: 0 | F68: 0 | G68: 0 | H68: 0 | I68: 0 | J68: 0 | K68: 0 | L68: 0 | M68: 0 | N68: 0 | S68: 0 | U68: 0 | V68: 0 | W68: =LOOKUP(A68,'DOE - FIPStoPayeeCodeConvTable'!$A$3:$A$213,'DOE - FIPStoPayeeCodeConvTable'!$E$3:$E$213) -> 0.1971 | X68: 0.246375 | Y68: 0 | Z68: 0
A69: 133 | B69: =LOOKUP(A69,'DOE - FIPStoPayeeCodeConvTable'!$A$3:$A$213,'DOE - FIPStoPayeeCodeConvTable'!$B$3:$B$213) -> Northumberland Co | C69: 0 | D69: 0 | E69: 0 | F69: 0 | G69: 0 | H69: 0 | I69: 0 | J69: 0 | K69: 0 | L69: 0 | M69: 0 | N69: 0 | S69: 0 | U69: 0 | V69: 0 | W69: =LOOKUP(A69,'DOE - FIPStoPayeeCodeConvTable'!$A$3:$A$213,'DOE - FIPStoPayeeCodeConvTable'!$E$3:$E$213) -> 0.3304 | X69: 0.413 | Y69: 0 | Z69: 0
A70: 135 | B70: =LOOKUP(A70,'DOE - FIPStoPayeeCodeConvTable'!$A$3:$A$213,'DOE - FIPStoPayeeCodeConvTable'!$B$3:$B$213) -> Nottoway Co | C70: 0 | D70: 0 | E70: 0 | F70: 0 | G70: 0 | H70: 0 | I70: 0 | J70: 23610 | K70: 0 | L70: 28725.5 | M70: 0 | N70: 0 | S70: 52335.5 | U70: =ROUND($U$1*S70,2) -> 46055.24 | V70: =SUM(S70)-SUM(U70) -> 6280.26 | W70: =LOOKUP(A70,'DOE - FIPStoPayeeCodeConvTable'!$A$3:$A$213,'DOE - FIPStoPayeeCodeConvTable'!$E$3:$E$213) -> 0.2686 | X70: 0.33575 | Y70: 2108.6 | Z70: 4171.66
A71: 137 | B71: =LOOKUP(A71,'DOE - FIPStoPayeeCodeConvTable'!$A$3:$A$213,'DOE - FIPStoPayeeCodeConvTable'!$B$3:$B$213) -> Orange Co | C71: 10624.5 | D71: 10624.5 | E71: 12198.5 | F71: 14953 | G71: 6296 | H71: 0 | I71: 0 | J71: 0 | K71: 7456.88 | L71: 17707.5 | M71: 393.5 | N71: 0 | S71: =SUM(C71:R71) -> 80254.38 | U71: 70623.85 | V71: 9630.53 | W71: =LOOKUP(A71,'DOE - FIPStoPayeeCodeConvTable'!$A$3:$A$213,'DOE - FIPStoPayeeCodeConvTable'!$E$3:$E$213) -> 0.4083 | X71: =$X$1*W71 -> 0.510375 | Y71: =ROUND(X71*V71,2) -> 4915.18 | Z71: =SUM(V71)-SUM(Y71) -> 4715.35
A72: 139 | B72: =LOOKUP(A72,'DOE - FIPStoPayeeCodeConvTable'!$A$3:$A$213,'DOE - FIPStoPayeeCodeConvTable'!$B$3:$B$213) -> Page Co | C72: 0 | D72: 0 | E72: 0 | F72: 0 | G72: 0 | H72: 0 | I72: 0 | J72: 0 | K72: 11018 | L72: 11018 | M72: 0 | N72: 12985.5 | S72: 35021.5 | U72: 30818.92 | V72: 4202.58 | W72: =LOOKUP(A72,'DOE - FIPStoPayeeCodeConvTable'!$A$3:$A$213,'DOE - FIPStoPayeeCodeConvTable'!$E$3:$E$213) -> 0.2865 | X72: 0.358125 | Y72: 1505.05 | Z72: 2697.53
A73: 141 | B73: =LOOKUP(A73,'DOE - FIPStoPayeeCodeConvTable'!$A$3:$A$213,'DOE - FIPStoPayeeCodeConvTable'!$B$3:$B$213) -> Patrick Co | C73: 0 | D73: 0 | E73: 0 | F73: 0 | G73: 0 | H73: 0 | I73: 0 | J73: 0 | K73: 0 | L73: 0 | M73: 0 | N73: 0 | S73: 0 | U73: 0 | V73: 0 | W73: =LOOKUP(A73,'DOE - FIPStoPayeeCodeConvTable'!$A$3:$A$213,'DOE - FIPStoPayeeCodeConvTable'!$E$3:$E$213) -> 0.2539 | X73: 0.317375 | Y73: 0 | Z73: 0
A74: 143 | B74: =LOOKUP(A74,'DOE - FIPStoPayeeCodeConvTable'!$A$3:$A$213,'DOE - FIPStoPayeeCodeConvTable'!$B$3:$B$213) -> Pittsylvania Co | C74: 39350 | D74: 22823 | E74: 38169.5 | F74: 18101 | G74: 18494.5 | H74: 10231 | I74: 24003.5 | J74: 0 | K74: 0 | L74: 787 | M74: 3541.5 | N74: 0 | S74: 175501 | U74: 154440.88 | V74: 21060.12 | W74: =LOOKUP(A74,'DOE - FIPStoPayeeCodeConvTable'!$A$3:$A$213,'DOE - FIPStoPayeeCodeConvTable'!$E$3:$E$213) -> 0.2355 | X74: 0.294375 | Y74: 6199.57 | Z74: 14860.55
A75: 145 | B75: =LOOKUP(A75,'DOE - FIPStoPayeeCodeConvTable'!$A$3:$A$213,'DOE - FIPStoPayeeCodeConvTable'!$B$3:$B$213) -> Powhatan Co | C75: 0 | D75: 0 | E75: 0 | F75: 0 | G75: 0 | H75: 0 | I75: 0 | J75: 0 | K75: 0 | L75: 0 | M75: 0 | N75: 0 | S75: 0 | U75: 0 | V75: 0 | W75: =LOOKUP(A75,'DOE - FIPStoPayeeCodeConvTable'!$A$3:$A$213,'DOE - FIPStoPayeeCodeConvTable'!$E$3:$E$213) -> 0.4342 | X75: 0.54275 | Y75: 0 | Z75: 0
A76: 147 | B76: =LOOKUP(A76,'DOE - FIPStoPayeeCodeConvTable'!$A$3:$A$213,'DOE - FIPStoPayeeCodeConvTable'!$B$3:$B$213) -> Prince Edward Co | C76: 0 | D76: 0 | E76: 0 | F76: 0 | G76: 0 | H76: 0 | I76: 0 | J76: 0 | K76: 0 | L76: 0 | M76: 0 | N76: 0 | S76: 0 | U76: 0 | V76: 0 | W76: =LOOKUP(A76,'DOE - FIPStoPayeeCodeConvTable'!$A$3:$A$213,'DOE - FIPStoPayeeCodeConvTable'!$E$3:$E$213) -> 0.2232 | X76: 0.279 | Y76: 0 | Z76: 0
A77: 149 | B77: =LOOKUP(A77,'DOE - FIPStoPayeeCodeConvTable'!$A$3:$A$213,'DOE - FIPStoPayeeCodeConvTable'!$B$3:$B$213) -> Prince George Co | C77: 0 | D77: 0 | E77: 0 | F77: 0 | G77: 0 | H77: 0 | I77: 0 | J77: 0 | K77: 0 | L77: 0 | M77: 0 | N77: 0 | S77: 0 | U77: 0 | V77: 0 | W77: =LOOKUP(A77,'DOE - FIPStoPayeeCodeConvTable'!$A$3:$A$213,'DOE - FIPStoPayeeCodeConvTable'!$E$3:$E$213) -> 0.3716 | X77: 0.4645 | Y77: 0 | Z77: 0
A78: 153 | B78: =LOOKUP(A78,'DOE - FIPStoPayeeCodeConvTable'!$A$3:$A$213,'DOE - FIPStoPayeeCodeConvTable'!$B$3:$B$213) -> Prince William Co | C78: 0 | D78: 0 | E78: 0 | F78: 12592 | G78: 0 | H78: 16527 | I78: 19675 | J78: 16731.32 | K78: 13538.16 | L78: 6500.32 | M78: 0 | N78: 731.1 | S78: 86294.9 | U78: 75939.51 | V78: 10355.39 | W78: =LOOKUP(A78,'DOE - FIPStoPayeeCodeConvTable'!$A$3:$A$213,'DOE - FIPStoPayeeCodeConvTable'!$E$3:$E$213) -> 0.3414 | X78: 0.42675 | Y78: 4419.16 | Z78: 5936.23
A79: 155 | B79: =LOOKUP(A79,'DOE - FIPStoPayeeCodeConvTable'!$A$3:$A$213,'DOE - FIPStoPayeeCodeConvTable'!$B$3:$B$213) -> Pulaski Co | C79: 0 | D79: 0 | E79: 0 | F79: 0 | G79: 0 | H79: 0 | I79: 0 | J79: 0 | K79: 0 | L79: 0 | M79: 0 | N79: 0 | S79: 0 | U79: 0 | V79: 0 | W79: =LOOKUP(A79,'DOE - FIPStoPayeeCodeConvTable'!$A$3:$A$213,'DOE - FIPStoPayeeCodeConvTable'!$E$3:$E$213) -> 0.2923 | X79: 0.365375 | Y79: 0 | Z79: 0
A80: 157 | B80: =LOOKUP(A80,'DOE - FIPStoPayeeCodeConvTable'!$A$3:$A$213,'DOE - FIPStoPayeeCodeConvTable'!$B$3:$B$213) -> Rappahannock Co | C80: 0 | D80: 0 | E80: 0 | F80: 0 | G80: 0 | H80: 0 | I80: 0 | J80: 0 | K80: 0 | L80: 0 | M80: 0 | N80: 0 | S80: 0 | U80: 0 | V80: 0 | W80: =LOOKUP(A80,'DOE - FIPStoPayeeCodeConvTable'!$A$3:$A$213,'DOE - FIPStoPayeeCodeConvTable'!$E$3:$E$213) -> 0.4199 | X80: 0.524875 | Y80: 0 | Z80: 0
A81: 159 | B81: =LOOKUP(A81,'DOE - FIPStoPayeeCodeConvTable'!$A$3:$A$213,'DOE - FIPStoPayeeCodeConvTable'!$B$3:$B$213) -> Richmond Co | C81: 0 | D81: 0 | E81: 0 | F81: 0 | G81: 0 | H81: 0 | I81: 0 | J81: 0 | K81: 0 | L81: 0 | M81: 0 | N81: 0 | S81: 0 | U81: 0 | V81: 0 | W81: =LOOKUP(A81,'DOE - FIPStoPayeeCodeConvTable'!$A$3:$A$213,'DOE - FIPStoPayeeCodeConvTable'!$E$3:$E$213) -> 0.3227 | X81: 0.403375 | Y81: 0 | Z81: 0
A82: 161 | B82: =LOOKUP(A82,'DOE - FIPStoPayeeCodeConvTable'!$A$3:$A$213,'DOE - FIPStoPayeeCodeConvTable'!$B$3:$B$213) -> Roanoke Co | C82: 0 | D82: 0 | E82: 0 | F82: 0 | G82: 0 | H82: 4057.42 | I82: 0 | J82: 0 | K82: 0 | L82: 0 | M82: 0 | N82: 0 | S82: 4057.42 | U82: 3570.53 | V82: 486.89 | W82: =LOOKUP(A82,'DOE - FIPStoPayeeCodeConvTable'!$A$3:$A$213,'DOE - FIPStoPayeeCodeConvTable'!$E$3:$E$213) -> 0.4397 | X82: 0.549625 | Y82: 267.61 | Z82: 219.28
A83: 163 | B83: =LOOKUP(A83,'DOE - FIPStoPayeeCodeConvTable'!$A$3:$A$213,'DOE - FIPStoPayeeCodeConvTable'!$B$3:$B$213) -> Rockbridge Co | C83: 0 | D83: 0 | E83: 0 | F83: 0 | G83: 0 | H83: 0 | I83: 0 | J83: 0 | K83: 0 | L83: 0 | M83: 0 | N83: 0 | S83: 0 | U83: 0 | V83: 0 | W83: =LOOKUP(A83,'DOE - FIPStoPayeeCodeConvTable'!$A$3:$A$213,'DOE - FIPStoPayeeCodeConvTable'!$E$3:$E$213) -> 0.2336 | X83: 0.292 | Y83: 0 | Z83: 0
A84: 165 | B84: =LOOKUP(A84,'DOE - FIPStoPayeeCodeConvTable'!$A$3:$A$213,'DOE - FIPStoPayeeCodeConvTable'!$B$3:$B$213) -> Rockingham Co | C84: 6296 | D84: 10624.5 | E84: 12198.5 | F84: 14953 | G84: 12198.5 | H84: 1574 | I84: 0 | J84: 0 | K84: 0 | L84: 0 | M84: 1180.5 | N84: 0 | S84: 59025 | U84: 51942 | V84: 7083 | W84: =LOOKUP(A84,'DOE - FIPStoPayeeCodeConvTable'!$A$3:$A$213,'DOE - FIPStoPayeeCodeConvTable'!$E$3:$E$213) -> 0.3445 | X84: 0.430625 | Y84: 3050.12 | Z84: 4032.88
A85: 167 | B85: =LOOKUP(A85,'DOE - FIPStoPayeeCodeConvTable'!$A$3:$A$213,'DOE - FIPStoPayeeCodeConvTable'!$B$3:$B$213) -> Russell Co | C85: 0 | D85: 0 | E85: 0 | F85: 0 | G85: 0 | H85: 0 | I85: 1462.2 | J85: 4532.82 | K85: 2924.4 | L85: 3947.94 | M85: 0 | N85: 8919.42 | S85: 21786.78 | U85: 19172.37 | V85: 2614.41 | W85: =LOOKUP(A85,'DOE - FIPStoPayeeCodeConvTable'!$A$3:$A$213,'DOE - FIPStoPayeeCodeConvTable'!$E$3:$E$213) -> 0.1894 | X85: 0.23675 | Y85: 618.96 | Z85: 1995.45
A86: 169 | B86: =LOOKUP(A86,'DOE - FIPStoPayeeCodeConvTable'!$A$3:$A$213,'DOE - FIPStoPayeeCodeConvTable'!$B$3:$B$213) -> Scott Co | C86: 0 | D86: 0 | E86: 0 | F86: 0 | G86: 0 | H86: 0 | I86: 0 | J86: 0 | K86: 0 | L86: 0 | M86: 0 | N86: 0 | S86: 0 | U86: 0 | V86: 0 | W86: =LOOKUP(A86,'DOE - FIPStoPayeeCodeConvTable'!$A$3:$A$213,'DOE - FIPStoPayeeCodeConvTable'!$E$3:$E$213) -> 0.3154 | X86: 0.39425 | Y86: 0 | Z86: 0
A87: 171 | B87: =LOOKUP(A87,'DOE - FIPStoPayeeCodeConvTable'!$A$3:$A$213,'DOE - FIPStoPayeeCodeConvTable'!$B$3:$B$213) -> Shenandoah Co | C87: 0 | D87: 0 | E87: 0 | F87: 0 | G87: 0 | H87: 0 | I87: 4532.82 | J87: 584.88 | K87: 0 | L87: 5319.82 | M87: 0 | N87: 13437.1 | S87: 23874.62 | U87: 21009.67 | V87: 2864.95 | W87: =LOOKUP(A87,'DOE - FIPStoPayeeCodeConvTable'!$A$3:$A$213,'DOE - FIPStoPayeeCodeConvTable'!$E$3:$E$213) -> 0.3517 | X87: 0.439625 | Y87: 1259.5 | Z87: 1605.45
A88: 173 | B88: =LOOKUP(A88,'DOE - FIPStoPayeeCodeConvTable'!$A$3:$A$213,'DOE - FIPStoPayeeCodeConvTable'!$B$3:$B$213) -> Smyth Co | C88: 0 | D88: 0 | E88: 0 | F88: 0 | G88: 0 | H88: 0 | I88: 0 | J88: 0 | K88: 0 | L88: 9768.92 | M88: 10815.59 | N88: 8373.36 | S88: 28957.87 | U88: 25482.93 | V88: 3474.94 | W88: =LOOKUP(A88,'DOE - FIPStoPayeeCodeConvTable'!$A$3:$A$213,'DOE - FIPStoPayeeCodeConvTable'!$E$3:$E$213) -> 0.2337 | X88: 0.292125 | Y88: 1015.12 | Z88: 2459.82
A89: 175 | B89: =LOOKUP(A89,'DOE - FIPStoPayeeCodeConvTable'!$A$3:$A$213,'DOE - FIPStoPayeeCodeConvTable'!$B$3:$B$213) -> Southampton Co | C89: 0 | D89: 0 | E89: 0 | F89: 0 | G89: 0 | H89: 0 | I89: 0 | J89: 0 | K89: 0 | L89: 0 | M89: 0 | N89: 0 | S89: 0 | U89: 0 | V89: 0 | W89: =LOOKUP(A89,'DOE - FIPStoPayeeCodeConvTable'!$A$3:$A$213,'DOE - FIPStoPayeeCodeConvTable'!$E$3:$E$213) -> 0.323 | X89: 0.40375 | Y89: 0 | Z89: 0
A90: 177 | B90: =LOOKUP(A90,'DOE - FIPStoPayeeCodeConvTable'!$A$3:$A$213,'DOE - FIPStoPayeeCodeConvTable'!$B$3:$B$213) -> Spotsylvania Co | C90: 0 | D90: 0 | E90: 0 | F90: 0 | G90: 0 | H90: 0 | I90: 0 | J90: 0 | K90: 0 | L90: 0 | M90: 0 | N90: 10231 | S90: 10231 | U90: 9003.28 | V90: 1227.72 | W90: =LOOKUP(A90,'DOE - FIPStoPayeeCodeConvTable'!$A$3:$A$213,'DOE - FIPStoPayeeCodeConvTable'!$E$3:$E$213) -> 0.4588 | X90: 0.5735 | Y90: 704.1 | Z90: 523.62
A91: 179 | B91: =LOOKUP(A91,'DOE - FIPStoPayeeCodeConvTable'!$A$3:$A$213,'DOE - FIPStoPayeeCodeConvTable'!$B$3:$B$213) -> Stafford Co | C91: 0 | D91: 0 | E91: 0 | F91: 0 | G91: 0 | H91: 0 | I91: 0 | J91: 0 | K91: 0 | L91: 0 | M91: 0 | N91: 0 | S91: 0 | U91: 0 | V91: 0 | W91: =LOOKUP(A91,'DOE - FIPStoPayeeCodeConvTable'!$A$3:$A$213,'DOE - FIPStoPayeeCodeConvTable'!$E$3:$E$213) -> 0.4439 | X91: 0.554875 | Y91: 0 | Z91: 0
A92: 181 | B92: =LOOKUP(A92,'DOE - FIPStoPayeeCodeConvTable'!$A$3:$A$213,'DOE - FIPStoPayeeCodeConvTable'!$B$3:$B$213) -> Surry Co | C92: 0 | D92: 0 | E92: 0 | F92: 0 | G92: 0 | H92: 0 | I92: 0 | J92: 0 | K92: 0 | L92: 0 | M92: 0 | N92: 0 | S92: 0 | U92: 0 | V92: 0 | W92: =LOOKUP(A92,'DOE - FIPStoPayeeCodeConvTable'!$A$3:$A$213,'DOE - FIPStoPayeeCodeConvTable'!$E$3:$E$213) -> 0.3979 | X92: 0.497375 | Y92: 0 | Z92: 0
A93: 183 | B93: =LOOKUP(A93,'DOE - FIPStoPayeeCodeConvTable'!$A$3:$A$213,'DOE - FIPStoPayeeCodeConvTable'!$B$3:$B$213) -> Sussex Co | C93: 0 | D93: 0 | E93: 0 | F93: 0 | G93: 0 | H93: 0 | I93: 0 | J93: 0 | K93: 0 | L93: 0 | M93: 0 | N93: 0 | S93: 0 | U93: 0 | V93: 0 | W93: =LOOKUP(A93,'DOE - FIPStoPayeeCodeConvTable'!$A$3:$A$213,'DOE - FIPStoPayeeCodeConvTable'!$E$3:$E$213) -> 0.2387 | X93: 0.298375 | Y93: 0 | Z93: 0
A94: 185 | B94: =LOOKUP(A94,'DOE - FIPStoPayeeCodeConvTable'!$A$3:$A$213,'DOE - FIPStoPayeeCodeConvTable'!$B$3:$B$213) -> Tazewell Co | C94: 0 | D94: 0 | E94: 0 | F94: 0 | G94: 0 | H94: 0 | I94: 0 | J94: 0 | K94: 0 | L94: 0 | M94: 0 | N94: 0 | S94: 0 | U94: 0 | V94: 0 | W94: =LOOKUP(A94,'DOE - FIPStoPayeeCodeConvTable'!$A$3:$A$213,'DOE - FIPStoPayeeCodeConvTable'!$E$3:$E$213) -> 0.2455 | X94: 0.306875 | Y94: 0 | Z94: 0
A95: 187 | B95: =LOOKUP(A95,'DOE - FIPStoPayeeCodeConvTable'!$A$3:$A$213,'DOE - FIPStoPayeeCodeConvTable'!$B$3:$B$213) -> Warren Co | C95: 0 | D95: 0 | E95: 0 | F95: 0 | G95: 12198.5 | H95: 0 | I95: 24003.5 | J95: 3148 | K95: 6689.5 | L95: 0 | M95: 0 | N95: 0 | S95: 46039.5 | U95: 40514.76 | V95: 5524.74 | W95: =LOOKUP(A95,'DOE - FIPStoPayeeCodeConvTable'!$A$3:$A$213,'DOE - FIPStoPayeeCodeConvTable'!$E$3:$E$213) -> 0.3853 | X95: 0.481625 | Y95: 2660.85 | Z95: 2863.89
A96: 191 | B96: =LOOKUP(A96,'DOE - FIPStoPayeeCodeConvTable'!$A$3:$A$213,'DOE - FIPStoPayeeCodeConvTable'!$B$3:$B$213) -> Washington Co | C96: 0 | D96: 0 | E96: 0 | F96: 0 | G96: 0 | H96: 0 | I96: 0 | J96: 0 | K96: 0 | L96: 0 | M96: 0 | N96: 0 | S96: 0 | U96: 0 | V96: 0 | W96: =LOOKUP(A96,'DOE - FIPStoPayeeCodeConvTable'!$A$3:$A$213,'DOE - FIPStoPayeeCodeConvTable'!$E$3:$E$213) -> 0.276 | X96: 0.345 | Y96: 0 | Z96: 0
A97: 193 | B97: =LOOKUP(A97,'DOE - FIPStoPayeeCodeConvTable'!$A$3:$A$213,'DOE - FIPStoPayeeCodeConvTable'!$B$3:$B$213) -> Westmoreland Co | C97: 0 | D97: 0 | E97: 0 | F97: 0 | G97: 0 | H97: 0 | I97: 0 | J97: 0 | K97: 0 | L97: 0 | M97: 0 | N97: 0 | S97: 0 | U97: 0 | V97: 0 | W97: =LOOKUP(A97,'DOE - FIPStoPayeeCodeConvTable'!$A$3:$A$213,'DOE - FIPStoPayeeCodeConvTable'!$E$3:$E$213) -> 0.3025 | X97: 0.378125 | Y97: 0 | Z97: 0
A98: 195 | B98: =LOOKUP(A98,'DOE - FIPStoPayeeCodeConvTable'!$A$3:$A$213,'DOE - FIPStoPayeeCodeConvTable'!$B$3:$B$213) -> Wise Co | C98: 0 | D98: 0 | E98: 0 | F98: 0 | G98: 0 | H98: 0 | I98: 0 | J98: 0 | K98: 0 | L98: 0 | M98: 0 | N98: 0 | S98: 0 | U98: 0 | V98: 0 | W98: =LOOKUP(A98,'DOE - FIPStoPayeeCodeConvTable'!$A$3:$A$213,'DOE - FIPStoPayeeCodeConvTable'!$E$3:$E$213) -> 0.2755 | X98: 0.344375 | Y98: 0 | Z98: 0
A99: 197 | B99: =LOOKUP(A99,'DOE - FIPStoPayeeCodeConvTable'!$A$3:$A$213,'DOE - FIPStoPayeeCodeConvTable'!$B$3:$B$213) -> Wythe Co | C99: 16337.82 | D99: 0 | E99: 0 | F99: 0 | G99: 0 | H99: 0 | I99: 0 | J99: 4386.6 | K99: 0 | L99: 0 | M99: 0 | N99: 0 | S99: 20724.42 | U99: 18237.49 | V99: 2486.93 | W99: =LOOKUP(A99,'DOE - FIPStoPayeeCodeConvTable'!$A$3:$A$213,'DOE - FIPStoPayeeCodeConvTable'!$E$3:$E$213) -> 0.2708 | X99: 0.3385 | Y99: 841.83 | Z99: 1645.1
A100: 199 | B100: =LOOKUP(A100,'DOE - FIPStoPayeeCodeConvTable'!$A$3:$A$213,'DOE - FIPStoPayeeCodeConvTable'!$B$3:$B$213) -> York Co | C100: 0 | D100: 0 | E100: 0 | F100: 0 | G100: 0 | H100: 0 | I100: 0 | J100: 0 | K100: 0 | L100: 0 | M100: 0 | N100: 0 | S100: 0 | U100: 0 | V100: 0 | W100: =LOOKUP(A100,'DOE - FIPStoPayeeCodeConvTable'!$A$3:$A$213,'DOE - FIPStoPayeeCodeConvTable'!$E$3:$E$213) -> 0.3888 | X100: 0.486 | Y100: 0 | Z100: 0
A101: 510 | B101: =LOOKUP(A101,'DOE - FIPStoPayeeCodeConvTable'!$A$3:$A$213,'DOE - FIPStoPayeeCodeConvTable'!$B$3:$B$213) -> Alexandria City | C101: 25597.56 | D101: 0 | E101: 0 | F101: 0 | G101: 0 | H101: 0 | I101: 0 | J101: 0 | K101: 0 | L101: 0 | M101: 0 | N101: 0 | S101: 25597.56 | U101: 22525.85 | V101: 3071.71 | W101: =LOOKUP(A101,'DOE - FIPStoPayeeCodeConvTable'!$A$3:$A$213,'DOE - FIPStoPayeeCodeConvTable'!$E$3:$E$213) -> 0.5309 | X101: 0.663625 | Y101: 2038.46 | Z101: 1033.25
A102: 520 | B102: =LOOKUP(A102,'DOE - FIPStoPayeeCodeConvTable'!$A$3:$A$213,'DOE - FIPStoPayeeCodeConvTable'!$B$3:$B$213) -> Bristol City | C102: 0 | D102: 0 | E102: 0 | F102: 0 | G102: 0 | H102: 0 | I102: 0 | J102: 0 | K102: 0 | L102: 0 | M102: 0 | N102: 0 | S102: 0 | U102: =ROUND($U$1*S102,2) -> 0 | V102: =SUM(S102)-SUM(U102) -> 0 | W102: =LOOKUP(A102,'DOE - FIPStoPayeeCodeConvTable'!$A$3:$A$213,'DOE - FIPStoPayeeCodeConvTable'!$E$3:$E$213) -> 0.2547 | X102: 0.318375 | Y102: 0 | Z102: 0
A103: 530 | B103: =LOOKUP(A103,'DOE - FIPStoPayeeCodeConvTable'!$A$3:$A$213,'DOE - FIPStoPayeeCodeConvTable'!$B$3:$B$213) -> Buena Vista City | C103: 0 | D103: 0 | E103: 0 | F103: 0 | G103: 0 | H103: 0 | I103: 0 | J103: 0 | K103: 0 | L103: 0 | M103: 0 | N103: 0 | S103: 0 | U103: 0 | V103: 0 | W103: =LOOKUP(A103,'DOE - FIPStoPayeeCodeConvTable'!$A$3:$A$213,'DOE - FIPStoPayeeCodeConvTable'!$E$3:$E$213) -> 0.2329 | X103: 0.291125 | Y103: 0 | Z103: 0
A104: 540 | B104: =LOOKUP(A104,'DOE - FIPStoPayeeCodeConvTable'!$A$3:$A$213,'DOE - FIPStoPayeeCodeConvTable'!$B$3:$B$213) -> Charlottesville City | C104: 0 | D104: 0 | E104: 0 | F104: 0 | G104: 0 | H104: 0 | I104: 0 | J104: 0 | K104: 0 | L104: 0 | M104: 0 | N104: 0 | S104: 0 | U104: 0 | V104: 0 | W104: =LOOKUP(A104,'DOE - FIPStoPayeeCodeConvTable'!$A$3:$A$213,'DOE - FIPStoPayeeCodeConvTable'!$E$3:$E$213) -> 0.3068 | X104: 0.3835 | Y104: 0 | Z104: 0
A105: 550 | B105: =LOOKUP(A105,'DOE - FIPStoPayeeCodeConvTable'!$A$3:$A$213,'DOE - FIPStoPayeeCodeConvTable'!$B$3:$B$213) -> Chesapeake City | C105: 0 | D105: 0 | E105: 0 | F105: 0 | G105: 0 | H105: 0 | I105: 0 | J105: 0 | K105: 0 | L105: 0 | M105: 0 | N105: 0 | S105: 0 | U105: 0 | V105: 0 | W105: =LOOKUP(A105,'DOE - FIPStoPayeeCodeConvTable'!$A$3:$A$213,'DOE - FIPStoPayeeCodeConvTable'!$E$3:$E$213) -> 0.3715 | X105: 0.464375 | Y105: 0 | Z105: 0
A106: 570 | B106: =LOOKUP(A106,'DOE - FIPStoPayeeCodeConvTable'!$A$3:$A$213,'DOE - FIPStoPayeeCodeConvTable'!$B$3:$B$213) -> Colonial Heights City | C106: 0 | D106: 0 | E106: 0 | F106: 0 | G106: 0 | H106: 0 | I106: 0 | J106: 0 | K106: 0 | L106: 0 | M106: 0 | N106: 0 | S106: 0 | U106: 0 | V106: 0 | W106: =LOOKUP(A106,'DOE - FIPStoPayeeCodeConvTable'!$A$3:$A$213,'DOE - FIPStoPayeeCodeConvTable'!$E$3:$E$213) -> 0.4027 | X106: 0.503375 | Y106: 0 | Z106: 0
A107: 580 | B107: =LOOKUP(A107,'DOE - FIPStoPayeeCodeConvTable'!$A$3:$A$213,'DOE - FIPStoPayeeCodeConvTable'!$B$3:$B$213) -> Covington City | C107: 0 | D107: 0 | E107: 0 | F107: 0 | G107: 12198.5 | H107: 0 | I107: 13379 | J107: 12198.5 | K107: 10624.5 | L107: 0 | M107: 0 | N107: 0 | S107: 48400.5 | U107: 42592.44 | V107: 5808.06 | W107: =LOOKUP(A107,'DOE - FIPStoPayeeCodeConvTable'!$A$3:$A$213,'DOE - FIPStoPayeeCodeConvTable'!$E$3:$E$213) -> 0.2496 | X107: 0.312 | Y107: 1812.11 | Z107: 3995.95
A108: 590 | B108: =LOOKUP(A108,'DOE - FIPStoPayeeCodeConvTable'!$A$3:$A$213,'DOE - FIPStoPayeeCodeConvTable'!$B$3:$B$213) -> Danville City | C108: 0 | D108: 0 | E108: 0 | F108: 0 | G108: 0 | H108: 0 | I108: 0 | J108: 1023.54 | K108: 1571.82 | L108: 0 | M108: 0 | N108: 0 | S108: 2595.36 | U108: 2283.92 | V108: 311.44 | W108: =LOOKUP(A108,'DOE - FIPStoPayeeCodeConvTable'!$A$3:$A$213,'DOE - FIPStoPayeeCodeConvTable'!$E$3:$E$213) -> 0.2223 | X108: 0.277875 | Y108: 86.54 | Z108: 224.9
A109: 620 | B109: =LOOKUP(A109,'DOE - FIPStoPayeeCodeConvTable'!$A$3:$A$213,'DOE - FIPStoPayeeCodeConvTable'!$B$3:$B$213) -> Franklin City | C109: 0 | D109: 0 | E109: 0 | F109: 0 | G109: 0 | H109: 0 | I109: 0 | J109: 0 | K109: 0 | L109: 0 | M109: 0 | N109: 0 | S109: 0 | U109: 0 | V109: 0 | W109: =LOOKUP(A109,'DOE - FIPStoPayeeCodeConvTable'!$A$3:$A$213,'DOE - FIPStoPayeeCodeConvTable'!$E$3:$E$213) -> 0.371 | X109: 0.46375 | Y109: 0 | Z109: 0
A110: 630 | B110: =LOOKUP(A110,'DOE - FIPStoPayeeCodeConvTable'!$A$3:$A$213,'DOE - FIPStoPayeeCodeConvTable'!$B$3:$B$213) -> Fredericksburg City | C110: 0 | D110: 0 | E110: 0 | F110: 0 | G110: 0 | H110: 0 | I110: 0 | J110: 0 | K110: 0 | L110: 0 | M110: 0 | N110: 0 | S110: 0 | U110: 0 | V110: 0 | W110: =LOOKUP(A110,'DOE - FIPStoPayeeCodeConvTable'!$A$3:$A$213,'DOE - FIPStoPayeeCodeConvTable'!$E$3:$E$213) -> 0.3441 | X110: 0.430125 | Y110: 0 | Z110: 0
A111: 640 | B111: =LOOKUP(A111,'DOE - FIPStoPayeeCodeConvTable'!$A$3:$A$213,'DOE - FIPStoPayeeCodeConvTable'!$B$3:$B$213) -> Galax City | C111: 0 | D111: 0 | E111: 0 | F111: 0 | G111: 0 | H111: 0 | I111: 0 | J111: 0 | K111: 0 | L111: 0 | M111: 0 | N111: 0 | S111: 0 | U111: 0 | V111: 0 | W111: =LOOKUP(A111,'DOE - FIPStoPayeeCodeConvTable'!$A$3:$A$213,'DOE - FIPStoPayeeCodeConvTable'!$E$3:$E$213) -> 0.3146 | X111: 0.39325 | Y111: 0 | Z111: 0
A112: 650 | B112: =LOOKUP(A112,'DOE - FIPStoPayeeCodeConvTable'!$A$3:$A$213,'DOE - FIPStoPayeeCodeConvTable'!$B$3:$B$213) -> Hampton City | C112: 0 | D112: 0 | E112: 0 | F112: 0 | G112: 0 | H112: 0 | I112: 0 | J112: 0 | K112: 0 | L112: 0 | M112: 0 | N112: 0 | S112: 0 | U112: 0 | V112: 0 | W112: =LOOKUP(A112,'DOE - FIPStoPayeeCodeConvTable'!$A$3:$A$213,'DOE - FIPStoPayeeCodeConvTable'!$E$3:$E$213) -> 0.3223 | X112: 0.402875 | Y112: 0 | Z112: 0
A113: 660 | B113: =LOOKUP(A113,'DOE - FIPStoPayeeCodeConvTable'!$A$3:$A$213,'DOE - FIPStoPayeeCodeConvTable'!$B$3:$B$213) -> Harrisonburg City | C113: 9444 | D113: 0 | E113: 24397 | F113: 11805 | G113: 0 | H113: 13379 | I113: 22823 | J113: 11688.5 | K113: 11018 | L113: 12198.5 | M113: 4722 | N113: 0 | S113: 121475 | U113: 106898 | V113: 14577 | W113: =LOOKUP(A113,'DOE - FIPStoPayeeCodeConvTable'!$A$3:$A$213,'DOE - FIPStoPayeeCodeConvTable'!$E$3:$E$213) -> 0.3808 | X113: 0.476 | Y113: 6938.65 | Z113: 7638.35
A114: 670 | B114: =LOOKUP(A114,'DOE - FIPStoPayeeCodeConvTable'!$A$3:$A$213,'DOE - FIPStoPayeeCodeConvTable'!$B$3:$B$213) -> Hopewell City | C114: 0 | D114: 0 | E114: 0 | F114: 0 | G114: 0 | H114: 0 | I114: 0 | J114: 0 | K114: 0 | L114: 0 | M114: 0 | N114: 0 | S114: 0 | U114: 0 | V114: 0 | W114: =LOOKUP(A114,'DOE - FIPStoPayeeCodeConvTable'!$A$3:$A$213,'DOE - FIPStoPayeeCodeConvTable'!$E$3:$E$213) -> 0.2667 | X114: 0.333375 | Y114: 0 | Z114: 0
A115: 678 | B115: =LOOKUP(A115,'DOE - FIPStoPayeeCodeConvTable'!$A$3:$A$213,'DOE - FIPStoPayeeCodeConvTable'!$B$3:$B$213) -> Lexington City | C115: 0 | D115: 0 | E115: 0 | F115: 0 | G115: 0 | H115: 0 | I115: 0 | J115: 0 | K115: 0 | L115: 0 | M115: 0 | N115: 0 | S115: 0 | U115: 0 | V115: 0 | W115: =LOOKUP(A115,'DOE - FIPStoPayeeCodeConvTable'!$A$3:$A$213,'DOE - FIPStoPayeeCodeConvTable'!$E$3:$E$213) -> 0.3302 | X115: 0.41275 | Y115: 0 | Z115: 0
A116: 680 | B116: =LOOKUP(A116,'DOE - FIPStoPayeeCodeConvTable'!$A$3:$A$213,'DOE - FIPStoPayeeCodeConvTable'!$B$3:$B$213) -> Lynchburg City | C116: 0 | D116: 0 | E116: 0 | F116: 0 | G116: 0 | H116: 0 | I116: 0 | J116: 0 | K116: 0 | L116: 0 | M116: 0 | N116: 0 | S116: 0 | U116: 0 | V116: 0 | W116: =LOOKUP(A116,'DOE - FIPStoPayeeCodeConvTable'!$A$3:$A$213,'DOE - FIPStoPayeeCodeConvTable'!$E$3:$E$213) -> 0.2736 | X116: 0.342 | Y116: 0 | Z116: 0
A117: 683 | B117: =LOOKUP(A117,'DOE - FIPStoPayeeCodeConvTable'!$A$3:$A$213,'DOE - FIPStoPayeeCodeConvTable'!$B$3:$B$213) -> Manassas City | C117: 0 | D117: 0 | E117: 0 | F117: 0 | G117: 0 | H117: 0 | I117: 0 | J117: 0 | K117: 0 | L117: 0 | M117: 0 | N117: 0 | S117: 0 | U117: 0 | V117: 0 | W117: =LOOKUP(A117,'DOE - FIPStoPayeeCodeConvTable'!$A$3:$A$213,'DOE - FIPStoPayeeCodeConvTable'!$E$3:$E$213) -> 0.4168 | X117: 0.521 | Y117: 0 | Z117: 0
A118: 685 | B118: =LOOKUP(A118,'DOE - FIPStoPayeeCodeConvTable'!$A$3:$A$213,'DOE - FIPStoPayeeCodeConvTable'!$B$3:$B$213) -> Manassas Park City | C118: 0 | D118: 0 | E118: 0 | F118: 0 | G118: 0 | H118: 0 | I118: 0 | J118: 0 | K118: 0 | L118: 0 | M118: 67682 | N118: 0 | S118: 67682 | U118: 59560.16 | V118: 8121.84 | W118: =LOOKUP(A118,'DOE - FIPStoPayeeCodeConvTable'!$A$3:$A$213,'DOE - FIPStoPayeeCodeConvTable'!$E$3:$E$213) -> 0.4273 | X118: 0.534125 | Y118: 4338.08 | Z118: 3783.76
A119: 690 | B119: =LOOKUP(A119,'DOE - FIPStoPayeeCodeConvTable'!$A$3:$A$213,'DOE - FIPStoPayeeCodeConvTable'!$B$3:$B$213) -> Martinsville City | C119: 0 | D119: 0 | E119: 0 | F119: 0 | G119: 0 | H119: 0 | I119: 0 | J119: 0 | K119: 0 | L119: 0 | M119: 0 | N119: 0 | S119: 0 | U119: 0 | V119: 0 | W119: =LOOKUP(A119,'DOE - FIPStoPayeeCodeConvTable'!$A$3:$A$213,'DOE - FIPStoPayeeCodeConvTable'!$E$3:$E$213) -> 0.3321 | X119: 0.415125 | Y119: 0 | Z119: 0
A120: 700 | B120: =LOOKUP(A120,'DOE - FIPStoPayeeCodeConvTable'!$A$3:$A$213,'DOE - FIPStoPayeeCodeConvTable'!$B$3:$B$213) -> Newport News City | C120: 0 | D120: 0 | E120: 0 | F120: 0 | G120: 0 | H120: 0 | I120: 1180.5 | J120: 0 | K120: 0 | L120: 0 | M120: 0 | N120: 4722 | S120: 5902.5 | U120: 5194.2 | V120: 708.3 | W120: =LOOKUP(A120,'DOE - FIPStoPayeeCodeConvTable'!$A$3:$A$213,'DOE - FIPStoPayeeCodeConvTable'!$E$3:$E$213) -> 0.2773 | X120: 0.346625 | Y120: 245.51 | Z120: 462.79
A121: 710 | B121: =LOOKUP(A121,'DOE - FIPStoPayeeCodeConvTable'!$A$3:$A$213,'DOE - FIPStoPayeeCodeConvTable'!$B$3:$B$213) -> Norfolk City | C121: 0 | D121: 0 | E121: 0 | F121: 0 | G121: 0 | H121: 0 | I121: 0 | J121: 0 | K121: 0 | L121: 0 | M121: 0 | N121: 0 | S121: 0 | U121: 0 | V121: 0 | W121: =LOOKUP(A121,'DOE - FIPStoPayeeCodeConvTable'!$A$3:$A$213,'DOE - FIPStoPayeeCodeConvTable'!$E$3:$E$213) -> 0.2455 | X121: 0.306875 | Y121: 0 | Z121: 0
A122: 720 | B122: =LOOKUP(A122,'DOE - FIPStoPayeeCodeConvTable'!$A$3:$A$213,'DOE - FIPStoPayeeCodeConvTable'!$B$3:$B$213) -> Norton City | C122: 0 | D122: 0 | E122: 0 | F122: 0 | G122: 0 | H122: 0 | I122: 0 | J122: 0 | K122: 0 | L122: 0 | M122: 0 | N122: 0 | S122: 0 | U122: 0 | V122: 0 | W122: =LOOKUP(A122,'DOE - FIPStoPayeeCodeConvTable'!$A$3:$A$213,'DOE - FIPStoPayeeCodeConvTable'!$E$3:$E$213) -> 0.3254 | X122: 0.40675 | Y122: 0 | Z122: 0
A123: 730 | B123: =LOOKUP(A123,'DOE - FIPStoPayeeCodeConvTable'!$A$3:$A$213,'DOE - FIPStoPayeeCodeConvTable'!$B$3:$B$213) -> Petersburg City | C123: 0 | D123: 0 | E123: 0 | F123: 0 | G123: 0 | H123: 0 | I123: 0 | J123: 0 | K123: 0 | L123: 0 | M123: 0 | N123: 0 | S123: 0 | U123: 0 | V123: 0 | W123: =LOOKUP(A123,'DOE - FIPStoPayeeCodeConvTable'!$A$3:$A$213,'DOE - FIPStoPayeeCodeConvTable'!$E$3:$E$213) -> 0.3535 | X123: 0.441875 | Y123: 0 | Z123: 0
A124: 735 | B124: =LOOKUP(A124,'DOE - FIPStoPayeeCodeConvTable'!$A$3:$A$213,'DOE - FIPStoPayeeCodeConvTable'!$B$3:$B$213) -> Poquoson City | C124: 0 | D124: 0 | E124: 0 | F124: 0 | G124: 0 | H124: 0 | I124: 0 | J124: 0 | K124: 0 | L124: 0 | M124: 0 | N124: 0 | S124: 0 | U124: 0 | V124: 0 | W124: =LOOKUP(A124,'DOE - FIPStoPayeeCodeConvTable'!$A$3:$A$213,'DOE - FIPStoPayeeCodeConvTable'!$E$3:$E$213) -> 0.2787 | X124: 0.348375 | Y124: 0 | Z124: 0
A125: 740 | B125: =LOOKUP(A125,'DOE - FIPStoPayeeCodeConvTable'!$A$3:$A$213,'DOE - FIPStoPayeeCodeConvTable'!$B$3:$B$213) -> Portsmouth City | C125: 0 | D125: 0 | E125: 0 | F125: 0 | G125: 0 | H125: 0 | I125: 0 | J125: 0 | K125: 0 | L125: 0 | M125: 0 | N125: 0 | S125: 0 | U125: 0 | V125: 0 | W125: =LOOKUP(A125,'DOE - FIPStoPayeeCodeConvTable'!$A$3:$A$213,'DOE - FIPStoPayeeCodeConvTable'!$E$3:$E$213) -> 0.2605 | X125: 0.325625 | Y125: 0 | Z125: 0
A126: 750 | B126: =LOOKUP(A126,'DOE - FIPStoPayeeCodeConvTable'!$A$3:$A$213,'DOE - FIPStoPayeeCodeConvTable'!$B$3:$B$213) -> Radford City | C126: 0 | D126: 0 | E126: 0 | F126: 0 | G126: 0 | H126: 0 | I126: 0 | J126: 0 | K126: 0 | L126: 0 | M126: 0 | N126: 0 | S126: 0 | U126: 0 | V126: 0 | W126: =LOOKUP(A126,'DOE - FIPStoPayeeCodeConvTable'!$A$3:$A$213,'DOE - FIPStoPayeeCodeConvTable'!$E$3:$E$213) -> 0.2035 | X126: 0.254375 | Y126: 0 | Z126: 0
A127: 760 | B127: =LOOKUP(A127,'DOE - FIPStoPayeeCodeConvTable'!$A$3:$A$213,'DOE - FIPStoPayeeCodeConvTable'!$B$3:$B$213) -> Richmond City | C127: 0 | D127: 0 | E127: 0 | F127: 0 | G127: 0 | H127: 0 | I127: 0 | J127: 0 | K127: 0 | L127: 0 | M127: 0 | N127: 0 | S127: 0 | U127: 0 | V127: 0 | W127: =LOOKUP(A127,'DOE - FIPStoPayeeCodeConvTable'!$A$3:$A$213,'DOE - FIPStoPayeeCodeConvTable'!$E$3:$E$213) -> 0.3691 | X127: 0.461375 | Y127: 0 | Z127: 0
A128: 770 | B128: =LOOKUP(A128,'DOE - FIPStoPayeeCodeConvTable'!$A$3:$A$213,'DOE - FIPStoPayeeCodeConvTable'!$B$3:$B$213) -> Roanoke City | C128: 9050.5 | D128: 0 | E128: 2754.5 | F128: 0 | G128: 0 | H128: 0 | I128: 0 | J128: 0 | K128: 0 | L128: 0 | M128: 0 | N128: 0 | S128: 11805 | U128: 10388.4 | V128: 1416.6 | W128: =LOOKUP(A128,'DOE - FIPStoPayeeCodeConvTable'!$A$3:$A$213,'DOE - FIPStoPayeeCodeConvTable'!$E$3:$E$213) -> 0.3072 | X128: 0.384 | Y128: 543.97 | Z128: 872.63
A129: 775 | B129: =LOOKUP(A129,'DOE - FIPStoPayeeCodeConvTable'!$A$3:$A$213,'DOE - FIPStoPayeeCodeConvTable'!$B$3:$B$213) -> Salem City | C129: 0 | D129: 0 | E129: 0 | F129: 0 | G129: 0 | H129: 0 | I129: 0 | J129: 0 | K129: 0 | L129: 0 | M129: 0 | N129: 0 | S129: 0 | U129: 0 | V129: 0 | W129: =LOOKUP(A129,'DOE - FIPStoPayeeCodeConvTable'!$A$3:$A$213,'DOE - FIPStoPayeeCodeConvTable'!$E$3:$E$213) -> 0.3513 | X129: 0.439125 | Y129: 0 | Z129: 0
A130: 790 | B130: =LOOKUP(A130,'DOE - FIPStoPayeeCodeConvTable'!$A$3:$A$213,'DOE - FIPStoPayeeCodeConvTable'!$B$3:$B$213) -> Staunton City | C130: 0 | D130: 0 | E130: 0 | F130: 0 | G130: 0 | H130: 0 | I130: 0 | J130: 0 | K130: 0 | L130: 0 | M130: 0 | N130: 0 | S130: 0 | U130: 0 | V130: 0 | W130: =LOOKUP(A130,'DOE - FIPStoPayeeCodeConvTable'!$A$3:$A$213,'DOE - FIPStoPayeeCodeConvTable'!$E$3:$E$213) -> 0.2699 | X130: 0.337375 | Y130: 0 | Z130: 0
A131: 800 | B131: =LOOKUP(A131,'DOE - FIPStoPayeeCodeConvTable'!$A$3:$A$213,'DOE - FIPStoPayeeCodeConvTable'!$B$3:$B$213) -> Suffolk City | C131: 0 | D131: 0 | E131: 0 | F131: 0 | G131: 0 | H131: 0 | I131: 0 | J131: 0 | K131: 0 | L131: 0 | M131: 0 | N131: 0 | S131: 0 | U131: 0 | V131: 0 | W131: =LOOKUP(A131,'DOE - FIPStoPayeeCodeConvTable'!$A$3:$A$213,'DOE - FIPStoPayeeCodeConvTable'!$E$3:$E$213) -> 0.2432 | X131: 0.304 | Y131: 0 | Z131: 0
A132: 810 | B132: =LOOKUP(A132,'DOE - FIPStoPayeeCodeConvTable'!$A$3:$A$213,'DOE - FIPStoPayeeCodeConvTable'!$B$3:$B$213) -> Virginia Beach City | C132: 4386.6 | D132: 11018 | E132: 0 | F132: 0 | G132: 0 | H132: 0 | I132: 0 | J132: 0 | K132: 0 | L132: 0 | M132: 0 | N132: 0 | S132: 15404.6 | U132: 13556.05 | V132: 1848.55 | W132: =LOOKUP(A132,'DOE - FIPStoPayeeCodeConvTable'!$A$3:$A$213,'DOE - FIPStoPayeeCodeConvTable'!$E$3:$E$213) -> 0.3569 | X132: 0.446125 | Y132: 824.68 | Z132: 1023.87
A133: 820 | B133: =LOOKUP(A133,'DOE - FIPStoPayeeCodeConvTable'!$A$3:$A$213,'DOE - FIPStoPayeeCodeConvTable'!$B$3:$B$213) -> Waynesboro City | C133: 0 | D133: 0 | E133: 0 | F133: 0 | G133: 0 | H133: 0 | I133: 0 | J133: 0 | K133: 0 | L133: 0 | M133: 0 | N133: 0 | S133: 0 | U133: 0 | V133: =SUM(S133)-SUM(U133) -> 0 | W133: =LOOKUP(A133,'DOE - FIPStoPayeeCodeConvTable'!$A$3:$A$213,'DOE - FIPStoPayeeCodeConvTable'!$E$3:$E$213) -> 0.3843 | X133: 0.480375 | Y133: 0 | Z133: 0
A134: 830 | B134: =LOOKUP(A134,'DOE - FIPStoPayeeCodeConvTable'!$A$3:$A$213,'DOE - FIPStoPayeeCodeConvTable'!$B$3:$B$213) -> Williamsburg City | C134: 0 | D134: 0 | E134: 0 | F134: 0 | G134: 0 | H134: 0 | I134: 0 | J134: 0 | K134: 0 | L134: 0 | M134: 0 | N134: 0 | S134: 0 | U134: 0 | V134: 0 | W134: =LOOKUP(A134,'DOE - FIPStoPayeeCodeConvTable'!$A$3:$A$213,'DOE - FIPStoPayeeCodeConvTable'!$E$3:$E$213) -> 0.4553 | X134: =$X$1*W134 -> 0.569125 | Y134: =ROUND(X134*V134,2) -> 0 | Z134: =SUM(V134)-SUM(Y134) -> 0
A135: 840 | B135: =LOOKUP(A135,'DOE - FIPStoPayeeCodeConvTable'!$A$3:$A$213,'DOE - FIPStoPayeeCodeConvTable'!$B$3:$B$213) -> Winchester City | C135: 29491.02 | D135: 22036 | E135: 26758 | F135: 29177.1 | G135: 11018 | H135: 8263.5 | I135: 14166 | J135: 13379 | K135: 11018 | L135: 11018 | M135: 8263.5 | N135: 3541.5 | S135: =SUM(C135:R135) -> 188129.62 | U135: 165554.07 | V135: 22575.55 | W135: =LOOKUP(A135,'DOE - FIPStoPayeeCodeConvTable'!$A$3:$A$213,'DOE - FIPStoPayeeCodeConvTable'!$E$3:$E$213) -> 0.4587 | X135: 0.573375 | Y135: =ROUND(X135*V135,2) -> 12944.26 | Z135: =SUM(V135)-SUM(Y135) -> 9631.29

Sheet FAMIS (hidden)
A1: FY | B1: ='DOE - FIPStoPayeeCodeConvTable'!G1 -> 2018 | C1: MEDICAID ADJUSTMENTS--FAMIS PAYMENTS TO PROVIDERS | O1: ="Extended to be paided in this SFY = " & B1 -> Extended to be paided in this SFY = 2018 | T1: xx | U1: 0.88 | V1: =100%-U1 -> 0.12 | W1: (POOL) | X1: 1.25
U2: FEDERAL | V2: STATE/ | W2: (RATE) | X2: Factor
A3: FIPS | S3: Grand | U3: MEDICAID | V3: LOCAL | W3: LOCAL | Y3: LOCAL | Z3: STATE
A4: CODE | B4: LOCALITY | C4: =TEXT("7/1/" & $B$1-1,"mmm-yyyy") -> Jul-2017 | D4: =TEXT("8/1/" & $B$1-1,"mmm-yyyy") -> Aug-2017 | E4: =TEXT("9/1/" & $B$1-1,"mmm-yyyy") -> Sep-2017 | F4: =TEXT("10/1/" & $B$1-1,"mmm-yyyy") -> Oct-2017 | G4: =TEXT("11/1/" & $B$1-1,"mmm-yyyy") -> Nov-2017 | H4: =TEXT("12/1/" & $B$1-1,"mmm-yyyy") -> Dec-2017 | I4: =TEXT("1/1/" & $B$1,"mmm-yyyy") -> Jan-2018 | J4: =TEXT("2/1/" & $B$1,"mmm-yyyy") -> Feb-2018 | K4: =TEXT("3/1/" & $B$1,"mmm-yyyy") -> Mar-2018 | L4: =TEXT("4/1/" & $B$1,"mmm-yyyy") -> Apr-2018 | M4: =TEXT("5/1/" & $B$1,"mmm-yyyy") -> May-2018 | N4: =TEXT("6/1/" & $B$1,"mmm-yyyy") -> Jun-2018 | O4: =TEXT("7/1/" & $B$1,"mmm-yyyy") -> Jul-2018 | P4: =TEXT("8/1/" & $B$1,"mmm-yyyy") -> Aug-2018 | Q4: =TEXT("9/1/" & $B$1,"mmm-yyyy") -> Sep-2018 | R4: =TEXT("10/1/" & $B$1,"mmm-yyyy") -> Oct-2018 | S4: Total | U4: RATE/Share | V4: SHARE | W4: MATCH Rate | Y4: MATCH | Z4: SHARE
A5: Totals | C5: =SUM(C6:C1200) -> 0 | D5: 0 | E5: 0 | F5: 0 | G5: 0 | H5: 4386.6 | I5: 0 | J5: 0 | K5: 0 | L5: 14953 | M5: 0 | N5: 0 | O5: 0 | P5: 0 | Q5: 0 | R5: 0 | S5: =SUM(C5:R5) -> 19339.6 | T5: = | U5: =SUM(U6:U399) -> 17018.85 | V5: =SUM(V6:V399) -> 2320.75 | W5: = | Y5: =SUM(Y6:Y399) -> 1117.07 | Z5: =SUM(Z6:Z399) -> 1203.68
A6: 1 | B6: =LOOKUP(A6,'DOE - FIPStoPayeeCodeConvTable'!$A$3:$A$213,'DOE - FIPStoPayeeCodeConvTable'!$B$3:$B$213) -> Accomack Co | C6: 0 | D6: 0 | H6: 0 | I6: 0 | L6: 0 | M6: 0 | S6: 0 | U6: =ROUND($U$1*S6,2) -> 0 | V6: =SUM(S6)-SUM(U6) -> 0 | W6: =LOOKUP(A6,'DOE - FIPStoPayeeCodeConvTable'!$A$3:$A$213,'DOE - FIPStoPayeeCodeConvTable'!$E$3:$E$213) -> 0.2332 | X6: =$X$1*W6 -> 0.2915 | Y6: =ROUND(X6*V6,2) -> 0 | Z6: =SUM(V6)-SUM(Y6) -> 0
A7: 3 | B7: =LOOKUP(A7,'DOE - FIPStoPayeeCodeConvTable'!$A$3:$A$213,'DOE - FIPStoPayeeCodeConvTable'!$B$3:$B$213) -> Albemarle Co | C7: 0 | D7: 0 | H7: 0 | I7: 0 | L7: 0 | M7: 0 | S7: 0 | U7: 0 | V7: 0 | W7: =LOOKUP(A7,'DOE - FIPStoPayeeCodeConvTable'!$A$3:$A$213,'DOE - FIPStoPayeeCodeConvTable'!$E$3:$E$213) -> 0.4474 | X7: =$X$1*W7 -> 0.55925 | Y7: =ROUND(X7*V7,2) -> 0 | Z7: =SUM(V7)-SUM(Y7) -> 0
A8: 5 | B8: =LOOKUP(A8,'DOE - FIPStoPayeeCodeConvTable'!$A$3:$A$213,'DOE - FIPStoPayeeCodeConvTable'!$B$3:$B$213) -> Alleghany Co | C8: 0 | D8: 0 | H8: 0 | I8: 0 | L8: 0 | M8: 0 | S8: 0 | U8: 0 | V8: 0 | W8: =LOOKUP(A8,'DOE - FIPStoPayeeCodeConvTable'!$A$3:$A$213,'DOE - FIPStoPayeeCodeConvTable'!$E$3:$E$213) -> 0.1924 | X8: 0.2405 | Y8: 0 | Z8: 0
A9: 7 | B9: =LOOKUP(A9,'DOE - FIPStoPayeeCodeConvTable'!$A$3:$A$213,'DOE - FIPStoPayeeCodeConvTable'!$B$3:$B$213) -> Amelia Co | C9: 0 | D9: 0 | H9: 0 | I9: 0 | L9: 0 | M9: 0 | S9: 0 | U9: 0 | V9: 0 | W9: =LOOKUP(A9,'DOE - FIPStoPayeeCodeConvTable'!$A$3:$A$213,'DOE - FIPStoPayeeCodeConvTable'!$E$3:$E$213) -> 0.3268 | X9: 0.4085 | Y9: 0 | Z9: 0
A10: 9 | B10: =LOOKUP(A10,'DOE - FIPStoPayeeCodeConvTable'!$A$3:$A$213,'DOE - FIPStoPayeeCodeConvTable'!$B$3:$B$213) -> Amherst Co | C10: 0 | D10: 0 | H10: 0 | I10: 0 | L10: 0 | M10: 0 | S10: 0 | U10: 0 | V10: 0 | W10: =LOOKUP(A10,'DOE - FIPStoPayeeCodeConvTable'!$A$3:$A$213,'DOE - FIPStoPayeeCodeConvTable'!$E$3:$E$213) -> 0.2722 | X10: 0.34025 | Y10: 0 | Z10: 0
A11: 11 | B11: =LOOKUP(A11,'DOE - FIPStoPayeeCodeConvTable'!$A$3:$A$213,'DOE - FIPStoPayeeCodeConvTable'!$B$3:$B$213) -> Appomattox Co | C11: 0 | D11: 0 | H11: 0 | I11: 0 | L11: 0 | M11: 0 | S11: 0 | U11: 0 | V11: 0 | W11: =LOOKUP(A11,'DOE - FIPStoPayeeCodeConvTable'!$A$3:$A$213,'DOE - FIPStoPayeeCodeConvTable'!$E$3:$E$213) -> 0.2639 | X11: 0.329875 | Y11: 0 | Z11: 0
A12: 13 | B12: =LOOKUP(A12,'DOE - FIPStoPayeeCodeConvTable'!$A$3:$A$213,'DOE - FIPStoPayeeCodeConvTable'!$B$3:$B$213) -> Arlington Co | C12: 0 | D12: 0 | H12: 0 | I12: 0 | L12: 0 | M12: 0 | S12: 0 | U12: 0 | V12: 0 | W12: =LOOKUP(A12,'DOE - FIPStoPayeeCodeConvTable'!$A$3:$A$213,'DOE - FIPStoPayeeCodeConvTable'!$E$3:$E$213) -> 0.4602 | X12: 0.57525 | Y12: 0 | Z12: 0
A13: 15 | B13: =LOOKUP(A13,'DOE - FIPStoPayeeCodeConvTable'!$A$3:$A$213,'DOE - FIPStoPayeeCodeConvTable'!$B$3:$B$213) -> Augusta Co | C13: 0 | D13: 0 | H13: 0 | I13: 0 | L13: 0 | M13: 0 | S13: 0 | U13: 0 | V13: 0 | W13: =LOOKUP(A13,'DOE - FIPStoPayeeCodeConvTable'!$A$3:$A$213,'DOE - FIPStoPayeeCodeConvTable'!$E$3:$E$213) -> 0.3302 | X13: 0.41275 | Y13: 0 | Z13: 0
A14: 17 | B14: =LOOKUP(A14,'DOE - FIPStoPayeeCodeConvTable'!$A$3:$A$213,'DOE - FIPStoPayeeCodeConvTable'!$B$3:$B$213) -> Bath Co | C14: 0 | D14: 0 | H14: 0 | I14: 0 | L14: 0 | M14: 0 | S14: 0 | U14: 0 | V14: 0 | W14: =LOOKUP(A14,'DOE - FIPStoPayeeCodeConvTable'!$A$3:$A$213,'DOE - FIPStoPayeeCodeConvTable'!$E$3:$E$213) -> 0.4278 | X14: 0.53475 | Y14: 0 | Z14: 0
A15: 19 | B15: =LOOKUP(A15,'DOE - FIPStoPayeeCodeConvTable'!$A$3:$A$213,'DOE - FIPStoPayeeCodeConvTable'!$B$3:$B$213) -> Bedford Co | C15: 0 | D15: 0 | H15: 0 | I15: 0 | L15: 0 | M15: 0 | S15: 0 | U15: 0 | V15: 0 | W15: =LOOKUP(A15,'DOE - FIPStoPayeeCodeConvTable'!$A$3:$A$213,'DOE - FIPStoPayeeCodeConvTable'!$E$3:$E$213) -> 0.31112 | X15: 0.3889 | Y15: 0 | Z15: 0
A16: 21 | B16: =LOOKUP(A16,'DOE - FIPStoPayeeCodeConvTable'!$A$3:$A$213,'DOE - FIPStoPayeeCodeConvTable'!$B$3:$B$213) -> Bland Co | C16: 0 | D16: 0 | H16: 0 | I16: 0 | L16: 0 | M16: 0 | S16: 0 | U16: 0 | V16: 0 | W16: =LOOKUP(A16,'DOE - FIPStoPayeeCodeConvTable'!$A$3:$A$213,'DOE - FIPStoPayeeCodeConvTable'!$E$3:$E$213) -> 0.2109 | X16: 0.263625 | Y16: 0 | Z16: 0
A17: 23 | B17: =LOOKUP(A17,'DOE - FIPStoPayeeCodeConvTable'!$A$3:$A$213,'DOE - FIPStoPayeeCodeConvTable'!$B$3:$B$213) -> Botetourt Co | C17: 0 | D17: 0 | H17: 0 | I17: 0 | L17: 0 | M17: 0 | S17: 0 | U17: 0 | V17: 0 | W17: =LOOKUP(A17,'DOE - FIPStoPayeeCodeConvTable'!$A$3:$A$213,'DOE - FIPStoPayeeCodeConvTable'!$E$3:$E$213) -> 0.3602 | X17: 0.45025 | Y17: 0 | Z17: 0
A18: 25 | B18: =LOOKUP(A18,'DOE - FIPStoPayeeCodeConvTable'!$A$3:$A$213,'DOE - FIPStoPayeeCodeConvTable'!$B$3:$B$213) -> Brunswick Co | C18: 0 | D18: 0 | H18: 0 | I18: 0 | L18: 0 | M18: 0 | S18: 0 | U18: 0 | V18: 0 | W18: =LOOKUP(A18,'DOE - FIPStoPayeeCodeConvTable'!$A$3:$A$213,'DOE - FIPStoPayeeCodeConvTable'!$E$3:$E$213) -> 0.2439 | X18: 0.304875 | Y18: 0 | Z18: 0
A19: 27 | B19: =LOOKUP(A19,'DOE - FIPStoPayeeCodeConvTable'!$A$3:$A$213,'DOE - FIPStoPayeeCodeConvTable'!$B$3:$B$213) -> Buchanan Co | C19: 0 | D19: 0 | H19: 0 | I19: 0 | L19: 0 | M19: 0 | S19: 0 | U19: 0 | V19: 0 | W19: =LOOKUP(A19,'DOE - FIPStoPayeeCodeConvTable'!$A$3:$A$213,'DOE - FIPStoPayeeCodeConvTable'!$E$3:$E$213) -> 0.3156 | X19: 0.3945 | Y19: 0 | Z19: 0
A20: 29 | B20: =LOOKUP(A20,'DOE - FIPStoPayeeCodeConvTable'!$A$3:$A$213,'DOE - FIPStoPayeeCodeConvTable'!$B$3:$B$213) -> Buckingham Co | C20: 0 | D20: 0 | H20: 0 | I20: 0 | L20: 0 | M20: 0 | S20: 0 | U20: 0 | V20: 0 | W20: =LOOKUP(A20,'DOE - FIPStoPayeeCodeConvTable'!$A$3:$A$213,'DOE - FIPStoPayeeCodeConvTable'!$E$3:$E$213) -> 0.2023 | X20: 0.252875 | Y20: 0 | Z20: 0
A21: 31 | B21: =LOOKUP(A21,'DOE - FIPStoPayeeCodeConvTable'!$A$3:$A$213,'DOE - FIPStoPayeeCodeConvTable'!$B$3:$B$213) -> Campbell Co | C21: 0 | D21: 0 | H21: 0 | I21: 0 | L21: 0 | M21: 0 | S21: 0 | U21: 0 | V21: 0 | W21: =LOOKUP(A21,'DOE - FIPStoPayeeCodeConvTable'!$A$3:$A$213,'DOE - FIPStoPayeeCodeConvTable'!$E$3:$E$213) -> 0.3107 | X21: 0.388375 | Y21: 0 | Z21: 0
A22: 33 | B22: =LOOKUP(A22,'DOE - FIPStoPayeeCodeConvTable'!$A$3:$A$213,'DOE - FIPStoPayeeCodeConvTable'!$B$3:$B$213) -> Caroline Co | C22: 0 | D22: 0 | H22: 0 | I22: 0 | L22: 0 | M22: 0 | S22: 0 | U22: 0 | V22: 0 | W22: =LOOKUP(A22,'DOE - FIPStoPayeeCodeConvTable'!$A$3:$A$213,'DOE - FIPStoPayeeCodeConvTable'!$E$3:$E$213) -> 0.3308 | X22: 0.4135 | Y22: 0 | Z22: 0
A23: 35 | B23: =LOOKUP(A23,'DOE - FIPStoPayeeCodeConvTable'!$A$3:$A$213,'DOE - FIPStoPayeeCodeConvTable'!$B$3:$B$213) -> Carroll Co | C23: 0 | D23: 0 | H23: 0 | I23: 0 | L23: 0 | M23: 0 | S23: 0 | U23: 0 | V23: 0 | W23: =LOOKUP(A23,'DOE - FIPStoPayeeCodeConvTable'!$A$3:$A$213,'DOE - FIPStoPayeeCodeConvTable'!$E$3:$E$213) -> 0.291 | X23: 0.36375 | Y23: 0 | Z23: 0
A24: 36 | B24: =LOOKUP(A24,'DOE - FIPStoPayeeCodeConvTable'!$A$3:$A$213,'DOE - FIPStoPayeeCodeConvTable'!$B$3:$B$213) -> Charles City Co | C24: 0 | D24: 0 | H24: 0 | I24: 0 | L24: 0 | M24: 0 | S24: 0 | U24: 0 | V24: 0 | W24: =LOOKUP(A24,'DOE - FIPStoPayeeCodeConvTable'!$A$3:$A$213,'DOE - FIPStoPayeeCodeConvTable'!$E$3:$E$213) -> 0.3131 | X24: 0.391375 | Y24: 0 | Z24: 0
A25: 37 | B25: =LOOKUP(A25,'DOE - FIPStoPayeeCodeConvTable'!$A$3:$A$213,'DOE - FIPStoPayeeCodeConvTable'!$B$3:$B$213) -> Charlotte Co | C25: 0 | D25: 0 | H25: 0 | I25: 0 | L25: 0 | M25: 0 | S25: 0 | U25: 0 | V25: 0 | W25: =LOOKUP(A25,'DOE - FIPStoPayeeCodeConvTable'!$A$3:$A$213,'DOE - FIPStoPayeeCodeConvTable'!$E$3:$E$213) -> 0.2204 | X25: 0.2755 | Y25: 0 | Z25: 0
A26: 41 | B26: =LOOKUP(A26,'DOE - FIPStoPayeeCodeConvTable'!$A$3:$A$213,'DOE - FIPStoPayeeCodeConvTable'!$B$3:$B$213) -> Chesterfield Co | C26: 0 | D26: 0 | H26: 0 | I26: 0 | L26: 14953 | M26: 0 | S26: 14953 | U26: 13158.64 | V26: 1794.36 | W26: =LOOKUP(A26,'DOE - FIPStoPayeeCodeConvTable'!$A$3:$A$213,'DOE - FIPStoPayeeCodeConvTable'!$E$3:$E$213) -> 0.3853 | X26: 0.481625 | Y26: 864.21 | Z26: 930.15
A27: 43 | B27: =LOOKUP(A27,'DOE - FIPStoPayeeCodeConvTable'!$A$3:$A$213,'DOE - FIPStoPayeeCodeConvTable'!$B$3:$B$213) -> Clarke Co | C27: 0 | D27: 0 | H27: 0 | I27: 0 | L27: 0 | M27: 0 | S27: 0 | U27: 0 | V27: 0 | W27: =LOOKUP(A27,'DOE - FIPStoPayeeCodeConvTable'!$A$3:$A$213,'DOE - FIPStoPayeeCodeConvTable'!$E$3:$E$213) -> 0.4797 | X27: 0.599625 | Y27: 0 | Z27: 0
A28: 45 | B28: =LOOKUP(A28,'DOE - FIPStoPayeeCodeConvTable'!$A$3:$A$213,'DOE - FIPStoPayeeCodeConvTable'!$B$3:$B$213) -> Craig Co | C28: 0 | D28: 0 | H28: 0 | I28: 0 | L28: 0 | M28: 0 | S28: 0 | U28: 0 | V28: 0 | W28: =LOOKUP(A28,'DOE - FIPStoPayeeCodeConvTable'!$A$3:$A$213,'DOE - FIPStoPayeeCodeConvTable'!$E$3:$E$213) -> 0.2901 | X28: 0.362625 | Y28: 0 | Z28: 0
A29: 47 | B29: =LOOKUP(A29,'DOE - FIPStoPayeeCodeConvTable'!$A$3:$A$213,'DOE - FIPStoPayeeCodeConvTable'!$B$3:$B$213) -> Culpeper Co | C29: 0 | D29: 0 | H29: 0 | I29: 0 | L29: 0 | M29: 0 | S29: 0 | U29: 0 | V29: 0 | W29: =LOOKUP(A29,'DOE - FIPStoPayeeCodeConvTable'!$A$3:$A$213,'DOE - FIPStoPayeeCodeConvTable'!$E$3:$E$213) -> 0.3767 | X29: 0.470875 | Y29: 0 | Z29: 0
A30: 49 | B30: =LOOKUP(A30,'DOE - FIPStoPayeeCodeConvTable'!$A$3:$A$213,'DOE - FIPStoPayeeCodeConvTable'!$B$3:$B$213) -> Cumberland Co | C30: 0 | D30: 0 | H30: 0 | I30: 0 | L30: 0 | M30: 0 | S30: 0 | U30: 0 | V30: 0 | W30: =LOOKUP(A30,'DOE - FIPStoPayeeCodeConvTable'!$A$3:$A$213,'DOE - FIPStoPayeeCodeConvTable'!$E$3:$E$213) -> 0.304 | X30: 0.38 | Y30: 0 | Z30: 0
A31: 51 | B31: =LOOKUP(A31,'DOE - FIPStoPayeeCodeConvTable'!$A$3:$A$213,'DOE - FIPStoPayeeCodeConvTable'!$B$3:$B$213) -> Dickenson Co | C31: 0 | D31: 0 | H31: 0 | I31: 0 | L31: 0 | M31: 0 | S31: 0 | U31: 0 | V31: 0 | W31: =LOOKUP(A31,'DOE - FIPStoPayeeCodeConvTable'!$A$3:$A$213,'DOE - FIPStoPayeeCodeConvTable'!$E$3:$E$213) -> 0.3042 | X31: 0.38025 | Y31: 0 | Z31: 0
A32: 53 | B32: =LOOKUP(A32,'DOE - FIPStoPayeeCodeConvTable'!$A$3:$A$213,'DOE - FIPStoPayeeCodeConvTable'!$B$3:$B$213) -> Dinwiddie Co | C32: 0 | D32: 0 | H32: 0 | I32: 0 | L32: 0 | M32: 0 | S32: 0 | U32: 0 | V32: 0 | W32: =LOOKUP(A32,'DOE - FIPStoPayeeCodeConvTable'!$A$3:$A$213,'DOE - FIPStoPayeeCodeConvTable'!$E$3:$E$213) -> 0.3358 | X32: 0.41975 | Y32: 0 | Z32: 0
A33: 57 | B33: =LOOKUP(A33,'DOE - FIPStoPayeeCodeConvTable'!$A$3:$A$213,'DOE - FIPStoPayeeCodeConvTable'!$B$3:$B$213) -> Essex Co | C33: 0 | D33: 0 | H33: 0 | I33: 0 | L33: 0 | M33: 0 | S33: 0 | U33: 0 | V33: 0 | W33: =LOOKUP(A33,'DOE - FIPStoPayeeCodeConvTable'!$A$3:$A$213,'DOE - FIPStoPayeeCodeConvTable'!$E$3:$E$213) -> 0.3853 | X33: 0.481625 | Y33: 0 | Z33: 0
A34: 59 | B34: =LOOKUP(A34,'DOE - FIPStoPayeeCodeConvTable'!$A$3:$A$213,'DOE - FIPStoPayeeCodeConvTable'!$B$3:$B$213) -> Fairfax Co | C34: 0 | D34: 0 | H34: 0 | I34: 0 | L34: 0 | M34: 0 | S34: 0 | U34: 0 | V34: 0 | W34: =LOOKUP(A34,'DOE - FIPStoPayeeCodeConvTable'!$A$3:$A$213,'DOE - FIPStoPayeeCodeConvTable'!$E$3:$E$213) -> 0.4611 | X34: 0.576375 | Y34: 0 | Z34: 0
A35: 61 | B35: =LOOKUP(A35,'DOE - FIPStoPayeeCodeConvTable'!$A$3:$A$213,'DOE - FIPStoPayeeCodeConvTable'!$B$3:$B$213) -> Fauquier Co | C35: 0 | D35: 0 | H35: 0 | I35: 0 | L35: 0 | M35: 0 | S35: 0 | U35: 0 | V35: 0 | W35: =LOOKUP(A35,'DOE - FIPStoPayeeCodeConvTable'!$A$3:$A$213,'DOE - FIPStoPayeeCodeConvTable'!$E$3:$E$213) -> 0.4584 | X35: 0.573 | Y35: 0 | Z35: 0
A36: 63 | B36: =LOOKUP(A36,'DOE - FIPStoPayeeCodeConvTable'!$A$3:$A$213,'DOE - FIPStoPayeeCodeConvTable'!$B$3:$B$213) -> Floyd Co | C36: 0 | D36: 0 | H36: 0 | I36: 0 | L36: 0 | M36: 0 | S36: 0 | U36: 0 | V36: 0 | W36: =LOOKUP(A36,'DOE - FIPStoPayeeCodeConvTable'!$A$3:$A$213,'DOE - FIPStoPayeeCodeConvTable'!$E$3:$E$213) -> 0.2324 | X36: 0.2905 | Y36: 0 | Z36: 0
A37: 65 | B37: =LOOKUP(A37,'DOE - FIPStoPayeeCodeConvTable'!$A$3:$A$213,'DOE - FIPStoPayeeCodeConvTable'!$B$3:$B$213) -> Fluvanna Co | C37: 0 | D37: 0 | H37: 0 | I37: 0 | L37: 0 | M37: 0 | S37: =SUM(C37:R37) -> 0 | U37: 0 | V37: 0 | W37: =LOOKUP(A37,'DOE - FIPStoPayeeCodeConvTable'!$A$3:$A$213,'DOE - FIPStoPayeeCodeConvTable'!$E$3:$E$213) -> 0.3811 | X37: 0.476375 | Y37: 0 | Z37: 0
A38: 67 | B38: =LOOKUP(A38,'DOE - FIPStoPayeeCodeConvTable'!$A$3:$A$213,'DOE - FIPStoPayeeCodeConvTable'!$B$3:$B$213) -> Franklin Co | C38: 0 | D38: 0 | H38: 0 | I38: 0 | L38: 0 | M38: 0 | S38: 0 | U38: =ROUND($U$1*S38,2) -> 0 | V38: =SUM(S38)-SUM(U38) -> 0 | W38: =LOOKUP(A38,'DOE - FIPStoPayeeCodeConvTable'!$A$3:$A$213,'DOE - FIPStoPayeeCodeConvTable'!$E$3:$E$213) -> 0.283 | X38: 0.35375 | Y38: 0 | Z38: 0
A39: 69 | B39: =LOOKUP(A39,'DOE - FIPStoPayeeCodeConvTable'!$A$3:$A$213,'DOE - FIPStoPayeeCodeConvTable'!$B$3:$B$213) -> Frederick Co | C39: 0 | D39: 0 | H39: 0 | I39: 0 | L39: 0 | M39: 0 | S39: 0 | U39: 0 | V39: 0 | W39: =LOOKUP(A39,'DOE - FIPStoPayeeCodeConvTable'!$A$3:$A$213,'DOE - FIPStoPayeeCodeConvTable'!$E$3:$E$213) -> 0.4348 | X39: 0.5435 | Y39: 0 | Z39: 0
A40: 71 | B40: =LOOKUP(A40,'DOE - FIPStoPayeeCodeConvTable'!$A$3:$A$213,'DOE - FIPStoPayeeCodeConvTable'!$B$3:$B$213) -> Giles Co | C40: 0 | D40: 0 | H40: 0 | I40: 0 | L40: 0 | M40: 0 | S40: 0 | U40: 0 | V40: 0 | W40: =LOOKUP(A40,'DOE - FIPStoPayeeCodeConvTable'!$A$3:$A$213,'DOE - FIPStoPayeeCodeConvTable'!$E$3:$E$213) -> 0.2898 | X40: 0.36225 | Y40: 0 | Z40: 0
A41: 73 | B41: =LOOKUP(A41,'DOE - FIPStoPayeeCodeConvTable'!$A$3:$A$213,'DOE - FIPStoPayeeCodeConvTable'!$B$3:$B$213) -> Gloucester Co | C41: 0 | D41: 0 | H41: 0 | I41: 0 | L41: 0 | M41: 0 | S41: 0 | U41: 0 | V41: 0 | W41: =LOOKUP(A41,'DOE - FIPStoPayeeCodeConvTable'!$A$3:$A$213,'DOE - FIPStoPayeeCodeConvTable'!$E$3:$E$213) -> 0.3687 | X41: 0.460875 | Y41: 0 | Z41: 0
A42: 75 | B42: =LOOKUP(A42,'DOE - FIPStoPayeeCodeConvTable'!$A$3:$A$213,'DOE - FIPStoPayeeCodeConvTable'!$B$3:$B$213) -> Goochland Co | C42: 0 | D42: 0 | H42: 0 | I42: 0 | L42: 0 | M42: 0 | S42: 0 | U42: 0 | V42: 0 | W42: =LOOKUP(A42,'DOE - FIPStoPayeeCodeConvTable'!$A$3:$A$213,'DOE - FIPStoPayeeCodeConvTable'!$E$3:$E$213) -> 0.4871 | X42: 0.608875 | Y42: 0 | Z42: 0
A43: 77 | B43: =LOOKUP(A43,'DOE - FIPStoPayeeCodeConvTable'!$A$3:$A$213,'DOE - FIPStoPayeeCodeConvTable'!$B$3:$B$213) -> Grayson Co | C43: 0 | D43: 0 | H43: 0 | I43: 0 | L43: 0 | M43: 0 | S43: 0 | U43: 0 | V43: 0 | W43: =LOOKUP(A43,'DOE - FIPStoPayeeCodeConvTable'!$A$3:$A$213,'DOE - FIPStoPayeeCodeConvTable'!$E$3:$E$213) -> 0.2109 | X43: 0.263625 | Y43: 0 | Z43: 0
A44: 79 | B44: =LOOKUP(A44,'DOE - FIPStoPayeeCodeConvTable'!$A$3:$A$213,'DOE - FIPStoPayeeCodeConvTable'!$B$3:$B$213) -> Greene Co | C44: 0 | D44: 0 | H44: 0 | I44: 0 | L44: 0 | M44: 0 | S44: 0 | U44: 0 | V44: 0 | W44: =LOOKUP(A44,'DOE - FIPStoPayeeCodeConvTable'!$A$3:$A$213,'DOE - FIPStoPayeeCodeConvTable'!$E$3:$E$213) -> 0.3471 | X44: 0.433875 | Y44: 0 | Z44: 0
A45: 81 | B45: =LOOKUP(A45,'DOE - FIPStoPayeeCodeConvTable'!$A$3:$A$213,'DOE - FIPStoPayeeCodeConvTable'!$B$3:$B$213) -> Greensville Co | C45: 0 | D45: 0 | H45: 0 | I45: 0 | L45: 0 | M45: 0 | S45: 0 | U45: 0 | V45: 0 | W45: =LOOKUP(A45,'DOE - FIPStoPayeeCodeConvTable'!$A$3:$A$213,'DOE - FIPStoPayeeCodeConvTable'!$E$3:$E$213) -> 0.2266 | X45: 0.28325 | Y45: 0 | Z45: 0
A46: 83 | B46: =LOOKUP(A46,'DOE - FIPStoPayeeCodeConvTable'!$A$3:$A$213,'DOE - FIPStoPayeeCodeConvTable'!$B$3:$B$213) -> Halifax Co | C46: 0 | D46: 0 | H46: 0 | I46: 0 | L46: 0 | M46: 0 | S46: 0 | U46: 0 | V46: 0 | W46: =LOOKUP(A46,'DOE - FIPStoPayeeCodeConvTable'!$A$3:$A$213,'DOE - FIPStoPayeeCodeConvTable'!$E$3:$E$213) -> 0.2335 | X46: 0.291875 | Y46: 0 | Z46: 0
A47: 85 | B47: =LOOKUP(A47,'DOE - FIPStoPayeeCodeConvTable'!$A$3:$A$213,'DOE - FIPStoPayeeCodeConvTable'!$B$3:$B$213) -> Hanover Co | C47: 0 | D47: 0 | H47: 0 | I47: 0 | L47: 0 | M47: 0 | S47: 0 | U47: 0 | V47: 0 | W47: =LOOKUP(A47,'DOE - FIPStoPayeeCodeConvTable'!$A$3:$A$213,'DOE - FIPStoPayeeCodeConvTable'!$E$3:$E$213) -> 0.4444 | X47: 0.5555 | Y47: 0 | Z47: 0
A48: 87 | B48: =LOOKUP(A48,'DOE - FIPStoPayeeCodeConvTable'!$A$3:$A$213,'DOE - FIPStoPayeeCodeConvTable'!$B$3:$B$213) -> Henrico Co | C48: 0 | D48: 0 | H48: 0 | I48: 0 | L48: 0 | M48: 0 | S48: 0 | U48: 0 | V48: 0 | W48: =LOOKUP(A48,'DOE - FIPStoPayeeCodeConvTable'!$A$3:$A$213,'DOE - FIPStoPayeeCodeConvTable'!$E$3:$E$213) -> 0.3755 | X48: 0.469375 | Y48: 0 | Z48: 0
A49: 89 | B49: =LOOKUP(A49,'DOE - FIPStoPayeeCodeConvTable'!$A$3:$A$213,'DOE - FIPStoPayeeCodeConvTable'!$B$3:$B$213) -> Henry Co | C49: 0 | D49: 0 | H49: 0 | I49: 0 | L49: 0 | M49: 0 | S49: 0 | U49: 0 | V49: 0 | W49: =LOOKUP(A49,'DOE - FIPStoPayeeCodeConvTable'!$A$3:$A$213,'DOE - FIPStoPayeeCodeConvTable'!$E$3:$E$213) -> 0.2786 | X49: 0.34825 | Y49: 0 | Z49: 0
A50: 91 | B50: =LOOKUP(A50,'DOE - FIPStoPayeeCodeConvTable'!$A$3:$A$213,'DOE - FIPStoPayeeCodeConvTable'!$B$3:$B$213) -> Highland Co | C50: 0 | D50: 0 | H50: 0 | I50: 0 | L50: 0 | M50: 0 | S50: 0 | U50: 0 | V50: 0 | W50: =LOOKUP(A50,'DOE - FIPStoPayeeCodeConvTable'!$A$3:$A$213,'DOE - FIPStoPayeeCodeConvTable'!$E$3:$E$213) -> 0.3822 | X50: 0.47775 | Y50: 0 | Z50: 0
A51: 93 | B51: =LOOKUP(A51,'DOE - FIPStoPayeeCodeConvTable'!$A$3:$A$213,'DOE - FIPStoPayeeCodeConvTable'!$B$3:$B$213) -> Isle Of Wight Co | C51: 0 | D51: 0 | H51: 0 | I51: 0 | L51: 0 | M51: 0 | S51: 0 | U51: 0 | V51: 0 | W51: =LOOKUP(A51,'DOE - FIPStoPayeeCodeConvTable'!$A$3:$A$213,'DOE - FIPStoPayeeCodeConvTable'!$E$3:$E$213) -> 0.3613 | X51: 0.451625 | Y51: 0 | Z51: 0
A52: 95 | B52: =LOOKUP(A52,'DOE - FIPStoPayeeCodeConvTable'!$A$3:$A$213,'DOE - FIPStoPayeeCodeConvTable'!$B$3:$B$213) -> James City Co | C52: 0 | D52: 0 | H52: 0 | I52: 0 | L52: 0 | M52: 0 | S52: 0 | U52: 0 | V52: 0 | W52: =LOOKUP(A52,'DOE - FIPStoPayeeCodeConvTable'!$A$3:$A$213,'DOE - FIPStoPayeeCodeConvTable'!$E$3:$E$213) -> 0.4483 | X52: 0.560375 | Y52: 0 | Z52: 0
A53: 97 | B53: =LOOKUP(A53,'DOE - FIPStoPayeeCodeConvTable'!$A$3:$A$213,'DOE - FIPStoPayeeCodeConvTable'!$B$3:$B$213) -> King And Queen Co | C53: 0 | D53: 0 | H53: 0 | I53: 0 | L53: 0 | M53: 0 | S53: 0 | U53: 0 | V53: 0 | W53: =LOOKUP(A53,'DOE - FIPStoPayeeCodeConvTable'!$A$3:$A$213,'DOE - FIPStoPayeeCodeConvTable'!$E$3:$E$213) -> 0.3144 | X53: 0.393 | Y53: 0 | Z53: 0
A54: 99 | B54: =LOOKUP(A54,'DOE - FIPStoPayeeCodeConvTable'!$A$3:$A$213,'DOE - FIPStoPayeeCodeConvTable'!$B$3:$B$213) -> King George Co | C54: 0 | D54: 0 | H54: 0 | I54: 0 | L54: 0 | M54: 0 | S54: 0 | U54: 0 | V54: 0 | W54: =LOOKUP(A54,'DOE - FIPStoPayeeCodeConvTable'!$A$3:$A$213,'DOE - FIPStoPayeeCodeConvTable'!$E$3:$E$213) -> 0.3627 | X54: 0.453375 | Y54: 0 | Z54: 0
A55: 101 | B55: =LOOKUP(A55,'DOE - FIPStoPayeeCodeConvTable'!$A$3:$A$213,'DOE - FIPStoPayeeCodeConvTable'!$B$3:$B$213) -> King William Co | C55: 0 | D55: 0 | H55: 0 | I55: 0 | L55: 0 | M55: 0 | S55: 0 | U55: 0 | V55: 0 | W55: =LOOKUP(A55,'DOE - FIPStoPayeeCodeConvTable'!$A$3:$A$213,'DOE - FIPStoPayeeCodeConvTable'!$E$3:$E$213) -> 0.3853 | X55: 0.481625 | Y55: 0 | Z55: 0
A56: 103 | B56: =LOOKUP(A56,'DOE - FIPStoPayeeCodeConvTable'!$A$3:$A$213,'DOE - FIPStoPayeeCodeConvTable'!$B$3:$B$213) -> Lancaster Co | C56: 0 | D56: 0 | H56: 0 | I56: 0 | L56: 0 | M56: 0 | S56: 0 | U56: 0 | V56: 0 | W56: =LOOKUP(A56,'DOE - FIPStoPayeeCodeConvTable'!$A$3:$A$213,'DOE - FIPStoPayeeCodeConvTable'!$E$3:$E$213) -> 0.4391 | X56: 0.548875 | Y56: 0 | Z56: 0
A57: 105 | B57: =LOOKUP(A57,'DOE - FIPStoPayeeCodeConvTable'!$A$3:$A$213,'DOE - FIPStoPayeeCodeConvTable'!$B$3:$B$213) -> Lee Co | C57: 0 | D57: 0 | H57: 0 | I57: 0 | L57: 0 | M57: 0 | S57: 0 | U57: 0 | V57: 0 | W57: =LOOKUP(A57,'DOE - FIPStoPayeeCodeConvTable'!$A$3:$A$213,'DOE - FIPStoPayeeCodeConvTable'!$E$3:$E$213) -> 0.2245 | X57: 0.280625 | Y57: 0 | Z57: 0
A58: 107 | B58: =LOOKUP(A58,'DOE - FIPStoPayeeCodeConvTable'!$A$3:$A$213,'DOE - FIPStoPayeeCodeConvTable'!$B$3:$B$213) -> Loudoun Co | C58: 0 | D58: 0 | H58: 0 | I58: 0 | L58: 0 | M58: 0 | S58: 0 | U58: 0 | V58: 0 | W58: =LOOKUP(A58,'DOE - FIPStoPayeeCodeConvTable'!$A$3:$A$213,'DOE - FIPStoPayeeCodeConvTable'!$E$3:$E$213) -> 0.4764 | X58: 0.5955 | Y58: 0 | Z58: 0
A59: 109 | B59: =LOOKUP(A59,'DOE - FIPStoPayeeCodeConvTable'!$A$3:$A$213,'DOE - FIPStoPayeeCodeConvTable'!$B$3:$B$213) -> Louisa Co | C59: 0 | D59: 0 | H59: 0 | I59: 0 | L59: 0 | M59: 0 | S59: 0 | U59: 0 | V59: 0 | W59: =LOOKUP(A59,'DOE - FIPStoPayeeCodeConvTable'!$A$3:$A$213,'DOE - FIPStoPayeeCodeConvTable'!$E$3:$E$213) -> 0.4401 | X59: 0.550125 | Y59: 0 | Z59: 0
A60: 111 | B60: =LOOKUP(A60,'DOE - FIPStoPayeeCodeConvTable'!$A$3:$A$213,'DOE - FIPStoPayeeCodeConvTable'!$B$3:$B$213) -> Lunenburg Co | C60: 0 | D60: 0 | H60: 0 | I60: 0 | L60: 0 | M60: 0 | S60: 0 | U60: 0 | V60: 0 | W60: =LOOKUP(A60,'DOE - FIPStoPayeeCodeConvTable'!$A$3:$A$213,'DOE - FIPStoPayeeCodeConvTable'!$E$3:$E$213) -> 0.1698 | X60: 0.21225 | Y60: 0 | Z60: 0
A61: 113 | B61: =LOOKUP(A61,'DOE - FIPStoPayeeCodeConvTable'!$A$3:$A$213,'DOE - FIPStoPayeeCodeConvTable'!$B$3:$B$213) -> Madison Co | C61: 0 | D61: 0 | H61: 0 | I61: 0 | L61: 0 | M61: 0 | S61: 0 | U61: 0 | V61: 0 | W61: =LOOKUP(A61,'DOE - FIPStoPayeeCodeConvTable'!$A$3:$A$213,'DOE - FIPStoPayeeCodeConvTable'!$E$3:$E$213) -> 0.3355 | X61: 0.419375 | Y61: 0 | Z61: 0
A62: 115 | B62: =LOOKUP(A62,'DOE - FIPStoPayeeCodeConvTable'!$A$3:$A$213,'DOE - FIPStoPayeeCodeConvTable'!$B$3:$B$213) -> Mathews Co | C62: 0 | D62: 0 | H62: 0 | I62: 0 | L62: 0 | M62: 0 | S62: 0 | U62: 0 | V62: 0 | W62: =LOOKUP(A62,'DOE - FIPStoPayeeCodeConvTable'!$A$3:$A$213,'DOE - FIPStoPayeeCodeConvTable'!$E$3:$E$213) -> 0.4271 | X62: 0.533875 | Y62: 0 | Z62: 0
A63: 117 | B63: =LOOKUP(A63,'DOE - FIPStoPayeeCodeConvTable'!$A$3:$A$213,'DOE - FIPStoPayeeCodeConvTable'!$B$3:$B$213) -> Mecklenburg Co | C63: 0 | D63: 0 | H63: 0 | I63: 0 | L63: 0 | M63: 0 | S63: 0 | U63: 0 | V63: 0 | W63: =LOOKUP(A63,'DOE - FIPStoPayeeCodeConvTable'!$A$3:$A$213,'DOE - FIPStoPayeeCodeConvTable'!$E$3:$E$213) -> 0.2286 | X63: 0.28575 | Y63: 0 | Z63: 0
A64: 119 | B64: =LOOKUP(A64,'DOE - FIPStoPayeeCodeConvTable'!$A$3:$A$213,'DOE - FIPStoPayeeCodeConvTable'!$B$3:$B$213) -> Middlesex Co | C64: 0 | D64: 0 | H64: 0 | I64: 0 | L64: 0 | M64: 0 | S64: 0 | U64: 0 | V64: 0 | W64: =LOOKUP(A64,'DOE - FIPStoPayeeCodeConvTable'!$A$3:$A$213,'DOE - FIPStoPayeeCodeConvTable'!$E$3:$E$213) -> 0.4333 | X64: 0.541625 | Y64: 0 | Z64: 0
A65: 121 | B65: =LOOKUP(A65,'DOE - FIPStoPayeeCodeConvTable'!$A$3:$A$213,'DOE - FIPStoPayeeCodeConvTable'!$B$3:$B$213) -> Montgomery Co | C65: 0 | D65: 0 | H65: 0 | I65: 0 | L65: 0 | M65: 0 | S65: 0 | U65: 0 | V65: 0 | W65: =LOOKUP(A65,'DOE - FIPStoPayeeCodeConvTable'!$A$3:$A$213,'DOE - FIPStoPayeeCodeConvTable'!$E$3:$E$213) -> 0.2834 | X65: 0.35425 | Y65: 0 | Z65: 0
A66: 125 | B66: =LOOKUP(A66,'DOE - FIPStoPayeeCodeConvTable'!$A$3:$A$213,'DOE - FIPStoPayeeCodeConvTable'!$B$3:$B$213) -> Nelson Co | C66: 0 | D66: 0 | H66: 0 | I66: 0 | L66: 0 | M66: 0 | S66: 0 | U66: 0 | V66: 0 | W66: =LOOKUP(A66,'DOE - FIPStoPayeeCodeConvTable'!$A$3:$A$213,'DOE - FIPStoPayeeCodeConvTable'!$E$3:$E$213) -> 0.3132 | X66: 0.3915 | Y66: 0 | Z66: 0
A67: 127 | B67: =LOOKUP(A67,'DOE - FIPStoPayeeCodeConvTable'!$A$3:$A$213,'DOE - FIPStoPayeeCodeConvTable'!$B$3:$B$213) -> New Kent Co | C67: 0 | D67: 0 | H67: 0 | I67: 0 | L67: 0 | M67: 0 | S67: 0 | U67: 0 | V67: 0 | W67: =LOOKUP(A67,'DOE - FIPStoPayeeCodeConvTable'!$A$3:$A$213,'DOE - FIPStoPayeeCodeConvTable'!$E$3:$E$213) -> 0.4329 | X67: 0.541125 | Y67: 0 | Z67: 0
A68: 131 | B68: =LOOKUP(A68,'DOE - FIPStoPayeeCodeConvTable'!$A$3:$A$213,'DOE - FIPStoPayeeCodeConvTable'!$B$3:$B$213) -> Northampton Co | C68: 0 | D68: 0 | H68: 0 | I68: 0 | L68: 0 | M68: 0 | S68: 0 | U68: 0 | V68: 0 | W68: =LOOKUP(A68,'DOE - FIPStoPayeeCodeConvTable'!$A$3:$A$213,'DOE - FIPStoPayeeCodeConvTable'!$E$3:$E$213) -> 0.1971 | X68: 0.246375 | Y68: 0 | Z68: 0
A69: 133 | B69: =LOOKUP(A69,'DOE - FIPStoPayeeCodeConvTable'!$A$3:$A$213,'DOE - FIPStoPayeeCodeConvTable'!$B$3:$B$213) -> Northumberland Co | C69: 0 | D69: 0 | H69: 0 | I69: 0 | L69: 0 | M69: 0 | S69: =SUM(C69:R69) -> 0 | U69: 0 | V69: 0 | W69: =LOOKUP(A69,'DOE - FIPStoPayeeCodeConvTable'!$A$3:$A$213,'DOE - FIPStoPayeeCodeConvTable'!$E$3:$E$213) -> 0.3304 | X69: 0.413 | Y69: 0 | Z69: 0
A70: 135 | B70: =LOOKUP(A70,'DOE - FIPStoPayeeCodeConvTable'!$A$3:$A$213,'DOE - FIPStoPayeeCodeConvTable'!$B$3:$B$213) -> Nottoway Co | C70: 0 | D70: 0 | H70: 0 | I70: 0 | L70: 0 | M70: 0 | S70: 0 | U70: =ROUND($U$1*S70,2) -> 0 | V70: =SUM(S70)-SUM(U70) -> 0 | W70: =LOOKUP(A70,'DOE - FIPStoPayeeCodeConvTable'!$A$3:$A$213,'DOE - FIPStoPayeeCodeConvTable'!$E$3:$E$213) -> 0.2686 | X70: 0.33575 | Y70: 0 | Z70: 0
A71: 137 | B71: =LOOKUP(A71,'DOE - FIPStoPayeeCodeConvTable'!$A$3:$A$213,'DOE - FIPStoPayeeCodeConvTable'!$B$3:$B$213) -> Orange Co | C71: 0 | D71: 0 | H71: 0 | I71: 0 | L71: 0 | M71: 0 | S71: 0 | U71: 0 | V71: 0 | W71: =LOOKUP(A71,'DOE - FIPStoPayeeCodeConvTable'!$A$3:$A$213,'DOE - FIPStoPayeeCodeConvTable'!$E$3:$E$213) -> 0.4083 | X71: =$X$1*W71 -> 0.510375 | Y71: =ROUND(X71*V71,2) -> 0 | Z71: =SUM(V71)-SUM(Y71) -> 0
A72: 139 | B72: =LOOKUP(A72,'DOE - FIPStoPayeeCodeConvTable'!$A$3:$A$213,'DOE - FIPStoPayeeCodeConvTable'!$B$3:$B$213) -> Page Co | C72: 0 | D72: 0 | H72: 0 | I72: 0 | L72: 0 | M72: 0 | S72: 0 | U72: 0 | V72: 0 | W72: =LOOKUP(A72,'DOE - FIPStoPayeeCodeConvTable'!$A$3:$A$213,'DOE - FIPStoPayeeCodeConvTable'!$E$3:$E$213) -> 0.2865 | X72: 0.358125 | Y72: 0 | Z72: 0
A73: 141 | B73: =LOOKUP(A73,'DOE - FIPStoPayeeCodeConvTable'!$A$3:$A$213,'DOE - FIPStoPayeeCodeConvTable'!$B$3:$B$213) -> Patrick Co | C73: 0 | D73: 0 | H73: 0 | I73: 0 | L73: 0 | M73: 0 | S73: 0 | U73: 0 | V73: 0 | W73: =LOOKUP(A73,'DOE - FIPStoPayeeCodeConvTable'!$A$3:$A$213,'DOE - FIPStoPayeeCodeConvTable'!$E$3:$E$213) -> 0.2539 | X73: 0.317375 | Y73: 0 | Z73: 0
A74: 143 | B74: =LOOKUP(A74,'DOE - FIPStoPayeeCodeConvTable'!$A$3:$A$213,'DOE - FIPStoPayeeCodeConvTable'!$B$3:$B$213) -> Pittsylvania Co | C74: 0 | D74: 0 | H74: 0 | I74: 0 | L74: 0 | M74: 0 | S74: 0 | U74: 0 | V74: 0 | W74: =LOOKUP(A74,'DOE - FIPStoPayeeCodeConvTable'!$A$3:$A$213,'DOE - FIPStoPayeeCodeConvTable'!$E$3:$E$213) -> 0.2355 | X74: 0.294375 | Y74: 0 | Z74: 0
A75: 145 | B75: =LOOKUP(A75,'DOE - FIPStoPayeeCodeConvTable'!$A$3:$A$213,'DOE - FIPStoPayeeCodeConvTable'!$B$3:$B$213) -> Powhatan Co | C75: 0 | D75: 0 | H75: 0 | I75: 0 | L75: 0 | M75: 0 | S75: 0 | U75: 0 | V75: 0 | W75: =LOOKUP(A75,'DOE - FIPStoPayeeCodeConvTable'!$A$3:$A$213,'DOE - FIPStoPayeeCodeConvTable'!$E$3:$E$213) -> 0.4342 | X75: 0.54275 | Y75: 0 | Z75: 0
A76: 147 | B76: =LOOKUP(A76,'DOE - FIPStoPayeeCodeConvTable'!$A$3:$A$213,'DOE - FIPStoPayeeCodeConvTable'!$B$3:$B$213) -> Prince Edward Co | C76: 0 | D76: 0 | H76: 0 | I76: 0 | L76: 0 | M76: 0 | S76: 0 | U76: 0 | V76: 0 | W76: =LOOKUP(A76,'DOE - FIPStoPayeeCodeConvTable'!$A$3:$A$213,'DOE - FIPStoPayeeCodeConvTable'!$E$3:$E$213) -> 0.2232 | X76: 0.279 | Y76: 0 | Z76: 0
A77: 149 | B77: =LOOKUP(A77,'DOE - FIPStoPayeeCodeConvTable'!$A$3:$A$213,'DOE - FIPStoPayeeCodeConvTable'!$B$3:$B$213) -> Prince George Co | C77: 0 | D77: 0 | H77: 0 | I77: 0 | L77: 0 | M77: 0 | S77: 0 | U77: 0 | V77: 0 | W77: =LOOKUP(A77,'DOE - FIPStoPayeeCodeConvTable'!$A$3:$A$213,'DOE - FIPStoPayeeCodeConvTable'!$E$3:$E$213) -> 0.3716 | X77: 0.4645 | Y77: 0 | Z77: 0
A78: 153 | B78: =LOOKUP(A78,'DOE - FIPStoPayeeCodeConvTable'!$A$3:$A$213,'DOE - FIPStoPayeeCodeConvTable'!$B$3:$B$213) -> Prince William Co | C78: 0 | D78: 0 | H78: 0 | I78: 0 | L78: 0 | M78: 0 | S78: 0 | U78: 0 | V78: 0 | W78: =LOOKUP(A78,'DOE - FIPStoPayeeCodeConvTable'!$A$3:$A$213,'DOE - FIPStoPayeeCodeConvTable'!$E$3:$E$213) -> 0.3414 | X78: 0.42675 | Y78: 0 | Z78: 0
A79: 155 | B79: =LOOKUP(A79,'DOE - FIPStoPayeeCodeConvTable'!$A$3:$A$213,'DOE - FIPStoPayeeCodeConvTable'!$B$3:$B$213) -> Pulaski Co | C79: 0 | D79: 0 | H79: 0 | I79: 0 | L79: 0 | M79: 0 | S79: 0 | U79: 0 | V79: 0 | W79: =LOOKUP(A79,'DOE - FIPStoPayeeCodeConvTable'!$A$3:$A$213,'DOE - FIPStoPayeeCodeConvTable'!$E$3:$E$213) -> 0.2923 | X79: 0.365375 | Y79: 0 | Z79: 0
A80: 157 | B80: =LOOKUP(A80,'DOE - FIPStoPayeeCodeConvTable'!$A$3:$A$213,'DOE - FIPStoPayeeCodeConvTable'!$B$3:$B$213) -> Rappahannock Co | C80: 0 | D80: 0 | H80: 0 | I80: 0 | L80: 0 | M80: 0 | S80: 0 | U80: 0 | V80: 0 | W80: =LOOKUP(A80,'DOE - FIPStoPayeeCodeConvTable'!$A$3:$A$213,'DOE - FIPStoPayeeCodeConvTable'!$E$3:$E$213) -> 0.4199 | X80: 0.524875 | Y80: 0 | Z80: 0
A81: 159 | B81: =LOOKUP(A81,'DOE - FIPStoPayeeCodeConvTable'!$A$3:$A$213,'DOE - FIPStoPayeeCodeConvTable'!$B$3:$B$213) -> Richmond Co | C81: 0 | D81: 0 | H81: 0 | I81: 0 | L81: 0 | M81: 0 | S81: 0 | U81: 0 | V81: 0 | W81: =LOOKUP(A81,'DOE - FIPStoPayeeCodeConvTable'!$A$3:$A$213,'DOE - FIPStoPayeeCodeConvTable'!$E$3:$E$213) -> 0.3227 | X81: 0.403375 | Y81: 0 | Z81: 0
A82: 161 | B82: =LOOKUP(A82,'DOE - FIPStoPayeeCodeConvTable'!$A$3:$A$213,'DOE - FIPStoPayeeCodeConvTable'!$B$3:$B$213) -> Roanoke Co | C82: 0 | D82: 0 | H82: 0 | I82: 0 | L82: 0 | M82: 0 | S82: 0 | U82: 0 | V82: 0 | W82: =LOOKUP(A82,'DOE - FIPStoPayeeCodeConvTable'!$A$3:$A$213,'DOE - FIPStoPayeeCodeConvTable'!$E$3:$E$213) -> 0.4397 | X82: 0.549625 | Y82: 0 | Z82: 0
A83: 163 | B83: =LOOKUP(A83,'DOE - FIPStoPayeeCodeConvTable'!$A$3:$A$213,'DOE - FIPStoPayeeCodeConvTable'!$B$3:$B$213) -> Rockbridge Co | C83: 0 | D83: 0 | H83: 0 | I83: 0 | L83: 0 | M83: 0 | S83: 0 | U83: 0 | V83: 0 | W83: =LOOKUP(A83,'DOE - FIPStoPayeeCodeConvTable'!$A$3:$A$213,'DOE - FIPStoPayeeCodeConvTable'!$E$3:$E$213) -> 0.2336 | X83: 0.292 | Y83: 0 | Z83: 0
A84: 165 | B84: =LOOKUP(A84,'DOE - FIPStoPayeeCodeConvTable'!$A$3:$A$213,'DOE - FIPStoPayeeCodeConvTable'!$B$3:$B$213) -> Rockingham Co | C84: 0 | D84: 0 | H84: 0 | I84: 0 | L84: 0 | M84: 0 | S84: 0 | U84: 0 | V84: 0 | W84: =LOOKUP(A84,'DOE - FIPStoPayeeCodeConvTable'!$A$3:$A$213,'DOE - FIPStoPayeeCodeConvTable'!$E$3:$E$213) -> 0.3445 | X84: 0.430625 | Y84: 0 | Z84: 0
A85: 167 | B85: =LOOKUP(A85,'DOE - FIPStoPayeeCodeConvTable'!$A$3:$A$213,'DOE - FIPStoPayeeCodeConvTable'!$B$3:$B$213) -> Russell Co | C85: 0 | D85: 0 | H85: 0 | I85: 0 | L85: 0 | M85: 0 | S85: 0 | U85: 0 | V85: 0 | W85: =LOOKUP(A85,'DOE - FIPStoPayeeCodeConvTable'!$A$3:$A$213,'DOE - FIPStoPayeeCodeConvTable'!$E$3:$E$213) -> 0.1894 | X85: 0.23675 | Y85: 0 | Z85: 0
A86: 169 | B86: =LOOKUP(A86,'DOE - FIPStoPayeeCodeConvTable'!$A$3:$A$213,'DOE - FIPStoPayeeCodeConvTable'!$B$3:$B$213) -> Scott Co | C86: 0 | D86: 0 | H86: 0 | I86: 0 | L86: 0 | M86: 0 | S86: 0 | U86: 0 | V86: 0 | W86: =LOOKUP(A86,'DOE - FIPStoPayeeCodeConvTable'!$A$3:$A$213,'DOE - FIPStoPayeeCodeConvTable'!$E$3:$E$213) -> 0.3154 | X86: 0.39425 | Y86: 0 | Z86: 0
A87: 171 | B87: =LOOKUP(A87,'DOE - FIPStoPayeeCodeConvTable'!$A$3:$A$213,'DOE - FIPStoPayeeCodeConvTable'!$B$3:$B$213) -> Shenandoah Co | C87: 0 | D87: 0 | H87: 0 | I87: 0 | L87: 0 | M87: 0 | S87: 0 | U87: 0 | V87: 0 | W87: =LOOKUP(A87,'DOE - FIPStoPayeeCodeConvTable'!$A$3:$A$213,'DOE - FIPStoPayeeCodeConvTable'!$E$3:$E$213) -> 0.3517 | X87: 0.439625 | Y87: 0 | Z87: 0
A88: 173 | B88: =LOOKUP(A88,'DOE - FIPStoPayeeCodeConvTable'!$A$3:$A$213,'DOE - FIPStoPayeeCodeConvTable'!$B$3:$B$213) -> Smyth Co | C88: 0 | D88: 0 | H88: 0 | I88: 0 | L88: 0 | M88: 0 | S88: 0 | U88: 0 | V88: 0 | W88: =LOOKUP(A88,'DOE - FIPStoPayeeCodeConvTable'!$A$3:$A$213,'DOE - FIPStoPayeeCodeConvTable'!$E$3:$E$213) -> 0.2337 | X88: 0.292125 | Y88: 0 | Z88: 0
A89: 175 | B89: =LOOKUP(A89,'DOE - FIPStoPayeeCodeConvTable'!$A$3:$A$213,'DOE - FIPStoPayeeCodeConvTable'!$B$3:$B$213) -> Southampton Co | C89: 0 | D89: 0 | H89: 0 | I89: 0 | L89: 0 | M89: 0 | S89: 0 | U89: 0 | V89: 0 | W89: =LOOKUP(A89,'DOE - FIPStoPayeeCodeConvTable'!$A$3:$A$213,'DOE - FIPStoPayeeCodeConvTable'!$E$3:$E$213) -> 0.323 | X89: 0.40375 | Y89: 0 | Z89: 0
A90: 177 | B90: =LOOKUP(A90,'DOE - FIPStoPayeeCodeConvTable'!$A$3:$A$213,'DOE - FIPStoPayeeCodeConvTable'!$B$3:$B$213) -> Spotsylvania Co | C90: 0 | D90: 0 | H90: 0 | I90: 0 | L90: 0 | M90: 0 | S90: 0 | U90: 0 | V90: 0 | W90: =LOOKUP(A90,'DOE - FIPStoPayeeCodeConvTable'!$A$3:$A$213,'DOE - FIPStoPayeeCodeConvTable'!$E$3:$E$213) -> 0.4588 | X90: 0.5735 | Y90: 0 | Z90: 0
A91: 179 | B91: =LOOKUP(A91,'DOE - FIPStoPayeeCodeConvTable'!$A$3:$A$213,'DOE - FIPStoPayeeCodeConvTable'!$B$3:$B$213) -> Stafford Co | C91: 0 | D91: 0 | H91: 0 | I91: 0 | L91: 0 | M91: 0 | S91: 0 | U91: 0 | V91: 0 | W91: =LOOKUP(A91,'DOE - FIPStoPayeeCodeConvTable'!$A$3:$A$213,'DOE - FIPStoPayeeCodeConvTable'!$E$3:$E$213) -> 0.4439 | X91: 0.554875 | Y91: 0 | Z91: 0
A92: 181 | B92: =LOOKUP(A92,'DOE - FIPStoPayeeCodeConvTable'!$A$3:$A$213,'DOE - FIPStoPayeeCodeConvTable'!$B$3:$B$213) -> Surry Co | C92: 0 | D92: 0 | H92: 0 | I92: 0 | L92: 0 | M92: 0 | S92: 0 | U92: 0 | V92: 0 | W92: =LOOKUP(A92,'DOE - FIPStoPayeeCodeConvTable'!$A$3:$A$213,'DOE - FIPStoPayeeCodeConvTable'!$E$3:$E$213) -> 0.3979 | X92: 0.497375 | Y92: 0 | Z92: 0
A93: 183 | B93: =LOOKUP(A93,'DOE - FIPStoPayeeCodeConvTable'!$A$3:$A$213,'DOE - FIPStoPayeeCodeConvTable'!$B$3:$B$213) -> Sussex Co | C93: 0 | D93: 0 | H93: 0 | I93: 0 | L93: 0 | M93: 0 | S93: 0 | U93: 0 | V93: 0 | W93: =LOOKUP(A93,'DOE - FIPStoPayeeCodeConvTable'!$A$3:$A$213,'DOE - FIPStoPayeeCodeConvTable'!$E$3:$E$213) -> 0.2387 | X93: 0.298375 | Y93: 0 | Z93: 0
A94: 185 | B94: =LOOKUP(A94,'DOE - FIPStoPayeeCodeConvTable'!$A$3:$A$213,'DOE - FIPStoPayeeCodeConvTable'!$B$3:$B$213) -> Tazewell Co | C94: 0 | D94: 0 | H94: 0 | I94: 0 | L94: 0 | M94: 0 | S94: 0 | U94: 0 | V94: 0 | W94: =LOOKUP(A94,'DOE - FIPStoPayeeCodeConvTable'!$A$3:$A$213,'DOE - FIPStoPayeeCodeConvTable'!$E$3:$E$213) -> 0.2455 | X94: 0.306875 | Y94: 0 | Z94: 0
A95: 187 | B95: =LOOKUP(A95,'DOE - FIPStoPayeeCodeConvTable'!$A$3:$A$213,'DOE - FIPStoPayeeCodeConvTable'!$B$3:$B$213) -> Warren Co | C95: 0 | D95: 0 | H95: 0 | I95: 0 | L95: 0 | M95: 0 | S95: 0 | U95: 0 | V95: 0 | W95: =LOOKUP(A95,'DOE - FIPStoPayeeCodeConvTable'!$A$3:$A$213,'DOE - FIPStoPayeeCodeConvTable'!$E$3:$E$213) -> 0.3853 | X95: 0.481625 | Y95: 0 | Z95: 0
A96: 191 | B96: =LOOKUP(A96,'DOE - FIPStoPayeeCodeConvTable'!$A$3:$A$213,'DOE - FIPStoPayeeCodeConvTable'!$B$3:$B$213) -> Washington Co | C96: 0 | D96: 0 | H96: 0 | I96: 0 | L96: 0 | M96: 0 | S96: 0 | U96: 0 | V96: 0 | W96: =LOOKUP(A96,'DOE - FIPStoPayeeCodeConvTable'!$A$3:$A$213,'DOE - FIPStoPayeeCodeConvTable'!$E$3:$E$213) -> 0.276 | X96: 0.345 | Y96: 0 | Z96: 0
A97: 193 | B97: =LOOKUP(A97,'DOE - FIPStoPayeeCodeConvTable'!$A$3:$A$213,'DOE - FIPStoPayeeCodeConvTable'!$B$3:$B$213) -> Westmoreland Co | C97: 0 | D97: 0 | H97: 0 | I97: 0 | L97: 0 | M97: 0 | S97: 0 | U97: 0 | V97: 0 | W97: =LOOKUP(A97,'DOE - FIPStoPayeeCodeConvTable'!$A$3:$A$213,'DOE - FIPStoPayeeCodeConvTable'!$E$3:$E$213) -> 0.3025 | X97: 0.378125 | Y97: 0 | Z97: 0
A98: 195 | B98: =LOOKUP(A98,'DOE - FIPStoPayeeCodeConvTable'!$A$3:$A$213,'DOE - FIPStoPayeeCodeConvTable'!$B$3:$B$213) -> Wise Co | C98: 0 | D98: 0 | H98: 0 | I98: 0 | L98: 0 | M98: 0 | S98: 0 | U98: 0 | V98: 0 | W98: =LOOKUP(A98,'DOE - FIPStoPayeeCodeConvTable'!$A$3:$A$213,'DOE - FIPStoPayeeCodeConvTable'!$E$3:$E$213) -> 0.2755 | X98: 0.344375 | Y98: 0 | Z98: 0
A99: 197 | B99: =LOOKUP(A99,'DOE - FIPStoPayeeCodeConvTable'!$A$3:$A$213,'DOE - FIPStoPayeeCodeConvTable'!$B$3:$B$213) -> Wythe Co | C99: 0 | D99: 0 | H99: 0 | I99: 0 | L99: 0 | M99: 0 | S99: 0 | U99: 0 | V99: 0 | W99: =LOOKUP(A99,'DOE - FIPStoPayeeCodeConvTable'!$A$3:$A$213,'DOE - FIPStoPayeeCodeConvTable'!$E$3:$E$213) -> 0.2708 | X99: 0.3385 | Y99: 0 | Z99: 0
A100: 199 | B100: =LOOKUP(A100,'DOE - FIPStoPayeeCodeConvTable'!$A$3:$A$213,'DOE - FIPStoPayeeCodeConvTable'!$B$3:$B$213) -> York Co | C100: 0 | D100: 0 | H100: 0 | I100: 0 | L100: 0 | M100: 0 | S100: 0 | U100: 0 | V100: 0 | W100: =LOOKUP(A100,'DOE - FIPStoPayeeCodeConvTable'!$A$3:$A$213,'DOE - FIPStoPayeeCodeConvTable'!$E$3:$E$213) -> 0.3888 | X100: 0.486 | Y100: 0 | Z100: 0
A101: 510 | B101: =LOOKUP(A101,'DOE - FIPStoPayeeCodeConvTable'!$A$3:$A$213,'DOE - FIPStoPayeeCodeConvTable'!$B$3:$B$213) -> Alexandria City | C101: 0 | D101: 0 | H101: 0 | I101: 0 | L101: 0 | M101: 0 | S101: =SUM(C101:R101) -> 0 | U101: 0 | V101: 0 | W101: =LOOKUP(A101,'DOE - FIPStoPayeeCodeConvTable'!$A$3:$A$213,'DOE - FIPStoPayeeCodeConvTable'!$E$3:$E$213) -> 0.5309 | X101: 0.663625 | Y101: 0 | Z101: 0
A102: 520 | B102: =LOOKUP(A102,'DOE - FIPStoPayeeCodeConvTable'!$A$3:$A$213,'DOE - FIPStoPayeeCodeConvTable'!$B$3:$B$213) -> Bristol City | C102: 0 | D102: 0 | H102: 0 | I102: 0 | L102: 0 | M102: 0 | S102: 0 | U102: =ROUND($U$1*S102,2) -> 0 | V102: =SUM(S102)-SUM(U102) -> 0 | W102: =LOOKUP(A102,'DOE - FIPStoPayeeCodeConvTable'!$A$3:$A$213,'DOE - FIPStoPayeeCodeConvTable'!$E$3:$E$213) -> 0.2547 | X102: 0.318375 | Y102: 0 | Z102: 0
A103: 530 | B103: =LOOKUP(A103,'DOE - FIPStoPayeeCodeConvTable'!$A$3:$A$213,'DOE - FIPStoPayeeCodeConvTable'!$B$3:$B$213) -> Buena Vista City | C103: 0 | D103: 0 | H103: 0 | I103: 0 | L103: 0 | M103: 0 | S103: 0 | U103: 0 | V103: 0 | W103: =LOOKUP(A103,'DOE - FIPStoPayeeCodeConvTable'!$A$3:$A$213,'DOE - FIPStoPayeeCodeConvTable'!$E$3:$E$213) -> 0.2329 | X103: 0.291125 | Y103: 0 | Z103: 0
A104: 540 | B104: =LOOKUP(A104,'DOE - FIPStoPayeeCodeConvTable'!$A$3:$A$213,'DOE - FIPStoPayeeCodeConvTable'!$B$3:$B$213) -> Charlottesville City | C104: 0 | D104: 0 | H104: 0 | I104: 0 | L104: 0 | M104: 0 | S104: 0 | U104: 0 | V104: 0 | W104: =LOOKUP(A104,'DOE - FIPStoPayeeCodeConvTable'!$A$3:$A$213,'DOE - FIPStoPayeeCodeConvTable'!$E$3:$E$213) -> 0.3068 | X104: 0.3835 | Y104: 0 | Z104: 0
A105: 550 | B105: =LOOKUP(A105,'DOE - FIPStoPayeeCodeConvTable'!$A$3:$A$213,'DOE - FIPStoPayeeCodeConvTable'!$B$3:$B$213) -> Chesapeake City | C105: 0 | D105: 0 | H105: 0 | I105: 0 | L105: 0 | M105: 0 | S105: 0 | U105: 0 | V105: 0 | W105: =LOOKUP(A105,'DOE - FIPStoPayeeCodeConvTable'!$A$3:$A$213,'DOE - FIPStoPayeeCodeConvTable'!$E$3:$E$213) -> 0.3715 | X105: 0.464375 | Y105: 0 | Z105: 0
A106: 570 | B106: =LOOKUP(A106,'DOE - FIPStoPayeeCodeConvTable'!$A$3:$A$213,'DOE - FIPStoPayeeCodeConvTable'!$B$3:$B$213) -> Colonial Heights City | C106: 0 | D106: 0 | H106: 0 | I106: 0 | L106: 0 | M106: 0 | S106: 0 | U106: 0 | V106: 0 | W106: =LOOKUP(A106,'DOE - FIPStoPayeeCodeConvTable'!$A$3:$A$213,'DOE - FIPStoPayeeCodeConvTable'!$E$3:$E$213) -> 0.4027 | X106: 0.503375 | Y106: 0 | Z106: 0
A107: 580 | B107: =LOOKUP(A107,'DOE - FIPStoPayeeCodeConvTable'!$A$3:$A$213,'DOE - FIPStoPayeeCodeConvTable'!$B$3:$B$213) -> Covington City | C107: 0 | D107: 0 | H107: 0 | I107: 0 | L107: 0 | M107: 0 | S107: 0 | U107: 0 | V107: 0 | W107: =LOOKUP(A107,'DOE - FIPStoPayeeCodeConvTable'!$A$3:$A$213,'DOE - FIPStoPayeeCodeConvTable'!$E$3:$E$213) -> 0.2496 | X107: 0.312 | Y107: 0 | Z107: 0
A108: 590 | B108: =LOOKUP(A108,'DOE - FIPStoPayeeCodeConvTable'!$A$3:$A$213,'DOE - FIPStoPayeeCodeConvTable'!$B$3:$B$213) -> Danville City | C108: 0 | D108: 0 | H108: 0 | I108: 0 | L108: 0 | M108: 0 | S108: 0 | U108: 0 | V108: 0 | W108: =LOOKUP(A108,'DOE - FIPStoPayeeCodeConvTable'!$A$3:$A$213,'DOE - FIPStoPayeeCodeConvTable'!$E$3:$E$213) -> 0.2223 | X108: 0.277875 | Y108: 0 | Z108: 0
A109: 620 | B109: =LOOKUP(A109,'DOE - FIPStoPayeeCodeConvTable'!$A$3:$A$213,'DOE - FIPStoPayeeCodeConvTable'!$B$3:$B$213) -> Franklin City | C109: 0 | D109: 0 | H109: 0 | I109: 0 | L109: 0 | M109: 0 | S109: 0 | U109: 0 | V109: 0 | W109: =LOOKUP(A109,'DOE - FIPStoPayeeCodeConvTable'!$A$3:$A$213,'DOE - FIPStoPayeeCodeConvTable'!$E$3:$E$213) -> 0.371 | X109: 0.46375 | Y109: 0 | Z109: 0
A110: 630 | B110: =LOOKUP(A110,'DOE - FIPStoPayeeCodeConvTable'!$A$3:$A$213,'DOE - FIPStoPayeeCodeConvTable'!$B$3:$B$213) -> Fredericksburg City | C110: 0 | D110: 0 | H110: 0 | I110: 0 | L110: 0 | M110: 0 | S110: 0 | U110: 0 | V110: 0 | W110: =LOOKUP(A110,'DOE - FIPStoPayeeCodeConvTable'!$A$3:$A$213,'DOE - FIPStoPayeeCodeConvTable'!$E$3:$E$213) -> 0.3441 | X110: 0.430125 | Y110: 0 | Z110: 0
A111: 640 | B111: =LOOKUP(A111,'DOE - FIPStoPayeeCodeConvTable'!$A$3:$A$213,'DOE - FIPStoPayeeCodeConvTable'!$B$3:$B$213) -> Galax City | C111: 0 | D111: 0 | H111: 0 | I111: 0 | L111: 0 | M111: 0 | S111: 0 | U111: 0 | V111: 0 | W111: =LOOKUP(A111,'DOE - FIPStoPayeeCodeConvTable'!$A$3:$A$213,'DOE - FIPStoPayeeCodeConvTable'!$E$3:$E$213) -> 0.3146 | X111: 0.39325 | Y111: 0 | Z111: 0
A112: 650 | B112: =LOOKUP(A112,'DOE - FIPStoPayeeCodeConvTable'!$A$3:$A$213,'DOE - FIPStoPayeeCodeConvTable'!$B$3:$B$213) -> Hampton City | C112: 0 | D112: 0 | H112: 0 | I112: 0 | L112: 0 | M112: 0 | S112: 0 | U112: 0 | V112: 0 | W112: =LOOKUP(A112,'DOE - FIPStoPayeeCodeConvTable'!$A$3:$A$213,'DOE - FIPStoPayeeCodeConvTable'!$E$3:$E$213) -> 0.3223 | X112: 0.402875 | Y112: 0 | Z112: 0
A113: 660 | B113: =LOOKUP(A113,'DOE - FIPStoPayeeCodeConvTable'!$A$3:$A$213,'DOE - FIPStoPayeeCodeConvTable'!$B$3:$B$213) -> Harrisonburg City | C113: 0 | D113: 0 | H113: 0 | I113: 0 | L113: 0 | M113: 0 | S113: 0 | U113: 0 | V113: 0 | W113: =LOOKUP(A113,'DOE - FIPStoPayeeCodeConvTable'!$A$3:$A$213,'DOE - FIPStoPayeeCodeConvTable'!$E$3:$E$213) -> 0.3808 | X113: 0.476 | Y113: 0 | Z113: 0
A114: 670 | B114: =LOOKUP(A114,'DOE - FIPStoPayeeCodeConvTable'!$A$3:$A$213,'DOE - FIPStoPayeeCodeConvTable'!$B$3:$B$213) -> Hopewell City | C114: 0 | D114: 0 | H114: 0 | I114: 0 | L114: 0 | M114: 0 | S114: 0 | U114: 0 | V114: 0 | W114: =LOOKUP(A114,'DOE - FIPStoPayeeCodeConvTable'!$A$3:$A$213,'DOE - FIPStoPayeeCodeConvTable'!$E$3:$E$213) -> 0.2667 | X114: 0.333375 | Y114: 0 | Z114: 0
A115: 678 | B115: =LOOKUP(A115,'DOE - FIPStoPayeeCodeConvTable'!$A$3:$A$213,'DOE - FIPStoPayeeCodeConvTable'!$B$3:$B$213) -> Lexington City | C115: 0 | D115: 0 | H115: 0 | I115: 0 | L115: 0 | M115: 0 | S115: 0 | U115: 0 | V115: 0 | W115: =LOOKUP(A115,'DOE - FIPStoPayeeCodeConvTable'!$A$3:$A$213,'DOE - FIPStoPayeeCodeConvTable'!$E$3:$E$213) -> 0.3302 | X115: 0.41275 | Y115: 0 | Z115: 0
A116: 680 | B116: =LOOKUP(A116,'DOE - FIPStoPayeeCodeConvTable'!$A$3:$A$213,'DOE - FIPStoPayeeCodeConvTable'!$B$3:$B$213) -> Lynchburg City | C116: 0 | D116: 0 | H116: 0 | I116: 0 | L116: 0 | M116: 0 | S116: 0 | U116: 0 | V116: 0 | W116: =LOOKUP(A116,'DOE - FIPStoPayeeCodeConvTable'!$A$3:$A$213,'DOE - FIPStoPayeeCodeConvTable'!$E$3:$E$213) -> 0.2736 | X116: 0.342 | Y116: 0 | Z116: 0
A117: 683 | B117: =LOOKUP(A117,'DOE - FIPStoPayeeCodeConvTable'!$A$3:$A$213,'DOE - FIPStoPayeeCodeConvTable'!$B$3:$B$213) -> Manassas City | C117: 0 | D117: 0 | H117: 0 | I117: 0 | L117: 0 | M117: 0 | S117: 0 | U117: 0 | V117: 0 | W117: =LOOKUP(A117,'DOE - FIPStoPayeeCodeConvTable'!$A$3:$A$213,'DOE - FIPStoPayeeCodeConvTable'!$E$3:$E$213) -> 0.4168 | X117: 0.521 | Y117: 0 | Z117: 0
A118: 685 | B118: =LOOKUP(A118,'DOE - FIPStoPayeeCodeConvTable'!$A$3:$A$213,'DOE - FIPStoPayeeCodeConvTable'!$B$3:$B$213) -> Manassas Park City | C118: 0 | D118: 0 | H118: 0 | I118: 0 | L118: 0 | M118: 0 | S118: 0 | U118: 0 | V118: 0 | W118: =LOOKUP(A118,'DOE - FIPStoPayeeCodeConvTable'!$A$3:$A$213,'DOE - FIPStoPayeeCodeConvTable'!$E$3:$E$213) -> 0.4273 | X118: 0.534125 | Y118: 0 | Z118: 0
A119: 690 | B119: =LOOKUP(A119,'DOE - FIPStoPayeeCodeConvTable'!$A$3:$A$213,'DOE - FIPStoPayeeCodeConvTable'!$B$3:$B$213) -> Martinsville City | C119: 0 | D119: 0 | H119: 0 | I119: 0 | L119: 0 | M119: 0 | S119: 0 | U119: 0 | V119: 0 | W119: =LOOKUP(A119,'DOE - FIPStoPayeeCodeConvTable'!$A$3:$A$213,'DOE - FIPStoPayeeCodeConvTable'!$E$3:$E$213) -> 0.3321 | X119: 0.415125 | Y119: 0 | Z119: 0
A120: 700 | B120: =LOOKUP(A120,'DOE - FIPStoPayeeCodeConvTable'!$A$3:$A$213,'DOE - FIPStoPayeeCodeConvTable'!$B$3:$B$213) -> Newport News City | C120: 0 | D120: 0 | H120: 0 | I120: 0 | L120: 0 | M120: 0 | S120: 0 | U120: 0 | V120: 0 | W120: =LOOKUP(A120,'DOE - FIPStoPayeeCodeConvTable'!$A$3:$A$213,'DOE - FIPStoPayeeCodeConvTable'!$E$3:$E$213) -> 0.2773 | X120: 0.346625 | Y120: 0 | Z120: 0
A121: 710 | B121: =LOOKUP(A121,'DOE - FIPStoPayeeCodeConvTable'!$A$3:$A$213,'DOE - FIPStoPayeeCodeConvTable'!$B$3:$B$213) -> Norfolk City | C121: 0 | D121: 0 | H121: 0 | I121: 0 | L121: 0 | M121: 0 | S121: 0 | U121: 0 | V121: 0 | W121: =LOOKUP(A121,'DOE - FIPStoPayeeCodeConvTable'!$A$3:$A$213,'DOE - FIPStoPayeeCodeConvTable'!$E$3:$E$213) -> 0.2455 | X121: 0.306875 | Y121: 0 | Z121: 0
A122: 720 | B122: =LOOKUP(A122,'DOE - FIPStoPayeeCodeConvTable'!$A$3:$A$213,'DOE - FIPStoPayeeCodeConvTable'!$B$3:$B$213) -> Norton City | C122: 0 | D122: 0 | H122: 0 | I122: 0 | L122: 0 | M122: 0 | S122: 0 | U122: 0 | V122: 0 | W122: =LOOKUP(A122,'DOE - FIPStoPayeeCodeConvTable'!$A$3:$A$213,'DOE - FIPStoPayeeCodeConvTable'!$E$3:$E$213) -> 0.3254 | X122: 0.40675 | Y122: 0 | Z122: 0
A123: 730 | B123: =LOOKUP(A123,'DOE - FIPStoPayeeCodeConvTable'!$A$3:$A$213,'DOE - FIPStoPayeeCodeConvTable'!$B$3:$B$213) -> Petersburg City | C123: 0 | D123: 0 | H123: 0 | I123: 0 | L123: 0 | M123: 0 | S123: 0 | U123: 0 | V123: 0 | W123: =LOOKUP(A123,'DOE - FIPStoPayeeCodeConvTable'!$A$3:$A$213,'DOE - FIPStoPayeeCodeConvTable'!$E$3:$E$213) -> 0.3535 | X123: 0.441875 | Y123: 0 | Z123: 0
A124: 735 | B124: =LOOKUP(A124,'DOE - FIPStoPayeeCodeConvTable'!$A$3:$A$213,'DOE - FIPStoPayeeCodeConvTable'!$B$3:$B$213) -> Poquoson City | C124: 0 | D124: 0 | H124: 0 | I124: 0 | L124: 0 | M124: 0 | S124: 0 | U124: 0 | V124: 0 | W124: =LOOKUP(A124,'DOE - FIPStoPayeeCodeConvTable'!$A$3:$A$213,'DOE - FIPStoPayeeCodeConvTable'!$E$3:$E$213) -> 0.2787 | X124: 0.348375 | Y124: 0 | Z124: 0
A125: 740 | B125: =LOOKUP(A125,'DOE - FIPStoPayeeCodeConvTable'!$A$3:$A$213,'DOE - FIPStoPayeeCodeConvTable'!$B$3:$B$213) -> Portsmouth City | C125: 0 | D125: 0 | H125: 0 | I125: 0 | L125: 0 | M125: 0 | S125: 0 | U125: 0 | V125: 0 | W125: =LOOKUP(A125,'DOE - FIPStoPayeeCodeConvTable'!$A$3:$A$213,'DOE - FIPStoPayeeCodeConvTable'!$E$3:$E$213) -> 0.2605 | X125: 0.325625 | Y125: 0 | Z125: 0
A126: 750 | B126: =LOOKUP(A126,'DOE - FIPStoPayeeCodeConvTable'!$A$3:$A$213,'DOE - FIPStoPayeeCodeConvTable'!$B$3:$B$213) -> Radford City | C126: 0 | D126: 0 | H126: 0 | I126: 0 | L126: 0 | M126: 0 | S126: 0 | U126: 0 | V126: 0 | W126: =LOOKUP(A126,'DOE - FIPStoPayeeCodeConvTable'!$A$3:$A$213,'DOE - FIPStoPayeeCodeConvTable'!$E$3:$E$213) -> 0.2035 | X126: 0.254375 | Y126: 0 | Z126: 0
A127: 760 | B127: =LOOKUP(A127,'DOE - FIPStoPayeeCodeConvTable'!$A$3:$A$213,'DOE - FIPStoPayeeCodeConvTable'!$B$3:$B$213) -> Richmond City | C127: 0 | D127: 0 | H127: 0 | I127: 0 | L127: 0 | M127: 0 | S127: 0 | U127: 0 | V127: 0 | W127: =LOOKUP(A127,'DOE - FIPStoPayeeCodeConvTable'!$A$3:$A$213,'DOE - FIPStoPayeeCodeConvTable'!$E$3:$E$213) -> 0.3691 | X127: 0.461375 | Y127: 0 | Z127: 0
A128: 770 | B128: =LOOKUP(A128,'DOE - FIPStoPayeeCodeConvTable'!$A$3:$A$213,'DOE - FIPStoPayeeCodeConvTable'!$B$3:$B$213) -> Roanoke City | C128: 0 | D128: 0 | H128: 0 | I128: 0 | L128: 0 | M128: 0 | S128: 0 | U128: 0 | V128: 0 | W128: =LOOKUP(A128,'DOE - FIPStoPayeeCodeConvTable'!$A$3:$A$213,'DOE - FIPStoPayeeCodeConvTable'!$E$3:$E$213) -> 0.3072 | X128: 0.384 | Y128: 0 | Z128: 0
A129: 775 | B129: =LOOKUP(A129,'DOE - FIPStoPayeeCodeConvTable'!$A$3:$A$213,'DOE - FIPStoPayeeCodeConvTable'!$B$3:$B$213) -> Salem City | C129: 0 | D129: 0 | H129: 0 | I129: 0 | L129: 0 | M129: 0 | S129: 0 | U129: 0 | V129: 0 | W129: =LOOKUP(A129,'DOE - FIPStoPayeeCodeConvTable'!$A$3:$A$213,'DOE - FIPStoPayeeCodeConvTable'!$E$3:$E$213) -> 0.3513 | X129: 0.439125 | Y129: 0 | Z129: 0
A130: 790 | B130: =LOOKUP(A130,'DOE - FIPStoPayeeCodeConvTable'!$A$3:$A$213,'DOE - FIPStoPayeeCodeConvTable'!$B$3:$B$213) -> Staunton City | C130: 0 | D130: 0 | H130: 0 | I130: 0 | L130: 0 | M130: 0 | S130: 0 | U130: 0 | V130: 0 | W130: =LOOKUP(A130,'DOE - FIPStoPayeeCodeConvTable'!$A$3:$A$213,'DOE - FIPStoPayeeCodeConvTable'!$E$3:$E$213) -> 0.2699 | X130: 0.337375 | Y130: 0 | Z130: 0
A131: 800 | B131: =LOOKUP(A131,'DOE - FIPStoPayeeCodeConvTable'!$A$3:$A$213,'DOE - FIPStoPayeeCodeConvTable'!$B$3:$B$213) -> Suffolk City | C131: 0 | D131: 0 | H131: 0 | I131: 0 | L131: 0 | M131: 0 | S131: 0 | U131: 0 | V131: 0 | W131: =LOOKUP(A131,'DOE - FIPStoPayeeCodeConvTable'!$A$3:$A$213,'DOE - FIPStoPayeeCodeConvTable'!$E$3:$E$213) -> 0.2432 | X131: 0.304 | Y131: 0 | Z131: 0
A132: 810 | B132: =LOOKUP(A132,'DOE - FIPStoPayeeCodeConvTable'!$A$3:$A$213,'DOE - FIPStoPayeeCodeConvTable'!$B$3:$B$213) -> Virginia Beach City | C132: 0 | D132: 0 | H132: 0 | I132: 0 | L132: 0 | M132: 0 | S132: 0 | U132: 0 | V132: 0 | W132: =LOOKUP(A132,'DOE - FIPStoPayeeCodeConvTable'!$A$3:$A$213,'DOE - FIPStoPayeeCodeConvTable'!$E$3:$E$213) -> 0.3569 | X132: 0.446125 | Y132: 0 | Z132: 0
A133: 820 | B133: =LOOKUP(A133,'DOE - FIPStoPayeeCodeConvTable'!$A$3:$A$213,'DOE - FIPStoPayeeCodeConvTable'!$B$3:$B$213) -> Waynesboro City | C133: 0 | D133: 0 | H133: 4386.6 | I133: 0 | L133: 0 | M133: 0 | S133: =SUM(C133:R133) -> 4386.6 | U133: 3860.21 | V133: =SUM(S133)-SUM(U133) -> 526.39 | W133: =LOOKUP(A133,'DOE - FIPStoPayeeCodeConvTable'!$A$3:$A$213,'DOE - FIPStoPayeeCodeConvTable'!$E$3:$E$213) -> 0.3843 | X133: 0.480375 | Y133: 252.86 | Z133: 273.53
A134: 830 | B134: =LOOKUP(A134,'DOE - FIPStoPayeeCodeConvTable'!$A$3:$A$213,'DOE - FIPStoPayeeCodeConvTable'!$B$3:$B$213) -> Williamsburg City | C134: 0 | D134: 0 | H134: 0 | I134: 0 | L134: 0 | M134: 0 | S134: 0 | U134: 0 | V134: 0 | W134: =LOOKUP(A134,'DOE - FIPStoPayeeCodeConvTable'!$A$3:$A$213,'DOE - FIPStoPayeeCodeConvTable'!$E$3:$E$213) -> 0.4553 | X134: =$X$1*W134 -> 0.569125 | Y134: =ROUND(X134*V134,2) -> 0 | Z134: =SUM(V134)-SUM(Y134) -> 0
A135: 840 | B135: =LOOKUP(A135,'DOE - FIPStoPayeeCodeConvTable'!$A$3:$A$213,'DOE - FIPStoPayeeCodeConvTable'!$B$3:$B$213) -> Winchester City | C135: 0 | D135: 0 | H135: 0 | I135: 0 | L135: 0 | M135: 0 | S135: 0 | U135: 0 | V135: 0 | W135: =LOOKUP(A135,'DOE - FIPStoPayeeCodeConvTable'!$A$3:$A$213,'DOE - FIPStoPayeeCodeConvTable'!$E$3:$E$213) -> 0.4587 | X135: 0.573375 | Y135: 0 | Z135: 0

Sheet Regular (hidden)
A1: FY | B1: ='DOE - FIPStoPayeeCodeConvTable'!G1 -> 2018 | C1: MEDICAID ADJUSTMENTS--Regular PAYMENTS TO PROVIDERS | O1: ="Extended to be paided in this SFY = " & B1 -> Extended to be paided in this SFY = 2018 | T1: xx | U1: 0.5 | V1: 0.5 | W1: (POOL) | X1: 1.25
U2: FEDERAL | V2: STATE/ | W2: (RATE) | X2: Factor
A3: FIPS | S3: Grand | U3: MEDICAID | V3: LOCAL | W3: LOCAL | Y3: LOCAL | Z3: STATE
A4: CODE | B4: LOCALITY | C4: =TEXT("7/1/" & $B$1-1,"mmm-yyyy") -> Jul-2017 | D4: =TEXT("8/1/" & $B$1-1,"mmm-yyyy") -> Aug-2017 | E4: =TEXT("9/1/" & $B$1-1,"mmm-yyyy") -> Sep-2017 | F4: =TEXT("10/1/" & $B$1-1,"mmm-yyyy") -> Oct-2017 | G4: =TEXT("11/1/" & $B$1-1,"mmm-yyyy") -> Nov-2017 | H4: =TEXT("12/1/" & $B$1-1,"mmm-yyyy") -> Dec-2017 | I4: =TEXT("1/1/" & $B$1,"mmm-yyyy") -> Jan-2018 | J4: =TEXT("2/1/" & $B$1,"mmm-yyyy") -> Feb-2018 | K4: =TEXT("3/1/" & $B$1,"mmm-yyyy") -> Mar-2018 | L4: =TEXT("4/1/" & $B$1,"mmm-yyyy") -> Apr-2018 | M4: =TEXT("5/1/" & $B$1,"mmm-yyyy") -> May-2018 | N4: =TEXT("6/1/" & $B$1,"mmm-yyyy") -> Jun-2018 | O4: =TEXT("7/1/" & $B$1,"mmm-yyyy") -> Jul-2018 | P4: =TEXT("8/1/" & $B$1,"mmm-yyyy") -> Aug-2018 | Q4: =TEXT("9/1/" & $B$1,"mmm-yyyy") -> Sep-2018 | R4: =TEXT("10/1/" & $B$1,"mmm-yyyy") -> Oct-2018 | S4: Total | U4: RATE/Share | V4: SHARE | W4: MATCH Rate | Y4: MATCH | Z4: SHARE
A5: Totals | C5: =SUM(C6:C1201) -> 6282905.81 | D5: 3423343.13 | E5: 7166286.24 | F5: 9473069.75 | G5: 4256867.12 | H5: 3051927.98 | I5: 5101960.25 | J5: 6862803.65 | K5: =SUM(K6:K1200) -> 6108701.48 | L5: =SUM(L6:L1200) -> 7182888.96 | M5: =SUM(M6:M1200) -> 5392774.09 | N5: =SUM(N6:N1200) -> 6051705.58 | O5: 0 | P5: 0 | Q5: 0 | R5: 0 | S5: =SUM(C5:R5) -> 70355234.04 | T5: = | U5: =SUM(U6:U399) -> 35177617.22 | V5: =SUM(V6:V399) -> 35177616.82 | W5: = | Y5: =SUM(Y6:Y399) -> 14884376.77 | Z5: =SUM(Z6:Z399) -> 20293240.05
A6: 1 | B6: =LOOKUP(A6,'DOE - FIPStoPayeeCodeConvTable'!$A$3:$A$213,'DOE - FIPStoPayeeCodeConvTable'!$B$3:$B$213) -> Accomack Co | C6: 15011.1 | D6: 34628 | E6: 16731.32 | F6: 28540.89 | G6: 24003.5 | H6: 25577.5 | I6: 68335.72 | J6: 56541.46 | K6: 36754.66 | L6: 39160.82 | M6: 33054 | N6: 76476.68 | S6: 454815.65 | U6: =ROUND($U$1*S6,2) -> 227407.83 | V6: =SUM(S6)-SUM(U6) -> 227407.82 | W6: =LOOKUP(A6,'DOE - FIPStoPayeeCodeConvTable'!$A$3:$A$213,'DOE - FIPStoPayeeCodeConvTable'!$E$3:$E$213) -> 0.2332 | X6: =$X$1*W6 -> 0.2915 | Y6: =ROUND(X6*V6,2) -> 66289.38 | Z6: =SUM(V6)-SUM(Y6) -> 161118.44
A7: 3 | B7: =LOOKUP(A7,'DOE - FIPStoPayeeCodeConvTable'!$A$3:$A$213,'DOE - FIPStoPayeeCodeConvTable'!$B$3:$B$213) -> Albemarle Co | C7: 41459.84 | D7: 54198.79 | E7: 62692.46 | F7: 86012.52 | G7: 55859.36 | H7: 24725.1 | I7: 59961.78 | J7: 49912.06 | K7: 135668.48 | L7: 46872.34 | M7: 42552.6 | N7: 27278 | S7: 687193.33 | U7: 343596.67 | V7: 343596.66 | W7: =LOOKUP(A7,'DOE - FIPStoPayeeCodeConvTable'!$A$3:$A$213,'DOE - FIPStoPayeeCodeConvTable'!$E$3:$E$213) -> 0.4474 | X7: =$X$1*W7 -> 0.55925 | Y7: =ROUND(X7*V7,2) -> 192156.43 | Z7: =SUM(V7)-SUM(Y7) -> 151440.23
A8: 5 | B8: =LOOKUP(A8,'DOE - FIPStoPayeeCodeConvTable'!$A$3:$A$213,'DOE - FIPStoPayeeCodeConvTable'!$B$3:$B$213) -> Alleghany Co | C8: 4386.6 | D8: 12198.5 | E8: 28390.1 | F8: 13643.46 | G8: 35021.5 | H8: 1574 | I8: 21642.5 | J8: 55792.44 | K8: 29703.59 | L8: 34952.92 | M8: 20640.16 | N8: 54412.86 | S8: 312358.63 | U8: 156179.32 | V8: 156179.31 | W8: =LOOKUP(A8,'DOE - FIPStoPayeeCodeConvTable'!$A$3:$A$213,'DOE - FIPStoPayeeCodeConvTable'!$E$3:$E$213) -> 0.1924 | X8: 0.2405 | Y8: 37561.12 | Z8: 118618.19
A9: 7 | B9: =LOOKUP(A9,'DOE - FIPStoPayeeCodeConvTable'!$A$3:$A$213,'DOE - FIPStoPayeeCodeConvTable'!$B$3:$B$213) -> Amelia Co | C9: 23610 | D9: 17707.5 | E9: 48794 | F9: 66501.5 | G9: 24790.5 | H9: 8657 | I9: 12198.5 | J9: 25577.5 | K9: 46433 | L9: 20971.7 | M9: 4328.5 | N9: 11805 | S9: 311374.7 | U9: 155687.35 | V9: 155687.35 | W9: =LOOKUP(A9,'DOE - FIPStoPayeeCodeConvTable'!$A$3:$A$213,'DOE - FIPStoPayeeCodeConvTable'!$E$3:$E$213) -> 0.3268 | X9: 0.4085 | Y9: 63598.28 | Z9: 92089.07
A10: 9 | B10: =LOOKUP(A10,'DOE - FIPStoPayeeCodeConvTable'!$A$3:$A$213,'DOE - FIPStoPayeeCodeConvTable'!$B$3:$B$213) -> Amherst Co | C10: 47220 | D10: 38029.01 | E10: 59609.59 | F10: 102031.02 | G10: 28174.2 | H10: 12592 | I10: 73584.5 | J10: 78137.38 | K10: 63151.09 | L10: 48843.27 | M10: 10624.5 | N10: 22429.5 | S10: 584426.06 | U10: 292213.03 | V10: 292213.03 | W10: =LOOKUP(A10,'DOE - FIPStoPayeeCodeConvTable'!$A$3:$A$213,'DOE - FIPStoPayeeCodeConvTable'!$E$3:$E$213) -> 0.2722 | X10: 0.34025 | Y10: 99425.48 | Z10: 192787.55
A11: 11 | B11: =LOOKUP(A11,'DOE - FIPStoPayeeCodeConvTable'!$A$3:$A$213,'DOE - FIPStoPayeeCodeConvTable'!$B$3:$B$213) -> Appomattox Co | C11: 63696.39 | D11: 79965.51 | E11: 13557.09 | F11: 95593.18 | G11: 15444.62 | H11: 24986.18 | I11: 20941.92 | J11: 50009.7 | K11: 26256.73 | L11: 22754.42 | M11: 19079.09 | N11: 34470.2 | S11: 466755.03 | U11: 233377.52 | V11: 233377.51 | W11: =LOOKUP(A11,'DOE - FIPStoPayeeCodeConvTable'!$A$3:$A$213,'DOE - FIPStoPayeeCodeConvTable'!$E$3:$E$213) -> 0.2639 | X11: 0.329875 | Y11: 76985.41 | Z11: 156392.1
A12: 13 | B12: =LOOKUP(A12,'DOE - FIPStoPayeeCodeConvTable'!$A$3:$A$213,'DOE - FIPStoPayeeCodeConvTable'!$B$3:$B$213) -> Arlington Co | C12: 50032.6 | D12: 0 | E12: 30045.88 | F12: 80766.62 | G12: 15353.1 | H12: 17005.86 | I12: 11805 | J12: 17329.5 | K12: 11411.5 | L12: 14559.5 | M12: 43678.5 | N12: 12198.5 | S12: 304186.56 | U12: 152093.28 | V12: 152093.28 | W12: =LOOKUP(A12,'DOE - FIPStoPayeeCodeConvTable'!$A$3:$A$213,'DOE - FIPStoPayeeCodeConvTable'!$E$3:$E$213) -> 0.4602 | X12: 0.57525 | Y12: 87491.66 | Z12: 64601.62
A13: 15 | B13: =LOOKUP(A13,'DOE - FIPStoPayeeCodeConvTable'!$A$3:$A$213,'DOE - FIPStoPayeeCodeConvTable'!$B$3:$B$213) -> Augusta Co | C13: 80472.3 | D13: 65792.06 | E13: 65690.08 | F13: 88139.58 | G13: 49242.88 | H13: 48569.98 | I13: 43215.3 | J13: 62869.75 | K13: 53258.04 | L13: 63865.36 | M13: 32259.14 | N13: 60089.6 | S13: 713464.07 | U13: 356732.04 | V13: 356732.03 | W13: =LOOKUP(A13,'DOE - FIPStoPayeeCodeConvTable'!$A$3:$A$213,'DOE - FIPStoPayeeCodeConvTable'!$E$3:$E$213) -> 0.3302 | X13: 0.41275 | Y13: 147241.15 | Z13: 209490.88
A14: 17 | B14: =LOOKUP(A14,'DOE - FIPStoPayeeCodeConvTable'!$A$3:$A$213,'DOE - FIPStoPayeeCodeConvTable'!$B$3:$B$213) -> Bath Co | C14: 6689.5 | D14: 0 | E14: 0 | F14: 0 | G14: 337.96 | H14: 0 | I14: 0 | J14: 0 | K14: 0 | L14: 0 | M14: 3515 | N14: 0 | S14: 10542.46 | U14: 5271.23 | V14: 5271.23 | W14: =LOOKUP(A14,'DOE - FIPStoPayeeCodeConvTable'!$A$3:$A$213,'DOE - FIPStoPayeeCodeConvTable'!$E$3:$E$213) -> 0.4278 | X14: 0.53475 | Y14: 2818.79 | Z14: 2452.44
A15: 19 | B15: =LOOKUP(A15,'DOE - FIPStoPayeeCodeConvTable'!$A$3:$A$213,'DOE - FIPStoPayeeCodeConvTable'!$B$3:$B$213) -> Bedford Co | C15: 143609.24 | D15: 100021.8 | E15: 168446.6 | F15: 211723.06 | G15: 100465.86 | H15: 78360.48 | I15: 102053.32 | J15: 102802.42 | K15: 152023.96 | L15: 126178.88 | M15: 133582.12 | N15: 111328.8 | S15: 1530596.54 | U15: 765298.27 | V15: 765298.27 | W15: =LOOKUP(A15,'DOE - FIPStoPayeeCodeConvTable'!$A$3:$A$213,'DOE - FIPStoPayeeCodeConvTable'!$E$3:$E$213) -> 0.31112 | X15: 0.3889 | Y15: 297624.5 | Z15: 467673.77
A16: 21 | B16: =LOOKUP(A16,'DOE - FIPStoPayeeCodeConvTable'!$A$3:$A$213,'DOE - FIPStoPayeeCodeConvTable'!$B$3:$B$213) -> Bland Co | C16: 11018 | D16: 0 | E16: 0 | F16: 0 | G16: 0 | H16: 0 | I16: 0 | J16: 0 | K16: 0 | L16: 0 | M16: 0 | N16: 0 | S16: 11018 | U16: 5509 | V16: 5509 | W16: =LOOKUP(A16,'DOE - FIPStoPayeeCodeConvTable'!$A$3:$A$213,'DOE - FIPStoPayeeCodeConvTable'!$E$3:$E$213) -> 0.2109 | X16: 0.263625 | Y16: 1452.31 | Z16: 4056.69
A17: 23 | B17: =LOOKUP(A17,'DOE - FIPStoPayeeCodeConvTable'!$A$3:$A$213,'DOE - FIPStoPayeeCodeConvTable'!$B$3:$B$213) -> Botetourt Co | C17: 4532.82 | D17: 0 | E17: 1535.24 | F17: 13744.38 | G17: 0 | H17: 3399.46 | I17: 12939.88 | J17: 3180.14 | K17: 0 | L17: 0 | M17: 3509.28 | N17: -4057.42 | S17: 38783.78 | U17: 19391.89 | V17: 19391.89 | W17: =LOOKUP(A17,'DOE - FIPStoPayeeCodeConvTable'!$A$3:$A$213,'DOE - FIPStoPayeeCodeConvTable'!$E$3:$E$213) -> 0.3602 | X17: 0.45025 | Y17: 8731.2 | Z17: 10660.69
A18: 25 | B18: =LOOKUP(A18,'DOE - FIPStoPayeeCodeConvTable'!$A$3:$A$213,'DOE - FIPStoPayeeCodeConvTable'!$B$3:$B$213) -> Brunswick Co | C18: 57082.8 | D18: 24632.7 | E18: 56015.49 | F18: 45252.5 | G18: 0 | H18: 2754.5 | I18: 0 | J18: 5115.5 | K18: 75552 | L18: 15740 | M18: 37382.5 | N18: 11018 | S18: 330545.99 | U18: 165273 | V18: 165272.99 | W18: =LOOKUP(A18,'DOE - FIPStoPayeeCodeConvTable'!$A$3:$A$213,'DOE - FIPStoPayeeCodeConvTable'!$E$3:$E$213) -> 0.2439 | X18: 0.304875 | Y18: 50387.6 | Z18: 114885.39
A19: 27 | B19: =LOOKUP(A19,'DOE - FIPStoPayeeCodeConvTable'!$A$3:$A$213,'DOE - FIPStoPayeeCodeConvTable'!$B$3:$B$213) -> Buchanan Co | C19: 47660.2 | D19: 12830.53 | E19: 45512.28 | F19: 68472.31 | G19: 6321.71 | H19: 2193.2 | I19: 7870 | J19: 0 | K19: 89667 | L19: 8894.32 | M19: 23078.23 | N19: 14968.14 | S19: 327467.92 | U19: 163733.96 | V19: 163733.96 | W19: =LOOKUP(A19,'DOE - FIPStoPayeeCodeConvTable'!$A$3:$A$213,'DOE - FIPStoPayeeCodeConvTable'!$E$3:$E$213) -> 0.3156 | X19: 0.3945 | Y19: 64593.05 | Z19: 99140.91
A20: 29 | B20: =LOOKUP(A20,'DOE - FIPStoPayeeCodeConvTable'!$A$3:$A$213,'DOE - FIPStoPayeeCodeConvTable'!$B$3:$B$213) -> Buckingham Co | C20: 13437.1 | D20: 1878.28 | E20: 16731.32 | F20: 62003.3 | G20: 38412.06 | H20: 44144.95 | I20: 37822.52 | J20: 51583.7 | K20: 35992.63 | L20: 54559.34 | M20: 35053.43 | N20: 5473.52 | S20: 397092.15 | U20: 198546.08 | V20: 198546.07 | W20: =LOOKUP(A20,'DOE - FIPStoPayeeCodeConvTable'!$A$3:$A$213,'DOE - FIPStoPayeeCodeConvTable'!$E$3:$E$213) -> 0.2023 | X20: 0.252875 | Y20: 50207.34 | Z20: 148338.73
A21: 31 | B21: =LOOKUP(A21,'DOE - FIPStoPayeeCodeConvTable'!$A$3:$A$213,'DOE - FIPStoPayeeCodeConvTable'!$B$3:$B$213) -> Campbell Co | C21: 37754.04 | D21: 36549.88 | E21: 87629.74 | F21: 122373 | G21: 48011.14 | H21: 8044.14 | I21: 58790.92 | J21: 100702.33 | K21: 73728.14 | L21: 54463.21 | M21: 69548.88 | N21: 59740.97 | S21: 757336.39 | U21: 378668.2 | V21: 378668.19 | W21: =LOOKUP(A21,'DOE - FIPStoPayeeCodeConvTable'!$A$3:$A$213,'DOE - FIPStoPayeeCodeConvTable'!$E$3:$E$213) -> 0.3107 | X21: 0.388375 | Y21: 147065.26 | Z21: 231602.93
A22: 33 | B22: =LOOKUP(A22,'DOE - FIPStoPayeeCodeConvTable'!$A$3:$A$213,'DOE - FIPStoPayeeCodeConvTable'!$B$3:$B$213) -> Caroline Co | C22: 22303.6 | D22: 654.5 | E22: 20377.95 | F22: 39265.97 | G22: 21821.1 | H22: 7004.6 | I22: 21229.77 | J22: 17638.82 | K22: 10423.32 | L22: 73743.16 | M22: 7589.48 | N22: 10277.1 | S22: 252329.37 | U22: 126164.69 | V22: 126164.68 | W22: =LOOKUP(A22,'DOE - FIPStoPayeeCodeConvTable'!$A$3:$A$213,'DOE - FIPStoPayeeCodeConvTable'!$E$3:$E$213) -> 0.3308 | X22: 0.4135 | Y22: 52169.1 | Z22: 73995.58
A23: 35 | B23: =LOOKUP(A23,'DOE - FIPStoPayeeCodeConvTable'!$A$3:$A$213,'DOE - FIPStoPayeeCodeConvTable'!$B$3:$B$213) -> Carroll Co | C23: 42345.44 | D23: 393.5 | E23: 70312.25 | F23: 96859.36 | G23: 31923.06 | H23: 58747.7 | I23: 63762.14 | J23: 78965.73 | K23: 64461.02 | L23: 170965.28 | M23: 64323.71 | N23: 114603.32 | S23: 857662.51 | U23: 428831.26 | V23: 428831.25 | W23: =LOOKUP(A23,'DOE - FIPStoPayeeCodeConvTable'!$A$3:$A$213,'DOE - FIPStoPayeeCodeConvTable'!$E$3:$E$213) -> 0.291 | X23: 0.36375 | Y23: 155987.37 | Z23: 272843.88
A24: 36 | B24: =LOOKUP(A24,'DOE - FIPStoPayeeCodeConvTable'!$A$3:$A$213,'DOE - FIPStoPayeeCodeConvTable'!$B$3:$B$213) -> Charles City Co | C24: 0 | D24: 0 | E24: 0 | F24: 0 | G24: 0 | H24: 0 | I24: 0 | J24: 12198.5 | K24: 12592 | L24: 12198.5 | M24: 0 | N24: 11805 | S24: 48794 | U24: 24397 | V24: 24397 | W24: =LOOKUP(A24,'DOE - FIPStoPayeeCodeConvTable'!$A$3:$A$213,'DOE - FIPStoPayeeCodeConvTable'!$E$3:$E$213) -> 0.3131 | X24: 0.391375 | Y24: 9548.38 | Z24: 14848.62
A25: 37 | B25: =LOOKUP(A25,'DOE - FIPStoPayeeCodeConvTable'!$A$3:$A$213,'DOE - FIPStoPayeeCodeConvTable'!$B$3:$B$213) -> Charlotte Co | C25: 46269.41 | D25: 22677.85 | E25: 70267.96 | F25: 30538.24 | G25: 15178.8 | H25: 1900.86 | I25: 45129.96 | J25: 22036 | K25: 11018 | L25: 12198.5 | M25: 5902.5 | N25: 20724.42 | S25: 303842.5 | U25: 151921.25 | V25: 151921.25 | W25: =LOOKUP(A25,'DOE - FIPStoPayeeCodeConvTable'!$A$3:$A$213,'DOE - FIPStoPayeeCodeConvTable'!$E$3:$E$213) -> 0.2204 | X25: 0.2755 | Y25: 41854.3 | Z25: 110066.95
A26: 41 | B26: =LOOKUP(A26,'DOE - FIPStoPayeeCodeConvTable'!$A$3:$A$213,'DOE - FIPStoPayeeCodeConvTable'!$B$3:$B$213) -> Chesterfield Co | C26: 111263.34 | D26: 197537.58 | E26: 239127.47 | F26: 350675.01 | G26: 177467.61 | H26: -44774.69 | I26: 219763.05 | J26: 217322.76 | K26: 154378.72 | L26: 214984.78 | M26: 125128.54 | N26: 247777.43 | S26: 2210651.6 | U26: 1105325.8 | V26: 1105325.8 | W26: =LOOKUP(A26,'DOE - FIPStoPayeeCodeConvTable'!$A$3:$A$213,'DOE - FIPStoPayeeCodeConvTable'!$E$3:$E$213) -> 0.3853 | X26: 0.481625 | Y26: 532352.54 | Z26: 572973.26
A27: 43 | B27: =LOOKUP(A27,'DOE - FIPStoPayeeCodeConvTable'!$A$3:$A$213,'DOE - FIPStoPayeeCodeConvTable'!$B$3:$B$213) -> Clarke Co | C27: 32660.5 | D27: 12592 | E27: 45646 | F27: 31086.5 | G27: 8263.5 | H27: 0 | I27: 0 | J27: 0 | K27: 0 | L27: 0 | M27: -48400.5 | N27: 0 | S27: 81848 | U27: 40924 | V27: 40924 | W27: =LOOKUP(A27,'DOE - FIPStoPayeeCodeConvTable'!$A$3:$A$213,'DOE - FIPStoPayeeCodeConvTable'!$E$3:$E$213) -> 0.4797 | X27: 0.599625 | Y27: 24539.05 | Z27: 16384.95
A28: 45 | B28: =LOOKUP(A28,'DOE - FIPStoPayeeCodeConvTable'!$A$3:$A$213,'DOE - FIPStoPayeeCodeConvTable'!$B$3:$B$213) -> Craig Co | C28: 0 | D28: 0 | E28: 0 | F28: 7712.96 | G28: 3838.1 | H28: 3289.8 | I28: 28189.96 | J28: 19143.84 | K28: 6702.34 | L28: -1065.24 | M28: -5947.76 | N28: -2915.68 | S28: 58948.32 | U28: 29474.16 | V28: 29474.16 | W28: =LOOKUP(A28,'DOE - FIPStoPayeeCodeConvTable'!$A$3:$A$213,'DOE - FIPStoPayeeCodeConvTable'!$E$3:$E$213) -> 0.2901 | X28: 0.362625 | Y28: 10688.07 | Z28: 18786.09
A29: 47 | B29: =LOOKUP(A29,'DOE - FIPStoPayeeCodeConvTable'!$A$3:$A$213,'DOE - FIPStoPayeeCodeConvTable'!$B$3:$B$213) -> Culpeper Co | C29: 84633.09 | D29: 33791.94 | E29: 116561.12 | F29: 139083.91 | G29: 106413.58 | H29: 54025.7 | I29: -2879.46 | J29: 61425.92 | K29: 76645.01 | L29: 92882.04 | M29: 48891.7 | N29: 60651.14 | S29: 872125.69 | U29: 436062.85 | V29: 436062.84 | W29: =LOOKUP(A29,'DOE - FIPStoPayeeCodeConvTable'!$A$3:$A$213,'DOE - FIPStoPayeeCodeConvTable'!$E$3:$E$213) -> 0.3767 | X29: 0.470875 | Y29: 205331.09 | Z29: 230731.75
A30: 49 | B30: =LOOKUP(A30,'DOE - FIPStoPayeeCodeConvTable'!$A$3:$A$213,'DOE - FIPStoPayeeCodeConvTable'!$B$3:$B$213) -> Cumberland Co | C30: 4134.44 | D30: 2823.52 | E30: 11425.28 | F30: 7210.12 | G30: 1815.12 | H30: 2722.68 | I30: 4235.28 | J30: 3217.02 | K30: 11087.02 | L30: 15022.02 | M30: 2117.64 | N30: 19968.06 | S30: 85778.2 | U30: 42889.1 | V30: 42889.1 | W30: =LOOKUP(A30,'DOE - FIPStoPayeeCodeConvTable'!$A$3:$A$213,'DOE - FIPStoPayeeCodeConvTable'!$E$3:$E$213) -> 0.304 | X30: 0.38 | Y30: 16297.86 | Z30: 26591.24
A31: 51 | B31: =LOOKUP(A31,'DOE - FIPStoPayeeCodeConvTable'!$A$3:$A$213,'DOE - FIPStoPayeeCodeConvTable'!$B$3:$B$213) -> Dickenson Co | C31: 68075.5 | D31: 7870 | E31: 78306.5 | F31: 90898.5 | G31: 25971 | H31: 14166 | I31: 20462 | J31: 42891.5 | K31: 27151.5 | L31: 125526.5 | M31: 55145.54 | N31: 83028.5 | S31: 639493.04 | U31: 319746.52 | V31: 319746.52 | W31: =LOOKUP(A31,'DOE - FIPStoPayeeCodeConvTable'!$A$3:$A$213,'DOE - FIPStoPayeeCodeConvTable'!$E$3:$E$213) -> 0.3042 | X31: 0.38025 | Y31: 121583.61 | Z31: 198162.91
A32: 53 | B32: =LOOKUP(A32,'DOE - FIPStoPayeeCodeConvTable'!$A$3:$A$213,'DOE - FIPStoPayeeCodeConvTable'!$B$3:$B$213) -> Dinwiddie Co | C32: 37440.6 | D32: 5713.32 | E32: 61970.58 | F32: 84660.6 | G32: 16733.52 | H32: 21307.1 | I32: 26590.3 | J32: 92210.14 | K32: 70558.92 | L32: 21474.66 | M32: 19472.82 | N32: 39694.2 | S32: 497826.76 | U32: 248913.38 | V32: 248913.38 | W32: =LOOKUP(A32,'DOE - FIPStoPayeeCodeConvTable'!$A$3:$A$213,'DOE - FIPStoPayeeCodeConvTable'!$E$3:$E$213) -> 0.3358 | X32: 0.41975 | Y32: 104481.39 | Z32: 144431.99
A33: 57 | B33: =LOOKUP(A33,'DOE - FIPStoPayeeCodeConvTable'!$A$3:$A$213,'DOE - FIPStoPayeeCodeConvTable'!$B$3:$B$213) -> Essex Co | C33: 53072.08 | D33: 33856.18 | E33: 59907.31 | F33: 73559.79 | G33: 49007.13 | H33: 25152.52 | I33: 63806.3 | J33: 55009.22 | K33: 25341.14 | L33: 21117.18 | M33: 13880.79 | N33: 6639.48 | S33: 480349.12 | U33: 240174.56 | V33: 240174.56 | W33: =LOOKUP(A33,'DOE - FIPStoPayeeCodeConvTable'!$A$3:$A$213,'DOE - FIPStoPayeeCodeConvTable'!$E$3:$E$213) -> 0.3853 | X33: 0.481625 | Y33: 115674.07 | Z33: 124500.49
A34: 59 | B34: =LOOKUP(A34,'DOE - FIPStoPayeeCodeConvTable'!$A$3:$A$213,'DOE - FIPStoPayeeCodeConvTable'!$B$3:$B$213) -> Fairfax Co | C34: 253851.22 | D34: 56988.48 | E34: 154646.32 | F34: 209582.46 | G34: 34882.8 | H34: 178810.04 | I34: 110504.98 | J34: 260917.74 | K34: 109134.4 | L34: 263646.79 | M34: 88259.61 | N34: 92069.13 | S34: 1813293.97 | U34: 906646.99 | V34: 906646.98 | W34: =LOOKUP(A34,'DOE - FIPStoPayeeCodeConvTable'!$A$3:$A$213,'DOE - FIPStoPayeeCodeConvTable'!$E$3:$E$213) -> 0.4611 | X34: 0.576375 | Y34: 522568.65 | Z34: 384078.33
A35: 61 | B35: =LOOKUP(A35,'DOE - FIPStoPayeeCodeConvTable'!$A$3:$A$213,'DOE - FIPStoPayeeCodeConvTable'!$B$3:$B$213) -> Fauquier Co | C35: 76761.92 | D35: 20158.5 | E35: 30434.15 | F35: 48499.02 | G35: 24374.84 | H35: 32550.08 | I35: 39851.02 | J35: 21848.02 | K35: 48941.16 | L35: 46040.6 | M35: 27816 | N35: 56768.34 | S35: 474043.65 | U35: 237021.83 | V35: 237021.82 | W35: =LOOKUP(A35,'DOE - FIPStoPayeeCodeConvTable'!$A$3:$A$213,'DOE - FIPStoPayeeCodeConvTable'!$E$3:$E$213) -> 0.4584 | X35: 0.573 | Y35: 135813.5 | Z35: 101208.32
A36: 63 | B36: =LOOKUP(A36,'DOE - FIPStoPayeeCodeConvTable'!$A$3:$A$213,'DOE - FIPStoPayeeCodeConvTable'!$B$3:$B$213) -> Floyd Co | C36: 23668.1 | D36: 10624.5 | E36: 16731.32 | F36: 14953 | G36: 12198.5 | H36: 8657 | I36: 12198.5 | J36: 16527 | K36: 9444 | L36: 12592 | M36: 5509 | N36: 13615.54 | S36: 156718.46 | U36: 78359.23 | V36: 78359.23 | W36: =LOOKUP(A36,'DOE - FIPStoPayeeCodeConvTable'!$A$3:$A$213,'DOE - FIPStoPayeeCodeConvTable'!$E$3:$E$213) -> 0.2324 | X36: 0.2905 | Y36: 22763.36 | Z36: 55595.87
A37: 65 | B37: =LOOKUP(A37,'DOE - FIPStoPayeeCodeConvTable'!$A$3:$A$213,'DOE - FIPStoPayeeCodeConvTable'!$B$3:$B$213) -> Fluvanna Co | C37: 44588.85 | D37: 0 | E37: 34045.32 | F37: 32922.92 | G37: 21264.14 | H37: 4386.6 | I37: 28536.32 | J37: 36975.22 | K37: 15546.13 | L37: 21967.42 | M37: 10815.59 | N37: 28043.12 | S37: =SUM(C37:R37) -> 279091.63 | U37: 139545.82 | V37: 139545.81 | W37: =LOOKUP(A37,'DOE - FIPStoPayeeCodeConvTable'!$A$3:$A$213,'DOE - FIPStoPayeeCodeConvTable'!$E$3:$E$213) -> 0.3811 | X37: 0.476375 | Y37: 66476.14 | Z37: 73069.67
A38: 67 | B38: =LOOKUP(A38,'DOE - FIPStoPayeeCodeConvTable'!$A$3:$A$213,'DOE - FIPStoPayeeCodeConvTable'!$B$3:$B$213) -> Franklin Co | C38: 131119.32 | D38: 55618.68 | E38: 151021.23 | F38: 159722.12 | G38: 24003.5 | H38: 121927.72 | I38: 126621.74 | J38: 170652.1 | K38: 93313.12 | L38: 171344.44 | M38: 155760.95 | N38: 152039.14 | S38: 1513144.06 | U38: =ROUND($U$1*S38,2) -> 756572.03 | V38: =SUM(S38)-SUM(U38) -> 756572.03 | W38: =LOOKUP(A38,'DOE - FIPStoPayeeCodeConvTable'!$A$3:$A$213,'DOE - FIPStoPayeeCodeConvTable'!$E$3:$E$213) -> 0.283 | X38: 0.35375 | Y38: 267637.36 | Z38: 488934.67
A39: 69 | B39: =LOOKUP(A39,'DOE - FIPStoPayeeCodeConvTable'!$A$3:$A$213,'DOE - FIPStoPayeeCodeConvTable'!$B$3:$B$213) -> Frederick Co | C39: 66527.2 | D39: 35490.22 | E39: 62969.07 | F39: 103129.69 | G39: 45551.54 | H39: 21466.26 | I39: 35430.14 | J39: 91745.76 | K39: 68385.97 | L39: 159980.46 | M39: 292335.26 | N39: 61779.76 | S39: 1044791.33 | U39: 522395.67 | V39: 522395.66 | W39: =LOOKUP(A39,'DOE - FIPStoPayeeCodeConvTable'!$A$3:$A$213,'DOE - FIPStoPayeeCodeConvTable'!$E$3:$E$213) -> 0.4348 | X39: 0.5435 | Y39: 283922.04 | Z39: 238473.62
A40: 71 | B40: =LOOKUP(A40,'DOE - FIPStoPayeeCodeConvTable'!$A$3:$A$213,'DOE - FIPStoPayeeCodeConvTable'!$B$3:$B$213) -> Giles Co | C40: 3930 | D40: 48531 | E40: 42619.5 | F40: 17194.44 | G40: 68733.62 | H40: 7749.66 | I40: 36602.1 | J40: 4971.48 | K40: 39857.76 | L40: 2960.82 | M40: 19326.6 | N40: 8919.42 | S40: 301396.4 | U40: 150698.2 | V40: 150698.2 | W40: =LOOKUP(A40,'DOE - FIPStoPayeeCodeConvTable'!$A$3:$A$213,'DOE - FIPStoPayeeCodeConvTable'!$E$3:$E$213) -> 0.2898 | X40: 0.36225 | Y40: 54590.42 | Z40: 96107.78
A41: 73 | B41: =LOOKUP(A41,'DOE - FIPStoPayeeCodeConvTable'!$A$3:$A$213,'DOE - FIPStoPayeeCodeConvTable'!$B$3:$B$213) -> Gloucester Co | C41: 0 | D41: 0 | E41: 0 | F41: 0 | G41: 12985.5 | H41: 8263.5 | I41: 16527 | J41: 17529.62 | K41: 11895.32 | L41: 22429.5 | M41: 27151.5 | N41: 28511.14 | S41: 145293.08 | U41: 72646.54 | V41: 72646.54 | W41: =LOOKUP(A41,'DOE - FIPStoPayeeCodeConvTable'!$A$3:$A$213,'DOE - FIPStoPayeeCodeConvTable'!$E$3:$E$213) -> 0.3687 | X41: 0.460875 | Y41: 33480.97 | Z41: 39165.57
A42: 75 | B42: =LOOKUP(A42,'DOE - FIPStoPayeeCodeConvTable'!$A$3:$A$213,'DOE - FIPStoPayeeCodeConvTable'!$B$3:$B$213) -> Goochland Co | C42: 10624.5 | D42: 13786.5 | E42: 1670.66 | F42: 14166 | G42: 11018 | H42: 8657 | I42: 10231 | J42: 0 | K42: 0 | L42: 0 | M42: 1967.5 | N42: 5420.88 | S42: 77542.04 | U42: 38771.02 | V42: 38771.02 | W42: =LOOKUP(A42,'DOE - FIPStoPayeeCodeConvTable'!$A$3:$A$213,'DOE - FIPStoPayeeCodeConvTable'!$E$3:$E$213) -> 0.4871 | X42: 0.608875 | Y42: 23606.7 | Z42: 15164.32
A43: 77 | B43: =LOOKUP(A43,'DOE - FIPStoPayeeCodeConvTable'!$A$3:$A$213,'DOE - FIPStoPayeeCodeConvTable'!$B$3:$B$213) -> Grayson Co | C43: 27543.3 | D43: -6689.5 | E43: 71077.45 | F43: 82193.79 | G43: 37496.31 | H43: 19120.24 | I43: 9612.08 | J43: 87949.73 | K43: 55469.86 | L43: 54184.76 | M43: 20175.89 | N43: 22180.52 | S43: 480314.43 | U43: 240157.22 | V43: 240157.21 | W43: =LOOKUP(A43,'DOE - FIPStoPayeeCodeConvTable'!$A$3:$A$213,'DOE - FIPStoPayeeCodeConvTable'!$E$3:$E$213) -> 0.2109 | X43: 0.263625 | Y43: 63311.44 | Z43: 176845.77
A44: 79 | B44: =LOOKUP(A44,'DOE - FIPStoPayeeCodeConvTable'!$A$3:$A$213,'DOE - FIPStoPayeeCodeConvTable'!$B$3:$B$213) -> Greene Co | C44: 6689.5 | D44: 21642.5 | E44: 27545 | F44: 27545 | G44: 22036 | H44: 16920.5 | I44: 13791.88 | J44: 11018 | K44: 14166 | L44: 11018 | M44: 8263.5 | N44: 13772.5 | S44: 194408.38 | U44: 97204.19 | V44: 97204.19 | W44: =LOOKUP(A44,'DOE - FIPStoPayeeCodeConvTable'!$A$3:$A$213,'DOE - FIPStoPayeeCodeConvTable'!$E$3:$E$213) -> 0.3471 | X44: 0.433875 | Y44: 42174.47 | Z44: 55029.72
A45: 81 | B45: =LOOKUP(A45,'DOE - FIPStoPayeeCodeConvTable'!$A$3:$A$213,'DOE - FIPStoPayeeCodeConvTable'!$B$3:$B$213) -> Greensville Co | C45: 11805 | D45: 0 | E45: 19281.5 | F45: 0 | G45: 3070.62 | H45: 1754.64 | I45: 11805 | J45: 52335.5 | K45: 28794.34 | L45: 19834.16 | M45: 12009.32 | N45: 16585.1 | S45: 177275.18 | U45: 88637.59 | V45: 88637.59 | W45: =LOOKUP(A45,'DOE - FIPStoPayeeCodeConvTable'!$A$3:$A$213,'DOE - FIPStoPayeeCodeConvTable'!$E$3:$E$213) -> 0.2266 | X45: 0.28325 | Y45: 25106.6 | Z45: 63530.99
A46: 83 | B46: =LOOKUP(A46,'DOE - FIPStoPayeeCodeConvTable'!$A$3:$A$213,'DOE - FIPStoPayeeCodeConvTable'!$B$3:$B$213) -> Halifax Co | C46: 58238 | D46: 22823 | E46: 87727.08 | F46: 115318.98 | G46: 37441.66 | H46: 23162.14 | I46: 42418.24 | J46: 72548.62 | K46: 106459.97 | L46: 84643.34 | M46: 120316.11 | N46: 51984.12 | S46: 823081.26 | U46: 411540.63 | V46: 411540.63 | W46: =LOOKUP(A46,'DOE - FIPStoPayeeCodeConvTable'!$A$3:$A$213,'DOE - FIPStoPayeeCodeConvTable'!$E$3:$E$213) -> 0.2335 | X46: 0.291875 | Y46: 120118.42 | Z46: 291422.21
A47: 85 | B47: =LOOKUP(A47,'DOE - FIPStoPayeeCodeConvTable'!$A$3:$A$213,'DOE - FIPStoPayeeCodeConvTable'!$B$3:$B$213) -> Hanover Co | C47: 75421.94 | D47: 79747.91 | E47: 87611.68 | F47: 68815.04 | G47: 121895.34 | H47: 23443.05 | I47: 25207.44 | J47: 88291.91 | K47: 96269.94 | L47: 163369.66 | M47: 199181.46 | N47: 100551.4 | S47: 1129806.77 | U47: 564903.39 | V47: 564903.38 | W47: =LOOKUP(A47,'DOE - FIPStoPayeeCodeConvTable'!$A$3:$A$213,'DOE - FIPStoPayeeCodeConvTable'!$E$3:$E$213) -> 0.4444 | X47: 0.5555 | Y47: 313803.83 | Z47: 251099.55
A48: 87 | B48: =LOOKUP(A48,'DOE - FIPStoPayeeCodeConvTable'!$A$3:$A$213,'DOE - FIPStoPayeeCodeConvTable'!$B$3:$B$213) -> Henrico Co | C48: 193752.72 | D48: 95903.6 | E48: 273285.88 | F48: 341481.67 | G48: 274848.26 | H48: 3155.83 | I48: 170213.14 | J48: 334297.81 | K48: 222423.87 | L48: 277759.72 | M48: 382663.89 | N48: 169959.02 | S48: 2739745.41 | U48: 1369872.71 | V48: 1369872.7 | W48: =LOOKUP(A48,'DOE - FIPStoPayeeCodeConvTable'!$A$3:$A$213,'DOE - FIPStoPayeeCodeConvTable'!$E$3:$E$213) -> 0.3755 | X48: 0.469375 | Y48: 642984 | Z48: 726888.7
A49: 89 | B49: =LOOKUP(A49,'DOE - FIPStoPayeeCodeConvTable'!$A$3:$A$213,'DOE - FIPStoPayeeCodeConvTable'!$B$3:$B$213) -> Henry Co | C49: 17303.26 | D49: 1330.04 | E49: 22633.82 | F49: 80194.58 | G49: 56227.37 | H49: 11805 | I49: 59418.5 | J49: 61386 | K49: 45030.66 | L49: 20576 | M49: 26364.5 | N49: 26951.58 | S49: 429221.31 | U49: 214610.66 | V49: 214610.65 | W49: =LOOKUP(A49,'DOE - FIPStoPayeeCodeConvTable'!$A$3:$A$213,'DOE - FIPStoPayeeCodeConvTable'!$E$3:$E$213) -> 0.2786 | X49: 0.34825 | Y49: 74738.16 | Z49: 139872.49
A50: 91 | B50: =LOOKUP(A50,'DOE - FIPStoPayeeCodeConvTable'!$A$3:$A$213,'DOE - FIPStoPayeeCodeConvTable'!$B$3:$B$213) -> Highland Co | C50: 0 | D50: 0 | E50: 0 | F50: 0 | G50: 0 | H50: 0 | I50: 0 | J50: 0 | K50: 0 | L50: 0 | M50: 0 | N50: 0 | S50: 0 | U50: 0 | V50: 0 | W50: =LOOKUP(A50,'DOE - FIPStoPayeeCodeConvTable'!$A$3:$A$213,'DOE - FIPStoPayeeCodeConvTable'!$E$3:$E$213) -> 0.3822 | X50: 0.47775 | Y50: 0 | Z50: 0
A51: 93 | B51: =LOOKUP(A51,'DOE - FIPStoPayeeCodeConvTable'!$A$3:$A$213,'DOE - FIPStoPayeeCodeConvTable'!$B$3:$B$213) -> Isle Of Wight Co | C51: 16191.6 | D51: 28536.32 | E51: 16731.32 | F51: 11411.5 | G51: 0 | H51: 0 | I51: 0 | J51: 0 | K51: 0 | L51: 0 | M51: 0 | N51: 883.68 | S51: 73754.42 | U51: 36877.21 | V51: 36877.21 | W51: =LOOKUP(A51,'DOE - FIPStoPayeeCodeConvTable'!$A$3:$A$213,'DOE - FIPStoPayeeCodeConvTable'!$E$3:$E$213) -> 0.3613 | X51: 0.451625 | Y51: 16654.67 | Z51: 20222.54
A52: 95 | B52: =LOOKUP(A52,'DOE - FIPStoPayeeCodeConvTable'!$A$3:$A$213,'DOE - FIPStoPayeeCodeConvTable'!$B$3:$B$213) -> James City Co | C52: 46039.5 | D52: 30299.5 | E52: 60599 | F52: 94440 | G52: 92079 | H52: 24397 | I52: 40530.5 | J52: 41317.5 | K52: 71829.7 | L52: 18101 | M52: 29299.8 | N52: -71617 | S52: 477315.5 | U52: 238657.75 | V52: 238657.75 | W52: =LOOKUP(A52,'DOE - FIPStoPayeeCodeConvTable'!$A$3:$A$213,'DOE - FIPStoPayeeCodeConvTable'!$E$3:$E$213) -> 0.4483 | X52: 0.560375 | Y52: 133737.84 | Z52: 104919.91
A53: 97 | B53: =LOOKUP(A53,'DOE - FIPStoPayeeCodeConvTable'!$A$3:$A$213,'DOE - FIPStoPayeeCodeConvTable'!$B$3:$B$213) -> King And Queen Co | C53: 0 | D53: 0 | E53: 0 | F53: 0 | G53: 0 | H53: 0 | I53: 0 | J53: 0 | K53: 0 | L53: 0 | M53: 0 | N53: 0 | S53: 0 | U53: 0 | V53: 0 | W53: =LOOKUP(A53,'DOE - FIPStoPayeeCodeConvTable'!$A$3:$A$213,'DOE - FIPStoPayeeCodeConvTable'!$E$3:$E$213) -> 0.3144 | X53: 0.393 | Y53: 0 | Z53: 0
A54: 99 | B54: =LOOKUP(A54,'DOE - FIPStoPayeeCodeConvTable'!$A$3:$A$213,'DOE - FIPStoPayeeCodeConvTable'!$B$3:$B$213) -> King George Co | C54: 438.64 | D54: 3070.48 | E54: 25951.62 | F54: 18101 | G54: 12198.5 | H54: 2302.86 | I54: 25654.78 | J54: 43116.96 | K54: 16036.6 | L54: 7456.88 | M54: 13340.24 | N54: 29248.12 | S54: 196916.68 | U54: 98458.34 | V54: 98458.34 | W54: =LOOKUP(A54,'DOE - FIPStoPayeeCodeConvTable'!$A$3:$A$213,'DOE - FIPStoPayeeCodeConvTable'!$E$3:$E$213) -> 0.3627 | X54: 0.453375 | Y54: 44638.55 | Z54: 53819.79
A55: 101 | B55: =LOOKUP(A55,'DOE - FIPStoPayeeCodeConvTable'!$A$3:$A$213,'DOE - FIPStoPayeeCodeConvTable'!$B$3:$B$213) -> King William Co | C55: 0 | D55: 9837.5 | E55: -6163.24 | F55: 4023.56 | G55: 2044.76 | H55: 1912.84 | I55: 2044.76 | J55: 2044.76 | K55: 1846.88 | L55: 2044.76 | M55: 989.4 | N55: 989.4 | S55: 21615.38 | U55: 10807.69 | V55: 10807.69 | W55: =LOOKUP(A55,'DOE - FIPStoPayeeCodeConvTable'!$A$3:$A$213,'DOE - FIPStoPayeeCodeConvTable'!$E$3:$E$213) -> 0.3853 | X55: 0.481625 | Y55: 5205.25 | Z55: 5602.44
A56: 103 | B56: =LOOKUP(A56,'DOE - FIPStoPayeeCodeConvTable'!$A$3:$A$213,'DOE - FIPStoPayeeCodeConvTable'!$B$3:$B$213) -> Lancaster Co | C56: 38937.22 | D56: 0 | E56: 18935.04 | F56: 11149.24 | G56: 4532.82 | H56: 4386.6 | I56: 25833.1 | J56: 7932.28 | K56: 7164.64 | L56: 6642.12 | M56: 3180.14 | N56: 12574.92 | S56: 141268.12 | U56: 70634.06 | V56: 70634.06 | W56: =LOOKUP(A56,'DOE - FIPStoPayeeCodeConvTable'!$A$3:$A$213,'DOE - FIPStoPayeeCodeConvTable'!$E$3:$E$213) -> 0.4391 | X56: 0.548875 | Y56: 38769.27 | Z56: 31864.79
A57: 105 | B57: =LOOKUP(A57,'DOE - FIPStoPayeeCodeConvTable'!$A$3:$A$213,'DOE - FIPStoPayeeCodeConvTable'!$B$3:$B$213) -> Lee Co | C57: 28609.35 | D57: 25184 | E57: 22154.5 | F57: 31480 | G57: 12198.5 | H57: 8657 | I57: 12198.5 | J57: 18844.87 | K57: 13930.2 | L57: 14909.87 | M57: 6689.5 | N57: 17196.1 | S57: 212052.39 | U57: 106026.2 | V57: 106026.19 | W57: =LOOKUP(A57,'DOE - FIPStoPayeeCodeConvTable'!$A$3:$A$213,'DOE - FIPStoPayeeCodeConvTable'!$E$3:$E$213) -> 0.2245 | X57: 0.280625 | Y57: 29753.6 | Z57: 76272.59
A58: 107 | B58: =LOOKUP(A58,'DOE - FIPStoPayeeCodeConvTable'!$A$3:$A$213,'DOE - FIPStoPayeeCodeConvTable'!$B$3:$B$213) -> Loudoun Co | C58: 97340.7 | D58: 47744.5 | E58: 179852.5 | F58: 200938.7 | G58: 115735.5 | H58: 133.84 | I58: 27167.06 | J58: 107638.32 | K58: 52516.04 | L58: 67886.32 | M58: 42099.97 | N58: 78846.29 | S58: 1017899.74 | U58: 508949.87 | V58: 508949.87 | W58: =LOOKUP(A58,'DOE - FIPStoPayeeCodeConvTable'!$A$3:$A$213,'DOE - FIPStoPayeeCodeConvTable'!$E$3:$E$213) -> 0.4764 | X58: 0.5955 | Y58: 303079.65 | Z58: 205870.22
A59: 109 | B59: =LOOKUP(A59,'DOE - FIPStoPayeeCodeConvTable'!$A$3:$A$213,'DOE - FIPStoPayeeCodeConvTable'!$B$3:$B$213) -> Louisa Co | C59: 48400.5 | D59: 7083 | E59: 41711 | F59: 13772.5 | G59: 0 | H59: 0 | I59: 0 | J59: 8263.5 | K59: 28725.5 | L59: 36202 | M59: 13252.07 | N59: 70978.42 | S59: 268388.49 | U59: 134194.25 | V59: 134194.24 | W59: =LOOKUP(A59,'DOE - FIPStoPayeeCodeConvTable'!$A$3:$A$213,'DOE - FIPStoPayeeCodeConvTable'!$E$3:$E$213) -> 0.4401 | X59: 0.550125 | Y59: 73823.61 | Z59: 60370.63
A60: 111 | B60: =LOOKUP(A60,'DOE - FIPStoPayeeCodeConvTable'!$A$3:$A$213,'DOE - FIPStoPayeeCodeConvTable'!$B$3:$B$213) -> Lunenburg Co | C60: 22161.6 | D60: 0 | E60: 12198.5 | F60: 15346.5 | G60: 0 | H60: 0 | I60: 4679.04 | J60: 20462 | K60: 24003.5 | L60: 34234.5 | M60: 40530.5 | N60: 24397 | S60: 198013.14 | U60: 99006.57 | V60: 99006.57 | W60: =LOOKUP(A60,'DOE - FIPStoPayeeCodeConvTable'!$A$3:$A$213,'DOE - FIPStoPayeeCodeConvTable'!$E$3:$E$213) -> 0.1698 | X60: 0.21225 | Y60: 21014.14 | Z60: 77992.43
A61: 113 | B61: =LOOKUP(A61,'DOE - FIPStoPayeeCodeConvTable'!$A$3:$A$213,'DOE - FIPStoPayeeCodeConvTable'!$B$3:$B$213) -> Madison Co | C61: 8828.46 | D61: 8585.32 | E61: 10376.64 | F61: 17644.1 | G61: 13776.1 | H61: 8978.4 | I61: 7822.62 | J61: 8370.92 | K61: 2887.74 | L61: 11411.5 | M61: 4057.42 | N61: 0 | S61: 102739.22 | U61: 51369.61 | V61: 51369.61 | W61: =LOOKUP(A61,'DOE - FIPStoPayeeCodeConvTable'!$A$3:$A$213,'DOE - FIPStoPayeeCodeConvTable'!$E$3:$E$213) -> 0.3355 | X61: 0.419375 | Y61: 21543.13 | Z61: 29826.48
A62: 115 | B62: =LOOKUP(A62,'DOE - FIPStoPayeeCodeConvTable'!$A$3:$A$213,'DOE - FIPStoPayeeCodeConvTable'!$B$3:$B$213) -> Mathews Co | C62: 0 | D62: 0 | E62: 0 | F62: 0 | G62: 0 | H62: 0 | I62: 0 | J62: 6689.5 | K62: 12198.5 | L62: 11018 | M62: 20462 | N62: 15346.5 | S62: 65714.5 | U62: 32857.25 | V62: 32857.25 | W62: =LOOKUP(A62,'DOE - FIPStoPayeeCodeConvTable'!$A$3:$A$213,'DOE - FIPStoPayeeCodeConvTable'!$E$3:$E$213) -> 0.4271 | X62: 0.533875 | Y62: 17541.66 | Z62: 15315.59
A63: 117 | B63: =LOOKUP(A63,'DOE - FIPStoPayeeCodeConvTable'!$A$3:$A$213,'DOE - FIPStoPayeeCodeConvTable'!$B$3:$B$213) -> Mecklenburg Co | C63: 67384.29 | D63: 65483.72 | E63: 83235.57 | F63: 60992.5 | G63: 53621.46 | H63: 31873.5 | I63: 49854.08 | J63: 71223.5 | K63: 40924 | L63: 76469.5 | M63: 59537.68 | N63: 60283.4 | S63: 720883.2 | U63: 360441.6 | V63: 360441.6 | W63: =LOOKUP(A63,'DOE - FIPStoPayeeCodeConvTable'!$A$3:$A$213,'DOE - FIPStoPayeeCodeConvTable'!$E$3:$E$213) -> 0.2286 | X63: 0.28575 | Y63: 102996.19 | Z63: 257445.41
A64: 119 | B64: =LOOKUP(A64,'DOE - FIPStoPayeeCodeConvTable'!$A$3:$A$213,'DOE - FIPStoPayeeCodeConvTable'!$B$3:$B$213) -> Middlesex Co | C64: 0 | D64: 0 | E64: 0 | F64: 0 | G64: 0 | H64: 0 | I64: 0 | J64: 4532.82 | K64: 3801.72 | L64: 4532.82 | M64: 0 | N64: 438.66 | S64: 13306.02 | U64: 6653.01 | V64: 6653.01 | W64: =LOOKUP(A64,'DOE - FIPStoPayeeCodeConvTable'!$A$3:$A$213,'DOE - FIPStoPayeeCodeConvTable'!$E$3:$E$213) -> 0.4333 | X64: 0.541625 | Y64: 3603.44 | Z64: 3049.57
A65: 121 | B65: =LOOKUP(A65,'DOE - FIPStoPayeeCodeConvTable'!$A$3:$A$213,'DOE - FIPStoPayeeCodeConvTable'!$B$3:$B$213) -> Montgomery Co | C65: 0 | D65: 2631.96 | E65: 4532.82 | F65: 5263.92 | G65: 3655.5 | H65: 4532.82 | I65: 0 | J65: 8773.2 | K65: 4679.04 | L65: 7383.96 | M65: 4532.82 | N65: 4386.6 | S65: 50372.64 | U65: 25186.32 | V65: 25186.32 | W65: =LOOKUP(A65,'DOE - FIPStoPayeeCodeConvTable'!$A$3:$A$213,'DOE - FIPStoPayeeCodeConvTable'!$E$3:$E$213) -> 0.2834 | X65: 0.35425 | Y65: 8922.25 | Z65: 16264.07
A66: 125 | B66: =LOOKUP(A66,'DOE - FIPStoPayeeCodeConvTable'!$A$3:$A$213,'DOE - FIPStoPayeeCodeConvTable'!$B$3:$B$213) -> Nelson Co | C66: 10231 | D66: 15346.5 | E66: 9340.64 | F66: 8895.74 | G66: 0 | H66: 0 | I66: 0 | J66: 8373.36 | K66: 21631.18 | L66: 9768.92 | M66: 10815.59 | N66: 27213.42 | S66: 121616.35 | U66: 60808.18 | V66: 60808.17 | W66: =LOOKUP(A66,'DOE - FIPStoPayeeCodeConvTable'!$A$3:$A$213,'DOE - FIPStoPayeeCodeConvTable'!$E$3:$E$213) -> 0.3132 | X66: 0.3915 | Y66: 23806.4 | Z66: 37001.77
A67: 127 | B67: =LOOKUP(A67,'DOE - FIPStoPayeeCodeConvTable'!$A$3:$A$213,'DOE - FIPStoPayeeCodeConvTable'!$B$3:$B$213) -> New Kent Co | C67: 12402.82 | D67: 0 | E67: 0 | F67: 6579.9 | G67: 4532.82 | H67: 4386.6 | I67: 4532.82 | J67: 8919.42 | K67: 4094.16 | L67: 4532.82 | M67: 0 | N67: 4386.6 | S67: 54367.96 | U67: 27183.98 | V67: 27183.98 | W67: =LOOKUP(A67,'DOE - FIPStoPayeeCodeConvTable'!$A$3:$A$213,'DOE - FIPStoPayeeCodeConvTable'!$E$3:$E$213) -> 0.4329 | X67: 0.541125 | Y67: 14709.93 | Z67: 12474.05
A68: 131 | B68: =LOOKUP(A68,'DOE - FIPStoPayeeCodeConvTable'!$A$3:$A$213,'DOE - FIPStoPayeeCodeConvTable'!$B$3:$B$213) -> Northampton Co | C68: 9887.5 | D68: 14638 | E68: 15081.5 | F68: 18487 | G68: 13114 | H68: 19753.5 | I68: 26886.5 | J68: 44830 | K68: 22601 | L68: 27766.5 | M68: 6811 | N68: 29119 | S68: 248975.5 | U68: 124487.75 | V68: 124487.75 | W68: =LOOKUP(A68,'DOE - FIPStoPayeeCodeConvTable'!$A$3:$A$213,'DOE - FIPStoPayeeCodeConvTable'!$E$3:$E$213) -> 0.1971 | X68: 0.246375 | Y68: 30670.67 | Z68: 93817.08
A69: 133 | B69: =LOOKUP(A69,'DOE - FIPStoPayeeCodeConvTable'!$A$3:$A$213,'DOE - FIPStoPayeeCodeConvTable'!$B$3:$B$213) -> Northumberland Co | C69: 10355.74 | D69: 16337.82 | E69: 14559.5 | F69: 32267 | G69: 12198.5 | H69: 0 | I69: 11805 | J69: 20913.6 | K69: 46433 | L69: 24397 | M69: 9444 | N69: 23610 | S69: =SUM(C69:R69) -> 222321.16 | U69: 111160.58 | V69: 111160.58 | W69: =LOOKUP(A69,'DOE - FIPStoPayeeCodeConvTable'!$A$3:$A$213,'DOE - FIPStoPayeeCodeConvTable'!$E$3:$E$213) -> 0.3304 | X69: 0.413 | Y69: 45909.32 | Z69: 65251.26
A70: 135 | B70: =LOOKUP(A70,'DOE - FIPStoPayeeCodeConvTable'!$A$3:$A$213,'DOE - FIPStoPayeeCodeConvTable'!$B$3:$B$213) -> Nottoway Co | C70: 128143.59 | D70: 37411.05 | E70: 95192.5 | F70: 109811.54 | G70: 35270.16 | H70: 20160.82 | I70: 55090 | J70: 43285 | K70: 76283.46 | L70: 79487 | M70: 119170 | N70: 89027.2 | S70: 888332.32 | U70: =ROUND($U$1*S70,2) -> 444166.16 | V70: =SUM(S70)-SUM(U70) -> 444166.16 | W70: =LOOKUP(A70,'DOE - FIPStoPayeeCodeConvTable'!$A$3:$A$213,'DOE - FIPStoPayeeCodeConvTable'!$E$3:$E$213) -> 0.2686 | X70: 0.33575 | Y70: 149128.79 | Z70: 295037.37
A71: 137 | B71: =LOOKUP(A71,'DOE - FIPStoPayeeCodeConvTable'!$A$3:$A$213,'DOE - FIPStoPayeeCodeConvTable'!$B$3:$B$213) -> Orange Co | C71: 49581 | D71: 22036 | E71: 72010.5 | F71: 103348.18 | G71: 57655.32 | H71: 42722.36 | I71: 68822 | J71: 37866.32 | K71: 44406.08 | L71: 22897 | M71: 66360.74 | N71: 43272.9 | S71: 630978.4 | U71: 315489.2 | V71: 315489.2 | W71: =LOOKUP(A71,'DOE - FIPStoPayeeCodeConvTable'!$A$3:$A$213,'DOE - FIPStoPayeeCodeConvTable'!$E$3:$E$213) -> 0.4083 | X71: =$X$1*W71 -> 0.510375 | Y71: =ROUND(X71*V71,2) -> 161017.8 | Z71: =SUM(V71)-SUM(Y71) -> 154471.4
A72: 139 | B72: =LOOKUP(A72,'DOE - FIPStoPayeeCodeConvTable'!$A$3:$A$213,'DOE - FIPStoPayeeCodeConvTable'!$B$3:$B$213) -> Page Co | C72: 56664 | D72: 11018 | E72: 60205.5 | F72: 103490.5 | G72: 35415 | H72: 36989 | I72: 55483.5 | J72: 33054 | K72: 108595.26 | L72: 28190.18 | M72: 64985.6 | N72: 31641.36 | S72: 625731.9 | U72: 312865.95 | V72: 312865.95 | W72: =LOOKUP(A72,'DOE - FIPStoPayeeCodeConvTable'!$A$3:$A$213,'DOE - FIPStoPayeeCodeConvTable'!$E$3:$E$213) -> 0.2865 | X72: 0.358125 | Y72: 112045.12 | Z72: 200820.83
A73: 141 | B73: =LOOKUP(A73,'DOE - FIPStoPayeeCodeConvTable'!$A$3:$A$213,'DOE - FIPStoPayeeCodeConvTable'!$B$3:$B$213) -> Patrick Co | C73: 11805 | D73: 0 | E73: 15346.5 | F73: 15645.54 | G73: 9065.64 | H73: 8773.2 | I73: 4240.38 | J73: 0 | K73: 0 | L73: 0 | M73: 0 | N73: 0 | S73: 64876.26 | U73: 32438.13 | V73: 32438.13 | W73: =LOOKUP(A73,'DOE - FIPStoPayeeCodeConvTable'!$A$3:$A$213,'DOE - FIPStoPayeeCodeConvTable'!$E$3:$E$213) -> 0.2539 | X73: 0.317375 | Y73: 10295.05 | Z73: 22143.08
A74: 143 | B74: =LOOKUP(A74,'DOE - FIPStoPayeeCodeConvTable'!$A$3:$A$213,'DOE - FIPStoPayeeCodeConvTable'!$B$3:$B$213) -> Pittsylvania Co | C74: 42771.14 | D74: 4524.06 | E74: 77194.34 | F74: 142052.91 | G74: 61421.48 | H74: 41984 | I74: 71248.5 | J74: 66306.78 | K74: 37358.98 | L74: 111491.8 | M74: 152859.87 | N74: 228177.14 | S74: 1037391 | U74: 518695.5 | V74: 518695.5 | W74: =LOOKUP(A74,'DOE - FIPStoPayeeCodeConvTable'!$A$3:$A$213,'DOE - FIPStoPayeeCodeConvTable'!$E$3:$E$213) -> 0.2355 | X74: 0.294375 | Y74: 152690.99 | Z74: 366004.51
A75: 145 | B75: =LOOKUP(A75,'DOE - FIPStoPayeeCodeConvTable'!$A$3:$A$213,'DOE - FIPStoPayeeCodeConvTable'!$B$3:$B$213) -> Powhatan Co | C75: 13301.48 | D75: 1161.12 | E75: 19281.5 | F75: 16920.5 | G75: 31086.5 | H75: 26364.5 | I75: 52335.5 | J75: 16527 | K75: 8932.53 | L75: 12592 | M75: 6020.47 | N75: 15134.18 | S75: 219657.28 | U75: 109828.64 | V75: 109828.64 | W75: =LOOKUP(A75,'DOE - FIPStoPayeeCodeConvTable'!$A$3:$A$213,'DOE - FIPStoPayeeCodeConvTable'!$E$3:$E$213) -> 0.4342 | X75: 0.54275 | Y75: 59609.49 | Z75: 50219.15
A76: 147 | B76: =LOOKUP(A76,'DOE - FIPStoPayeeCodeConvTable'!$A$3:$A$213,'DOE - FIPStoPayeeCodeConvTable'!$B$3:$B$213) -> Prince Edward Co | C76: 14559.5 | D76: 10624.5 | E76: 16920.5 | F76: 8263.5 | G76: 7800 | H76: 0 | I76: 7800 | J76: 54600 | K76: 0 | L76: 0 | M76: 0 | N76: 0 | S76: 120568 | U76: 60284 | V76: 60284 | W76: =LOOKUP(A76,'DOE - FIPStoPayeeCodeConvTable'!$A$3:$A$213,'DOE - FIPStoPayeeCodeConvTable'!$E$3:$E$213) -> 0.2232 | X76: 0.279 | Y76: 16819.24 | Z76: 43464.76
A77: 149 | B77: =LOOKUP(A77,'DOE - FIPStoPayeeCodeConvTable'!$A$3:$A$213,'DOE - FIPStoPayeeCodeConvTable'!$B$3:$B$213) -> Prince George Co | C77: 4328.5 | D77: 2361 | E77: 24003.5 | F77: 18494.5 | G77: 0 | H77: 2754.5 | I77: 0 | J77: 23216.5 | K77: 9837.5 | L77: 0 | M77: 39801.6 | N77: 11805 | S77: 136602.6 | U77: 68301.3 | V77: 68301.3 | W77: =LOOKUP(A77,'DOE - FIPStoPayeeCodeConvTable'!$A$3:$A$213,'DOE - FIPStoPayeeCodeConvTable'!$E$3:$E$213) -> 0.3716 | X77: 0.4645 | Y77: 31725.95 | Z77: 36575.35
A78: 153 | B78: =LOOKUP(A78,'DOE - FIPStoPayeeCodeConvTable'!$A$3:$A$213,'DOE - FIPStoPayeeCodeConvTable'!$B$3:$B$213) -> Prince William Co | C78: 184230.12 | D78: 247418.84 | E78: 288540.06 | F78: 520993.14 | G78: 114418.36 | H78: 243214.48 | I78: 292806.66 | J78: 276188.94 | K78: 252014.84 | L78: 272404.17 | M78: 255308.78 | N78: 348068.3 | S78: 3295606.69 | U78: 1647803.35 | V78: 1647803.34 | W78: =LOOKUP(A78,'DOE - FIPStoPayeeCodeConvTable'!$A$3:$A$213,'DOE - FIPStoPayeeCodeConvTable'!$E$3:$E$213) -> 0.3414 | X78: 0.42675 | Y78: 703200.08 | Z78: 944603.26
A79: 155 | B79: =LOOKUP(A79,'DOE - FIPStoPayeeCodeConvTable'!$A$3:$A$213,'DOE - FIPStoPayeeCodeConvTable'!$B$3:$B$213) -> Pulaski Co | C79: 34863.6 | D79: 28888.44 | E79: 31646.93 | F79: 25804.02 | G79: 9905.16 | H79: 5921.84 | I79: 4532.78 | J79: 36720.72 | K79: 34092.5 | L79: 17393.46 | M79: 13629.06 | N79: 37114.56 | S79: 280513.07 | U79: 140256.54 | V79: 140256.53 | W79: =LOOKUP(A79,'DOE - FIPStoPayeeCodeConvTable'!$A$3:$A$213,'DOE - FIPStoPayeeCodeConvTable'!$E$3:$E$213) -> 0.2923 | X79: 0.365375 | Y79: 51246.23 | Z79: 89010.3
A80: 157 | B80: =LOOKUP(A80,'DOE - FIPStoPayeeCodeConvTable'!$A$3:$A$213,'DOE - FIPStoPayeeCodeConvTable'!$B$3:$B$213) -> Rappahannock Co | C80: 40038.14 | D80: 61590.32 | E80: 11990.04 | F80: 82299.6 | G80: 43196.88 | H80: -12198.5 | I80: 7018.56 | J80: 37014.88 | K80: 76263.82 | L80: 52789.3 | M80: 48065.1 | N80: 55655.6 | S80: 503723.74 | U80: 251861.87 | V80: 251861.87 | W80: =LOOKUP(A80,'DOE - FIPStoPayeeCodeConvTable'!$A$3:$A$213,'DOE - FIPStoPayeeCodeConvTable'!$E$3:$E$213) -> 0.4199 | X80: 0.524875 | Y80: 132196 | Z80: 119665.87
A81: 159 | B81: =LOOKUP(A81,'DOE - FIPStoPayeeCodeConvTable'!$A$3:$A$213,'DOE - FIPStoPayeeCodeConvTable'!$B$3:$B$213) -> Richmond Co | C81: 13564.86 | D81: 0 | E81: 10624.5 | F81: 5359.9 | G81: 2522.18 | H81: 13305.66 | I81: 13955.52 | J81: 56852 | K81: 15718.22 | L81: 82.46 | M81: 2968.56 | N81: 1731.66 | S81: 136685.52 | U81: 68342.76 | V81: 68342.76 | W81: =LOOKUP(A81,'DOE - FIPStoPayeeCodeConvTable'!$A$3:$A$213,'DOE - FIPStoPayeeCodeConvTable'!$E$3:$E$213) -> 0.3227 | X81: 0.403375 | Y81: 27567.76 | Z81: 40775
A82: 161 | B82: =LOOKUP(A82,'DOE - FIPStoPayeeCodeConvTable'!$A$3:$A$213,'DOE - FIPStoPayeeCodeConvTable'!$B$3:$B$213) -> Roanoke Co | C82: 82924.25 | D82: 48004.9 | E82: 85610.97 | F82: 153731.71 | G82: 43826.18 | H82: 72587.52 | I82: 12552.32 | J82: 131960.87 | K82: 135375.96 | L82: 150892.6 | M82: 110861.97 | N82: 127441.97 | S82: 1155771.22 | U82: 577885.61 | V82: 577885.61 | W82: =LOOKUP(A82,'DOE - FIPStoPayeeCodeConvTable'!$A$3:$A$213,'DOE - FIPStoPayeeCodeConvTable'!$E$3:$E$213) -> 0.4397 | X82: 0.549625 | Y82: 317620.38 | Z82: 260265.23
A83: 163 | B83: =LOOKUP(A83,'DOE - FIPStoPayeeCodeConvTable'!$A$3:$A$213,'DOE - FIPStoPayeeCodeConvTable'!$B$3:$B$213) -> Rockbridge Co | C83: 74646.51 | D83: 44149.9 | E83: 105971.97 | F83: 152420.24 | G83: 65871.45 | H83: 41797.08 | I83: 62758.48 | J83: 43437.38 | K83: 45682.81 | L83: 48374.62 | M83: 27626.19 | N83: 48040.58 | S83: 760777.21 | U83: 380388.61 | V83: 380388.6 | W83: =LOOKUP(A83,'DOE - FIPStoPayeeCodeConvTable'!$A$3:$A$213,'DOE - FIPStoPayeeCodeConvTable'!$E$3:$E$213) -> 0.2336 | X83: 0.292 | Y83: 111073.47 | Z83: 269315.13
A84: 165 | B84: =LOOKUP(A84,'DOE - FIPStoPayeeCodeConvTable'!$A$3:$A$213,'DOE - FIPStoPayeeCodeConvTable'!$B$3:$B$213) -> Rockingham Co | C84: 120064.92 | D84: 78911.02 | E84: 90192.36 | F84: 100166.1 | G84: 43299.56 | H84: 36136.34 | I84: 73290.24 | J84: 72362.64 | K84: 63262.34 | L84: 77414.06 | M84: 56742.62 | N84: 84319.36 | S84: 896161.56 | U84: 448080.78 | V84: 448080.78 | W84: =LOOKUP(A84,'DOE - FIPStoPayeeCodeConvTable'!$A$3:$A$213,'DOE - FIPStoPayeeCodeConvTable'!$E$3:$E$213) -> 0.3445 | X84: 0.430625 | Y84: 192954.79 | Z84: 255125.99
A85: 167 | B85: =LOOKUP(A85,'DOE - FIPStoPayeeCodeConvTable'!$A$3:$A$213,'DOE - FIPStoPayeeCodeConvTable'!$B$3:$B$213) -> Russell Co | C85: 55780.31 | D85: 16077.2 | E85: 42244.97 | F85: 90398.78 | G85: 10138.48 | H85: 27188.12 | I85: 57072.64 | J85: 43332.36 | K85: 44711.87 | L85: 50360.34 | M85: 13305.13 | N85: 43864.52 | S85: 494474.72 | U85: 247237.36 | V85: 247237.36 | W85: =LOOKUP(A85,'DOE - FIPStoPayeeCodeConvTable'!$A$3:$A$213,'DOE - FIPStoPayeeCodeConvTable'!$E$3:$E$213) -> 0.1894 | X85: 0.23675 | Y85: 58533.44 | Z85: 188703.92
A86: 169 | B86: =LOOKUP(A86,'DOE - FIPStoPayeeCodeConvTable'!$A$3:$A$213,'DOE - FIPStoPayeeCodeConvTable'!$B$3:$B$213) -> Scott Co | C86: 20855.5 | D86: 10624.5 | E86: 24397 | F86: 38169.5 | G86: 12198.5 | H86: 10289.1 | I86: 18227.94 | J86: 3801.72 | K86: 0 | L86: 1754.64 | M86: 3710.7 | N86: 0 | S86: 144029.1 | U86: 72014.55 | V86: 72014.55 | W86: =LOOKUP(A86,'DOE - FIPStoPayeeCodeConvTable'!$A$3:$A$213,'DOE - FIPStoPayeeCodeConvTable'!$E$3:$E$213) -> 0.3154 | X86: 0.39425 | Y86: 28391.74 | Z86: 43622.81
A87: 171 | B87: =LOOKUP(A87,'DOE - FIPStoPayeeCodeConvTable'!$A$3:$A$213,'DOE - FIPStoPayeeCodeConvTable'!$B$3:$B$213) -> Shenandoah Co | C87: 97607.37 | D87: 3817.1 | E87: 110481.44 | F87: 227927.34 | G87: 69991.96 | H87: 56625.14 | I87: 146377.74 | J87: 63200.94 | K87: 78287.28 | L87: 70043.96 | M87: 117631.94 | N87: 69969.92 | S87: 1111962.13 | U87: 555981.07 | V87: 555981.06 | W87: =LOOKUP(A87,'DOE - FIPStoPayeeCodeConvTable'!$A$3:$A$213,'DOE - FIPStoPayeeCodeConvTable'!$E$3:$E$213) -> 0.3517 | X87: 0.439625 | Y87: 244423.17 | Z87: 311557.89
A88: 173 | B88: =LOOKUP(A88,'DOE - FIPStoPayeeCodeConvTable'!$A$3:$A$213,'DOE - FIPStoPayeeCodeConvTable'!$B$3:$B$213) -> Smyth Co | C88: 78700 | D88: 15740 | E88: 70830 | F88: 88852.4 | G88: 2317.87 | H88: 19675 | I88: 26246.6 | J88: 114590.33 | K88: 76964.87 | L88: 163696 | M88: 37382.5 | N88: 80164.4 | S88: 775159.97 | U88: 387579.99 | V88: 387579.98 | W88: =LOOKUP(A88,'DOE - FIPStoPayeeCodeConvTable'!$A$3:$A$213,'DOE - FIPStoPayeeCodeConvTable'!$E$3:$E$213) -> 0.2337 | X88: 0.292125 | Y88: 113221.8 | Z88: 274358.18
A89: 175 | B89: =LOOKUP(A89,'DOE - FIPStoPayeeCodeConvTable'!$A$3:$A$213,'DOE - FIPStoPayeeCodeConvTable'!$B$3:$B$213) -> Southampton Co | C89: 2317.87 | D89: 2243.1 | E89: 2317.87 | F89: 2093.56 | G89: 0 | H89: 0 | I89: 18494.5 | J89: 13379 | K89: 15550.82 | L89: 4532.82 | M89: 11018 | N89: 17866.66 | S89: 89814.2 | U89: 44907.1 | V89: 44907.1 | W89: =LOOKUP(A89,'DOE - FIPStoPayeeCodeConvTable'!$A$3:$A$213,'DOE - FIPStoPayeeCodeConvTable'!$E$3:$E$213) -> 0.323 | X89: 0.40375 | Y89: 18131.24 | Z89: 26775.86
A90: 177 | B90: =LOOKUP(A90,'DOE - FIPStoPayeeCodeConvTable'!$A$3:$A$213,'DOE - FIPStoPayeeCodeConvTable'!$B$3:$B$213) -> Spotsylvania Co | C90: 76557.83 | D90: 82575.48 | E90: 126983.32 | F90: 71604.48 | G90: 63107.06 | H90: 55018.72 | I90: 131601.51 | J90: 141628.32 | K90: 93317.82 | L90: 137266.88 | M90: 73755.3 | N90: 65647.91 | S90: 1119064.63 | U90: 559532.32 | V90: 559532.31 | W90: =LOOKUP(A90,'DOE - FIPStoPayeeCodeConvTable'!$A$3:$A$213,'DOE - FIPStoPayeeCodeConvTable'!$E$3:$E$213) -> 0.4588 | X90: 0.5735 | Y90: 320891.78 | Z90: 238640.53
A91: 179 | B91: =LOOKUP(A91,'DOE - FIPStoPayeeCodeConvTable'!$A$3:$A$213,'DOE - FIPStoPayeeCodeConvTable'!$B$3:$B$213) -> Stafford Co | C91: 30100.32 | D91: 68075.5 | E91: 22823 | F91: 24003.5 | G91: 73976.5 | H91: 10446.66 | I91: 22644.56 | J91: 52597.92 | K91: 151497.5 | L91: 25811.88 | M91: 11018 | N91: 38678.61 | S91: 531673.95 | U91: 265836.98 | V91: 265836.97 | W91: =LOOKUP(A91,'DOE - FIPStoPayeeCodeConvTable'!$A$3:$A$213,'DOE - FIPStoPayeeCodeConvTable'!$E$3:$E$213) -> 0.4439 | X91: 0.554875 | Y91: 147506.29 | Z91: 118330.68
A92: 181 | B92: =LOOKUP(A92,'DOE - FIPStoPayeeCodeConvTable'!$A$3:$A$213,'DOE - FIPStoPayeeCodeConvTable'!$B$3:$B$213) -> Surry Co | C92: 0 | D92: 0 | E92: 0 | F92: 0 | G92: 0 | H92: 0 | I92: 0 | J92: 11164.48 | K92: 10815.59 | L92: 9768.92 | M92: 10815.59 | N92: 10466.7 | S92: 53031.28 | U92: 26515.64 | V92: 26515.64 | W92: =LOOKUP(A92,'DOE - FIPStoPayeeCodeConvTable'!$A$3:$A$213,'DOE - FIPStoPayeeCodeConvTable'!$E$3:$E$213) -> 0.3979 | X92: 0.497375 | Y92: 13188.22 | Z92: 13327.42
A93: 183 | B93: =LOOKUP(A93,'DOE - FIPStoPayeeCodeConvTable'!$A$3:$A$213,'DOE - FIPStoPayeeCodeConvTable'!$B$3:$B$213) -> Sussex Co | C93: 5115.5 | D93: 0 | E93: 24003.5 | F93: 21249 | G93: 0 | H93: 2754.5 | I93: 0 | J93: 0 | K93: 0 | L93: 1180.5 | M93: 12198.5 | N93: 0 | S93: 66501.5 | U93: 33250.75 | V93: 33250.75 | W93: =LOOKUP(A93,'DOE - FIPStoPayeeCodeConvTable'!$A$3:$A$213,'DOE - FIPStoPayeeCodeConvTable'!$E$3:$E$213) -> 0.2387 | X93: 0.298375 | Y93: 9921.19 | Z93: 23329.56
A94: 185 | B94: =LOOKUP(A94,'DOE - FIPStoPayeeCodeConvTable'!$A$3:$A$213,'DOE - FIPStoPayeeCodeConvTable'!$B$3:$B$213) -> Tazewell Co | C94: 43285 | D94: 1911.2 | E94: 66102.29 | F94: 80268.29 | G94: 10174.7 | H94: 10624.5 | I94: 0 | J94: 26695.99 | K94: 43331.56 | L94: 56171.91 | M94: 103498.5 | N94: 111694.2 | S94: 553758.14 | U94: 276879.07 | V94: 276879.07 | W94: =LOOKUP(A94,'DOE - FIPStoPayeeCodeConvTable'!$A$3:$A$213,'DOE - FIPStoPayeeCodeConvTable'!$E$3:$E$213) -> 0.2455 | X94: 0.306875 | Y94: 84967.26 | Z94: 191911.81
A95: 187 | B95: =LOOKUP(A95,'DOE - FIPStoPayeeCodeConvTable'!$A$3:$A$213,'DOE - FIPStoPayeeCodeConvTable'!$B$3:$B$213) -> Warren Co | C95: 33447.5 | D95: 16920.5 | E95: 38169.5 | F95: 79093.5 | G95: 22036 | H95: 4722 | I95: 0 | J95: 17314 | K95: 7870 | L95: 52729 | M95: 22036 | N95: 10624.5 | S95: 304962.5 | U95: 152481.25 | V95: 152481.25 | W95: =LOOKUP(A95,'DOE - FIPStoPayeeCodeConvTable'!$A$3:$A$213,'DOE - FIPStoPayeeCodeConvTable'!$E$3:$E$213) -> 0.3853 | X95: 0.481625 | Y95: 73438.78 | Z95: 79042.47
A96: 191 | B96: =LOOKUP(A96,'DOE - FIPStoPayeeCodeConvTable'!$A$3:$A$213,'DOE - FIPStoPayeeCodeConvTable'!$B$3:$B$213) -> Washington Co | C96: 53204.5 | D96: 59418.5 | E96: 70563.27 | F96: 48487.26 | G96: 44013.86 | H96: 17062.3 | I96: 27796.46 | J96: 14417.46 | K96: 11856.52 | L96: 25971 | M96: 16920.5 | N96: 5902.5 | S96: 395614.13 | U96: 197807.07 | V96: 197807.06 | W96: =LOOKUP(A96,'DOE - FIPStoPayeeCodeConvTable'!$A$3:$A$213,'DOE - FIPStoPayeeCodeConvTable'!$E$3:$E$213) -> 0.276 | X96: 0.345 | Y96: 68243.44 | Z96: 129563.62
A97: 193 | B97: =LOOKUP(A97,'DOE - FIPStoPayeeCodeConvTable'!$A$3:$A$213,'DOE - FIPStoPayeeCodeConvTable'!$B$3:$B$213) -> Westmoreland Co | C97: 18463.49 | D97: 2302.86 | E97: 4709 | F97: 3289.8 | G97: 0 | H97: 5483.16 | I97: 6943 | J97: 9626.6 | K97: 9028.48 | L97: 15383.4 | M97: 15550.82 | N97: 32993.96 | S97: 123774.57 | U97: 61887.29 | V97: 61887.28 | W97: =LOOKUP(A97,'DOE - FIPStoPayeeCodeConvTable'!$A$3:$A$213,'DOE - FIPStoPayeeCodeConvTable'!$E$3:$E$213) -> 0.3025 | X97: 0.378125 | Y97: 23401.13 | Z97: 38486.15
A98: 195 | B98: =LOOKUP(A98,'DOE - FIPStoPayeeCodeConvTable'!$A$3:$A$213,'DOE - FIPStoPayeeCodeConvTable'!$B$3:$B$213) -> Wise Co | C98: 12198.5 | D98: 3399.46 | E98: -3387.3 | F98: 0 | G98: 0 | H98: 0 | I98: 0 | J98: 0 | K98: 0 | L98: 0 | M98: 0 | N98: 0 | S98: 12210.66 | U98: 6105.33 | V98: 6105.33 | W98: =LOOKUP(A98,'DOE - FIPStoPayeeCodeConvTable'!$A$3:$A$213,'DOE - FIPStoPayeeCodeConvTable'!$E$3:$E$213) -> 0.2755 | X98: 0.344375 | Y98: 2102.52 | Z98: 4002.81
A99: 197 | B99: =LOOKUP(A99,'DOE - FIPStoPayeeCodeConvTable'!$A$3:$A$213,'DOE - FIPStoPayeeCodeConvTable'!$B$3:$B$213) -> Wythe Co | C99: 34606.52 | D99: 0 | E99: 68673.32 | F99: 96087.24 | G99: 29748.2 | H99: 5509 | I99: 0 | J99: 21249 | K99: 18101 | L99: 81454.5 | M99: 27545 | N99: 11557.72 | S99: 394531.5 | U99: 197265.75 | V99: 197265.75 | W99: =LOOKUP(A99,'DOE - FIPStoPayeeCodeConvTable'!$A$3:$A$213,'DOE - FIPStoPayeeCodeConvTable'!$E$3:$E$213) -> 0.2708 | X99: 0.3385 | Y99: 66774.46 | Z99: 130491.29
A100: 199 | B100: =LOOKUP(A100,'DOE - FIPStoPayeeCodeConvTable'!$A$3:$A$213,'DOE - FIPStoPayeeCodeConvTable'!$B$3:$B$213) -> York Co | C100: 8856.9 | D100: 4186.46 | E100: 43740.78 | F100: 82181.32 | G100: 8407.56 | H100: 69372.2 | I100: 9504.3 | J100: 67776.72 | K100: 34419.54 | L100: 72847.06 | M100: 24476.58 | N100: 215356.14 | S100: 641125.56 | U100: 320562.78 | V100: 320562.78 | W100: =LOOKUP(A100,'DOE - FIPStoPayeeCodeConvTable'!$A$3:$A$213,'DOE - FIPStoPayeeCodeConvTable'!$E$3:$E$213) -> 0.3888 | X100: 0.486 | Y100: 155793.51 | Z100: 164769.27
A101: 510 | B101: =LOOKUP(A101,'DOE - FIPStoPayeeCodeConvTable'!$A$3:$A$213,'DOE - FIPStoPayeeCodeConvTable'!$B$3:$B$213) -> Alexandria City | C101: 47672.78 | D101: 3483.36 | E101: 57079 | F101: 44836.8 | G101: 10108.64 | H101: 11213 | I101: 34647.68 | J101: 47950 | K101: 41566 | L101: 52218.9 | M101: 19262.12 | N101: 66335.08 | S101: =SUM(C101:R101) -> 436373.36 | U101: 218186.68 | V101: 218186.68 | W101: =LOOKUP(A101,'DOE - FIPStoPayeeCodeConvTable'!$A$3:$A$213,'DOE - FIPStoPayeeCodeConvTable'!$E$3:$E$213) -> 0.5309 | X101: 0.663625 | Y101: 144794.14 | Z101: 73392.54
A102: 520 | B102: =LOOKUP(A102,'DOE - FIPStoPayeeCodeConvTable'!$A$3:$A$213,'DOE - FIPStoPayeeCodeConvTable'!$B$3:$B$213) -> Bristol City | C102: 21983.74 | D102: 34554.98 | E102: 31912.92 | F102: 19269.4 | G102: 12026.4 | H102: 11411.5 | I102: 16527 | J102: 11018 | K102: 20855.5 | L102: 11018 | M102: 8263.5 | N102: 13772.5 | S102: 212613.44 | U102: =ROUND($U$1*S102,2) -> 106306.72 | V102: =SUM(S102)-SUM(U102) -> 106306.72 | W102: =LOOKUP(A102,'DOE - FIPStoPayeeCodeConvTable'!$A$3:$A$213,'DOE - FIPStoPayeeCodeConvTable'!$E$3:$E$213) -> 0.2547 | X102: 0.318375 | Y102: 33845.4 | Z102: 72461.32
A103: 530 | B103: =LOOKUP(A103,'DOE - FIPStoPayeeCodeConvTable'!$A$3:$A$213,'DOE - FIPStoPayeeCodeConvTable'!$B$3:$B$213) -> Buena Vista City | C103: 44766.45 | D103: 42535.14 | E103: 57046.18 | F103: 51379.38 | G103: 10466.7 | H103: 4328.5 | I103: 36595.5 | J103: 58495.67 | K103: 57046.18 | L103: 51208.93 | M103: 96213.08 | N103: 38405.2 | S103: 548486.91 | U103: 274243.46 | V103: 274243.45 | W103: =LOOKUP(A103,'DOE - FIPStoPayeeCodeConvTable'!$A$3:$A$213,'DOE - FIPStoPayeeCodeConvTable'!$E$3:$E$213) -> 0.2329 | X103: 0.291125 | Y103: 79839.12 | Z103: 194404.33
A104: 540 | B104: =LOOKUP(A104,'DOE - FIPStoPayeeCodeConvTable'!$A$3:$A$213,'DOE - FIPStoPayeeCodeConvTable'!$B$3:$B$213) -> Charlottesville City | C104: 26440.9 | D104: 11851.86 | E104: 28375.68 | F104: 31310.36 | G104: 9065.64 | H104: 10966.5 | I104: 9065.64 | J104: 1122.4 | K104: 2084.34 | L104: -41.32 | M104: 20971.7 | N104: 11203.82 | S104: 162417.52 | U104: 81208.76 | V104: 81208.76 | W104: =LOOKUP(A104,'DOE - FIPStoPayeeCodeConvTable'!$A$3:$A$213,'DOE - FIPStoPayeeCodeConvTable'!$E$3:$E$213) -> 0.3068 | X104: 0.3835 | Y104: 31143.56 | Z104: 50065.2
A105: 550 | B105: =LOOKUP(A105,'DOE - FIPStoPayeeCodeConvTable'!$A$3:$A$213,'DOE - FIPStoPayeeCodeConvTable'!$B$3:$B$213) -> Chesapeake City | C105: 130559.04 | D105: 32181.26 | E105: 122413.76 | F105: 184980.26 | G105: 56333.14 | H105: 43111.6 | I105: 112851.64 | J105: 88279 | K105: 166930.9 | L105: 86754.46 | M105: 92587.86 | N105: 98239.14 | S105: 1215222.06 | U105: 607611.03 | V105: 607611.03 | W105: =LOOKUP(A105,'DOE - FIPStoPayeeCodeConvTable'!$A$3:$A$213,'DOE - FIPStoPayeeCodeConvTable'!$E$3:$E$213) -> 0.3715 | X105: 0.464375 | Y105: 282159.37 | Z105: 325451.66
A106: 570 | B106: =LOOKUP(A106,'DOE - FIPStoPayeeCodeConvTable'!$A$3:$A$213,'DOE - FIPStoPayeeCodeConvTable'!$B$3:$B$213) -> Colonial Heights City | C106: 0 | D106: 11805 | E106: 12198.5 | F106: 23751.8 | G106: 0 | H106: 116555.46 | I106: 0 | J106: 39743.5 | K106: 18101 | L106: 34234.5 | M106: 24003.5 | N106: 24003.5 | S106: 304396.76 | U106: 152198.38 | V106: 152198.38 | W106: =LOOKUP(A106,'DOE - FIPStoPayeeCodeConvTable'!$A$3:$A$213,'DOE - FIPStoPayeeCodeConvTable'!$E$3:$E$213) -> 0.4027 | X106: 0.503375 | Y106: 76612.86 | Z106: 75585.52
A107: 580 | B107: =LOOKUP(A107,'DOE - FIPStoPayeeCodeConvTable'!$A$3:$A$213,'DOE - FIPStoPayeeCodeConvTable'!$B$3:$B$213) -> Covington City | C107: 1864.22 | D107: 2083.54 | E107: 0 | F107: 75945.5 | G107: 5509 | H107: 0 | I107: -12198.5 | J107: 0 | K107: 11018 | L107: 0 | M107: 10624.5 | N107: 0 | S107: 94846.26 | U107: 47423.13 | V107: 47423.13 | W107: =LOOKUP(A107,'DOE - FIPStoPayeeCodeConvTable'!$A$3:$A$213,'DOE - FIPStoPayeeCodeConvTable'!$E$3:$E$213) -> 0.2496 | X107: 0.312 | Y107: 14796.02 | Z107: 32627.11
A108: 590 | B108: =LOOKUP(A108,'DOE - FIPStoPayeeCodeConvTable'!$A$3:$A$213,'DOE - FIPStoPayeeCodeConvTable'!$B$3:$B$213) -> Danville City | C108: 148992.6 | D108: 31150.56 | E108: 107892.24 | F108: 125422.62 | G108: 70317.76 | H108: 28136.56 | I108: 96324.76 | J108: 82512.96 | K108: 119332.6 | L108: 192802.93 | M108: 68303.18 | N108: 94855.72 | S108: 1166044.49 | U108: 583022.25 | V108: 583022.24 | W108: =LOOKUP(A108,'DOE - FIPStoPayeeCodeConvTable'!$A$3:$A$213,'DOE - FIPStoPayeeCodeConvTable'!$E$3:$E$213) -> 0.2223 | X108: 0.277875 | Y108: 162007.3 | Z108: 421014.94
A109: 620 | B109: =LOOKUP(A109,'DOE - FIPStoPayeeCodeConvTable'!$A$3:$A$213,'DOE - FIPStoPayeeCodeConvTable'!$B$3:$B$213) -> Franklin City | C109: 6504.24 | D109: 1310.92 | E109: 15708.58 | F109: 14852.78 | G109: 2823.52 | H109: 2117.64 | I109: 3630.24 | J109: 3428.56 | K109: 2823.52 | L109: 2823.52 | M109: 201.68 | N109: 0 | S109: 56225.2 | U109: 28112.6 | V109: 28112.6 | W109: =LOOKUP(A109,'DOE - FIPStoPayeeCodeConvTable'!$A$3:$A$213,'DOE - FIPStoPayeeCodeConvTable'!$E$3:$E$213) -> 0.371 | X109: 0.46375 | Y109: 13037.22 | Z109: 15075.38
A110: 630 | B110: =LOOKUP(A110,'DOE - FIPStoPayeeCodeConvTable'!$A$3:$A$213,'DOE - FIPStoPayeeCodeConvTable'!$B$3:$B$213) -> Fredericksburg City | C110: 16191.6 | D110: 2823.52 | E110: 24610.58 | F110: 26383.88 | G110: 26040.02 | H110: 45286.8 | I110: 24730.74 | J110: 128047.72 | K110: 42491.84 | L110: 86260.66 | M110: 78810.7 | N110: 88067.79 | S110: 589745.85 | U110: 294872.93 | V110: 294872.92 | W110: =LOOKUP(A110,'DOE - FIPStoPayeeCodeConvTable'!$A$3:$A$213,'DOE - FIPStoPayeeCodeConvTable'!$E$3:$E$213) -> 0.3441 | X110: 0.430125 | Y110: 126832.21 | Z110: 168040.71
A111: 640 | B111: =LOOKUP(A111,'DOE - FIPStoPayeeCodeConvTable'!$A$3:$A$213,'DOE - FIPStoPayeeCodeConvTable'!$B$3:$B$213) -> Galax City | C111: 35808.5 | D111: 0 | E111: 24397 | F111: 53417.14 | G111: 1023.54 | H111: 16585.1 | I111: 25904.36 | J111: 20462 | K111: 38102.86 | L111: 12753.19 | M111: 1495.4 | N111: 4386.6 | S111: 234335.69 | U111: 117167.85 | V111: 117167.84 | W111: =LOOKUP(A111,'DOE - FIPStoPayeeCodeConvTable'!$A$3:$A$213,'DOE - FIPStoPayeeCodeConvTable'!$E$3:$E$213) -> 0.3146 | X111: 0.39325 | Y111: 46076.25 | Z111: 71091.59
A112: 650 | B112: =LOOKUP(A112,'DOE - FIPStoPayeeCodeConvTable'!$A$3:$A$213,'DOE - FIPStoPayeeCodeConvTable'!$B$3:$B$213) -> Hampton City | C112: 0 | D112: 0 | E112: 0 | F112: 0 | G112: 0 | H112: 0 | I112: 0 | J112: 0 | K112: 0 | L112: 0 | M112: 0 | N112: 0 | S112: 0 | U112: 0 | V112: 0 | W112: =LOOKUP(A112,'DOE - FIPStoPayeeCodeConvTable'!$A$3:$A$213,'DOE - FIPStoPayeeCodeConvTable'!$E$3:$E$213) -> 0.3223 | X112: 0.402875 | Y112: 0 | Z112: 0
A113: 660 | B113: =LOOKUP(A113,'DOE - FIPStoPayeeCodeConvTable'!$A$3:$A$213,'DOE - FIPStoPayeeCodeConvTable'!$B$3:$B$213) -> Harrisonburg City | C113: 148843.32 | D113: 38356.14 | E113: 148138.26 | F113: 210480.36 | G113: 64718.84 | H113: 71588.62 | I113: 182054.58 | J113: 133008.94 | K113: 138271.44 | L113: 165855.82 | M113: 106874 | N113: 109322.94 | S113: 1517513.26 | U113: 758756.63 | V113: 758756.63 | W113: =LOOKUP(A113,'DOE - FIPStoPayeeCodeConvTable'!$A$3:$A$213,'DOE - FIPStoPayeeCodeConvTable'!$E$3:$E$213) -> 0.3808 | X113: 0.476 | Y113: 361168.16 | Z113: 397588.47
A114: 670 | B114: =LOOKUP(A114,'DOE - FIPStoPayeeCodeConvTable'!$A$3:$A$213,'DOE - FIPStoPayeeCodeConvTable'!$B$3:$B$213) -> Hopewell City | C114: 16133.5 | D114: 11018 | E114: 24397 | F114: 28725.5 | G114: 14559.5 | H114: 7870 | I114: 15043.32 | J114: 18260.16 | K114: 19281.5 | L114: 12592 | M114: 5509 | N114: 12592 | S114: 185981.48 | U114: 92990.74 | V114: 92990.74 | W114: =LOOKUP(A114,'DOE - FIPStoPayeeCodeConvTable'!$A$3:$A$213,'DOE - FIPStoPayeeCodeConvTable'!$E$3:$E$213) -> 0.2667 | X114: 0.333375 | Y114: 31000.79 | Z114: 61989.95
A115: 678 | B115: =LOOKUP(A115,'DOE - FIPStoPayeeCodeConvTable'!$A$3:$A$213,'DOE - FIPStoPayeeCodeConvTable'!$B$3:$B$213) -> Lexington City | C115: 0 | D115: 0 | E115: 9420.03 | F115: 10815.59 | G115: 10466.7 | H115: 0 | I115: 0 | J115: 21282.29 | K115: 19188.95 | L115: 0 | M115: 0 | N115: 7311 | S115: 78484.56 | U115: 39242.28 | V115: 39242.28 | W115: =LOOKUP(A115,'DOE - FIPStoPayeeCodeConvTable'!$A$3:$A$213,'DOE - FIPStoPayeeCodeConvTable'!$E$3:$E$213) -> 0.3302 | X115: 0.41275 | Y115: 16197.25 | Z115: 23045.03
A116: 680 | B116: =LOOKUP(A116,'DOE - FIPStoPayeeCodeConvTable'!$A$3:$A$213,'DOE - FIPStoPayeeCodeConvTable'!$B$3:$B$213) -> Lynchburg City | C116: 148603.95 | D116: 108467.12 | E116: 175439.39 | F116: 212435.89 | G116: 112574.09 | H116: 64279.36 | I116: 98113.32 | J116: 183214.52 | K116: 166270.71 | L116: 166629.38 | M116: 153477.12 | N116: 207780.09 | S116: 1797284.94 | U116: 898642.47 | V116: 898642.47 | W116: =LOOKUP(A116,'DOE - FIPStoPayeeCodeConvTable'!$A$3:$A$213,'DOE - FIPStoPayeeCodeConvTable'!$E$3:$E$213) -> 0.2736 | X116: 0.342 | Y116: 307335.72 | Z116: 591306.75
A117: 683 | B117: =LOOKUP(A117,'DOE - FIPStoPayeeCodeConvTable'!$A$3:$A$213,'DOE - FIPStoPayeeCodeConvTable'!$B$3:$B$213) -> Manassas City | C117: 24858.86 | D117: 7356.34 | E117: 16325.72 | F117: 16568.2 | G117: 5238.7 | H117: 6504.24 | I117: 10986.58 | J117: 43832.36 | K117: 0 | L117: 25971 | M117: 9444 | N117: 16189.04 | S117: 183275.04 | U117: 91637.52 | V117: 91637.52 | W117: =LOOKUP(A117,'DOE - FIPStoPayeeCodeConvTable'!$A$3:$A$213,'DOE - FIPStoPayeeCodeConvTable'!$E$3:$E$213) -> 0.4168 | X117: 0.521 | Y117: 47743.15 | Z117: 43894.37
A118: 685 | B118: =LOOKUP(A118,'DOE - FIPStoPayeeCodeConvTable'!$A$3:$A$213,'DOE - FIPStoPayeeCodeConvTable'!$B$3:$B$213) -> Manassas Park City | C118: 15404.6 | D118: 4532.82 | E118: 146.22 | F118: 0 | G118: 0 | H118: 0 | I118: 0 | J118: 0 | K118: 0 | L118: 0 | M118: 0 | N118: 0 | S118: 20083.64 | U118: 10041.82 | V118: 10041.82 | W118: =LOOKUP(A118,'DOE - FIPStoPayeeCodeConvTable'!$A$3:$A$213,'DOE - FIPStoPayeeCodeConvTable'!$E$3:$E$213) -> 0.4273 | X118: 0.534125 | Y118: 5363.59 | Z118: 4678.23
A119: 690 | B119: =LOOKUP(A119,'DOE - FIPStoPayeeCodeConvTable'!$A$3:$A$213,'DOE - FIPStoPayeeCodeConvTable'!$B$3:$B$213) -> Martinsville City | C119: 6296 | D119: 0 | E119: 12198.5 | F119: 40668.18 | G119: 16731.32 | H119: 4386.6 | I119: 64738.32 | J119: 12783.38 | K119: 11715.78 | L119: 33772.42 | M119: 11697.6 | N119: 74813.43 | S119: 289801.53 | U119: 144900.77 | V119: 144900.76 | W119: =LOOKUP(A119,'DOE - FIPStoPayeeCodeConvTable'!$A$3:$A$213,'DOE - FIPStoPayeeCodeConvTable'!$E$3:$E$213) -> 0.3321 | X119: 0.415125 | Y119: 60151.93 | Z119: 84748.83
A120: 700 | B120: =LOOKUP(A120,'DOE - FIPStoPayeeCodeConvTable'!$A$3:$A$213,'DOE - FIPStoPayeeCodeConvTable'!$B$3:$B$213) -> Newport News City | C120: 68080.34 | D120: 29508.36 | E120: 63868.92 | F120: 63439.2 | G120: 39373.68 | H120: 5768.82 | I120: 111958.32 | J120: 88741.82 | K120: 43050.66 | L120: 51822.64 | M120: 50869.06 | N120: 6707.88 | S120: 623189.7 | U120: 311594.85 | V120: 311594.85 | W120: =LOOKUP(A120,'DOE - FIPStoPayeeCodeConvTable'!$A$3:$A$213,'DOE - FIPStoPayeeCodeConvTable'!$E$3:$E$213) -> 0.2773 | X120: 0.346625 | Y120: 108006.56 | Z120: 203588.29
A121: 710 | B121: =LOOKUP(A121,'DOE - FIPStoPayeeCodeConvTable'!$A$3:$A$213,'DOE - FIPStoPayeeCodeConvTable'!$B$3:$B$213) -> Norfolk City | C121: 146925.11 | D121: 61383.68 | E121: 192498.86 | F121: 205743.88 | G121: 73315.47 | H121: 101718.86 | I121: 80430.66 | J121: 139123.35 | K121: 90309.38 | L121: 100430.34 | M121: 75801.42 | N121: 79547.3 | S121: 1347228.31 | U121: 673614.16 | V121: 673614.15 | W121: =LOOKUP(A121,'DOE - FIPStoPayeeCodeConvTable'!$A$3:$A$213,'DOE - FIPStoPayeeCodeConvTable'!$E$3:$E$213) -> 0.2455 | X121: 0.306875 | Y121: 206715.34 | Z121: 466898.81
A122: 720 | B122: =LOOKUP(A122,'DOE - FIPStoPayeeCodeConvTable'!$A$3:$A$213,'DOE - FIPStoPayeeCodeConvTable'!$B$3:$B$213) -> Norton City | C122: 0 | D122: 0 | E122: 0 | F122: 0 | G122: 0 | H122: 0 | I122: 0 | J122: 0 | K122: 0 | L122: 0 | M122: 0 | N122: 0 | S122: 0 | U122: 0 | V122: 0 | W122: =LOOKUP(A122,'DOE - FIPStoPayeeCodeConvTable'!$A$3:$A$213,'DOE - FIPStoPayeeCodeConvTable'!$E$3:$E$213) -> 0.3254 | X122: 0.40675 | Y122: 0 | Z122: 0
A123: 730 | B123: =LOOKUP(A123,'DOE - FIPStoPayeeCodeConvTable'!$A$3:$A$213,'DOE - FIPStoPayeeCodeConvTable'!$B$3:$B$213) -> Petersburg City | C123: 43931.86 | D123: 15946.32 | E123: 31551.32 | F123: 39965.16 | G123: 33716.8 | H123: 39517.96 | I123: 73190.58 | J123: 42001.78 | K123: 13815.74 | L123: 37248.78 | M123: 19801.5 | N123: 27192.6 | S123: 417880.4 | U123: 208940.2 | V123: 208940.2 | W123: =LOOKUP(A123,'DOE - FIPStoPayeeCodeConvTable'!$A$3:$A$213,'DOE - FIPStoPayeeCodeConvTable'!$E$3:$E$213) -> 0.3535 | X123: 0.441875 | Y123: 92325.45 | Z123: 116614.75
A124: 735 | B124: =LOOKUP(A124,'DOE - FIPStoPayeeCodeConvTable'!$A$3:$A$213,'DOE - FIPStoPayeeCodeConvTable'!$B$3:$B$213) -> Poquoson City | C124: 7457.22 | D124: 0 | E124: 4532.82 | F124: 3947.94 | G124: 0 | H124: 0 | I124: 0 | J124: 0 | K124: 0 | L124: 0 | M124: 0 | N124: 0 | S124: 15937.98 | U124: 7968.99 | V124: 7968.99 | W124: =LOOKUP(A124,'DOE - FIPStoPayeeCodeConvTable'!$A$3:$A$213,'DOE - FIPStoPayeeCodeConvTable'!$E$3:$E$213) -> 0.2787 | X124: 0.348375 | Y124: 2776.2 | Z124: 5192.79
A125: 740 | B125: =LOOKUP(A125,'DOE - FIPStoPayeeCodeConvTable'!$A$3:$A$213,'DOE - FIPStoPayeeCodeConvTable'!$B$3:$B$213) -> Portsmouth City | C125: 20724.42 | D125: -43758.67 | E125: 2317.87 | F125: 1719.71 | G125: 0 | H125: 66874.22 | I125: 5509 | J125: 24790.5 | K125: 11018 | L125: 6296 | M125: 21109.38 | N125: 27358.02 | S125: 143958.45 | U125: 71979.23 | V125: 71979.22 | W125: =LOOKUP(A125,'DOE - FIPStoPayeeCodeConvTable'!$A$3:$A$213,'DOE - FIPStoPayeeCodeConvTable'!$E$3:$E$213) -> 0.2605 | X125: 0.325625 | Y125: 23438.23 | Z125: 48540.99
A126: 750 | B126: =LOOKUP(A126,'DOE - FIPStoPayeeCodeConvTable'!$A$3:$A$213,'DOE - FIPStoPayeeCodeConvTable'!$B$3:$B$213) -> Radford City | C126: 3541.5 | D126: 3548.5 | E126: 5135.78 | F126: 7986.84 | G126: 2883 | H126: 1972.22 | I126: 2232 | J126: 0 | K126: 0 | L126: 6387.36 | M126: 2968.44 | N126: 2902.24 | S126: 39557.88 | U126: 19778.94 | V126: 19778.94 | W126: =LOOKUP(A126,'DOE - FIPStoPayeeCodeConvTable'!$A$3:$A$213,'DOE - FIPStoPayeeCodeConvTable'!$E$3:$E$213) -> 0.2035 | X126: 0.254375 | Y126: 5031.27 | Z126: 14747.67
A127: 760 | B127: =LOOKUP(A127,'DOE - FIPStoPayeeCodeConvTable'!$A$3:$A$213,'DOE - FIPStoPayeeCodeConvTable'!$B$3:$B$213) -> Richmond City | C127: 461250.06 | D127: 254853.06 | E127: 587928.59 | F127: 505739.7 | G127: 348380 | H127: 106785.1 | I127: 317647.46 | J127: 228327.71 | K127: 371635.78 | L127: 429564.86 | M127: 282421.8 | N127: 303056.1 | S127: 4197590.22 | U127: 2098795.11 | V127: 2098795.11 | W127: =LOOKUP(A127,'DOE - FIPStoPayeeCodeConvTable'!$A$3:$A$213,'DOE - FIPStoPayeeCodeConvTable'!$E$3:$E$213) -> 0.3691 | X127: 0.461375 | Y127: 968331.59 | Z127: 1130463.52
A128: 770 | B128: =LOOKUP(A128,'DOE - FIPStoPayeeCodeConvTable'!$A$3:$A$213,'DOE - FIPStoPayeeCodeConvTable'!$B$3:$B$213) -> Roanoke City | C128: 149812.15 | D128: 98570.19 | E128: 172829.34 | F128: 274424.12 | G128: 107169.72 | H128: 97883.88 | I128: 166217.74 | J128: 166994.97 | K128: 153737.68 | L128: 409000.83 | M128: 117665.18 | N128: 158836.86 | S128: 2073142.66 | U128: 1036571.33 | V128: 1036571.33 | W128: =LOOKUP(A128,'DOE - FIPStoPayeeCodeConvTable'!$A$3:$A$213,'DOE - FIPStoPayeeCodeConvTable'!$E$3:$E$213) -> 0.3072 | X128: 0.384 | Y128: 398043.39 | Z128: 638527.94
A129: 775 | B129: =LOOKUP(A129,'DOE - FIPStoPayeeCodeConvTable'!$A$3:$A$213,'DOE - FIPStoPayeeCodeConvTable'!$B$3:$B$213) -> Salem City | C129: 4980 | D129: 131 | E129: 30815.5 | F129: 39867.5 | G129: 15866.5 | H129: 3933.5 | I129: 24003.5 | J129: 17707.5 | K129: 21835.34 | L129: 22823 | M129: 43884.58 | N129: 2361 | S129: 228208.92 | U129: 114104.46 | V129: 114104.46 | W129: =LOOKUP(A129,'DOE - FIPStoPayeeCodeConvTable'!$A$3:$A$213,'DOE - FIPStoPayeeCodeConvTable'!$E$3:$E$213) -> 0.3513 | X129: 0.439125 | Y129: 50106.12 | Z129: 63998.34
A130: 790 | B130: =LOOKUP(A130,'DOE - FIPStoPayeeCodeConvTable'!$A$3:$A$213,'DOE - FIPStoPayeeCodeConvTable'!$B$3:$B$213) -> Staunton City | C130: 37830.59 | D130: 37760.2 | E130: 38482.49 | F130: 69995.31 | G130: 22047.14 | H130: 27538.42 | I130: 39904.82 | J130: 71199.47 | K130: 34553.59 | L130: 29002.92 | M130: 15793.64 | N130: -68193 | S130: 355915.59 | U130: 177957.8 | V130: 177957.79 | W130: =LOOKUP(A130,'DOE - FIPStoPayeeCodeConvTable'!$A$3:$A$213,'DOE - FIPStoPayeeCodeConvTable'!$E$3:$E$213) -> 0.2699 | X130: 0.337375 | Y130: 60038.51 | Z130: 117919.28
A131: 800 | B131: =LOOKUP(A131,'DOE - FIPStoPayeeCodeConvTable'!$A$3:$A$213,'DOE - FIPStoPayeeCodeConvTable'!$B$3:$B$213) -> Suffolk City | C131: 23610 | D131: 0 | E131: 27028.96 | F131: 38227.6 | G131: 2778.18 | H131: 17314 | I131: 0 | J131: 118050 | K131: 23216.5 | L131: 35808.5 | M131: 57397.66 | N131: 19281.5 | S131: 362712.9 | U131: 181356.45 | V131: 181356.45 | W131: =LOOKUP(A131,'DOE - FIPStoPayeeCodeConvTable'!$A$3:$A$213,'DOE - FIPStoPayeeCodeConvTable'!$E$3:$E$213) -> 0.2432 | X131: 0.304 | Y131: 55132.36 | Z131: 126224.09
A132: 810 | B132: =LOOKUP(A132,'DOE - FIPStoPayeeCodeConvTable'!$A$3:$A$213,'DOE - FIPStoPayeeCodeConvTable'!$B$3:$B$213) -> Virginia Beach City | C132: 295334.27 | D132: 168293.56 | E132: 275681.8 | F132: 413298.93 | G132: 131637.81 | H132: 153571.5 | I132: 209781.32 | J132: 367508.45 | K132: 254080.67 | L132: 327739.16 | M132: 193856.8 | N132: 340595.29 | S132: 3131379.56 | U132: 1565689.78 | V132: 1565689.78 | W132: =LOOKUP(A132,'DOE - FIPStoPayeeCodeConvTable'!$A$3:$A$213,'DOE - FIPStoPayeeCodeConvTable'!$E$3:$E$213) -> 0.3569 | X132: 0.446125 | Y132: 698493.35 | Z132: 867196.43
A133: 820 | B133: =LOOKUP(A133,'DOE - FIPStoPayeeCodeConvTable'!$A$3:$A$213,'DOE - FIPStoPayeeCodeConvTable'!$B$3:$B$213) -> Waynesboro City | C133: 73795.05 | D133: 24573.28 | E133: 36053.54 | F133: 82970.66 | G133: 33957.26 | H133: 30499.4 | I133: 37281.42 | J133: 63428.8 | K133: 18051.58 | L133: 33457.9 | M133: 32367.83 | N133: 56145.57 | S133: =SUM(C133:R133) -> 522582.29 | U133: 261291.15 | V133: =SUM(S133)-SUM(U133) -> 261291.14 | W133: =LOOKUP(A133,'DOE - FIPStoPayeeCodeConvTable'!$A$3:$A$213,'DOE - FIPStoPayeeCodeConvTable'!$E$3:$E$213) -> 0.3843 | X133: 0.480375 | Y133: 125517.73 | Z133: 135773.41
A134: 830 | B134: =LOOKUP(A134,'DOE - FIPStoPayeeCodeConvTable'!$A$3:$A$213,'DOE - FIPStoPayeeCodeConvTable'!$B$3:$B$213) -> Williamsburg City | C134: 11411.5 | D134: 0 | E134: 11951.22 | F134: 1462.2 | G134: 0 | H134: 2339.52 | I134: 4532.82 | J134: 13976.82 | K134: 12357.66 | L134: 4526 | M134: 0 | N134: 9650.52 | S134: 72208.26 | U134: 36104.13 | V134: 36104.13 | W134: =LOOKUP(A134,'DOE - FIPStoPayeeCodeConvTable'!$A$3:$A$213,'DOE - FIPStoPayeeCodeConvTable'!$E$3:$E$213) -> 0.4553 | X134: =$X$1*W134 -> 0.569125 | Y134: =ROUND(X134*V134,2) -> 20547.76 | Z134: =SUM(V134)-SUM(Y134) -> 15556.37
A135: 840 | B135: =LOOKUP(A135,'DOE - FIPStoPayeeCodeConvTable'!$A$3:$A$213,'DOE - FIPStoPayeeCodeConvTable'!$B$3:$B$213) -> Winchester City | C135: 81809.44 | D135: 16555.08 | E135: 32845.54 | F135: 137669.36 | G135: 63287.12 | H135: 27315.06 | I135: 53982.74 | J135: 54488.8 | K135: 41984.92 | L135: 102975.22 | M135: -157114.96 | N135: 95451.16 | S135: 551249.48 | U135: 275624.74 | V135: 275624.74 | W135: =LOOKUP(A135,'DOE - FIPStoPayeeCodeConvTable'!$A$3:$A$213,'DOE - FIPStoPayeeCodeConvTable'!$E$3:$E$213) -> 0.4587 | X135: 0.573375 | Y135: 158036.34 | Z135: 117588.4

Sheet TFC (hidden)
A1: FY | B1: ='DOE - FIPStoPayeeCodeConvTable'!G1 -> 2018 | C1: MEDICAID ADJUSTMENTS--TFC PAYMENTS TO PROVIDERS | O1: ="Extended to be paided in this SFY = " & A1 -> Extended to be paided in this SFY = FY | T1: xx | U1: 0.5 | V1: 0.5 | W1: (POOL) | X1: 1
U2: FEDERAL | V2: STATE/ | W2: (RATE) | X2: Factor
A3: FIPS | S3: Grand | U3: MEDICAID | V3: LOCAL | W3: LOCAL | Y3: LOCAL | Z3: STATE
A4: CODE | B4: LOCALITY | C4: =TEXT("7/1/" & $B$1-1,"mmm-yyyy") -> Jul-2017 | D4: =TEXT("8/1/" & $B$1-1,"mmm-yyyy") -> Aug-2017 | E4: =TEXT("9/1/" & $B$1-1,"mmm-yyyy") -> Sep-2017 | F4: =TEXT("10/1/" & $B$1-1,"mmm-yyyy") -> Oct-2017 | G4: =TEXT("11/1/" & $B$1-1,"mmm-yyyy") -> Nov-2017 | H4: =TEXT("12/1/" & $B$1-1,"mmm-yyyy") -> Dec-2017 | I4: =TEXT("1/1/" & $B$1,"mmm-yyyy") -> Jan-2018 | J4: =TEXT("2/1/" & $B$1,"mmm-yyyy") -> Feb-2018 | K4: =TEXT("3/1/" & $B$1,"mmm-yyyy") -> Mar-2018 | L4: =TEXT("4/1/" & $B$1,"mmm-yyyy") -> Apr-2018 | M4: =TEXT("5/1/" & $B$1,"mmm-yyyy") -> May-2018 | N4: =TEXT("6/1/" & $B$1,"mmm-yyyy") -> Jun-2018 | O4: =TEXT("7/1/" & $B$1,"mmm-yyyy") -> Jul-2018 | P4: =TEXT("8/1/" & $B$1,"mmm-yyyy") -> Aug-2018 | Q4: =TEXT("9/1/" & $B$1,"mmm-yyyy") -> Sep-2018 | R4: =TEXT("10/1/" & $B$1,"mmm-yyyy") -> Oct-2018 | S4: Total | U4: RATE/Share | V4: SHARE | W4: MATCH Rate | Y4: MATCH | Z4: SHARE
A5: Totals | C5: =SUM(C6:C1201) -> 316509.2 | D5: 350704.96 | E5: 262789.13 | F5: 325333.05 | G5: 192324.04 | H5: 322063.16 | I5: 304256.17 | J5: =SUM(J6:J1200) -> 271796.14 | K5: =SUM(K6:K1200) -> 295526.1 | L5: =SUM(L6:L1200) -> 277463.4 | M5: =SUM(M6:M1200) -> 205344.25 | N5: =SUM(N6:N1200) -> 328306.08 | O5: =SUM(O6:O1200) -> 0 | P5: 0 | Q5: 0 | R5: 0 | S5: =SUM(C5:R5) -> 3452415.68 | T5: = | U5: =SUM(U6:U399) -> 1726207.93 | V5: =SUM(V6:V399) -> 1726207.75 | W5: = | Y5: =SUM(Y6:Y399) -> 586625.2 | Z5: =SUM(Z6:Z399) -> 1139582.55
A6: 1 | B6: =LOOKUP(A6,'DOE - FIPStoPayeeCodeConvTable'!$A$3:$A$213,'DOE - FIPStoPayeeCodeConvTable'!$B$3:$B$213) -> Accomack Co | C6: 326.5 | D6: 326.5 | E6: 326.5 | F6: 326.5 | G6: 0 | H6: 653 | I6: 326.5 | J6: 326.5 | K6: 326.5 | L6: 326.5 | M6: 0 | N6: 326.5 | S6: 3591.5 | U6: =ROUND($U$1*S6,2) -> 1795.75 | V6: =SUM(S6)-SUM(U6) -> 1795.75 | W6: =LOOKUP(A6,'DOE - FIPStoPayeeCodeConvTable'!$A$3:$A$213,'DOE - FIPStoPayeeCodeConvTable'!$E$3:$E$213) -> 0.2332 | X6: =$X$1*W6 -> 0.2332 | Y6: =ROUND(X6*V6,2) -> 418.77 | Z6: =SUM(V6)-SUM(Y6) -> 1376.98
A7: 3 | B7: =LOOKUP(A7,'DOE - FIPStoPayeeCodeConvTable'!$A$3:$A$213,'DOE - FIPStoPayeeCodeConvTable'!$B$3:$B$213) -> Albemarle Co | C7: 4443.07 | D7: 2991.16 | E7: 1632.5 | F7: 4571 | G7: 1959 | H7: 3918 | I7: 5877 | J7: 5550.5 | K7: 3591.5 | L7: 4571 | M7: 2938.5 | N7: 2938.5 | S7: 44981.73 | U7: 22490.87 | V7: 22490.86 | W7: =LOOKUP(A7,'DOE - FIPStoPayeeCodeConvTable'!$A$3:$A$213,'DOE - FIPStoPayeeCodeConvTable'!$E$3:$E$213) -> 0.4474 | X7: =$X$1*W7 -> 0.4474 | Y7: =ROUND(X7*V7,2) -> 10062.41 | Z7: =SUM(V7)-SUM(Y7) -> 12428.45
A8: 5 | B8: =LOOKUP(A8,'DOE - FIPStoPayeeCodeConvTable'!$A$3:$A$213,'DOE - FIPStoPayeeCodeConvTable'!$B$3:$B$213) -> Alleghany Co | C8: 979.5 | D8: 326.5 | E8: 326.5 | F8: 326.5 | G8: 326.5 | H8: 326.5 | I8: 326.5 | J8: 653 | K8: 326.5 | L8: 326.5 | M8: 326.5 | N8: 326.5 | S8: 4897.5 | U8: 2448.75 | V8: 2448.75 | W8: =LOOKUP(A8,'DOE - FIPStoPayeeCodeConvTable'!$A$3:$A$213,'DOE - FIPStoPayeeCodeConvTable'!$E$3:$E$213) -> 0.1924 | X8: 0.1924 | Y8: 471.14 | Z8: 1977.61
A9: 7 | B9: =LOOKUP(A9,'DOE - FIPStoPayeeCodeConvTable'!$A$3:$A$213,'DOE - FIPStoPayeeCodeConvTable'!$B$3:$B$213) -> Amelia Co | C9: 0 | D9: 0 | E9: 0 | F9: 0 | G9: 0 | H9: 0 | I9: 0 | J9: 0 | K9: 0 | L9: 0 | M9: 0 | N9: 0 | S9: 0 | U9: 0 | V9: 0 | W9: =LOOKUP(A9,'DOE - FIPStoPayeeCodeConvTable'!$A$3:$A$213,'DOE - FIPStoPayeeCodeConvTable'!$E$3:$E$213) -> 0.3268 | X9: 0.3268 | Y9: 0 | Z9: 0
A10: 9 | B10: =LOOKUP(A10,'DOE - FIPStoPayeeCodeConvTable'!$A$3:$A$213,'DOE - FIPStoPayeeCodeConvTable'!$B$3:$B$213) -> Amherst Co | C10: 1632.5 | D10: 326.5 | E10: 979.5 | F10: 979.5 | G10: 653 | H10: 653 | I10: 653 | J10: 1306 | K10: -1034 | L10: 653 | M10: 1621.9 | N10: 1306 | S10: 9729.9 | U10: 4864.95 | V10: 4864.95 | W10: =LOOKUP(A10,'DOE - FIPStoPayeeCodeConvTable'!$A$3:$A$213,'DOE - FIPStoPayeeCodeConvTable'!$E$3:$E$213) -> 0.2722 | X10: 0.2722 | Y10: 1324.24 | Z10: 3540.71
A11: 11 | B11: =LOOKUP(A11,'DOE - FIPStoPayeeCodeConvTable'!$A$3:$A$213,'DOE - FIPStoPayeeCodeConvTable'!$B$3:$B$213) -> Appomattox Co | C11: 2285.5 | D11: 3265 | E11: 1306 | F11: 4244.5 | G11: 1959 | H11: 1632.5 | I11: 1632.5 | J11: 2612 | K11: 979.5 | L11: 1959 | M11: 2285.5 | N11: 1959 | S11: 26120 | U11: 13060 | V11: 13060 | W11: =LOOKUP(A11,'DOE - FIPStoPayeeCodeConvTable'!$A$3:$A$213,'DOE - FIPStoPayeeCodeConvTable'!$E$3:$E$213) -> 0.2639 | X11: 0.2639 | Y11: 3446.53 | Z11: 9613.47
A12: 13 | B12: =LOOKUP(A12,'DOE - FIPStoPayeeCodeConvTable'!$A$3:$A$213,'DOE - FIPStoPayeeCodeConvTable'!$B$3:$B$213) -> Arlington Co | C12: 2328.44 | D12: 11101 | E12: 5877 | F12: 7836 | G12: 3918 | H12: 4571 | I12: 5550.5 | J12: 4244.5 | K12: 4571 | L12: 2612 | M12: 1632.5 | N12: 4571 | S12: 58812.94 | U12: 29406.47 | V12: 29406.47 | W12: =LOOKUP(A12,'DOE - FIPStoPayeeCodeConvTable'!$A$3:$A$213,'DOE - FIPStoPayeeCodeConvTable'!$E$3:$E$213) -> 0.4602 | X12: 0.4602 | Y12: 13532.86 | Z12: 15873.61
A13: 15 | B13: =LOOKUP(A13,'DOE - FIPStoPayeeCodeConvTable'!$A$3:$A$213,'DOE - FIPStoPayeeCodeConvTable'!$B$3:$B$213) -> Augusta Co | C13: 15019 | D13: 6529.99 | E13: 2612 | F13: 12801.16 | G13: 4523.59 | H13: 7825.35 | I13: 7978.83 | J13: 2380.2 | K13: 9390.74 | L13: 11805.79 | M13: 5866.4 | N13: 6856.5 | S13: 93589.55 | U13: 46794.78 | V13: 46794.77 | W13: =LOOKUP(A13,'DOE - FIPStoPayeeCodeConvTable'!$A$3:$A$213,'DOE - FIPStoPayeeCodeConvTable'!$E$3:$E$213) -> 0.3302 | X13: 0.3302 | Y13: 15451.63 | Z13: 31343.14
A14: 17 | B14: =LOOKUP(A14,'DOE - FIPStoPayeeCodeConvTable'!$A$3:$A$213,'DOE - FIPStoPayeeCodeConvTable'!$B$3:$B$213) -> Bath Co | C14: 0 | D14: 0 | E14: 0 | F14: 0 | G14: 0 | H14: 0 | I14: 0 | J14: 0 | K14: 0 | L14: 0 | M14: 0 | N14: 0 | S14: 0 | U14: 0 | V14: 0 | W14: =LOOKUP(A14,'DOE - FIPStoPayeeCodeConvTable'!$A$3:$A$213,'DOE - FIPStoPayeeCodeConvTable'!$E$3:$E$213) -> 0.4278 | X14: 0.4278 | Y14: 0 | Z14: 0
A15: 19 | B15: =LOOKUP(A15,'DOE - FIPStoPayeeCodeConvTable'!$A$3:$A$213,'DOE - FIPStoPayeeCodeConvTable'!$B$3:$B$213) -> Bedford Co | C15: 4512.86 | D15: 4571 | E15: 5877 | F15: 3265 | G15: 2961.75 | H15: 2783.75 | I15: 1632.5 | J15: 1495.54 | K15: 9795 | L15: 2612 | M15: 1959 | N15: 2938.5 | S15: 44403.9 | U15: 22201.95 | V15: 22201.95 | W15: =LOOKUP(A15,'DOE - FIPStoPayeeCodeConvTable'!$A$3:$A$213,'DOE - FIPStoPayeeCodeConvTable'!$E$3:$E$213) -> 0.31112 | X15: 0.31112 | Y15: 6907.47 | Z15: 15294.48
A16: 21 | B16: =LOOKUP(A16,'DOE - FIPStoPayeeCodeConvTable'!$A$3:$A$213,'DOE - FIPStoPayeeCodeConvTable'!$B$3:$B$213) -> Bland Co | C16: 979.5 | D16: 979.5 | E16: 979.5 | F16: 979.5 | G16: 326.5 | H16: 1632.5 | I16: 979.5 | J16: 1649.5 | K16: 326.5 | L16: 326.5 | M16: 326.5 | N16: 0 | S16: 9485.5 | U16: 4742.75 | V16: 4742.75 | W16: =LOOKUP(A16,'DOE - FIPStoPayeeCodeConvTable'!$A$3:$A$213,'DOE - FIPStoPayeeCodeConvTable'!$E$3:$E$213) -> 0.2109 | X16: 0.2109 | Y16: 1000.25 | Z16: 3742.5
A17: 23 | B17: =LOOKUP(A17,'DOE - FIPStoPayeeCodeConvTable'!$A$3:$A$213,'DOE - FIPStoPayeeCodeConvTable'!$B$3:$B$213) -> Botetourt Co | C17: -653 | D17: 0 | E17: 0 | F17: 0 | G17: 0 | H17: 0 | I17: 0 | J17: -653 | K17: -1959 | L17: 0 | M17: 0 | N17: 0 | S17: -3265 | U17: -1632.5 | V17: -1632.5 | W17: =LOOKUP(A17,'DOE - FIPStoPayeeCodeConvTable'!$A$3:$A$213,'DOE - FIPStoPayeeCodeConvTable'!$E$3:$E$213) -> 0.3602 | X17: 0.3602 | Y17: -588.03 | Z17: -1044.47
A18: 25 | B18: =LOOKUP(A18,'DOE - FIPStoPayeeCodeConvTable'!$A$3:$A$213,'DOE - FIPStoPayeeCodeConvTable'!$B$3:$B$213) -> Brunswick Co | C18: 326.5 | D18: 979.5 | E18: 653 | F18: 1306 | G18: 653 | H18: 1306 | I18: 653 | J18: 979.5 | K18: 653 | L18: 653 | M18: 653 | N18: 653 | S18: 9468.5 | U18: 4734.25 | V18: 4734.25 | W18: =LOOKUP(A18,'DOE - FIPStoPayeeCodeConvTable'!$A$3:$A$213,'DOE - FIPStoPayeeCodeConvTable'!$E$3:$E$213) -> 0.2439 | X18: 0.2439 | Y18: 1154.68 | Z18: 3579.57
A19: 27 | B19: =LOOKUP(A19,'DOE - FIPStoPayeeCodeConvTable'!$A$3:$A$213,'DOE - FIPStoPayeeCodeConvTable'!$B$3:$B$213) -> Buchanan Co | C19: 1306 | D19: 653 | E19: 979.5 | F19: 326.5 | G19: 0 | H19: 0 | I19: 653 | J19: 1306 | K19: 979.5 | L19: 326.5 | M19: 326.5 | N19: 326.5 | S19: 7183 | U19: 3591.5 | V19: 3591.5 | W19: =LOOKUP(A19,'DOE - FIPStoPayeeCodeConvTable'!$A$3:$A$213,'DOE - FIPStoPayeeCodeConvTable'!$E$3:$E$213) -> 0.3156 | X19: 0.3156 | Y19: 1133.48 | Z19: 2458.02
A20: 29 | B20: =LOOKUP(A20,'DOE - FIPStoPayeeCodeConvTable'!$A$3:$A$213,'DOE - FIPStoPayeeCodeConvTable'!$B$3:$B$213) -> Buckingham Co | C20: 0 | D20: 0 | E20: 0 | F20: 0 | G20: 0 | H20: 0 | I20: 0 | J20: 0 | K20: 674.06 | L20: 653 | M20: 326.5 | N20: 326.5 | S20: 1980.06 | U20: 990.03 | V20: 990.03 | W20: =LOOKUP(A20,'DOE - FIPStoPayeeCodeConvTable'!$A$3:$A$213,'DOE - FIPStoPayeeCodeConvTable'!$E$3:$E$213) -> 0.2023 | X20: 0.2023 | Y20: 200.28 | Z20: 789.75
A21: 31 | B21: =LOOKUP(A21,'DOE - FIPStoPayeeCodeConvTable'!$A$3:$A$213,'DOE - FIPStoPayeeCodeConvTable'!$B$3:$B$213) -> Campbell Co | C21: 1306 | D21: 0 | E21: 979.5 | F21: 1632.5 | G21: 1632.5 | H21: -7183 | I21: 1959 | J21: 1632.5 | K21: 1306 | L21: 1632.5 | M21: 1959 | N21: 2285.5 | S21: 9142 | U21: 4571 | V21: 4571 | W21: =LOOKUP(A21,'DOE - FIPStoPayeeCodeConvTable'!$A$3:$A$213,'DOE - FIPStoPayeeCodeConvTable'!$E$3:$E$213) -> 0.3107 | X21: 0.3107 | Y21: 1420.21 | Z21: 3150.79
A22: 33 | B22: =LOOKUP(A22,'DOE - FIPStoPayeeCodeConvTable'!$A$3:$A$213,'DOE - FIPStoPayeeCodeConvTable'!$B$3:$B$213) -> Caroline Co | C22: 2612 | D22: 3918 | E22: 6856.5 | F22: 3265 | G22: 979.5 | H22: 3591.5 | I22: 2612 | J22: 1632.5 | K22: 1959 | L22: 1632.5 | M22: 1042.68 | N22: 1632.5 | S22: 31733.68 | U22: 15866.84 | V22: 15866.84 | W22: =LOOKUP(A22,'DOE - FIPStoPayeeCodeConvTable'!$A$3:$A$213,'DOE - FIPStoPayeeCodeConvTable'!$E$3:$E$213) -> 0.3308 | X22: 0.3308 | Y22: 5248.75 | Z22: 10618.09
A23: 35 | B23: =LOOKUP(A23,'DOE - FIPStoPayeeCodeConvTable'!$A$3:$A$213,'DOE - FIPStoPayeeCodeConvTable'!$B$3:$B$213) -> Carroll Co | C23: 3591.5 | D23: 4244.5 | E23: 2938.5 | F23: 3591.5 | G23: 1959 | H23: 3918 | I23: 3265 | J23: 1632.5 | K23: 2938.5 | L23: 1959 | M23: 1959 | N23: 1306 | S23: 33303 | U23: 16651.5 | V23: 16651.5 | W23: =LOOKUP(A23,'DOE - FIPStoPayeeCodeConvTable'!$A$3:$A$213,'DOE - FIPStoPayeeCodeConvTable'!$E$3:$E$213) -> 0.291 | X23: 0.291 | Y23: 4845.59 | Z23: 11805.91
A24: 36 | B24: =LOOKUP(A24,'DOE - FIPStoPayeeCodeConvTable'!$A$3:$A$213,'DOE - FIPStoPayeeCodeConvTable'!$B$3:$B$213) -> Charles City Co | C24: 0 | D24: 0 | E24: 0 | F24: 0 | G24: 0 | H24: 0 | I24: 0 | J24: 0 | K24: 0 | L24: 0 | M24: 0 | N24: 0 | S24: 0 | U24: 0 | V24: 0 | W24: =LOOKUP(A24,'DOE - FIPStoPayeeCodeConvTable'!$A$3:$A$213,'DOE - FIPStoPayeeCodeConvTable'!$E$3:$E$213) -> 0.3131 | X24: 0.3131 | Y24: 0 | Z24: 0
A25: 37 | B25: =LOOKUP(A25,'DOE - FIPStoPayeeCodeConvTable'!$A$3:$A$213,'DOE - FIPStoPayeeCodeConvTable'!$B$3:$B$213) -> Charlotte Co | C25: 326.5 | D25: 653 | E25: 979.5 | F25: 653 | G25: 1306 | H25: 979.5 | I25: 653 | J25: 653 | K25: 326.5 | L25: 653 | M25: 326.5 | N25: 326.5 | S25: 7836 | U25: 3918 | V25: 3918 | W25: =LOOKUP(A25,'DOE - FIPStoPayeeCodeConvTable'!$A$3:$A$213,'DOE - FIPStoPayeeCodeConvTable'!$E$3:$E$213) -> 0.2204 | X25: 0.2204 | Y25: 863.53 | Z25: 3054.47
A26: 41 | B26: =LOOKUP(A26,'DOE - FIPStoPayeeCodeConvTable'!$A$3:$A$213,'DOE - FIPStoPayeeCodeConvTable'!$B$3:$B$213) -> Chesterfield Co | C26: 3265 | D26: 9142 | E26: 5224 | F26: 11754 | G26: -3265 | H26: 10507.93 | I26: 9687.95 | J26: 9795 | K26: -4982.59 | L26: 11101 | M26: 7313.66 | N26: 12439.64 | S26: 81982.59 | U26: 40991.3 | V26: 40991.29 | W26: =LOOKUP(A26,'DOE - FIPStoPayeeCodeConvTable'!$A$3:$A$213,'DOE - FIPStoPayeeCodeConvTable'!$E$3:$E$213) -> 0.3853 | X26: 0.3853 | Y26: 15793.94 | Z26: 25197.35
A27: 43 | B27: =LOOKUP(A27,'DOE - FIPStoPayeeCodeConvTable'!$A$3:$A$213,'DOE - FIPStoPayeeCodeConvTable'!$B$3:$B$213) -> Clarke Co | C27: 0 | D27: 0 | E27: 0 | F27: 0 | G27: 0 | H27: 0 | I27: 0 | J27: 0 | K27: 0 | L27: 0 | M27: 0 | N27: 0 | S27: 0 | U27: 0 | V27: 0 | W27: =LOOKUP(A27,'DOE - FIPStoPayeeCodeConvTable'!$A$3:$A$213,'DOE - FIPStoPayeeCodeConvTable'!$E$3:$E$213) -> 0.4797 | X27: 0.4797 | Y27: 0 | Z27: 0
A28: 45 | B28: =LOOKUP(A28,'DOE - FIPStoPayeeCodeConvTable'!$A$3:$A$213,'DOE - FIPStoPayeeCodeConvTable'!$B$3:$B$213) -> Craig Co | C28: 0 | D28: 0 | E28: 0 | F28: 0 | G28: 0 | H28: 0 | I28: 0 | J28: 0 | K28: 0 | L28: -3918 | M28: 0 | N28: 0 | S28: -3918 | U28: -1959 | V28: -1959 | W28: =LOOKUP(A28,'DOE - FIPStoPayeeCodeConvTable'!$A$3:$A$213,'DOE - FIPStoPayeeCodeConvTable'!$E$3:$E$213) -> 0.2901 | X28: 0.2901 | Y28: -568.31 | Z28: -1390.69
A29: 47 | B29: =LOOKUP(A29,'DOE - FIPStoPayeeCodeConvTable'!$A$3:$A$213,'DOE - FIPStoPayeeCodeConvTable'!$B$3:$B$213) -> Culpeper Co | C29: 4244.5 | D29: 8815.5 | E29: 4571 | F29: 5224 | G29: 653 | H29: 6530 | I29: 3918 | J29: 5550.5 | K29: 4571 | L29: 5877 | M29: 1632.5 | N29: 4734.25 | S29: 56321.25 | U29: 28160.63 | V29: 28160.62 | W29: =LOOKUP(A29,'DOE - FIPStoPayeeCodeConvTable'!$A$3:$A$213,'DOE - FIPStoPayeeCodeConvTable'!$E$3:$E$213) -> 0.3767 | X29: 0.3767 | Y29: 10608.11 | Z29: 17552.51
A30: 49 | B30: =LOOKUP(A30,'DOE - FIPStoPayeeCodeConvTable'!$A$3:$A$213,'DOE - FIPStoPayeeCodeConvTable'!$B$3:$B$213) -> Cumberland Co | C30: 0 | D30: 653 | E30: 1306 | F30: 326.5 | G30: 0 | H30: 653 | I30: 653 | J30: 1306 | K30: 326.5 | L30: 695.12 | M30: 653 | N30: 326.5 | S30: 6898.62 | U30: 3449.31 | V30: 3449.31 | W30: =LOOKUP(A30,'DOE - FIPStoPayeeCodeConvTable'!$A$3:$A$213,'DOE - FIPStoPayeeCodeConvTable'!$E$3:$E$213) -> 0.304 | X30: 0.304 | Y30: 1048.59 | Z30: 2400.72
A31: 51 | B31: =LOOKUP(A31,'DOE - FIPStoPayeeCodeConvTable'!$A$3:$A$213,'DOE - FIPStoPayeeCodeConvTable'!$B$3:$B$213) -> Dickenson Co | C31: 653 | D31: 3265 | E31: 1959 | F31: 1959 | G31: 653 | H31: 1632.5 | I31: 1306 | J31: 1306 | K31: 979.5 | L31: 2285.5 | M31: 979.5 | N31: 979.5 | S31: 17957.5 | U31: 8978.75 | V31: 8978.75 | W31: =LOOKUP(A31,'DOE - FIPStoPayeeCodeConvTable'!$A$3:$A$213,'DOE - FIPStoPayeeCodeConvTable'!$E$3:$E$213) -> 0.3042 | X31: 0.3042 | Y31: 2731.34 | Z31: 6247.41
A32: 53 | B32: =LOOKUP(A32,'DOE - FIPStoPayeeCodeConvTable'!$A$3:$A$213,'DOE - FIPStoPayeeCodeConvTable'!$B$3:$B$213) -> Dinwiddie Co | C32: 685.2 | D32: 1499.22 | E32: 326.5 | F32: 979.5 | G32: 326.5 | H32: 979.5 | I32: 653 | J32: 653 | K32: 653 | L32: 326.5 | M32: 326.5 | N32: 979.5 | S32: 8387.92 | U32: 4193.96 | V32: 4193.96 | W32: =LOOKUP(A32,'DOE - FIPStoPayeeCodeConvTable'!$A$3:$A$213,'DOE - FIPStoPayeeCodeConvTable'!$E$3:$E$213) -> 0.3358 | X32: 0.3358 | Y32: 1408.33 | Z32: 2785.63
A33: 57 | B33: =LOOKUP(A33,'DOE - FIPStoPayeeCodeConvTable'!$A$3:$A$213,'DOE - FIPStoPayeeCodeConvTable'!$B$3:$B$213) -> Essex Co | C33: 979.5 | D33: 1306 | E33: 653 | F33: 1306 | G33: 653 | H33: 1306 | I33: 1306 | J33: 653 | K33: 653 | L33: 653 | M33: 0 | N33: 1306 | S33: 10774.5 | U33: 5387.25 | V33: 5387.25 | W33: =LOOKUP(A33,'DOE - FIPStoPayeeCodeConvTable'!$A$3:$A$213,'DOE - FIPStoPayeeCodeConvTable'!$E$3:$E$213) -> 0.3853 | X33: 0.3853 | Y33: 2075.71 | Z33: 3311.54
A34: 59 | B34: =LOOKUP(A34,'DOE - FIPStoPayeeCodeConvTable'!$A$3:$A$213,'DOE - FIPStoPayeeCodeConvTable'!$B$3:$B$213) -> Fairfax Co | C34: 11427.5 | D34: 20569.5 | E34: 1391.87 | F34: 15998.5 | G34: 8489 | H34: 25140.5 | I34: 9795 | J34: 13386.5 | K34: 18258.06 | L34: 16651.5 | M34: 7846.88 | N34: 15029.88 | S34: 163984.69 | U34: 81992.35 | V34: 81992.34 | W34: =LOOKUP(A34,'DOE - FIPStoPayeeCodeConvTable'!$A$3:$A$213,'DOE - FIPStoPayeeCodeConvTable'!$E$3:$E$213) -> 0.4611 | X34: 0.4611 | Y34: 37806.67 | Z34: 44185.67
A35: 61 | B35: =LOOKUP(A35,'DOE - FIPStoPayeeCodeConvTable'!$A$3:$A$213,'DOE - FIPStoPayeeCodeConvTable'!$B$3:$B$213) -> Fauquier Co | C35: 979.5 | D35: 979.5 | E35: 326.5 | F35: 979.5 | G35: 1306 | H35: 653 | I35: 979.5 | J35: 979.5 | K35: 4571 | L35: 979.5 | M35: 979.5 | N35: 979.5 | S35: 14692.5 | U35: 7346.25 | V35: 7346.25 | W35: =LOOKUP(A35,'DOE - FIPStoPayeeCodeConvTable'!$A$3:$A$213,'DOE - FIPStoPayeeCodeConvTable'!$E$3:$E$213) -> 0.4584 | X35: 0.4584 | Y35: 3367.52 | Z35: 3978.73
A36: 63 | B36: =LOOKUP(A36,'DOE - FIPStoPayeeCodeConvTable'!$A$3:$A$213,'DOE - FIPStoPayeeCodeConvTable'!$B$3:$B$213) -> Floyd Co | C36: 3265 | D36: 1632.5 | E36: 1632.5 | F36: 1632.5 | G36: 6856.5 | H36: 3918 | I36: 1959 | J36: 1959 | K36: 2285.5 | L36: 979.5 | M36: 6856.5 | N36: 2285.5 | S36: 35262 | U36: 17631 | V36: 17631 | W36: =LOOKUP(A36,'DOE - FIPStoPayeeCodeConvTable'!$A$3:$A$213,'DOE - FIPStoPayeeCodeConvTable'!$E$3:$E$213) -> 0.2324 | X36: 0.2324 | Y36: 4097.44 | Z36: 13533.56
A37: 65 | B37: =LOOKUP(A37,'DOE - FIPStoPayeeCodeConvTable'!$A$3:$A$213,'DOE - FIPStoPayeeCodeConvTable'!$B$3:$B$213) -> Fluvanna Co | C37: 0 | D37: 326.5 | E37: 0 | F37: 653 | G37: 326.5 | H37: 979.5 | I37: 653 | J37: 653 | K37: 979.5 | L37: 1795.74 | M37: 1306 | N37: 1632.5 | S37: =SUM(C37:R37) -> 9305.24 | U37: 4652.62 | V37: 4652.62 | W37: =LOOKUP(A37,'DOE - FIPStoPayeeCodeConvTable'!$A$3:$A$213,'DOE - FIPStoPayeeCodeConvTable'!$E$3:$E$213) -> 0.3811 | X37: 0.3811 | Y37: 1773.11 | Z37: 2879.51
A38: 67 | B38: =LOOKUP(A38,'DOE - FIPStoPayeeCodeConvTable'!$A$3:$A$213,'DOE - FIPStoPayeeCodeConvTable'!$B$3:$B$213) -> Franklin Co | C38: 8815.5 | D38: 4571 | E38: 2612 | F38: 4244.5 | G38: 2285.5 | H38: 7509.5 | I38: 7509.5 | J38: 5550.5 | K38: 6530 | L38: 5877 | M38: 6530 | N38: 10448 | S38: 72483 | U38: =ROUND($U$1*S38,2) -> 36241.5 | V38: =SUM(S38)-SUM(U38) -> 36241.5 | W38: =LOOKUP(A38,'DOE - FIPStoPayeeCodeConvTable'!$A$3:$A$213,'DOE - FIPStoPayeeCodeConvTable'!$E$3:$E$213) -> 0.283 | X38: 0.283 | Y38: 10256.34 | Z38: 25985.16
A39: 69 | B39: =LOOKUP(A39,'DOE - FIPStoPayeeCodeConvTable'!$A$3:$A$213,'DOE - FIPStoPayeeCodeConvTable'!$B$3:$B$213) -> Frederick Co | C39: 1632.5 | D39: 1447.44 | E39: 1306 | F39: 979.5 | G39: 326.5 | H39: 979.5 | I39: 1306 | J39: 979.5 | K39: 2095.92 | L39: 1632.5 | M39: 1632.5 | N39: 2851.36 | S39: 17169.22 | U39: 8584.61 | V39: 8584.61 | W39: =LOOKUP(A39,'DOE - FIPStoPayeeCodeConvTable'!$A$3:$A$213,'DOE - FIPStoPayeeCodeConvTable'!$E$3:$E$213) -> 0.4348 | X39: 0.4348 | Y39: 3732.59 | Z39: 4852.02
A40: 71 | B40: =LOOKUP(A40,'DOE - FIPStoPayeeCodeConvTable'!$A$3:$A$213,'DOE - FIPStoPayeeCodeConvTable'!$B$3:$B$213) -> Giles Co | C40: 2938.5 | D40: 2612 | E40: 1306 | F40: 653 | G40: 0 | H40: 2285.5 | I40: 4897.5 | J40: 1959 | K40: 1959 | L40: 1959 | M40: 1632.5 | N40: 2612 | S40: 24814 | U40: 12407 | V40: 12407 | W40: =LOOKUP(A40,'DOE - FIPStoPayeeCodeConvTable'!$A$3:$A$213,'DOE - FIPStoPayeeCodeConvTable'!$E$3:$E$213) -> 0.2898 | X40: 0.2898 | Y40: 3595.55 | Z40: 8811.45
A41: 73 | B41: =LOOKUP(A41,'DOE - FIPStoPayeeCodeConvTable'!$A$3:$A$213,'DOE - FIPStoPayeeCodeConvTable'!$B$3:$B$213) -> Gloucester Co | C41: 653 | D41: 979.5 | E41: 653 | F41: 653 | G41: 653 | H41: 979.5 | I41: 1306 | J41: 326.5 | K41: 2285.5 | L41: 979.5 | M41: 979.5 | N41: 1306 | S41: 11754 | U41: 5877 | V41: 5877 | W41: =LOOKUP(A41,'DOE - FIPStoPayeeCodeConvTable'!$A$3:$A$213,'DOE - FIPStoPayeeCodeConvTable'!$E$3:$E$213) -> 0.3687 | X41: 0.3687 | Y41: 2166.85 | Z41: 3710.15
A42: 75 | B42: =LOOKUP(A42,'DOE - FIPStoPayeeCodeConvTable'!$A$3:$A$213,'DOE - FIPStoPayeeCodeConvTable'!$B$3:$B$213) -> Goochland Co | C42: 653 | D42: 653 | E42: 653 | F42: 653 | G42: 326.5 | H42: 653 | I42: 326.5 | J42: 326.5 | K42: 326.5 | L42: -979.5 | M42: 326.5 | N42: 0 | S42: 3918 | U42: 1959 | V42: 1959 | W42: =LOOKUP(A42,'DOE - FIPStoPayeeCodeConvTable'!$A$3:$A$213,'DOE - FIPStoPayeeCodeConvTable'!$E$3:$E$213) -> 0.4871 | X42: 0.4871 | Y42: 954.23 | Z42: 1004.77
A43: 77 | B43: =LOOKUP(A43,'DOE - FIPStoPayeeCodeConvTable'!$A$3:$A$213,'DOE - FIPStoPayeeCodeConvTable'!$B$3:$B$213) -> Grayson Co | C43: 653 | D43: 326.5 | E43: 653 | F43: 326.5 | G43: 326.5 | H43: 326.5 | I43: 979.5 | J43: 1632.5 | K43: 979.5 | L43: 653 | M43: 979.5 | N43: 1959 | S43: 9795 | U43: 4897.5 | V43: 4897.5 | W43: =LOOKUP(A43,'DOE - FIPStoPayeeCodeConvTable'!$A$3:$A$213,'DOE - FIPStoPayeeCodeConvTable'!$E$3:$E$213) -> 0.2109 | X43: 0.2109 | Y43: 1032.88 | Z43: 3864.62
A44: 79 | B44: =LOOKUP(A44,'DOE - FIPStoPayeeCodeConvTable'!$A$3:$A$213,'DOE - FIPStoPayeeCodeConvTable'!$B$3:$B$213) -> Greene Co | C44: 326.5 | D44: 326.5 | E44: 326.5 | F44: 0 | G44: 0 | H44: 0 | I44: 0 | J44: 0 | K44: -3265 | L44: 0 | M44: 0 | N44: 0 | S44: -2285.5 | U44: -1142.75 | V44: -1142.75 | W44: =LOOKUP(A44,'DOE - FIPStoPayeeCodeConvTable'!$A$3:$A$213,'DOE - FIPStoPayeeCodeConvTable'!$E$3:$E$213) -> 0.3471 | X44: 0.3471 | Y44: -396.65 | Z44: -746.1
A45: 81 | B45: =LOOKUP(A45,'DOE - FIPStoPayeeCodeConvTable'!$A$3:$A$213,'DOE - FIPStoPayeeCodeConvTable'!$B$3:$B$213) -> Greensville Co | C45: 653 | D45: 1306 | E45: 979.5 | F45: 653 | G45: 0 | H45: 979.5 | I45: 1306 | J45: 1306 | K45: 979.5 | L45: 326.5 | M45: 326.5 | N45: 979.5 | S45: 9795 | U45: 4897.5 | V45: 4897.5 | W45: =LOOKUP(A45,'DOE - FIPStoPayeeCodeConvTable'!$A$3:$A$213,'DOE - FIPStoPayeeCodeConvTable'!$E$3:$E$213) -> 0.2266 | X45: 0.2266 | Y45: 1109.77 | Z45: 3787.73
A46: 83 | B46: =LOOKUP(A46,'DOE - FIPStoPayeeCodeConvTable'!$A$3:$A$213,'DOE - FIPStoPayeeCodeConvTable'!$B$3:$B$213) -> Halifax Co | C46: 1306 | D46: 3591.5 | E46: 1959 | F46: 2612 | G46: 326.5 | H46: 1959 | I46: 3265 | J46: 3918 | K46: 2938.5 | L46: 2938.5 | M46: 2285.5 | N46: 4571 | S46: 31670.5 | U46: 15835.25 | V46: 15835.25 | W46: =LOOKUP(A46,'DOE - FIPStoPayeeCodeConvTable'!$A$3:$A$213,'DOE - FIPStoPayeeCodeConvTable'!$E$3:$E$213) -> 0.2335 | X46: 0.2335 | Y46: 3697.53 | Z46: 12137.72
A47: 85 | B47: =LOOKUP(A47,'DOE - FIPStoPayeeCodeConvTable'!$A$3:$A$213,'DOE - FIPStoPayeeCodeConvTable'!$B$3:$B$213) -> Hanover Co | C47: 1306 | D47: 979.5 | E47: 1447.44 | F47: 979.5 | G47: 979.5 | H47: 1632.5 | I47: -653 | J47: 653 | K47: 653 | L47: 1632.5 | M47: 979.5 | N47: 337.23 | S47: 10926.67 | U47: 5463.34 | V47: 5463.33 | W47: =LOOKUP(A47,'DOE - FIPStoPayeeCodeConvTable'!$A$3:$A$213,'DOE - FIPStoPayeeCodeConvTable'!$E$3:$E$213) -> 0.4444 | X47: 0.4444 | Y47: 2427.9 | Z47: 3035.43
A48: 87 | B48: =LOOKUP(A48,'DOE - FIPStoPayeeCodeConvTable'!$A$3:$A$213,'DOE - FIPStoPayeeCodeConvTable'!$B$3:$B$213) -> Henrico Co | C48: 2049.35 | D48: 2612 | E48: 653 | F48: 4897.5 | G48: -2481.14 | H48: 4244.5 | I48: 4897.5 | J48: 1306 | K48: 5224 | L48: -3591.5 | M48: 3265 | N48: 3591.5 | S48: 26667.71 | U48: 13333.86 | V48: 13333.85 | W48: =LOOKUP(A48,'DOE - FIPStoPayeeCodeConvTable'!$A$3:$A$213,'DOE - FIPStoPayeeCodeConvTable'!$E$3:$E$213) -> 0.3755 | X48: 0.3755 | Y48: 5006.86 | Z48: 8326.99
A49: 89 | B49: =LOOKUP(A49,'DOE - FIPStoPayeeCodeConvTable'!$A$3:$A$213,'DOE - FIPStoPayeeCodeConvTable'!$B$3:$B$213) -> Henry Co | C49: 1306 | D49: 326.5 | E49: 326.5 | F49: 326.5 | G49: 653 | H49: -326.5 | I49: 0 | J49: 326.5 | K49: 979.5 | L49: 653 | M49: 326.5 | N49: 326.5 | S49: 5224 | U49: 2612 | V49: 2612 | W49: =LOOKUP(A49,'DOE - FIPStoPayeeCodeConvTable'!$A$3:$A$213,'DOE - FIPStoPayeeCodeConvTable'!$E$3:$E$213) -> 0.2786 | X49: 0.2786 | Y49: 727.7 | Z49: 1884.3
A50: 91 | B50: =LOOKUP(A50,'DOE - FIPStoPayeeCodeConvTable'!$A$3:$A$213,'DOE - FIPStoPayeeCodeConvTable'!$B$3:$B$213) -> Highland Co | C50: 1306 | D50: 653 | E50: 653 | F50: 653 | G50: 653 | H50: 653 | I50: 326.5 | J50: 326.5 | K50: 1306 | L50: 653 | M50: 653 | N50: 653 | S50: 8489 | U50: 4244.5 | V50: 4244.5 | W50: =LOOKUP(A50,'DOE - FIPStoPayeeCodeConvTable'!$A$3:$A$213,'DOE - FIPStoPayeeCodeConvTable'!$E$3:$E$213) -> 0.3822 | X50: 0.3822 | Y50: 1622.25 | Z50: 2622.25
A51: 93 | B51: =LOOKUP(A51,'DOE - FIPStoPayeeCodeConvTable'!$A$3:$A$213,'DOE - FIPStoPayeeCodeConvTable'!$B$3:$B$213) -> Isle Of Wight Co | C51: 326.5 | D51: 326.5 | E51: 0 | F51: 0 | G51: 0 | H51: 0 | I51: 0 | J51: 0 | K51: 0 | L51: 0 | M51: 0 | N51: 0 | S51: 653 | U51: 326.5 | V51: 326.5 | W51: =LOOKUP(A51,'DOE - FIPStoPayeeCodeConvTable'!$A$3:$A$213,'DOE - FIPStoPayeeCodeConvTable'!$E$3:$E$213) -> 0.3613 | X51: 0.3613 | Y51: 117.96 | Z51: 208.54
A52: 95 | B52: =LOOKUP(A52,'DOE - FIPStoPayeeCodeConvTable'!$A$3:$A$213,'DOE - FIPStoPayeeCodeConvTable'!$B$3:$B$213) -> James City Co | C52: 0 | D52: 0 | E52: 0 | F52: 0 | G52: 0 | H52: 0 | I52: 0 | J52: 0 | K52: 0 | L52: 0 | M52: 0 | N52: -326.5 | S52: -326.5 | U52: -163.25 | V52: -163.25 | W52: =LOOKUP(A52,'DOE - FIPStoPayeeCodeConvTable'!$A$3:$A$213,'DOE - FIPStoPayeeCodeConvTable'!$E$3:$E$213) -> 0.4483 | X52: 0.4483 | Y52: -73.18 | Z52: -90.07
A53: 97 | B53: =LOOKUP(A53,'DOE - FIPStoPayeeCodeConvTable'!$A$3:$A$213,'DOE - FIPStoPayeeCodeConvTable'!$B$3:$B$213) -> King And Queen Co | C53: 0 | D53: 653 | E53: 1306 | F53: 653 | G53: 0 | H53: 0 | I53: 0 | J53: 0 | K53: 0 | L53: 0 | M53: 0 | N53: 653 | S53: 3265 | U53: 1632.5 | V53: 1632.5 | W53: =LOOKUP(A53,'DOE - FIPStoPayeeCodeConvTable'!$A$3:$A$213,'DOE - FIPStoPayeeCodeConvTable'!$E$3:$E$213) -> 0.3144 | X53: 0.3144 | Y53: 513.26 | Z53: 1119.24
A54: 99 | B54: =LOOKUP(A54,'DOE - FIPStoPayeeCodeConvTable'!$A$3:$A$213,'DOE - FIPStoPayeeCodeConvTable'!$B$3:$B$213) -> King George Co | C54: 4897.5 | D54: 3265 | E54: 3591.5 | F54: 2612 | G54: 0 | H54: 2612 | I54: 3265 | J54: 979.5 | K54: 1632.5 | L54: 653 | M54: 653 | N54: 1959 | S54: 26120 | U54: 13060 | V54: 13060 | W54: =LOOKUP(A54,'DOE - FIPStoPayeeCodeConvTable'!$A$3:$A$213,'DOE - FIPStoPayeeCodeConvTable'!$E$3:$E$213) -> 0.3627 | X54: 0.3627 | Y54: 4736.86 | Z54: 8323.14
A55: 101 | B55: =LOOKUP(A55,'DOE - FIPStoPayeeCodeConvTable'!$A$3:$A$213,'DOE - FIPStoPayeeCodeConvTable'!$B$3:$B$213) -> King William Co | C55: 326.5 | D55: 0 | E55: 653 | F55: 326.5 | G55: 0 | H55: 0 | I55: 0 | J55: 0 | K55: 0 | L55: 326.5 | M55: 326.5 | N55: 326.5 | S55: 2285.5 | U55: 1142.75 | V55: 1142.75 | W55: =LOOKUP(A55,'DOE - FIPStoPayeeCodeConvTable'!$A$3:$A$213,'DOE - FIPStoPayeeCodeConvTable'!$E$3:$E$213) -> 0.3853 | X55: 0.3853 | Y55: 440.3 | Z55: 702.45
A56: 103 | B56: =LOOKUP(A56,'DOE - FIPStoPayeeCodeConvTable'!$A$3:$A$213,'DOE - FIPStoPayeeCodeConvTable'!$B$3:$B$213) -> Lancaster Co | C56: 326.5 | D56: 326.5 | E56: 326.5 | F56: 326.5 | G56: 326.5 | H56: 326.5 | I56: 326.5 | J56: 326.5 | K56: 326.5 | L56: 326.5 | M56: 326.5 | N56: 326.5 | S56: 3918 | U56: 1959 | V56: 1959 | W56: =LOOKUP(A56,'DOE - FIPStoPayeeCodeConvTable'!$A$3:$A$213,'DOE - FIPStoPayeeCodeConvTable'!$E$3:$E$213) -> 0.4391 | X56: 0.4391 | Y56: 860.2 | Z56: 1098.8
A57: 105 | B57: =LOOKUP(A57,'DOE - FIPStoPayeeCodeConvTable'!$A$3:$A$213,'DOE - FIPStoPayeeCodeConvTable'!$B$3:$B$213) -> Lee Co | C57: 2285.5 | D57: 4897.5 | E57: 1632.5 | F57: 1959 | G57: 653 | H57: 1632.5 | I57: 4897.5 | J57: 3265 | K57: 4897.5 | L57: 3918 | M57: 4571 | N57: 3265 | S57: 37874 | U57: 18937 | V57: 18937 | W57: =LOOKUP(A57,'DOE - FIPStoPayeeCodeConvTable'!$A$3:$A$213,'DOE - FIPStoPayeeCodeConvTable'!$E$3:$E$213) -> 0.2245 | X57: 0.2245 | Y57: 4251.36 | Z57: 14685.64
A58: 107 | B58: =LOOKUP(A58,'DOE - FIPStoPayeeCodeConvTable'!$A$3:$A$213,'DOE - FIPStoPayeeCodeConvTable'!$B$3:$B$213) -> Loudoun Co | C58: 1632.5 | D58: 1258.6 | E58: 653 | F58: 653 | G58: 653 | H58: 0 | I58: 653 | J58: 1306 | K58: 0 | L58: 979.5 | M58: 653 | N58: 1306 | S58: 9747.6 | U58: 4873.8 | V58: 4873.8 | W58: =LOOKUP(A58,'DOE - FIPStoPayeeCodeConvTable'!$A$3:$A$213,'DOE - FIPStoPayeeCodeConvTable'!$E$3:$E$213) -> 0.4764 | X58: 0.4764 | Y58: 2321.88 | Z58: 2551.92
A59: 109 | B59: =LOOKUP(A59,'DOE - FIPStoPayeeCodeConvTable'!$A$3:$A$213,'DOE - FIPStoPayeeCodeConvTable'!$B$3:$B$213) -> Louisa Co | C59: 2109.28 | D59: 1959 | E59: 1959 | F59: 1959 | G59: 1306 | H59: 1632.5 | I59: 1306 | J59: 326.5 | K59: 326.5 | L59: 326.5 | M59: 326.5 | N59: 0 | S59: 13536.78 | U59: 6768.39 | V59: 6768.39 | W59: =LOOKUP(A59,'DOE - FIPStoPayeeCodeConvTable'!$A$3:$A$213,'DOE - FIPStoPayeeCodeConvTable'!$E$3:$E$213) -> 0.4401 | X59: 0.4401 | Y59: 2978.77 | Z59: 3789.62
A60: 111 | B60: =LOOKUP(A60,'DOE - FIPStoPayeeCodeConvTable'!$A$3:$A$213,'DOE - FIPStoPayeeCodeConvTable'!$B$3:$B$213) -> Lunenburg Co | C60: 979.5 | D60: 979.5 | E60: 979.5 | F60: 979.5 | G60: 979.5 | H60: 979.5 | I60: 979.5 | J60: 979.5 | K60: 979.5 | L60: 979.5 | M60: 979.5 | N60: 0 | S60: 10774.5 | U60: 5387.25 | V60: 5387.25 | W60: =LOOKUP(A60,'DOE - FIPStoPayeeCodeConvTable'!$A$3:$A$213,'DOE - FIPStoPayeeCodeConvTable'!$E$3:$E$213) -> 0.1698 | X60: 0.1698 | Y60: 914.76 | Z60: 4472.49
A61: 113 | B61: =LOOKUP(A61,'DOE - FIPStoPayeeCodeConvTable'!$A$3:$A$213,'DOE - FIPStoPayeeCodeConvTable'!$B$3:$B$213) -> Madison Co | C61: 1632.5 | D61: 1469.25 | E61: 653 | F61: 1959 | G61: 653 | H61: 1959 | I61: 1959 | J61: 4571 | K61: 2285.5 | L61: 1959 | M61: 2024.18 | N61: 2154.84 | S61: 23279.27 | U61: 11639.64 | V61: 11639.63 | W61: =LOOKUP(A61,'DOE - FIPStoPayeeCodeConvTable'!$A$3:$A$213,'DOE - FIPStoPayeeCodeConvTable'!$E$3:$E$213) -> 0.3355 | X61: 0.3355 | Y61: 3905.1 | Z61: 7734.53
A62: 115 | B62: =LOOKUP(A62,'DOE - FIPStoPayeeCodeConvTable'!$A$3:$A$213,'DOE - FIPStoPayeeCodeConvTable'!$B$3:$B$213) -> Mathews Co | C62: 0 | D62: 0 | E62: 0 | F62: 0 | G62: 0 | H62: 0 | I62: 0 | J62: 0 | K62: 0 | L62: 979.5 | M62: 326.5 | N62: 326.5 | S62: 1632.5 | U62: 816.25 | V62: 816.25 | W62: =LOOKUP(A62,'DOE - FIPStoPayeeCodeConvTable'!$A$3:$A$213,'DOE - FIPStoPayeeCodeConvTable'!$E$3:$E$213) -> 0.4271 | X62: 0.4271 | Y62: 348.62 | Z62: 467.63
A63: 117 | B63: =LOOKUP(A63,'DOE - FIPStoPayeeCodeConvTable'!$A$3:$A$213,'DOE - FIPStoPayeeCodeConvTable'!$B$3:$B$213) -> Mecklenburg Co | C63: 0 | D63: 0 | E63: 0 | F63: 979.5 | G63: 326.5 | H63: 653 | I63: 653 | J63: 1306 | K63: 653 | L63: 653 | M63: 653 | N63: 326.5 | S63: 6203.5 | U63: 3101.75 | V63: 3101.75 | W63: =LOOKUP(A63,'DOE - FIPStoPayeeCodeConvTable'!$A$3:$A$213,'DOE - FIPStoPayeeCodeConvTable'!$E$3:$E$213) -> 0.2286 | X63: 0.2286 | Y63: 709.06 | Z63: 2392.69
A64: 119 | B64: =LOOKUP(A64,'DOE - FIPStoPayeeCodeConvTable'!$A$3:$A$213,'DOE - FIPStoPayeeCodeConvTable'!$B$3:$B$213) -> Middlesex Co | C64: 326.5 | D64: 326.5 | E64: 326.5 | F64: 326.5 | G64: 326.5 | H64: 0 | I64: 0 | J64: 0 | K64: 0 | L64: 0 | M64: 0 | N64: 0 | S64: 1632.5 | U64: 816.25 | V64: 816.25 | W64: =LOOKUP(A64,'DOE - FIPStoPayeeCodeConvTable'!$A$3:$A$213,'DOE - FIPStoPayeeCodeConvTable'!$E$3:$E$213) -> 0.4333 | X64: 0.4333 | Y64: 353.68 | Z64: 462.57
A65: 121 | B65: =LOOKUP(A65,'DOE - FIPStoPayeeCodeConvTable'!$A$3:$A$213,'DOE - FIPStoPayeeCodeConvTable'!$B$3:$B$213) -> Montgomery Co | C65: 1632.5 | D65: 653 | E65: 653 | F65: 979.5 | G65: 326.5 | H65: 326.5 | I65: 1632.5 | J65: -2285.5 | K65: 979.5 | L65: 653 | M65: 979.5 | N65: 326.5 | S65: 6856.5 | U65: 3428.25 | V65: 3428.25 | W65: =LOOKUP(A65,'DOE - FIPStoPayeeCodeConvTable'!$A$3:$A$213,'DOE - FIPStoPayeeCodeConvTable'!$E$3:$E$213) -> 0.2834 | X65: 0.2834 | Y65: 971.57 | Z65: 2456.68
A66: 125 | B66: =LOOKUP(A66,'DOE - FIPStoPayeeCodeConvTable'!$A$3:$A$213,'DOE - FIPStoPayeeCodeConvTable'!$B$3:$B$213) -> Nelson Co | C66: 326.5 | D66: 979.5 | E66: 326.5 | F66: 2285.5 | G66: 979.5 | H66: 1632.5 | I66: 1632.5 | J66: 1632.5 | K66: 1959 | L66: 1632.5 | M66: 1306 | N66: 1632.5 | S66: 16325 | U66: 8162.5 | V66: 8162.5 | W66: =LOOKUP(A66,'DOE - FIPStoPayeeCodeConvTable'!$A$3:$A$213,'DOE - FIPStoPayeeCodeConvTable'!$E$3:$E$213) -> 0.3132 | X66: 0.3132 | Y66: 2556.5 | Z66: 5606
A67: 127 | B67: =LOOKUP(A67,'DOE - FIPStoPayeeCodeConvTable'!$A$3:$A$213,'DOE - FIPStoPayeeCodeConvTable'!$B$3:$B$213) -> New Kent Co | C67: 326.5 | D67: 2285.5 | E67: 1306 | F67: 1632.5 | G67: 0 | H67: 2612 | I67: 979.5 | J67: -1959 | K67: 326.5 | L67: 0 | M67: 653 | N67: 1959 | S67: 10121.5 | U67: 5060.75 | V67: 5060.75 | W67: =LOOKUP(A67,'DOE - FIPStoPayeeCodeConvTable'!$A$3:$A$213,'DOE - FIPStoPayeeCodeConvTable'!$E$3:$E$213) -> 0.4329 | X67: 0.4329 | Y67: 2190.8 | Z67: 2869.95
A68: 131 | B68: =LOOKUP(A68,'DOE - FIPStoPayeeCodeConvTable'!$A$3:$A$213,'DOE - FIPStoPayeeCodeConvTable'!$B$3:$B$213) -> Northampton Co | C68: 1306 | D68: 326.5 | E68: 1632.5 | F68: 0 | G68: 0 | H68: 326.5 | I68: 1306 | J68: 0 | K68: 0 | L68: 0 | M68: 0 | N68: 0 | S68: 4897.5 | U68: 2448.75 | V68: 2448.75 | W68: =LOOKUP(A68,'DOE - FIPStoPayeeCodeConvTable'!$A$3:$A$213,'DOE - FIPStoPayeeCodeConvTable'!$E$3:$E$213) -> 0.1971 | X68: 0.1971 | Y68: 482.65 | Z68: 1966.1
A69: 133 | B69: =LOOKUP(A69,'DOE - FIPStoPayeeCodeConvTable'!$A$3:$A$213,'DOE - FIPStoPayeeCodeConvTable'!$B$3:$B$213) -> Northumberland Co | C69: 0 | D69: 0 | E69: 0 | F69: 0 | G69: 0 | H69: 0 | I69: 0 | J69: 0 | K69: 0 | L69: 0 | M69: 0 | N69: 0 | S69: =SUM(C69:R69) -> 0 | U69: 0 | V69: 0 | W69: =LOOKUP(A69,'DOE - FIPStoPayeeCodeConvTable'!$A$3:$A$213,'DOE - FIPStoPayeeCodeConvTable'!$E$3:$E$213) -> 0.3304 | X69: 0.3304 | Y69: 0 | Z69: 0
A70: 135 | B70: =LOOKUP(A70,'DOE - FIPStoPayeeCodeConvTable'!$A$3:$A$213,'DOE - FIPStoPayeeCodeConvTable'!$B$3:$B$213) -> Nottoway Co | C70: 0 | D70: 0 | E70: 0 | F70: 326.5 | G70: 326.5 | H70: 326.5 | I70: 1306 | J70: 653 | K70: 653 | L70: 326.5 | M70: 326.5 | N70: 326.5 | S70: 4571 | U70: =ROUND($U$1*S70,2) -> 2285.5 | V70: =SUM(S70)-SUM(U70) -> 2285.5 | W70: =LOOKUP(A70,'DOE - FIPStoPayeeCodeConvTable'!$A$3:$A$213,'DOE - FIPStoPayeeCodeConvTable'!$E$3:$E$213) -> 0.2686 | X70: 0.2686 | Y70: 613.89 | Z70: 1671.61
A71: 137 | B71: =LOOKUP(A71,'DOE - FIPStoPayeeCodeConvTable'!$A$3:$A$213,'DOE - FIPStoPayeeCodeConvTable'!$B$3:$B$213) -> Orange Co | C71: 979.5 | D71: 2938.5 | E71: -4244.5 | F71: 979.5 | G71: 326.5 | H71: 1632.5 | I71: 1306 | J71: 1105.86 | K71: 1556.24 | L71: 2612 | M71: 979.5 | N71: 2938.5 | S71: 13110.1 | U71: 6555.05 | V71: 6555.05 | W71: =LOOKUP(A71,'DOE - FIPStoPayeeCodeConvTable'!$A$3:$A$213,'DOE - FIPStoPayeeCodeConvTable'!$E$3:$E$213) -> 0.4083 | X71: =$X$1*W71 -> 0.4083 | Y71: =ROUND(X71*V71,2) -> 2676.43 | Z71: =SUM(V71)-SUM(Y71) -> 3878.62
A72: 139 | B72: =LOOKUP(A72,'DOE - FIPStoPayeeCodeConvTable'!$A$3:$A$213,'DOE - FIPStoPayeeCodeConvTable'!$B$3:$B$213) -> Page Co | C72: 326.5 | D72: 326.5 | E72: 653 | F72: 3591.5 | G72: 0 | H72: 1306 | I72: 979.5 | J72: 653 | K72: 1306 | L72: 979.5 | M72: 653 | N72: 326.5 | S72: 11101 | U72: 5550.5 | V72: 5550.5 | W72: =LOOKUP(A72,'DOE - FIPStoPayeeCodeConvTable'!$A$3:$A$213,'DOE - FIPStoPayeeCodeConvTable'!$E$3:$E$213) -> 0.2865 | X72: 0.2865 | Y72: 1590.22 | Z72: 3960.28
A73: 141 | B73: =LOOKUP(A73,'DOE - FIPStoPayeeCodeConvTable'!$A$3:$A$213,'DOE - FIPStoPayeeCodeConvTable'!$B$3:$B$213) -> Patrick Co | C73: 1306 | D73: 2938.5 | E73: 1306 | F73: 1959 | G73: 0 | H73: 1632.5 | I73: 2285.5 | J73: 0 | K73: 2612 | L73: 1306 | M73: 1632.5 | N73: 0 | S73: 16978 | U73: 8489 | V73: 8489 | W73: =LOOKUP(A73,'DOE - FIPStoPayeeCodeConvTable'!$A$3:$A$213,'DOE - FIPStoPayeeCodeConvTable'!$E$3:$E$213) -> 0.2539 | X73: 0.2539 | Y73: 2155.36 | Z73: 6333.64
A74: 143 | B74: =LOOKUP(A74,'DOE - FIPStoPayeeCodeConvTable'!$A$3:$A$213,'DOE - FIPStoPayeeCodeConvTable'!$B$3:$B$213) -> Pittsylvania Co | C74: 2938.5 | D74: 1632.5 | E74: 653 | F74: 979.5 | G74: 653 | H74: 1306 | I74: 653 | J74: 653 | K74: 370.02 | L74: 653 | M74: 326.5 | N74: 326.5 | S74: 11144.52 | U74: 5572.26 | V74: 5572.26 | W74: =LOOKUP(A74,'DOE - FIPStoPayeeCodeConvTable'!$A$3:$A$213,'DOE - FIPStoPayeeCodeConvTable'!$E$3:$E$213) -> 0.2355 | X74: 0.2355 | Y74: 1312.27 | Z74: 4259.99
A75: 145 | B75: =LOOKUP(A75,'DOE - FIPStoPayeeCodeConvTable'!$A$3:$A$213,'DOE - FIPStoPayeeCodeConvTable'!$B$3:$B$213) -> Powhatan Co | C75: 0 | D75: 0 | E75: 0 | F75: 0 | G75: 10643.64 | H75: 1959 | I75: 1306 | J75: 979.5 | K75: 979.5 | L75: 0 | M75: 0 | N75: 0 | S75: 15867.64 | U75: 7933.82 | V75: 7933.82 | W75: =LOOKUP(A75,'DOE - FIPStoPayeeCodeConvTable'!$A$3:$A$213,'DOE - FIPStoPayeeCodeConvTable'!$E$3:$E$213) -> 0.4342 | X75: 0.4342 | Y75: 3444.86 | Z75: 4488.96
A76: 147 | B76: =LOOKUP(A76,'DOE - FIPStoPayeeCodeConvTable'!$A$3:$A$213,'DOE - FIPStoPayeeCodeConvTable'!$B$3:$B$213) -> Prince Edward Co | C76: 326.5 | D76: 653 | E76: 0 | F76: 653 | G76: 326.5 | H76: 0 | I76: 326.5 | J76: 653 | K76: -7836 | L76: 0 | M76: 0 | N76: 0 | S76: -4897.5 | U76: -2448.75 | V76: -2448.75 | W76: =LOOKUP(A76,'DOE - FIPStoPayeeCodeConvTable'!$A$3:$A$213,'DOE - FIPStoPayeeCodeConvTable'!$E$3:$E$213) -> 0.2232 | X76: 0.2232 | Y76: -546.56 | Z76: -1902.19
A77: 149 | B77: =LOOKUP(A77,'DOE - FIPStoPayeeCodeConvTable'!$A$3:$A$213,'DOE - FIPStoPayeeCodeConvTable'!$B$3:$B$213) -> Prince George Co | C77: 0 | D77: 979.5 | E77: 979.5 | F77: 653 | G77: 0 | H77: 979.5 | I77: 326.5 | J77: 326.5 | K77: 326.5 | L77: 0 | M77: 979.5 | N77: 326.5 | S77: 5877 | U77: 2938.5 | V77: 2938.5 | W77: =LOOKUP(A77,'DOE - FIPStoPayeeCodeConvTable'!$A$3:$A$213,'DOE - FIPStoPayeeCodeConvTable'!$E$3:$E$213) -> 0.3716 | X77: 0.3716 | Y77: 1091.95 | Z77: 1846.55
A78: 153 | B78: =LOOKUP(A78,'DOE - FIPStoPayeeCodeConvTable'!$A$3:$A$213,'DOE - FIPStoPayeeCodeConvTable'!$B$3:$B$213) -> Prince William Co | C78: 326.5 | D78: 979.5 | E78: 326.5 | F78: 326.5 | G78: -653 | H78: -4987.85 | I78: 1306 | J78: 653 | K78: -5550.5 | L78: -6856.5 | M78: 0 | N78: 653 | S78: -13476.85 | U78: -6738.43 | V78: -6738.42 | W78: =LOOKUP(A78,'DOE - FIPStoPayeeCodeConvTable'!$A$3:$A$213,'DOE - FIPStoPayeeCodeConvTable'!$E$3:$E$213) -> 0.3414 | X78: 0.3414 | Y78: -2300.5 | Z78: -4437.92
A79: 155 | B79: =LOOKUP(A79,'DOE - FIPStoPayeeCodeConvTable'!$A$3:$A$213,'DOE - FIPStoPayeeCodeConvTable'!$B$3:$B$213) -> Pulaski Co | C79: 1959 | D79: 1632.5 | E79: 979.5 | F79: 1632.5 | G79: 5550.5 | H79: 1632.5 | I79: 2285.5 | J79: 4079.01 | K79: 1306 | L79: 326.5 | M79: 653 | N79: 7183 | S79: 29219.51 | U79: 14609.76 | V79: 14609.75 | W79: =LOOKUP(A79,'DOE - FIPStoPayeeCodeConvTable'!$A$3:$A$213,'DOE - FIPStoPayeeCodeConvTable'!$E$3:$E$213) -> 0.2923 | X79: 0.2923 | Y79: 4270.43 | Z79: 10339.32
A80: 157 | B80: =LOOKUP(A80,'DOE - FIPStoPayeeCodeConvTable'!$A$3:$A$213,'DOE - FIPStoPayeeCodeConvTable'!$B$3:$B$213) -> Rappahannock Co | C80: 1697.8 | D80: 653 | E80: 653 | F80: 653 | G80: 653 | H80: 1632.5 | I80: 1306 | J80: 979.5 | K80: 979.5 | L80: 2612 | M80: 979.5 | N80: 1632.5 | S80: 14431.3 | U80: 7215.65 | V80: 7215.65 | W80: =LOOKUP(A80,'DOE - FIPStoPayeeCodeConvTable'!$A$3:$A$213,'DOE - FIPStoPayeeCodeConvTable'!$E$3:$E$213) -> 0.4199 | X80: 0.4199 | Y80: 3029.85 | Z80: 4185.8
A81: 159 | B81: =LOOKUP(A81,'DOE - FIPStoPayeeCodeConvTable'!$A$3:$A$213,'DOE - FIPStoPayeeCodeConvTable'!$B$3:$B$213) -> Richmond Co | C81: 0 | D81: 0 | E81: 0 | F81: 0 | G81: 0 | H81: 0 | I81: 0 | J81: 0 | K81: 0 | L81: 0 | M81: 0 | N81: 0 | S81: 0 | U81: 0 | V81: 0 | W81: =LOOKUP(A81,'DOE - FIPStoPayeeCodeConvTable'!$A$3:$A$213,'DOE - FIPStoPayeeCodeConvTable'!$E$3:$E$213) -> 0.3227 | X81: 0.3227 | Y81: 0 | Z81: 0
A82: 161 | B82: =LOOKUP(A82,'DOE - FIPStoPayeeCodeConvTable'!$A$3:$A$213,'DOE - FIPStoPayeeCodeConvTable'!$B$3:$B$213) -> Roanoke Co | C82: 9142 | D82: 7509.5 | E82: 6203.5 | F82: 6203.5 | G82: 4897.5 | H82: 9562.86 | I82: 7712.23 | J82: 653 | K82: 326.5 | L82: 1959 | M82: -1306 | N82: 2612 | S82: 55475.59 | U82: 27737.8 | V82: 27737.79 | W82: =LOOKUP(A82,'DOE - FIPStoPayeeCodeConvTable'!$A$3:$A$213,'DOE - FIPStoPayeeCodeConvTable'!$E$3:$E$213) -> 0.4397 | X82: 0.4397 | Y82: 12196.31 | Z82: 15541.48
A83: 163 | B83: =LOOKUP(A83,'DOE - FIPStoPayeeCodeConvTable'!$A$3:$A$213,'DOE - FIPStoPayeeCodeConvTable'!$B$3:$B$213) -> Rockbridge Co | C83: 979.5 | D83: 979.5 | E83: 653 | F83: 326.5 | G83: 0 | H83: 0 | I83: 653 | J83: 326.5 | K83: 326.5 | L83: 326.5 | M83: 326.5 | N83: 326.5 | S83: 5224 | U83: 2612 | V83: 2612 | W83: =LOOKUP(A83,'DOE - FIPStoPayeeCodeConvTable'!$A$3:$A$213,'DOE - FIPStoPayeeCodeConvTable'!$E$3:$E$213) -> 0.2336 | X83: 0.2336 | Y83: 610.16 | Z83: 2001.84
A84: 165 | B84: =LOOKUP(A84,'DOE - FIPStoPayeeCodeConvTable'!$A$3:$A$213,'DOE - FIPStoPayeeCodeConvTable'!$B$3:$B$213) -> Rockingham Co | C84: 17667.36 | D84: 7664.01 | E84: 0 | F84: 11155.42 | G84: 5441.67 | H84: 9164.68 | I84: 7212.62 | J84: 2938.5 | K84: 7095.86 | L84: 9745.72 | M84: 5637.58 | N84: 7541.1 | S84: 91264.52 | U84: 45632.26 | V84: 45632.26 | W84: =LOOKUP(A84,'DOE - FIPStoPayeeCodeConvTable'!$A$3:$A$213,'DOE - FIPStoPayeeCodeConvTable'!$E$3:$E$213) -> 0.3445 | X84: 0.3445 | Y84: 15720.31 | Z84: 29911.95
A85: 167 | B85: =LOOKUP(A85,'DOE - FIPStoPayeeCodeConvTable'!$A$3:$A$213,'DOE - FIPStoPayeeCodeConvTable'!$B$3:$B$213) -> Russell Co | C85: 653 | D85: 3591.5 | E85: 1306 | F85: 2285.5 | G85: 653 | H85: 653 | I85: 979.5 | J85: 1306 | K85: 979.5 | L85: 979.5 | M85: 1306 | N85: 979.5 | S85: 15672 | U85: 7836 | V85: 7836 | W85: =LOOKUP(A85,'DOE - FIPStoPayeeCodeConvTable'!$A$3:$A$213,'DOE - FIPStoPayeeCodeConvTable'!$E$3:$E$213) -> 0.1894 | X85: 0.1894 | Y85: 1484.14 | Z85: 6351.86
A86: 169 | B86: =LOOKUP(A86,'DOE - FIPStoPayeeCodeConvTable'!$A$3:$A$213,'DOE - FIPStoPayeeCodeConvTable'!$B$3:$B$213) -> Scott Co | C86: 0 | D86: 0 | E86: 326.5 | F86: 0 | G86: 0 | H86: 653 | I86: 1632.5 | J86: 653 | K86: 326.5 | L86: 326.5 | M86: 326.5 | N86: 653 | S86: 4897.5 | U86: 2448.75 | V86: 2448.75 | W86: =LOOKUP(A86,'DOE - FIPStoPayeeCodeConvTable'!$A$3:$A$213,'DOE - FIPStoPayeeCodeConvTable'!$E$3:$E$213) -> 0.3154 | X86: 0.3154 | Y86: 772.34 | Z86: 1676.41
A87: 171 | B87: =LOOKUP(A87,'DOE - FIPStoPayeeCodeConvTable'!$A$3:$A$213,'DOE - FIPStoPayeeCodeConvTable'!$B$3:$B$213) -> Shenandoah Co | C87: 0 | D87: 0 | E87: 0 | F87: 653 | G87: 653 | H87: 979.5 | I87: 979.5 | J87: 1632.5 | K87: 1959 | L87: 1306 | M87: 2355.44 | N87: 642.12 | S87: 11160.06 | U87: 5580.03 | V87: 5580.03 | W87: =LOOKUP(A87,'DOE - FIPStoPayeeCodeConvTable'!$A$3:$A$213,'DOE - FIPStoPayeeCodeConvTable'!$E$3:$E$213) -> 0.3517 | X87: 0.3517 | Y87: 1962.5 | Z87: 3617.53
A88: 173 | B88: =LOOKUP(A88,'DOE - FIPStoPayeeCodeConvTable'!$A$3:$A$213,'DOE - FIPStoPayeeCodeConvTable'!$B$3:$B$213) -> Smyth Co | C88: 1632.5 | D88: 979.5 | E88: 1306 | F88: 1306 | G88: 1632.5 | H88: 979.5 | I88: 979.5 | J88: 1306 | K88: 1632.5 | L88: 1306 | M88: 1306 | N88: 1632.5 | S88: 15998.5 | U88: 7999.25 | V88: 7999.25 | W88: =LOOKUP(A88,'DOE - FIPStoPayeeCodeConvTable'!$A$3:$A$213,'DOE - FIPStoPayeeCodeConvTable'!$E$3:$E$213) -> 0.2337 | X88: 0.2337 | Y88: 1869.42 | Z88: 6129.83
A89: 175 | B89: =LOOKUP(A89,'DOE - FIPStoPayeeCodeConvTable'!$A$3:$A$213,'DOE - FIPStoPayeeCodeConvTable'!$B$3:$B$213) -> Southampton Co | C89: 326.5 | D89: 0 | E89: 0 | F89: 0 | G89: 0 | H89: 0 | I89: 0 | J89: 0 | K89: 0 | L89: 0 | M89: 0 | N89: 0 | S89: 326.5 | U89: 163.25 | V89: 163.25 | W89: =LOOKUP(A89,'DOE - FIPStoPayeeCodeConvTable'!$A$3:$A$213,'DOE - FIPStoPayeeCodeConvTable'!$E$3:$E$213) -> 0.323 | X89: 0.323 | Y89: 52.73 | Z89: 110.52
A90: 177 | B90: =LOOKUP(A90,'DOE - FIPStoPayeeCodeConvTable'!$A$3:$A$213,'DOE - FIPStoPayeeCodeConvTable'!$B$3:$B$213) -> Spotsylvania Co | C90: -1716.88 | D90: 5877 | E90: 3591.5 | F90: 3591.5 | G90: 2285.5 | H90: -1198.66 | I90: 4897.5 | J90: 4244.5 | K90: 0 | L90: 12733.5 | M90: 4629.88 | N90: 9468.5 | S90: 48403.84 | U90: 24201.92 | V90: 24201.92 | W90: =LOOKUP(A90,'DOE - FIPStoPayeeCodeConvTable'!$A$3:$A$213,'DOE - FIPStoPayeeCodeConvTable'!$E$3:$E$213) -> 0.4588 | X90: 0.4588 | Y90: 11103.84 | Z90: 13098.08
A91: 179 | B91: =LOOKUP(A91,'DOE - FIPStoPayeeCodeConvTable'!$A$3:$A$213,'DOE - FIPStoPayeeCodeConvTable'!$B$3:$B$213) -> Stafford Co | C91: 326.5 | D91: 0 | E91: 326.5 | F91: 326.5 | G91: 0 | H91: 0 | I91: 0 | J91: 0 | K91: 0 | L91: 0 | M91: 0 | N91: 0 | S91: 979.5 | U91: 489.75 | V91: 489.75 | W91: =LOOKUP(A91,'DOE - FIPStoPayeeCodeConvTable'!$A$3:$A$213,'DOE - FIPStoPayeeCodeConvTable'!$E$3:$E$213) -> 0.4439 | X91: 0.4439 | Y91: 217.4 | Z91: 272.35
A92: 181 | B92: =LOOKUP(A92,'DOE - FIPStoPayeeCodeConvTable'!$A$3:$A$213,'DOE - FIPStoPayeeCodeConvTable'!$B$3:$B$213) -> Surry Co | C92: 0 | D92: -5877 | E92: 0 | F92: 0 | G92: 0 | H92: 0 | I92: 0 | J92: 0 | K92: -326.5 | L92: 0 | M92: 0 | N92: 0 | S92: -6203.5 | U92: -3101.75 | V92: -3101.75 | W92: =LOOKUP(A92,'DOE - FIPStoPayeeCodeConvTable'!$A$3:$A$213,'DOE - FIPStoPayeeCodeConvTable'!$E$3:$E$213) -> 0.3979 | X92: 0.3979 | Y92: -1234.19 | Z92: -1867.56
A93: 183 | B93: =LOOKUP(A93,'DOE - FIPStoPayeeCodeConvTable'!$A$3:$A$213,'DOE - FIPStoPayeeCodeConvTable'!$B$3:$B$213) -> Sussex Co | C93: 0 | D93: 0 | E93: 0 | F93: 1959 | G93: 0 | H93: 979.5 | I93: 653 | J93: 1306 | K93: 653 | L93: 653 | M93: 653 | N93: 0 | S93: 6856.5 | U93: 3428.25 | V93: 3428.25 | W93: =LOOKUP(A93,'DOE - FIPStoPayeeCodeConvTable'!$A$3:$A$213,'DOE - FIPStoPayeeCodeConvTable'!$E$3:$E$213) -> 0.2387 | X93: 0.2387 | Y93: 818.32 | Z93: 2609.93
A94: 185 | B94: =LOOKUP(A94,'DOE - FIPStoPayeeCodeConvTable'!$A$3:$A$213,'DOE - FIPStoPayeeCodeConvTable'!$B$3:$B$213) -> Tazewell Co | C94: 1959 | D94: 1959 | E94: 1306 | F94: 1632.5 | G94: 1306 | H94: 1632.5 | I94: 3265 | J94: 3918 | K94: 2612 | L94: 1959 | M94: 1959 | N94: 2285.5 | S94: 25793.5 | U94: 12896.75 | V94: 12896.75 | W94: =LOOKUP(A94,'DOE - FIPStoPayeeCodeConvTable'!$A$3:$A$213,'DOE - FIPStoPayeeCodeConvTable'!$E$3:$E$213) -> 0.2455 | X94: 0.2455 | Y94: 3166.15 | Z94: 9730.6
A95: 187 | B95: =LOOKUP(A95,'DOE - FIPStoPayeeCodeConvTable'!$A$3:$A$213,'DOE - FIPStoPayeeCodeConvTable'!$B$3:$B$213) -> Warren Co | C95: 2285.5 | D95: 2612 | E95: 1632.5 | F95: 1632.5 | G95: 3522.62 | H95: 3590.5 | I95: 2285.5 | J95: 1306 | K95: 2350.78 | L95: 1959 | M95: 2285.5 | N95: 4897.5 | S95: 30359.9 | U95: 15179.95 | V95: 15179.95 | W95: =LOOKUP(A95,'DOE - FIPStoPayeeCodeConvTable'!$A$3:$A$213,'DOE - FIPStoPayeeCodeConvTable'!$E$3:$E$213) -> 0.3853 | X95: 0.3853 | Y95: 5848.83 | Z95: 9331.12
A96: 191 | B96: =LOOKUP(A96,'DOE - FIPStoPayeeCodeConvTable'!$A$3:$A$213,'DOE - FIPStoPayeeCodeConvTable'!$B$3:$B$213) -> Washington Co | C96: 653 | D96: 653 | E96: 653 | F96: 979.5 | G96: 1306 | H96: 979.5 | I96: 653 | J96: 653 | K96: 653 | L96: 979.5 | M96: 326.5 | N96: 2938.5 | S96: 11427.5 | U96: 5713.75 | V96: 5713.75 | W96: =LOOKUP(A96,'DOE - FIPStoPayeeCodeConvTable'!$A$3:$A$213,'DOE - FIPStoPayeeCodeConvTable'!$E$3:$E$213) -> 0.276 | X96: 0.276 | Y96: 1577 | Z96: 4136.75
A97: 193 | B97: =LOOKUP(A97,'DOE - FIPStoPayeeCodeConvTable'!$A$3:$A$213,'DOE - FIPStoPayeeCodeConvTable'!$B$3:$B$213) -> Westmoreland Co | C97: 0 | D97: 653 | E97: 8162.5 | F97: 326.5 | G97: 0 | H97: 653 | I97: 326.5 | J97: 326.5 | K97: 326.5 | L97: 326.5 | M97: 0 | N97: 0 | S97: 11101 | U97: 5550.5 | V97: 5550.5 | W97: =LOOKUP(A97,'DOE - FIPStoPayeeCodeConvTable'!$A$3:$A$213,'DOE - FIPStoPayeeCodeConvTable'!$E$3:$E$213) -> 0.3025 | X97: 0.3025 | Y97: 1679.03 | Z97: 3871.47
A98: 195 | B98: =LOOKUP(A98,'DOE - FIPStoPayeeCodeConvTable'!$A$3:$A$213,'DOE - FIPStoPayeeCodeConvTable'!$B$3:$B$213) -> Wise Co | C98: 979.5 | D98: 0 | E98: 979.5 | F98: 979.5 | G98: 653 | H98: 653 | I98: 1959 | J98: 1306 | K98: 653 | L98: 653 | M98: 1632.5 | N98: 1632.5 | S98: 12080.5 | U98: 6040.25 | V98: 6040.25 | W98: =LOOKUP(A98,'DOE - FIPStoPayeeCodeConvTable'!$A$3:$A$213,'DOE - FIPStoPayeeCodeConvTable'!$E$3:$E$213) -> 0.2755 | X98: 0.2755 | Y98: 1664.09 | Z98: 4376.16
A99: 197 | B99: =LOOKUP(A99,'DOE - FIPStoPayeeCodeConvTable'!$A$3:$A$213,'DOE - FIPStoPayeeCodeConvTable'!$B$3:$B$213) -> Wythe Co | C99: 1632.5 | D99: 2285.5 | E99: -979.5 | F99: 1959 | G99: 370.02 | H99: 3854.75 | I99: 1959 | J99: 326.5 | K99: -3265 | L99: 326.5 | M99: 326.5 | N99: 326.5 | S99: 9122.27 | U99: 4561.14 | V99: 4561.13 | W99: =LOOKUP(A99,'DOE - FIPStoPayeeCodeConvTable'!$A$3:$A$213,'DOE - FIPStoPayeeCodeConvTable'!$E$3:$E$213) -> 0.2708 | X99: 0.2708 | Y99: 1235.15 | Z99: 3325.98
A100: 199 | B100: =LOOKUP(A100,'DOE - FIPStoPayeeCodeConvTable'!$A$3:$A$213,'DOE - FIPStoPayeeCodeConvTable'!$B$3:$B$213) -> York Co | C100: 0 | D100: 0 | E100: 0 | F100: 0 | G100: 0 | H100: 0 | I100: 0 | J100: 0 | K100: -8162.5 | L100: 0 | M100: 0 | N100: 0 | S100: -8162.5 | U100: -4081.25 | V100: -4081.25 | W100: =LOOKUP(A100,'DOE - FIPStoPayeeCodeConvTable'!$A$3:$A$213,'DOE - FIPStoPayeeCodeConvTable'!$E$3:$E$213) -> 0.3888 | X100: 0.3888 | Y100: -1586.79 | Z100: -2494.46
A101: 510 | B101: =LOOKUP(A101,'DOE - FIPStoPayeeCodeConvTable'!$A$3:$A$213,'DOE - FIPStoPayeeCodeConvTable'!$B$3:$B$213) -> Alexandria City | C101: 3591.5 | D101: 6530 | E101: 8815.5 | F101: 5224 | G101: 1632.5 | H101: 2285.5 | I101: 3265 | J101: 3591.5 | K101: 2938.5 | L101: 2612 | M101: 1632.5 | N101: 3918 | S101: =SUM(C101:R101) -> 46036.5 | U101: 23018.25 | V101: 23018.25 | W101: =LOOKUP(A101,'DOE - FIPStoPayeeCodeConvTable'!$A$3:$A$213,'DOE - FIPStoPayeeCodeConvTable'!$E$3:$E$213) -> 0.5309 | X101: 0.5309 | Y101: 12220.39 | Z101: 10797.86
A102: 520 | B102: =LOOKUP(A102,'DOE - FIPStoPayeeCodeConvTable'!$A$3:$A$213,'DOE - FIPStoPayeeCodeConvTable'!$B$3:$B$213) -> Bristol City | C102: 2938.5 | D102: 1306 | E102: 1959 | F102: 1959 | G102: 1306 | H102: 1959 | I102: 2612 | J102: 1306 | K102: 1306 | L102: 1959 | M102: 979.5 | N102: 1632.5 | S102: 21222.5 | U102: =ROUND($U$1*S102,2) -> 10611.25 | V102: =SUM(S102)-SUM(U102) -> 10611.25 | W102: =LOOKUP(A102,'DOE - FIPStoPayeeCodeConvTable'!$A$3:$A$213,'DOE - FIPStoPayeeCodeConvTable'!$E$3:$E$213) -> 0.2547 | X102: 0.2547 | Y102: 2702.69 | Z102: 7908.56
A103: 530 | B103: =LOOKUP(A103,'DOE - FIPStoPayeeCodeConvTable'!$A$3:$A$213,'DOE - FIPStoPayeeCodeConvTable'!$B$3:$B$213) -> Buena Vista City | C103: 0 | D103: 0 | E103: 0 | F103: 0 | G103: 0 | H103: 0 | I103: 0 | J103: 0 | K103: 0 | L103: 0 | M103: 0 | N103: 0 | S103: 0 | U103: 0 | V103: 0 | W103: =LOOKUP(A103,'DOE - FIPStoPayeeCodeConvTable'!$A$3:$A$213,'DOE - FIPStoPayeeCodeConvTable'!$E$3:$E$213) -> 0.2329 | X103: 0.2329 | Y103: 0 | Z103: 0
A104: 540 | B104: =LOOKUP(A104,'DOE - FIPStoPayeeCodeConvTable'!$A$3:$A$213,'DOE - FIPStoPayeeCodeConvTable'!$B$3:$B$213) -> Charlottesville City | C104: 5550.5 | D104: 4571 | E104: 1632.5 | F104: 8036.11 | G104: 1959 | H104: 8815.5 | I104: 5506.88 | J104: 5877 | K104: 6856.5 | L104: 6192.9 | M104: 5452.55 | N104: 6793.31 | S104: 67243.75 | U104: 33621.88 | V104: 33621.87 | W104: =LOOKUP(A104,'DOE - FIPStoPayeeCodeConvTable'!$A$3:$A$213,'DOE - FIPStoPayeeCodeConvTable'!$E$3:$E$213) -> 0.3068 | X104: 0.3068 | Y104: 10315.19 | Z104: 23306.68
A105: 550 | B105: =LOOKUP(A105,'DOE - FIPStoPayeeCodeConvTable'!$A$3:$A$213,'DOE - FIPStoPayeeCodeConvTable'!$B$3:$B$213) -> Chesapeake City | C105: 1276.79 | D105: -1305.7 | E105: -1959 | F105: -2001.19 | G105: 2432.92 | H105: 979.5 | I105: 1012 | J105: 1959 | K105: 653 | L105: -980 | M105: 326.5 | N105: 2938 | S105: 5331.82 | U105: 2665.91 | V105: 2665.91 | W105: =LOOKUP(A105,'DOE - FIPStoPayeeCodeConvTable'!$A$3:$A$213,'DOE - FIPStoPayeeCodeConvTable'!$E$3:$E$213) -> 0.3715 | X105: 0.3715 | Y105: 990.39 | Z105: 1675.52
A106: 570 | B106: =LOOKUP(A106,'DOE - FIPStoPayeeCodeConvTable'!$A$3:$A$213,'DOE - FIPStoPayeeCodeConvTable'!$B$3:$B$213) -> Colonial Heights City | C106: 0 | D106: 979.5 | E106: 326.5 | F106: 326.5 | G106: 326.5 | H106: 326.5 | I106: 326.5 | J106: 1306 | K106: 326.5 | L106: 326.5 | M106: 326.5 | N106: 326.5 | S106: 5224 | U106: 2612 | V106: 2612 | W106: =LOOKUP(A106,'DOE - FIPStoPayeeCodeConvTable'!$A$3:$A$213,'DOE - FIPStoPayeeCodeConvTable'!$E$3:$E$213) -> 0.4027 | X106: 0.4027 | Y106: 1051.85 | Z106: 1560.15
A107: 580 | B107: =LOOKUP(A107,'DOE - FIPStoPayeeCodeConvTable'!$A$3:$A$213,'DOE - FIPStoPayeeCodeConvTable'!$B$3:$B$213) -> Covington City | C107: 0 | D107: 0 | E107: 0 | F107: 0 | G107: 0 | H107: 0 | I107: 0 | J107: 0 | K107: 0 | L107: 0 | M107: 979.5 | N107: 0 | S107: 979.5 | U107: 489.75 | V107: 489.75 | W107: =LOOKUP(A107,'DOE - FIPStoPayeeCodeConvTable'!$A$3:$A$213,'DOE - FIPStoPayeeCodeConvTable'!$E$3:$E$213) -> 0.2496 | X107: 0.2496 | Y107: 122.24 | Z107: 367.51
A108: 590 | B108: =LOOKUP(A108,'DOE - FIPStoPayeeCodeConvTable'!$A$3:$A$213,'DOE - FIPStoPayeeCodeConvTable'!$B$3:$B$213) -> Danville City | C108: 1632.5 | D108: 1632.5 | E108: -8489 | F108: 1882.82 | G108: 653 | H108: -2285.5 | I108: 326.5 | J108: 3528.25 | K108: 1632.5 | L108: 1306 | M108: 2285.5 | N108: 1843.15 | S108: 5948.22 | U108: 2974.11 | V108: 2974.11 | W108: =LOOKUP(A108,'DOE - FIPStoPayeeCodeConvTable'!$A$3:$A$213,'DOE - FIPStoPayeeCodeConvTable'!$E$3:$E$213) -> 0.2223 | X108: 0.2223 | Y108: 661.14 | Z108: 2312.97
A109: 620 | B109: =LOOKUP(A109,'DOE - FIPStoPayeeCodeConvTable'!$A$3:$A$213,'DOE - FIPStoPayeeCodeConvTable'!$B$3:$B$213) -> Franklin City | C109: 0 | D109: 0 | E109: 0 | F109: 653 | G109: 0 | H109: 653 | I109: 326.5 | J109: 326.5 | K109: 326.5 | L109: 326.5 | M109: 0 | N109: 653 | S109: 3265 | U109: 1632.5 | V109: 1632.5 | W109: =LOOKUP(A109,'DOE - FIPStoPayeeCodeConvTable'!$A$3:$A$213,'DOE - FIPStoPayeeCodeConvTable'!$E$3:$E$213) -> 0.371 | X109: 0.371 | Y109: 605.66 | Z109: 1026.84
A110: 630 | B110: =LOOKUP(A110,'DOE - FIPStoPayeeCodeConvTable'!$A$3:$A$213,'DOE - FIPStoPayeeCodeConvTable'!$B$3:$B$213) -> Fredericksburg City | C110: 326.5 | D110: 2154.84 | E110: 326.5 | F110: 326.5 | G110: 0 | H110: 653 | I110: 326.5 | J110: 326.5 | K110: 326.5 | L110: 0 | M110: 0 | N110: 326.5 | S110: 5093.34 | U110: 2546.67 | V110: 2546.67 | W110: =LOOKUP(A110,'DOE - FIPStoPayeeCodeConvTable'!$A$3:$A$213,'DOE - FIPStoPayeeCodeConvTable'!$E$3:$E$213) -> 0.3441 | X110: 0.3441 | Y110: 876.31 | Z110: 1670.36
A111: 640 | B111: =LOOKUP(A111,'DOE - FIPStoPayeeCodeConvTable'!$A$3:$A$213,'DOE - FIPStoPayeeCodeConvTable'!$B$3:$B$213) -> Galax City | C111: 0 | D111: 0 | E111: 0 | F111: 0 | G111: 0 | H111: 0 | I111: 0 | J111: 326.5 | K111: 653 | L111: 0 | M111: 0 | N111: 0 | S111: 979.5 | U111: 489.75 | V111: 489.75 | W111: =LOOKUP(A111,'DOE - FIPStoPayeeCodeConvTable'!$A$3:$A$213,'DOE - FIPStoPayeeCodeConvTable'!$E$3:$E$213) -> 0.3146 | X111: 0.3146 | Y111: 154.08 | Z111: 335.67
A112: 650 | B112: =LOOKUP(A112,'DOE - FIPStoPayeeCodeConvTable'!$A$3:$A$213,'DOE - FIPStoPayeeCodeConvTable'!$B$3:$B$213) -> Hampton City | C112: 0 | D112: 0 | E112: -326.5 | F112: 0 | G112: 0 | H112: 0 | I112: 0 | J112: 0 | K112: -2938.5 | L112: 0 | M112: 0 | N112: 0 | S112: -3265 | U112: -1632.5 | V112: -1632.5 | W112: =LOOKUP(A112,'DOE - FIPStoPayeeCodeConvTable'!$A$3:$A$213,'DOE - FIPStoPayeeCodeConvTable'!$E$3:$E$213) -> 0.3223 | X112: 0.3223 | Y112: -526.15 | Z112: -1106.35
A113: 660 | B113: =LOOKUP(A113,'DOE - FIPStoPayeeCodeConvTable'!$A$3:$A$213,'DOE - FIPStoPayeeCodeConvTable'!$B$3:$B$213) -> Harrisonburg City | C113: 16555.91 | D113: 14074.74 | E113: 13886.04 | F113: 13398.37 | G113: 8746.81 | H113: 12777.02 | I113: 9675.32 | J113: 7041.46 | K113: 15553.26 | L113: 14598.83 | M113: 10828.94 | N113: 14684.75 | S113: 151821.45 | U113: 75910.73 | V113: 75910.72 | W113: =LOOKUP(A113,'DOE - FIPStoPayeeCodeConvTable'!$A$3:$A$213,'DOE - FIPStoPayeeCodeConvTable'!$E$3:$E$213) -> 0.3808 | X113: 0.3808 | Y113: 28906.8 | Z113: 47003.92
A114: 670 | B114: =LOOKUP(A114,'DOE - FIPStoPayeeCodeConvTable'!$A$3:$A$213,'DOE - FIPStoPayeeCodeConvTable'!$B$3:$B$213) -> Hopewell City | C114: 1632.5 | D114: 326.5 | E114: 3591.5 | F114: 1306 | G114: 3700.3 | H114: 2612 | I114: 3591.5 | J114: 1632.5 | K114: 2416.06 | L114: 2612 | M114: 3265 | N114: 4897.5 | S114: 31583.36 | U114: 15791.68 | V114: 15791.68 | W114: =LOOKUP(A114,'DOE - FIPStoPayeeCodeConvTable'!$A$3:$A$213,'DOE - FIPStoPayeeCodeConvTable'!$E$3:$E$213) -> 0.2667 | X114: 0.2667 | Y114: 4211.64 | Z114: 11580.04
A115: 678 | B115: =LOOKUP(A115,'DOE - FIPStoPayeeCodeConvTable'!$A$3:$A$213,'DOE - FIPStoPayeeCodeConvTable'!$B$3:$B$213) -> Lexington City | C115: 0 | D115: 0 | E115: 0 | F115: 0 | G115: 0 | H115: 0 | I115: 0 | J115: 0 | K115: 0 | L115: 0 | M115: 0 | N115: 0 | S115: 0 | U115: 0 | V115: 0 | W115: =LOOKUP(A115,'DOE - FIPStoPayeeCodeConvTable'!$A$3:$A$213,'DOE - FIPStoPayeeCodeConvTable'!$E$3:$E$213) -> 0.3302 | X115: 0.3302 | Y115: 0 | Z115: 0
A116: 680 | B116: =LOOKUP(A116,'DOE - FIPStoPayeeCodeConvTable'!$A$3:$A$213,'DOE - FIPStoPayeeCodeConvTable'!$B$3:$B$213) -> Lynchburg City | C116: 3918 | D116: 5224 | E116: 10448 | F116: 3591.5 | G116: 1959 | H116: 653 | I116: 1959 | J116: 3265 | K116: 326.5 | L116: 2285.5 | M116: 1632.5 | N116: 4244.5 | S116: 39506.5 | U116: 19753.25 | V116: 19753.25 | W116: =LOOKUP(A116,'DOE - FIPStoPayeeCodeConvTable'!$A$3:$A$213,'DOE - FIPStoPayeeCodeConvTable'!$E$3:$E$213) -> 0.2736 | X116: 0.2736 | Y116: 5404.49 | Z116: 14348.76
A117: 683 | B117: =LOOKUP(A117,'DOE - FIPStoPayeeCodeConvTable'!$A$3:$A$213,'DOE - FIPStoPayeeCodeConvTable'!$B$3:$B$213) -> Manassas City | C117: 1632.5 | D117: 1632.5 | E117: 979.5 | F117: 2285.5 | G117: 1632.5 | H117: 1632.5 | I117: 1632.5 | J117: 1306 | K117: 1959 | L117: 1306 | M117: 1306 | N117: -326.5 | S117: 16978 | U117: 8489 | V117: 8489 | W117: =LOOKUP(A117,'DOE - FIPStoPayeeCodeConvTable'!$A$3:$A$213,'DOE - FIPStoPayeeCodeConvTable'!$E$3:$E$213) -> 0.4168 | X117: 0.4168 | Y117: 3538.22 | Z117: 4950.78
A118: 685 | B118: =LOOKUP(A118,'DOE - FIPStoPayeeCodeConvTable'!$A$3:$A$213,'DOE - FIPStoPayeeCodeConvTable'!$B$3:$B$213) -> Manassas Park City | C118: 1306 | D118: 979.5 | E118: 979.5 | F118: 979.5 | G118: 979.5 | H118: 979.5 | I118: 979.5 | J118: 653 | K118: 2285.5 | L118: 0 | M118: 0 | N118: 0 | S118: 10121.5 | U118: 5060.75 | V118: 5060.75 | W118: =LOOKUP(A118,'DOE - FIPStoPayeeCodeConvTable'!$A$3:$A$213,'DOE - FIPStoPayeeCodeConvTable'!$E$3:$E$213) -> 0.4273 | X118: 0.4273 | Y118: 2162.46 | Z118: 2898.29
A119: 690 | B119: =LOOKUP(A119,'DOE - FIPStoPayeeCodeConvTable'!$A$3:$A$213,'DOE - FIPStoPayeeCodeConvTable'!$B$3:$B$213) -> Martinsville City | C119: 0 | D119: 0 | E119: 0 | F119: 0 | G119: 0 | H119: 0 | I119: 0 | J119: 0 | K119: 0 | L119: 0 | M119: 0 | N119: 0 | S119: 0 | U119: 0 | V119: 0 | W119: =LOOKUP(A119,'DOE - FIPStoPayeeCodeConvTable'!$A$3:$A$213,'DOE - FIPStoPayeeCodeConvTable'!$E$3:$E$213) -> 0.3321 | X119: 0.3321 | Y119: 0 | Z119: 0
A120: 700 | B120: =LOOKUP(A120,'DOE - FIPStoPayeeCodeConvTable'!$A$3:$A$213,'DOE - FIPStoPayeeCodeConvTable'!$B$3:$B$213) -> Newport News City | C120: 9142 | D120: 9794.75 | E120: 18284 | F120: 10121 | G120: 7509.25 | H120: 8488.75 | I120: 6529.75 | J120: 12327.39 | K120: 24268.34 | L120: 15019 | M120: 9142 | N120: 11101 | S120: 141727.23 | U120: 70863.62 | V120: 70863.61 | W120: =LOOKUP(A120,'DOE - FIPStoPayeeCodeConvTable'!$A$3:$A$213,'DOE - FIPStoPayeeCodeConvTable'!$E$3:$E$213) -> 0.2773 | X120: 0.2773 | Y120: 19650.48 | Z120: 51213.13
A121: 710 | B121: =LOOKUP(A121,'DOE - FIPStoPayeeCodeConvTable'!$A$3:$A$213,'DOE - FIPStoPayeeCodeConvTable'!$B$3:$B$213) -> Norfolk City | C121: 19590 | D121: 22201.25 | E121: 16299.06 | F121: 17630.85 | G121: 7972.89 | H121: 13059.85 | I121: 6572.94 | J121: 15671.85 | K121: 7509.5 | L121: 15019 | M121: 2285.5 | N121: 13386.5 | S121: 157199.19 | U121: 78599.6 | V121: 78599.59 | W121: =LOOKUP(A121,'DOE - FIPStoPayeeCodeConvTable'!$A$3:$A$213,'DOE - FIPStoPayeeCodeConvTable'!$E$3:$E$213) -> 0.2455 | X121: 0.2455 | Y121: 19296.2 | Z121: 59303.39
A122: 720 | B122: =LOOKUP(A122,'DOE - FIPStoPayeeCodeConvTable'!$A$3:$A$213,'DOE - FIPStoPayeeCodeConvTable'!$B$3:$B$213) -> Norton City | C122: 653 | D122: 979.5 | E122: 653 | F122: 653 | G122: 653 | H122: 326.5 | I122: 1632.5 | J122: 653 | K122: 326.5 | L122: 653 | M122: 326.5 | N122: 653 | S122: 8162.5 | U122: 4081.25 | V122: 4081.25 | W122: =LOOKUP(A122,'DOE - FIPStoPayeeCodeConvTable'!$A$3:$A$213,'DOE - FIPStoPayeeCodeConvTable'!$E$3:$E$213) -> 0.3254 | X122: 0.3254 | Y122: 1328.04 | Z122: 2753.21
A123: 730 | B123: =LOOKUP(A123,'DOE - FIPStoPayeeCodeConvTable'!$A$3:$A$213,'DOE - FIPStoPayeeCodeConvTable'!$B$3:$B$213) -> Petersburg City | C123: 3591.5 | D123: 3918 | E123: 4571 | F123: 4897.5 | G123: 1632.5 | H123: 6856.5 | I123: 4571 | J123: 4571 | K123: 3591.5 | L123: 2612 | M123: 1959 | N123: 6530 | S123: 49301.5 | U123: 24650.75 | V123: 24650.75 | W123: =LOOKUP(A123,'DOE - FIPStoPayeeCodeConvTable'!$A$3:$A$213,'DOE - FIPStoPayeeCodeConvTable'!$E$3:$E$213) -> 0.3535 | X123: 0.3535 | Y123: 8714.04 | Z123: 15936.71
A124: 735 | B124: =LOOKUP(A124,'DOE - FIPStoPayeeCodeConvTable'!$A$3:$A$213,'DOE - FIPStoPayeeCodeConvTable'!$B$3:$B$213) -> Poquoson City | C124: 0 | D124: 0 | E124: 0 | F124: 0 | G124: 0 | H124: 0 | I124: 0 | J124: 0 | K124: 0 | L124: 0 | M124: 0 | N124: 0 | S124: 0 | U124: 0 | V124: 0 | W124: =LOOKUP(A124,'DOE - FIPStoPayeeCodeConvTable'!$A$3:$A$213,'DOE - FIPStoPayeeCodeConvTable'!$E$3:$E$213) -> 0.2787 | X124: 0.2787 | Y124: 0 | Z124: 0
A125: 740 | B125: =LOOKUP(A125,'DOE - FIPStoPayeeCodeConvTable'!$A$3:$A$213,'DOE - FIPStoPayeeCodeConvTable'!$B$3:$B$213) -> Portsmouth City | C125: 5829.6 | D125: 6856.5 | E125: 1306 | F125: 5404.64 | G125: 6203.5 | H125: 6615.87 | I125: 1959 | J125: 5877 | K125: 2489.45 | L125: 7509.5 | M125: 326.5 | N125: 3918 | S125: 54295.56 | U125: 27147.78 | V125: 27147.78 | W125: =LOOKUP(A125,'DOE - FIPStoPayeeCodeConvTable'!$A$3:$A$213,'DOE - FIPStoPayeeCodeConvTable'!$E$3:$E$213) -> 0.2605 | X125: 0.2605 | Y125: 7072 | Z125: 20075.78
A126: 750 | B126: =LOOKUP(A126,'DOE - FIPStoPayeeCodeConvTable'!$A$3:$A$213,'DOE - FIPStoPayeeCodeConvTable'!$B$3:$B$213) -> Radford City | C126: 326.5 | D126: 326.5 | E126: 326.5 | F126: 326.5 | G126: 326.5 | H126: 326.5 | I126: 653 | J126: 326.5 | K126: 0 | L126: 0 | M126: 0 | N126: 0 | S126: 2938.5 | U126: 1469.25 | V126: 1469.25 | W126: =LOOKUP(A126,'DOE - FIPStoPayeeCodeConvTable'!$A$3:$A$213,'DOE - FIPStoPayeeCodeConvTable'!$E$3:$E$213) -> 0.2035 | X126: 0.2035 | Y126: 298.99 | Z126: 1170.26
A127: 760 | B127: =LOOKUP(A127,'DOE - FIPStoPayeeCodeConvTable'!$A$3:$A$213,'DOE - FIPStoPayeeCodeConvTable'!$B$3:$B$213) -> Richmond City | C127: 33182.24 | D127: 44912.98 | E127: 33792.7 | F127: 34043.67 | G127: 24161 | H127: 30241.95 | I127: 33560.62 | J127: 26749.85 | K127: 46952.52 | L127: 21418.34 | M127: 15977.3 | N127: 26302.48 | S127: 371295.65 | U127: 185647.83 | V127: 185647.82 | W127: =LOOKUP(A127,'DOE - FIPStoPayeeCodeConvTable'!$A$3:$A$213,'DOE - FIPStoPayeeCodeConvTable'!$E$3:$E$213) -> 0.3691 | X127: 0.3691 | Y127: 68522.61 | Z127: 117125.21
A128: 770 | B128: =LOOKUP(A128,'DOE - FIPStoPayeeCodeConvTable'!$A$3:$A$213,'DOE - FIPStoPayeeCodeConvTable'!$B$3:$B$213) -> Roanoke City | C128: 23508 | D128: 27099.5 | E128: 22609.9 | F128: 20243 | G128: 13476.85 | H128: 28732 | I128: 25114.56 | J128: 24276.39 | K128: 31893.67 | L128: 18610.5 | M128: 16978 | N128: 23508 | S128: 276050.37 | U128: 138025.19 | V128: 138025.18 | W128: =LOOKUP(A128,'DOE - FIPStoPayeeCodeConvTable'!$A$3:$A$213,'DOE - FIPStoPayeeCodeConvTable'!$E$3:$E$213) -> 0.3072 | X128: 0.3072 | Y128: 42401.34 | Z128: 95623.84
A129: 775 | B129: =LOOKUP(A129,'DOE - FIPStoPayeeCodeConvTable'!$A$3:$A$213,'DOE - FIPStoPayeeCodeConvTable'!$B$3:$B$213) -> Salem City | C129: 653 | D129: 1306 | E129: 2448.7 | F129: 1959 | G129: 1959 | H129: 2981.44 | I129: 5224 | J129: 653 | K129: 6530 | L129: 2612 | M129: 653 | N129: 326.5 | S129: 27305.64 | U129: 13652.82 | V129: 13652.82 | W129: =LOOKUP(A129,'DOE - FIPStoPayeeCodeConvTable'!$A$3:$A$213,'DOE - FIPStoPayeeCodeConvTable'!$E$3:$E$213) -> 0.3513 | X129: 0.3513 | Y129: 4796.24 | Z129: 8856.58
A130: 790 | B130: =LOOKUP(A130,'DOE - FIPStoPayeeCodeConvTable'!$A$3:$A$213,'DOE - FIPStoPayeeCodeConvTable'!$B$3:$B$213) -> Staunton City | C130: 8162.5 | D130: 5813.8 | E130: 4571 | F130: 6530 | G130: 5224 | H130: 7972.89 | I130: 6856.5 | J130: 4366.21 | K130: 4120.02 | L130: 3265 | M130: 1295.4 | N130: 10700.77 | S130: 68878.09 | U130: 34439.05 | V130: 34439.04 | W130: =LOOKUP(A130,'DOE - FIPStoPayeeCodeConvTable'!$A$3:$A$213,'DOE - FIPStoPayeeCodeConvTable'!$E$3:$E$213) -> 0.2699 | X130: 0.2699 | Y130: 9295.1 | Z130: 25143.94
A131: 800 | B131: =LOOKUP(A131,'DOE - FIPStoPayeeCodeConvTable'!$A$3:$A$213,'DOE - FIPStoPayeeCodeConvTable'!$B$3:$B$213) -> Suffolk City | C131: 653 | D131: 979.5 | E131: 0 | F131: 0 | G131: 1306 | H131: 1836.45 | I131: 942.82 | J131: -1959 | K131: 653 | L131: 0 | M131: 979.5 | N131: 2612 | S131: 8003.27 | U131: 4001.64 | V131: 4001.63 | W131: =LOOKUP(A131,'DOE - FIPStoPayeeCodeConvTable'!$A$3:$A$213,'DOE - FIPStoPayeeCodeConvTable'!$E$3:$E$213) -> 0.2432 | X131: 0.2432 | Y131: 973.2 | Z131: 3028.43
A132: 810 | B132: =LOOKUP(A132,'DOE - FIPStoPayeeCodeConvTable'!$A$3:$A$213,'DOE - FIPStoPayeeCodeConvTable'!$B$3:$B$213) -> Virginia Beach City | C132: 9984.61 | D132: 12611.1 | E132: 16245.39 | F132: 11430.76 | G132: 3350.87 | H132: 22853.79 | I132: 14928.65 | J132: 16216.45 | K132: 16978 | L132: 18284 | M132: 5877 | N132: 16978 | S132: 165738.62 | U132: 82869.31 | V132: 82869.31 | W132: =LOOKUP(A132,'DOE - FIPStoPayeeCodeConvTable'!$A$3:$A$213,'DOE - FIPStoPayeeCodeConvTable'!$E$3:$E$213) -> 0.3569 | X132: 0.3569 | Y132: 29576.06 | Z132: 53293.25
A133: 820 | B133: =LOOKUP(A133,'DOE - FIPStoPayeeCodeConvTable'!$A$3:$A$213,'DOE - FIPStoPayeeCodeConvTable'!$B$3:$B$213) -> Waynesboro City | C133: 3352.07 | D133: 2424.03 | E133: 1866.03 | F133: 3243.94 | G133: 2285.5 | H133: 3045.84 | I133: 2938.5 | J133: 653 | K133: 6768.83 | L133: 3307.12 | M133: 2938.5 | N133: 4476.2 | S133: =SUM(C133:R133) -> 37299.56 | U133: 18649.78 | V133: =SUM(S133)-SUM(U133) -> 18649.78 | W133: =LOOKUP(A133,'DOE - FIPStoPayeeCodeConvTable'!$A$3:$A$213,'DOE - FIPStoPayeeCodeConvTable'!$E$3:$E$213) -> 0.3843 | X133: 0.3843 | Y133: 7167.11 | Z133: 11482.67
A134: 830 | B134: =LOOKUP(A134,'DOE - FIPStoPayeeCodeConvTable'!$A$3:$A$213,'DOE - FIPStoPayeeCodeConvTable'!$B$3:$B$213) -> Williamsburg City | C134: 326.5 | D134: 326.5 | E134: 326.5 | F134: 326.5 | G134: 326.5 | H134: 326.5 | I134: 326.5 | J134: 326.5 | K134: 326.5 | L134: 326.5 | M134: 326.5 | N134: 326.5 | S134: 3918 | U134: 1959 | V134: 1959 | W134: =LOOKUP(A134,'DOE - FIPStoPayeeCodeConvTable'!$A$3:$A$213,'DOE - FIPStoPayeeCodeConvTable'!$E$3:$E$213) -> 0.4553 | X134: =$X$1*W134 -> 0.4553 | Y134: =ROUND(X134*V134,2) -> 891.93 | Z134: =SUM(V134)-SUM(Y134) -> 1067.07
A135: 840 | B135: =LOOKUP(A135,'DOE - FIPStoPayeeCodeConvTable'!$A$3:$A$213,'DOE - FIPStoPayeeCodeConvTable'!$B$3:$B$213) -> Winchester City | C135: 1959 | D135: 2285.5 | E135: 326.5 | F135: 1306 | G135: 326.5 | H135: 326.5 | I135: 653 | J135: 3003.68 | K135: 2851.36 | L135: 2535.84 | M135: 3830.96 | N135: 3265 | S135: 22669.84 | U135: 11334.92 | V135: 11334.92 | W135: =LOOKUP(A135,'DOE - FIPStoPayeeCodeConvTable'!$A$3:$A$213,'DOE - FIPStoPayeeCodeConvTable'!$E$3:$E$213) -> 0.4587 | X135: 0.4587 | Y135: 5199.33 | Z135: 6135.59

Sheet TFC-EXT & FAMIS (hidden)
A1: FY | B1: ='DOE - FIPStoPayeeCodeConvTable'!G1 -> 2018 | C1: MEDICAID ADJUSTMENTS--TFC-EXT & FAMIS PAYMENTS TO PROVIDERS | O1: ="Extended to be paided in this SFY = " & B1 -> Extended to be paided in this SFY = 2018 | T1: xx | U1: 0.88 | V1: 0.12 | W1: (POOL) | X1: 1
U2: FEDERAL | V2: STATE/ | W2: (RATE) | X2: Factor
A3: FIPS | S3: Grand | U3: MEDICAID | V3: LOCAL | W3: LOCAL | Y3: LOCAL | Z3: STATE
A4: CODE | B4: LOCALITY | C4: =TEXT("7/1/" & $B$1-1,"mmm-yyyy") -> Jul-2017 | D4: =TEXT("8/1/" & $B$1-1,"mmm-yyyy") -> Aug-2017 | E4: =TEXT("9/1/" & $B$1-1,"mmm-yyyy") -> Sep-2017 | F4: =TEXT("10/1/" & $B$1-1,"mmm-yyyy") -> Oct-2017 | G4: =TEXT("11/1/" & $B$1-1,"mmm-yyyy") -> Nov-2017 | H4: =TEXT("12/1/" & $B$1-1,"mmm-yyyy") -> Dec-2017 | I4: =TEXT("1/1/" & $B$1,"mmm-yyyy") -> Jan-2018 | J4: =TEXT("2/1/" & $B$1,"mmm-yyyy") -> Feb-2018 | K4: =TEXT("3/1/" & $B$1,"mmm-yyyy") -> Mar-2018 | L4: =TEXT("4/1/" & $B$1,"mmm-yyyy") -> Apr-2018 | M4: =TEXT("5/1/" & $B$1,"mmm-yyyy") -> May-2018 | N4: =TEXT("6/1/" & $B$1,"mmm-yyyy") -> Jun-2018 | O4: =TEXT("7/1/" & $B$1,"mmm-yyyy") -> Jul-2018 | P4: =TEXT("8/1/" & $B$1,"mmm-yyyy") -> Aug-2018 | Q4: =TEXT("9/1/" & $B$1,"mmm-yyyy") -> Sep-2018 | R4: =TEXT("10/1/" & $B$1,"mmm-yyyy") -> Oct-2018 | S4: Total | U4: RATE/Share | V4: SHARE | W4: MATCH Rate | Y4: MATCH | Z4: SHARE
A5: Totals | C5: =SUM(C6:C1200) -> 326.5 | D5: 653 | E5: 653 | F5: 958.44 | G5: 326.5 | H5: 653 | I5: 1306 | J5: 2285.5 | K5: 653 | L5: 326.5 | M5: 326.5 | N5: 979.5 | O5: 0 | P5: 0 | Q5: 0 | R5: 0 | S5: =SUM(C5:R5) -> 9447.44 | T5: = | U5: =SUM(U6:U399) -> 8313.75 | V5: =SUM(V6:V399) -> 1133.69 | W5: = | Y5: =SUM(Y6:Y399) -> 363.81 | Z5: =SUM(Z6:Z399) -> 769.88
A6: 1 | B6: =LOOKUP(A6,'DOE - FIPStoPayeeCodeConvTable'!$A$3:$A$213,'DOE - FIPStoPayeeCodeConvTable'!$B$3:$B$213) -> Accomack Co | C6: 0 | D6: 0 | E6: 0 | F6: 0 | G6: 0 | H6: 0 | I6: 0 | J6: 0 | K6: 0 | L6: 0 | M6: 0 | N6: 0 | S6: 0 | U6: =ROUND($U$1*S6,2) -> 0 | V6: =SUM(S6)-SUM(U6) -> 0 | W6: =LOOKUP(A6,'DOE - FIPStoPayeeCodeConvTable'!$A$3:$A$213,'DOE - FIPStoPayeeCodeConvTable'!$E$3:$E$213) -> 0.2332 | X6: =$X$1*W6 -> 0.2332 | Y6: =ROUND(X6*V6,2) -> 0 | Z6: =SUM(V6)-SUM(Y6) -> 0
A7: 3 | B7: =LOOKUP(A7,'DOE - FIPStoPayeeCodeConvTable'!$A$3:$A$213,'DOE - FIPStoPayeeCodeConvTable'!$B$3:$B$213) -> Albemarle Co | C7: 0 | D7: 326.5 | E7: 0 | F7: 0 | G7: 0 | H7: 0 | I7: 0 | J7: 0 | K7: 0 | L7: 0 | M7: 0 | N7: 0 | S7: 326.5 | U7: 287.32 | V7: 39.18 | W7: =LOOKUP(A7,'DOE - FIPStoPayeeCodeConvTable'!$A$3:$A$213,'DOE - FIPStoPayeeCodeConvTable'!$E$3:$E$213) -> 0.4474 | X7: =$X$1*W7 -> 0.4474 | Y7: =ROUND(X7*V7,2) -> 17.53 | Z7: =SUM(V7)-SUM(Y7) -> 21.65
A8: 5 | B8: =LOOKUP(A8,'DOE - FIPStoPayeeCodeConvTable'!$A$3:$A$213,'DOE - FIPStoPayeeCodeConvTable'!$B$3:$B$213) -> Alleghany Co | C8: 0 | D8: 0 | E8: 0 | F8: 0 | G8: 0 | H8: 0 | I8: 0 | J8: 0 | K8: 0 | L8: 0 | M8: 0 | N8: 0 | S8: 0 | U8: 0 | V8: 0 | W8: =LOOKUP(A8,'DOE - FIPStoPayeeCodeConvTable'!$A$3:$A$213,'DOE - FIPStoPayeeCodeConvTable'!$E$3:$E$213) -> 0.1924 | X8: 0.1924 | Y8: 0 | Z8: 0
A9: 7 | B9: =LOOKUP(A9,'DOE - FIPStoPayeeCodeConvTable'!$A$3:$A$213,'DOE - FIPStoPayeeCodeConvTable'!$B$3:$B$213) -> Amelia Co | C9: 0 | D9: 0 | E9: 0 | F9: 0 | G9: 0 | H9: 0 | I9: 0 | J9: 0 | K9: 0 | L9: 0 | M9: 0 | N9: 0 | S9: 0 | U9: 0 | V9: 0 | W9: =LOOKUP(A9,'DOE - FIPStoPayeeCodeConvTable'!$A$3:$A$213,'DOE - FIPStoPayeeCodeConvTable'!$E$3:$E$213) -> 0.3268 | X9: 0.3268 | Y9: 0 | Z9: 0
A10: 9 | B10: =LOOKUP(A10,'DOE - FIPStoPayeeCodeConvTable'!$A$3:$A$213,'DOE - FIPStoPayeeCodeConvTable'!$B$3:$B$213) -> Amherst Co | C10: 0 | D10: 0 | E10: 0 | F10: 0 | G10: 0 | H10: 0 | I10: 0 | J10: 0 | K10: 0 | L10: 0 | M10: 0 | N10: 0 | S10: 0 | U10: 0 | V10: 0 | W10: =LOOKUP(A10,'DOE - FIPStoPayeeCodeConvTable'!$A$3:$A$213,'DOE - FIPStoPayeeCodeConvTable'!$E$3:$E$213) -> 0.2722 | X10: 0.2722 | Y10: 0 | Z10: 0
A11: 11 | B11: =LOOKUP(A11,'DOE - FIPStoPayeeCodeConvTable'!$A$3:$A$213,'DOE - FIPStoPayeeCodeConvTable'!$B$3:$B$213) -> Appomattox Co | C11: 0 | D11: 0 | E11: 0 | F11: 0 | G11: 0 | H11: 0 | I11: 0 | J11: 0 | K11: 0 | L11: 0 | M11: 0 | N11: 0 | S11: 0 | U11: 0 | V11: 0 | W11: =LOOKUP(A11,'DOE - FIPStoPayeeCodeConvTable'!$A$3:$A$213,'DOE - FIPStoPayeeCodeConvTable'!$E$3:$E$213) -> 0.2639 | X11: 0.2639 | Y11: 0 | Z11: 0
A12: 13 | B12: =LOOKUP(A12,'DOE - FIPStoPayeeCodeConvTable'!$A$3:$A$213,'DOE - FIPStoPayeeCodeConvTable'!$B$3:$B$213) -> Arlington Co | C12: 0 | D12: 0 | E12: 0 | F12: 0 | G12: 0 | H12: 0 | I12: 0 | J12: 979.5 | K12: 0 | L12: 0 | M12: 0 | N12: 0 | S12: 979.5 | U12: 861.96 | V12: 117.54 | W12: =LOOKUP(A12,'DOE - FIPStoPayeeCodeConvTable'!$A$3:$A$213,'DOE - FIPStoPayeeCodeConvTable'!$E$3:$E$213) -> 0.4602 | X12: 0.4602 | Y12: 54.09 | Z12: 63.45
A13: 15 | B13: =LOOKUP(A13,'DOE - FIPStoPayeeCodeConvTable'!$A$3:$A$213,'DOE - FIPStoPayeeCodeConvTable'!$B$3:$B$213) -> Augusta Co | C13: 0 | D13: 0 | E13: 0 | F13: 0 | G13: 0 | H13: 0 | I13: 0 | J13: 0 | K13: 0 | L13: 0 | M13: 0 | N13: 0 | S13: 0 | U13: 0 | V13: 0 | W13: =LOOKUP(A13,'DOE - FIPStoPayeeCodeConvTable'!$A$3:$A$213,'DOE - FIPStoPayeeCodeConvTable'!$E$3:$E$213) -> 0.3302 | X13: 0.3302 | Y13: 0 | Z13: 0
A14: 17 | B14: =LOOKUP(A14,'DOE - FIPStoPayeeCodeConvTable'!$A$3:$A$213,'DOE - FIPStoPayeeCodeConvTable'!$B$3:$B$213) -> Bath Co | C14: 0 | D14: 0 | E14: 0 | F14: 0 | G14: 0 | H14: 0 | I14: 0 | J14: 0 | K14: 0 | L14: 0 | M14: 0 | N14: 0 | S14: 0 | U14: 0 | V14: 0 | W14: =LOOKUP(A14,'DOE - FIPStoPayeeCodeConvTable'!$A$3:$A$213,'DOE - FIPStoPayeeCodeConvTable'!$E$3:$E$213) -> 0.4278 | X14: 0.4278 | Y14: 0 | Z14: 0
A15: 19 | B15: =LOOKUP(A15,'DOE - FIPStoPayeeCodeConvTable'!$A$3:$A$213,'DOE - FIPStoPayeeCodeConvTable'!$B$3:$B$213) -> Bedford Co | C15: 0 | D15: 0 | E15: 0 | F15: 0 | G15: 0 | H15: 0 | I15: 0 | J15: 0 | K15: 0 | L15: 0 | M15: 0 | N15: 0 | S15: 0 | U15: 0 | V15: 0 | W15: =LOOKUP(A15,'DOE - FIPStoPayeeCodeConvTable'!$A$3:$A$213,'DOE - FIPStoPayeeCodeConvTable'!$E$3:$E$213) -> 0.31112 | X15: 0.31112 | Y15: 0 | Z15: 0
A16: 21 | B16: =LOOKUP(A16,'DOE - FIPStoPayeeCodeConvTable'!$A$3:$A$213,'DOE - FIPStoPayeeCodeConvTable'!$B$3:$B$213) -> Bland Co | C16: 0 | D16: 0 | E16: 0 | F16: 0 | G16: 0 | H16: 0 | I16: 0 | J16: 0 | K16: 0 | L16: 0 | M16: 0 | N16: 0 | S16: 0 | U16: 0 | V16: 0 | W16: =LOOKUP(A16,'DOE - FIPStoPayeeCodeConvTable'!$A$3:$A$213,'DOE - FIPStoPayeeCodeConvTable'!$E$3:$E$213) -> 0.2109 | X16: 0.2109 | Y16: 0 | Z16: 0
A17: 23 | B17: =LOOKUP(A17,'DOE - FIPStoPayeeCodeConvTable'!$A$3:$A$213,'DOE - FIPStoPayeeCodeConvTable'!$B$3:$B$213) -> Botetourt Co | C17: 0 | D17: 0 | E17: 0 | F17: 0 | G17: 0 | H17: 0 | I17: 0 | J17: 0 | K17: 0 | L17: 0 | M17: 0 | N17: 0 | S17: 0 | U17: 0 | V17: 0 | W17: =LOOKUP(A17,'DOE - FIPStoPayeeCodeConvTable'!$A$3:$A$213,'DOE - FIPStoPayeeCodeConvTable'!$E$3:$E$213) -> 0.3602 | X17: 0.3602 | Y17: 0 | Z17: 0
A18: 25 | B18: =LOOKUP(A18,'DOE - FIPStoPayeeCodeConvTable'!$A$3:$A$213,'DOE - FIPStoPayeeCodeConvTable'!$B$3:$B$213) -> Brunswick Co | C18: 0 | D18: 0 | E18: 0 | F18: 0 | G18: 0 | H18: 0 | I18: 0 | J18: 0 | K18: 0 | L18: 0 | M18: 0 | N18: 0 | S18: 0 | U18: 0 | V18: 0 | W18: =LOOKUP(A18,'DOE - FIPStoPayeeCodeConvTable'!$A$3:$A$213,'DOE - FIPStoPayeeCodeConvTable'!$E$3:$E$213) -> 0.2439 | X18: 0.2439 | Y18: 0 | Z18: 0
A19: 27 | B19: =LOOKUP(A19,'DOE - FIPStoPayeeCodeConvTable'!$A$3:$A$213,'DOE - FIPStoPayeeCodeConvTable'!$B$3:$B$213) -> Buchanan Co | C19: 0 | D19: 0 | E19: 0 | F19: 0 | G19: 0 | H19: 0 | I19: 0 | J19: 0 | K19: 0 | L19: 0 | M19: 0 | N19: 0 | S19: 0 | U19: 0 | V19: 0 | W19: =LOOKUP(A19,'DOE - FIPStoPayeeCodeConvTable'!$A$3:$A$213,'DOE - FIPStoPayeeCodeConvTable'!$E$3:$E$213) -> 0.3156 | X19: 0.3156 | Y19: 0 | Z19: 0
A20: 29 | B20: =LOOKUP(A20,'DOE - FIPStoPayeeCodeConvTable'!$A$3:$A$213,'DOE - FIPStoPayeeCodeConvTable'!$B$3:$B$213) -> Buckingham Co | C20: 0 | D20: 0 | E20: 0 | F20: 0 | G20: 0 | H20: 0 | I20: 0 | J20: 0 | K20: 0 | L20: 0 | M20: 0 | N20: 0 | S20: 0 | U20: 0 | V20: 0 | W20: =LOOKUP(A20,'DOE - FIPStoPayeeCodeConvTable'!$A$3:$A$213,'DOE - FIPStoPayeeCodeConvTable'!$E$3:$E$213) -> 0.2023 | X20: 0.2023 | Y20: 0 | Z20: 0
A21: 31 | B21: =LOOKUP(A21,'DOE - FIPStoPayeeCodeConvTable'!$A$3:$A$213,'DOE - FIPStoPayeeCodeConvTable'!$B$3:$B$213) -> Campbell Co | C21: 0 | D21: 0 | E21: 0 | F21: 0 | G21: 0 | H21: 0 | I21: 0 | J21: 0 | K21: 0 | L21: 0 | M21: 0 | N21: 0 | S21: 0 | U21: 0 | V21: 0 | W21: =LOOKUP(A21,'DOE - FIPStoPayeeCodeConvTable'!$A$3:$A$213,'DOE - FIPStoPayeeCodeConvTable'!$E$3:$E$213) -> 0.3107 | X21: 0.3107 | Y21: 0 | Z21: 0
A22: 33 | B22: =LOOKUP(A22,'DOE - FIPStoPayeeCodeConvTable'!$A$3:$A$213,'DOE - FIPStoPayeeCodeConvTable'!$B$3:$B$213) -> Caroline Co | C22: 0 | D22: 0 | E22: 0 | F22: 0 | G22: 0 | H22: 0 | I22: 0 | J22: 0 | K22: 0 | L22: 0 | M22: 0 | N22: 0 | S22: 0 | U22: 0 | V22: 0 | W22: =LOOKUP(A22,'DOE - FIPStoPayeeCodeConvTable'!$A$3:$A$213,'DOE - FIPStoPayeeCodeConvTable'!$E$3:$E$213) -> 0.3308 | X22: 0.3308 | Y22: 0 | Z22: 0
A23: 35 | B23: =LOOKUP(A23,'DOE - FIPStoPayeeCodeConvTable'!$A$3:$A$213,'DOE - FIPStoPayeeCodeConvTable'!$B$3:$B$213) -> Carroll Co | C23: 0 | D23: 0 | E23: 0 | F23: 0 | G23: 0 | H23: 0 | I23: 0 | J23: 0 | K23: 0 | L23: 0 | M23: 0 | N23: 0 | S23: 0 | U23: 0 | V23: 0 | W23: =LOOKUP(A23,'DOE - FIPStoPayeeCodeConvTable'!$A$3:$A$213,'DOE - FIPStoPayeeCodeConvTable'!$E$3:$E$213) -> 0.291 | X23: 0.291 | Y23: 0 | Z23: 0
A24: 36 | B24: =LOOKUP(A24,'DOE - FIPStoPayeeCodeConvTable'!$A$3:$A$213,'DOE - FIPStoPayeeCodeConvTable'!$B$3:$B$213) -> Charles City Co | C24: 0 | D24: 0 | E24: 0 | F24: 0 | G24: 0 | H24: 0 | I24: 0 | J24: 0 | K24: 0 | L24: 0 | M24: 0 | N24: 0 | S24: 0 | U24: 0 | V24: 0 | W24: =LOOKUP(A24,'DOE - FIPStoPayeeCodeConvTable'!$A$3:$A$213,'DOE - FIPStoPayeeCodeConvTable'!$E$3:$E$213) -> 0.3131 | X24: 0.3131 | Y24: 0 | Z24: 0
A25: 37 | B25: =LOOKUP(A25,'DOE - FIPStoPayeeCodeConvTable'!$A$3:$A$213,'DOE - FIPStoPayeeCodeConvTable'!$B$3:$B$213) -> Charlotte Co | C25: 0 | D25: 0 | E25: 0 | F25: 0 | G25: 0 | H25: 0 | I25: 0 | J25: 0 | K25: 0 | L25: 0 | M25: 0 | N25: 0 | S25: 0 | U25: 0 | V25: 0 | W25: =LOOKUP(A25,'DOE - FIPStoPayeeCodeConvTable'!$A$3:$A$213,'DOE - FIPStoPayeeCodeConvTable'!$E$3:$E$213) -> 0.2204 | X25: 0.2204 | Y25: 0 | Z25: 0
A26: 41 | B26: =LOOKUP(A26,'DOE - FIPStoPayeeCodeConvTable'!$A$3:$A$213,'DOE - FIPStoPayeeCodeConvTable'!$B$3:$B$213) -> Chesterfield Co | C26: 0 | D26: 0 | E26: 0 | F26: 0 | G26: 0 | H26: 0 | I26: 0 | J26: 653 | K26: 0 | L26: 0 | M26: 0 | N26: 0 | S26: 653 | U26: 574.64 | V26: 78.36 | W26: =LOOKUP(A26,'DOE - FIPStoPayeeCodeConvTable'!$A$3:$A$213,'DOE - FIPStoPayeeCodeConvTable'!$E$3:$E$213) -> 0.3853 | X26: 0.3853 | Y26: 30.19 | Z26: 48.17
A27: 43 | B27: =LOOKUP(A27,'DOE - FIPStoPayeeCodeConvTable'!$A$3:$A$213,'DOE - FIPStoPayeeCodeConvTable'!$B$3:$B$213) -> Clarke Co | C27: 0 | D27: 0 | E27: 0 | F27: 0 | G27: 0 | H27: 0 | I27: 0 | J27: 0 | K27: 0 | L27: 0 | M27: 0 | N27: 0 | S27: 0 | U27: 0 | V27: 0 | W27: =LOOKUP(A27,'DOE - FIPStoPayeeCodeConvTable'!$A$3:$A$213,'DOE - FIPStoPayeeCodeConvTable'!$E$3:$E$213) -> 0.4797 | X27: 0.4797 | Y27: 0 | Z27: 0
A28: 45 | B28: =LOOKUP(A28,'DOE - FIPStoPayeeCodeConvTable'!$A$3:$A$213,'DOE - FIPStoPayeeCodeConvTable'!$B$3:$B$213) -> Craig Co | C28: 0 | D28: 0 | E28: 0 | F28: 0 | G28: 0 | H28: 0 | I28: 0 | J28: 0 | K28: 0 | L28: 0 | M28: 0 | N28: 0 | S28: 0 | U28: 0 | V28: 0 | W28: =LOOKUP(A28,'DOE - FIPStoPayeeCodeConvTable'!$A$3:$A$213,'DOE - FIPStoPayeeCodeConvTable'!$E$3:$E$213) -> 0.2901 | X28: 0.2901 | Y28: 0 | Z28: 0
A29: 47 | B29: =LOOKUP(A29,'DOE - FIPStoPayeeCodeConvTable'!$A$3:$A$213,'DOE - FIPStoPayeeCodeConvTable'!$B$3:$B$213) -> Culpeper Co | C29: 0 | D29: 0 | E29: 0 | F29: 0 | G29: 0 | H29: 0 | I29: 0 | J29: 0 | K29: 0 | L29: 0 | M29: 0 | N29: 0 | S29: 0 | U29: 0 | V29: 0 | W29: =LOOKUP(A29,'DOE - FIPStoPayeeCodeConvTable'!$A$3:$A$213,'DOE - FIPStoPayeeCodeConvTable'!$E$3:$E$213) -> 0.3767 | X29: 0.3767 | Y29: 0 | Z29: 0
A30: 49 | B30: =LOOKUP(A30,'DOE - FIPStoPayeeCodeConvTable'!$A$3:$A$213,'DOE - FIPStoPayeeCodeConvTable'!$B$3:$B$213) -> Cumberland Co | C30: 0 | D30: 0 | E30: 0 | F30: 0 | G30: 0 | H30: 0 | I30: 0 | J30: 0 | K30: 0 | L30: 0 | M30: 0 | N30: 0 | S30: 0 | U30: 0 | V30: 0 | W30: =LOOKUP(A30,'DOE - FIPStoPayeeCodeConvTable'!$A$3:$A$213,'DOE - FIPStoPayeeCodeConvTable'!$E$3:$E$213) -> 0.304 | X30: 0.304 | Y30: 0 | Z30: 0
A31: 51 | B31: =LOOKUP(A31,'DOE - FIPStoPayeeCodeConvTable'!$A$3:$A$213,'DOE - FIPStoPayeeCodeConvTable'!$B$3:$B$213) -> Dickenson Co | C31: 0 | D31: 0 | E31: 0 | F31: 0 | G31: 0 | H31: 0 | I31: 0 | J31: 0 | K31: 0 | L31: 0 | M31: 0 | N31: 0 | S31: 0 | U31: 0 | V31: 0 | W31: =LOOKUP(A31,'DOE - FIPStoPayeeCodeConvTable'!$A$3:$A$213,'DOE - FIPStoPayeeCodeConvTable'!$E$3:$E$213) -> 0.3042 | X31: 0.3042 | Y31: 0 | Z31: 0
A32: 53 | B32: =LOOKUP(A32,'DOE - FIPStoPayeeCodeConvTable'!$A$3:$A$213,'DOE - FIPStoPayeeCodeConvTable'!$B$3:$B$213) -> Dinwiddie Co | C32: 0 | D32: 0 | E32: 0 | F32: 0 | G32: 0 | H32: 0 | I32: 0 | J32: 0 | K32: 0 | L32: 0 | M32: 0 | N32: 0 | S32: 0 | U32: 0 | V32: 0 | W32: =LOOKUP(A32,'DOE - FIPStoPayeeCodeConvTable'!$A$3:$A$213,'DOE - FIPStoPayeeCodeConvTable'!$E$3:$E$213) -> 0.3358 | X32: 0.3358 | Y32: 0 | Z32: 0
A33: 57 | B33: =LOOKUP(A33,'DOE - FIPStoPayeeCodeConvTable'!$A$3:$A$213,'DOE - FIPStoPayeeCodeConvTable'!$B$3:$B$213) -> Essex Co | C33: 0 | D33: 0 | E33: 0 | F33: 0 | G33: 0 | H33: 0 | I33: 0 | J33: 0 | K33: 0 | L33: 0 | M33: 0 | N33: 0 | S33: 0 | U33: 0 | V33: 0 | W33: =LOOKUP(A33,'DOE - FIPStoPayeeCodeConvTable'!$A$3:$A$213,'DOE - FIPStoPayeeCodeConvTable'!$E$3:$E$213) -> 0.3853 | X33: 0.3853 | Y33: 0 | Z33: 0
A34: 59 | B34: =LOOKUP(A34,'DOE - FIPStoPayeeCodeConvTable'!$A$3:$A$213,'DOE - FIPStoPayeeCodeConvTable'!$B$3:$B$213) -> Fairfax Co | C34: 0 | D34: 0 | E34: 0 | F34: 0 | G34: 0 | H34: 0 | I34: 0 | J34: 0 | K34: 0 | L34: 0 | M34: 0 | N34: 0 | S34: 0 | U34: 0 | V34: 0 | W34: =LOOKUP(A34,'DOE - FIPStoPayeeCodeConvTable'!$A$3:$A$213,'DOE - FIPStoPayeeCodeConvTable'!$E$3:$E$213) -> 0.4611 | X34: 0.4611 | Y34: 0 | Z34: 0
A35: 61 | B35: =LOOKUP(A35,'DOE - FIPStoPayeeCodeConvTable'!$A$3:$A$213,'DOE - FIPStoPayeeCodeConvTable'!$B$3:$B$213) -> Fauquier Co | C35: 0 | D35: 0 | E35: 0 | F35: 0 | G35: 0 | H35: 0 | I35: 0 | J35: 0 | K35: 0 | L35: 0 | M35: 0 | N35: 0 | S35: 0 | U35: 0 | V35: 0 | W35: =LOOKUP(A35,'DOE - FIPStoPayeeCodeConvTable'!$A$3:$A$213,'DOE - FIPStoPayeeCodeConvTable'!$E$3:$E$213) -> 0.4584 | X35: 0.4584 | Y35: 0 | Z35: 0
A36: 63 | B36: =LOOKUP(A36,'DOE - FIPStoPayeeCodeConvTable'!$A$3:$A$213,'DOE - FIPStoPayeeCodeConvTable'!$B$3:$B$213) -> Floyd Co | C36: 0 | D36: 0 | E36: 0 | F36: 0 | G36: 0 | H36: 0 | I36: 0 | J36: 0 | K36: 0 | L36: 0 | M36: 0 | N36: 0 | S36: 0 | U36: 0 | V36: 0 | W36: =LOOKUP(A36,'DOE - FIPStoPayeeCodeConvTable'!$A$3:$A$213,'DOE - FIPStoPayeeCodeConvTable'!$E$3:$E$213) -> 0.2324 | X36: 0.2324 | Y36: 0 | Z36: 0
A37: 65 | B37: =LOOKUP(A37,'DOE - FIPStoPayeeCodeConvTable'!$A$3:$A$213,'DOE - FIPStoPayeeCodeConvTable'!$B$3:$B$213) -> Fluvanna Co | C37: 0 | D37: 0 | E37: 0 | F37: 0 | G37: 0 | H37: 0 | I37: 0 | J37: 0 | K37: 0 | L37: 0 | M37: 0 | N37: 0 | S37: =SUM(C37:R37) -> 0 | U37: 0 | V37: 0 | W37: =LOOKUP(A37,'DOE - FIPStoPayeeCodeConvTable'!$A$3:$A$213,'DOE - FIPStoPayeeCodeConvTable'!$E$3:$E$213) -> 0.3811 | X37: 0.3811 | Y37: 0 | Z37: 0
A38: 67 | B38: =LOOKUP(A38,'DOE - FIPStoPayeeCodeConvTable'!$A$3:$A$213,'DOE - FIPStoPayeeCodeConvTable'!$B$3:$B$213) -> Franklin Co | C38: 0 | D38: 0 | E38: 0 | F38: 0 | G38: 0 | H38: 0 | I38: 0 | J38: 0 | K38: 0 | L38: 0 | M38: 0 | N38: 0 | S38: 0 | U38: =ROUND($U$1*S38,2) -> 0 | V38: =SUM(S38)-SUM(U38) -> 0 | W38: =LOOKUP(A38,'DOE - FIPStoPayeeCodeConvTable'!$A$3:$A$213,'DOE - FIPStoPayeeCodeConvTable'!$E$3:$E$213) -> 0.283 | X38: 0.283 | Y38: 0 | Z38: 0
A39: 69 | B39: =LOOKUP(A39,'DOE - FIPStoPayeeCodeConvTable'!$A$3:$A$213,'DOE - FIPStoPayeeCodeConvTable'!$B$3:$B$213) -> Frederick Co | C39: 0 | D39: 0 | E39: 0 | F39: 0 | G39: 0 | H39: 0 | I39: 0 | J39: 0 | K39: 0 | L39: 0 | M39: 0 | N39: 0 | S39: 0 | U39: 0 | V39: 0 | W39: =LOOKUP(A39,'DOE - FIPStoPayeeCodeConvTable'!$A$3:$A$213,'DOE - FIPStoPayeeCodeConvTable'!$E$3:$E$213) -> 0.4348 | X39: 0.4348 | Y39: 0 | Z39: 0
A40: 71 | B40: =LOOKUP(A40,'DOE - FIPStoPayeeCodeConvTable'!$A$3:$A$213,'DOE - FIPStoPayeeCodeConvTable'!$B$3:$B$213) -> Giles Co | C40: 0 | D40: 0 | E40: 0 | F40: 0 | G40: 0 | H40: 0 | I40: 0 | J40: 0 | K40: 0 | L40: 0 | M40: 0 | N40: 0 | S40: 0 | U40: 0 | V40: 0 | W40: =LOOKUP(A40,'DOE - FIPStoPayeeCodeConvTable'!$A$3:$A$213,'DOE - FIPStoPayeeCodeConvTable'!$E$3:$E$213) -> 0.2898 | X40: 0.2898 | Y40: 0 | Z40: 0
A41: 73 | B41: =LOOKUP(A41,'DOE - FIPStoPayeeCodeConvTable'!$A$3:$A$213,'DOE - FIPStoPayeeCodeConvTable'!$B$3:$B$213) -> Gloucester Co | C41: 0 | D41: 0 | E41: 0 | F41: 0 | G41: 0 | H41: 0 | I41: 0 | J41: 0 | K41: 0 | L41: 0 | M41: 0 | N41: 0 | S41: 0 | U41: 0 | V41: 0 | W41: =LOOKUP(A41,'DOE - FIPStoPayeeCodeConvTable'!$A$3:$A$213,'DOE - FIPStoPayeeCodeConvTable'!$E$3:$E$213) -> 0.3687 | X41: 0.3687 | Y41: 0 | Z41: 0
A42: 75 | B42: =LOOKUP(A42,'DOE - FIPStoPayeeCodeConvTable'!$A$3:$A$213,'DOE - FIPStoPayeeCodeConvTable'!$B$3:$B$213) -> Goochland Co | C42: 0 | D42: 0 | E42: 0 | F42: 0 | G42: 0 | H42: 0 | I42: 0 | J42: 0 | K42: 0 | L42: 0 | M42: 0 | N42: 0 | S42: 0 | U42: 0 | V42: 0 | W42: =LOOKUP(A42,'DOE - FIPStoPayeeCodeConvTable'!$A$3:$A$213,'DOE - FIPStoPayeeCodeConvTable'!$E$3:$E$213) -> 0.4871 | X42: 0.4871 | Y42: 0 | Z42: 0
A43: 77 | B43: =LOOKUP(A43,'DOE - FIPStoPayeeCodeConvTable'!$A$3:$A$213,'DOE - FIPStoPayeeCodeConvTable'!$B$3:$B$213) -> Grayson Co | C43: 0 | D43: 0 | E43: 0 | F43: 0 | G43: 0 | H43: 0 | I43: 0 | J43: 0 | K43: 0 | L43: 0 | M43: 0 | N43: 0 | S43: 0 | U43: 0 | V43: 0 | W43: =LOOKUP(A43,'DOE - FIPStoPayeeCodeConvTable'!$A$3:$A$213,'DOE - FIPStoPayeeCodeConvTable'!$E$3:$E$213) -> 0.2109 | X43: 0.2109 | Y43: 0 | Z43: 0
A44: 79 | B44: =LOOKUP(A44,'DOE - FIPStoPayeeCodeConvTable'!$A$3:$A$213,'DOE - FIPStoPayeeCodeConvTable'!$B$3:$B$213) -> Greene Co | C44: 0 | D44: 0 | E44: 0 | F44: 0 | G44: 0 | H44: 0 | I44: 0 | J44: 0 | K44: 0 | L44: 0 | M44: 0 | N44: 0 | S44: 0 | U44: 0 | V44: 0 | W44: =LOOKUP(A44,'DOE - FIPStoPayeeCodeConvTable'!$A$3:$A$213,'DOE - FIPStoPayeeCodeConvTable'!$E$3:$E$213) -> 0.3471 | X44: 0.3471 | Y44: 0 | Z44: 0
A45: 81 | B45: =LOOKUP(A45,'DOE - FIPStoPayeeCodeConvTable'!$A$3:$A$213,'DOE - FIPStoPayeeCodeConvTable'!$B$3:$B$213) -> Greensville Co | C45: 0 | D45: 0 | E45: 0 | F45: 0 | G45: 0 | H45: 326.5 | I45: 326.5 | J45: 0 | K45: 0 | L45: 0 | M45: 0 | N45: 0 | S45: 653 | U45: 574.64 | V45: 78.36 | W45: =LOOKUP(A45,'DOE - FIPStoPayeeCodeConvTable'!$A$3:$A$213,'DOE - FIPStoPayeeCodeConvTable'!$E$3:$E$213) -> 0.2266 | X45: 0.2266 | Y45: 17.76 | Z45: 60.6
A46: 83 | B46: =LOOKUP(A46,'DOE - FIPStoPayeeCodeConvTable'!$A$3:$A$213,'DOE - FIPStoPayeeCodeConvTable'!$B$3:$B$213) -> Halifax Co | C46: 0 | D46: 0 | E46: 0 | F46: 0 | G46: 0 | H46: 0 | I46: 0 | J46: 0 | K46: 0 | L46: 0 | M46: 0 | N46: 0 | S46: 0 | U46: 0 | V46: 0 | W46: =LOOKUP(A46,'DOE - FIPStoPayeeCodeConvTable'!$A$3:$A$213,'DOE - FIPStoPayeeCodeConvTable'!$E$3:$E$213) -> 0.2335 | X46: 0.2335 | Y46: 0 | Z46: 0
A47: 85 | B47: =LOOKUP(A47,'DOE - FIPStoPayeeCodeConvTable'!$A$3:$A$213,'DOE - FIPStoPayeeCodeConvTable'!$B$3:$B$213) -> Hanover Co | C47: 0 | D47: 0 | E47: 0 | F47: 0 | G47: 0 | H47: 0 | I47: 0 | J47: 0 | K47: 0 | L47: 0 | M47: 0 | N47: 0 | S47: 0 | U47: 0 | V47: 0 | W47: =LOOKUP(A47,'DOE - FIPStoPayeeCodeConvTable'!$A$3:$A$213,'DOE - FIPStoPayeeCodeConvTable'!$E$3:$E$213) -> 0.4444 | X47: 0.4444 | Y47: 0 | Z47: 0
A48: 87 | B48: =LOOKUP(A48,'DOE - FIPStoPayeeCodeConvTable'!$A$3:$A$213,'DOE - FIPStoPayeeCodeConvTable'!$B$3:$B$213) -> Henrico Co | C48: 0 | D48: 0 | E48: 0 | F48: 0 | G48: 0 | H48: 0 | I48: 0 | J48: 0 | K48: 0 | L48: 0 | M48: 0 | N48: 0 | S48: 0 | U48: 0 | V48: 0 | W48: =LOOKUP(A48,'DOE - FIPStoPayeeCodeConvTable'!$A$3:$A$213,'DOE - FIPStoPayeeCodeConvTable'!$E$3:$E$213) -> 0.3755 | X48: 0.3755 | Y48: 0 | Z48: 0
A49: 89 | B49: =LOOKUP(A49,'DOE - FIPStoPayeeCodeConvTable'!$A$3:$A$213,'DOE - FIPStoPayeeCodeConvTable'!$B$3:$B$213) -> Henry Co | C49: 0 | D49: 0 | E49: 0 | F49: 0 | G49: 0 | H49: 0 | I49: 0 | J49: 0 | K49: 0 | L49: 0 | M49: 0 | N49: 0 | S49: 0 | U49: 0 | V49: 0 | W49: =LOOKUP(A49,'DOE - FIPStoPayeeCodeConvTable'!$A$3:$A$213,'DOE - FIPStoPayeeCodeConvTable'!$E$3:$E$213) -> 0.2786 | X49: 0.2786 | Y49: 0 | Z49: 0
A50: 91 | B50: =LOOKUP(A50,'DOE - FIPStoPayeeCodeConvTable'!$A$3:$A$213,'DOE - FIPStoPayeeCodeConvTable'!$B$3:$B$213) -> Highland Co | C50: 0 | D50: 0 | E50: 0 | F50: 0 | G50: 0 | H50: 0 | I50: 0 | J50: 0 | K50: 0 | L50: 0 | M50: 0 | N50: 0 | S50: 0 | U50: 0 | V50: 0 | W50: =LOOKUP(A50,'DOE - FIPStoPayeeCodeConvTable'!$A$3:$A$213,'DOE - FIPStoPayeeCodeConvTable'!$E$3:$E$213) -> 0.3822 | X50: 0.3822 | Y50: 0 | Z50: 0
A51: 93 | B51: =LOOKUP(A51,'DOE - FIPStoPayeeCodeConvTable'!$A$3:$A$213,'DOE - FIPStoPayeeCodeConvTable'!$B$3:$B$213) -> Isle Of Wight Co | C51: 0 | D51: 0 | E51: 0 | F51: 0 | G51: 0 | H51: 0 | I51: 0 | J51: 0 | K51: 0 | L51: 0 | M51: 0 | N51: 0 | S51: 0 | U51: 0 | V51: 0 | W51: =LOOKUP(A51,'DOE - FIPStoPayeeCodeConvTable'!$A$3:$A$213,'DOE - FIPStoPayeeCodeConvTable'!$E$3:$E$213) -> 0.3613 | X51: 0.3613 | Y51: 0 | Z51: 0
A52: 95 | B52: =LOOKUP(A52,'DOE - FIPStoPayeeCodeConvTable'!$A$3:$A$213,'DOE - FIPStoPayeeCodeConvTable'!$B$3:$B$213) -> James City Co | C52: 0 | D52: 0 | E52: 0 | F52: 0 | G52: 0 | H52: 0 | I52: 0 | J52: 0 | K52: 0 | L52: 0 | M52: 0 | N52: 0 | S52: 0 | U52: 0 | V52: 0 | W52: =LOOKUP(A52,'DOE - FIPStoPayeeCodeConvTable'!$A$3:$A$213,'DOE - FIPStoPayeeCodeConvTable'!$E$3:$E$213) -> 0.4483 | X52: 0.4483 | Y52: 0 | Z52: 0
A53: 97 | B53: =LOOKUP(A53,'DOE - FIPStoPayeeCodeConvTable'!$A$3:$A$213,'DOE - FIPStoPayeeCodeConvTable'!$B$3:$B$213) -> King And Queen Co | C53: 0 | D53: 0 | E53: 0 | F53: 0 | G53: 0 | H53: 0 | I53: 0 | J53: 0 | K53: 0 | L53: 0 | M53: 0 | N53: 0 | S53: 0 | U53: 0 | V53: 0 | W53: =LOOKUP(A53,'DOE - FIPStoPayeeCodeConvTable'!$A$3:$A$213,'DOE - FIPStoPayeeCodeConvTable'!$E$3:$E$213) -> 0.3144 | X53: 0.3144 | Y53: 0 | Z53: 0
A54: 99 | B54: =LOOKUP(A54,'DOE - FIPStoPayeeCodeConvTable'!$A$3:$A$213,'DOE - FIPStoPayeeCodeConvTable'!$B$3:$B$213) -> King George Co | C54: 0 | D54: 0 | E54: 0 | F54: 0 | G54: 0 | H54: 0 | I54: 0 | J54: 0 | K54: 0 | L54: 0 | M54: 0 | N54: 0 | S54: 0 | U54: 0 | V54: 0 | W54: =LOOKUP(A54,'DOE - FIPStoPayeeCodeConvTable'!$A$3:$A$213,'DOE - FIPStoPayeeCodeConvTable'!$E$3:$E$213) -> 0.3627 | X54: 0.3627 | Y54: 0 | Z54: 0
A55: 101 | B55: =LOOKUP(A55,'DOE - FIPStoPayeeCodeConvTable'!$A$3:$A$213,'DOE - FIPStoPayeeCodeConvTable'!$B$3:$B$213) -> King William Co | C55: 0 | D55: 0 | E55: 0 | F55: 0 | G55: 0 | H55: 0 | I55: 0 | J55: 0 | K55: 0 | L55: 0 | M55: 0 | N55: 0 | S55: 0 | U55: 0 | V55: 0 | W55: =LOOKUP(A55,'DOE - FIPStoPayeeCodeConvTable'!$A$3:$A$213,'DOE - FIPStoPayeeCodeConvTable'!$E$3:$E$213) -> 0.3853 | X55: 0.3853 | Y55: 0 | Z55: 0
A56: 103 | B56: =LOOKUP(A56,'DOE - FIPStoPayeeCodeConvTable'!$A$3:$A$213,'DOE - FIPStoPayeeCodeConvTable'!$B$3:$B$213) -> Lancaster Co | C56: 0 | D56: 0 | E56: 0 | F56: 0 | G56: 0 | H56: 0 | I56: 0 | J56: 0 | K56: 0 | L56: 0 | M56: 0 | N56: 0 | S56: 0 | U56: 0 | V56: 0 | W56: =LOOKUP(A56,'DOE - FIPStoPayeeCodeConvTable'!$A$3:$A$213,'DOE - FIPStoPayeeCodeConvTable'!$E$3:$E$213) -> 0.4391 | X56: 0.4391 | Y56: 0 | Z56: 0
A57: 105 | B57: =LOOKUP(A57,'DOE - FIPStoPayeeCodeConvTable'!$A$3:$A$213,'DOE - FIPStoPayeeCodeConvTable'!$B$3:$B$213) -> Lee Co | C57: 0 | D57: 0 | E57: 0 | F57: 0 | G57: 0 | H57: 0 | I57: 0 | J57: 0 | K57: 0 | L57: 0 | M57: 0 | N57: 0 | S57: 0 | U57: 0 | V57: 0 | W57: =LOOKUP(A57,'DOE - FIPStoPayeeCodeConvTable'!$A$3:$A$213,'DOE - FIPStoPayeeCodeConvTable'!$E$3:$E$213) -> 0.2245 | X57: 0.2245 | Y57: 0 | Z57: 0
A58: 107 | B58: =LOOKUP(A58,'DOE - FIPStoPayeeCodeConvTable'!$A$3:$A$213,'DOE - FIPStoPayeeCodeConvTable'!$B$3:$B$213) -> Loudoun Co | C58: 0 | D58: 0 | E58: 0 | F58: 0 | G58: 0 | H58: 0 | I58: 0 | J58: 0 | K58: 0 | L58: 0 | M58: 0 | N58: 0 | S58: 0 | U58: 0 | V58: 0 | W58: =LOOKUP(A58,'DOE - FIPStoPayeeCodeConvTable'!$A$3:$A$213,'DOE - FIPStoPayeeCodeConvTable'!$E$3:$E$213) -> 0.4764 | X58: 0.4764 | Y58: 0 | Z58: 0
A59: 109 | B59: =LOOKUP(A59,'DOE - FIPStoPayeeCodeConvTable'!$A$3:$A$213,'DOE - FIPStoPayeeCodeConvTable'!$B$3:$B$213) -> Louisa Co | C59: 0 | D59: 0 | E59: 0 | F59: 0 | G59: 0 | H59: 0 | I59: 0 | J59: 0 | K59: 0 | L59: 0 | M59: 0 | N59: 0 | S59: 0 | U59: 0 | V59: 0 | W59: =LOOKUP(A59,'DOE - FIPStoPayeeCodeConvTable'!$A$3:$A$213,'DOE - FIPStoPayeeCodeConvTable'!$E$3:$E$213) -> 0.4401 | X59: 0.4401 | Y59: 0 | Z59: 0
A60: 111 | B60: =LOOKUP(A60,'DOE - FIPStoPayeeCodeConvTable'!$A$3:$A$213,'DOE - FIPStoPayeeCodeConvTable'!$B$3:$B$213) -> Lunenburg Co | C60: 0 | D60: 0 | E60: 0 | F60: 0 | G60: 0 | H60: 0 | I60: 0 | J60: 0 | K60: 0 | L60: 0 | M60: 0 | N60: 0 | S60: 0 | U60: 0 | V60: 0 | W60: =LOOKUP(A60,'DOE - FIPStoPayeeCodeConvTable'!$A$3:$A$213,'DOE - FIPStoPayeeCodeConvTable'!$E$3:$E$213) -> 0.1698 | X60: 0.1698 | Y60: 0 | Z60: 0
A61: 113 | B61: =LOOKUP(A61,'DOE - FIPStoPayeeCodeConvTable'!$A$3:$A$213,'DOE - FIPStoPayeeCodeConvTable'!$B$3:$B$213) -> Madison Co | C61: 0 | D61: 0 | E61: 0 | F61: 0 | G61: 0 | H61: 0 | I61: 0 | J61: 0 | K61: 0 | L61: 0 | M61: 0 | N61: 0 | S61: 0 | U61: 0 | V61: 0 | W61: =LOOKUP(A61,'DOE - FIPStoPayeeCodeConvTable'!$A$3:$A$213,'DOE - FIPStoPayeeCodeConvTable'!$E$3:$E$213) -> 0.3355 | X61: 0.3355 | Y61: 0 | Z61: 0
A62: 115 | B62: =LOOKUP(A62,'DOE - FIPStoPayeeCodeConvTable'!$A$3:$A$213,'DOE - FIPStoPayeeCodeConvTable'!$B$3:$B$213) -> Mathews Co | C62: 0 | D62: 0 | E62: 0 | F62: 0 | G62: 0 | H62: 0 | I62: 0 | J62: 0 | K62: 0 | L62: 0 | M62: 0 | N62: 0 | S62: 0 | U62: 0 | V62: 0 | W62: =LOOKUP(A62,'DOE - FIPStoPayeeCodeConvTable'!$A$3:$A$213,'DOE - FIPStoPayeeCodeConvTable'!$E$3:$E$213) -> 0.4271 | X62: 0.4271 | Y62: 0 | Z62: 0
A63: 117 | B63: =LOOKUP(A63,'DOE - FIPStoPayeeCodeConvTable'!$A$3:$A$213,'DOE - FIPStoPayeeCodeConvTable'!$B$3:$B$213) -> Mecklenburg Co | C63: 0 | D63: 0 | E63: 0 | F63: 0 | G63: 0 | H63: 0 | I63: 0 | J63: 0 | K63: 0 | L63: 0 | M63: 0 | N63: 326.5 | S63: 326.5 | U63: 287.32 | V63: 39.18 | W63: =LOOKUP(A63,'DOE - FIPStoPayeeCodeConvTable'!$A$3:$A$213,'DOE - FIPStoPayeeCodeConvTable'!$E$3:$E$213) -> 0.2286 | X63: 0.2286 | Y63: 8.96 | Z63: 30.22
A64: 119 | B64: =LOOKUP(A64,'DOE - FIPStoPayeeCodeConvTable'!$A$3:$A$213,'DOE - FIPStoPayeeCodeConvTable'!$B$3:$B$213) -> Middlesex Co | C64: 0 | D64: 0 | E64: 0 | F64: 0 | G64: 0 | H64: 0 | I64: 0 | J64: 0 | K64: 0 | L64: 0 | M64: 0 | N64: 0 | S64: 0 | U64: 0 | V64: 0 | W64: =LOOKUP(A64,'DOE - FIPStoPayeeCodeConvTable'!$A$3:$A$213,'DOE - FIPStoPayeeCodeConvTable'!$E$3:$E$213) -> 0.4333 | X64: 0.4333 | Y64: 0 | Z64: 0
A65: 121 | B65: =LOOKUP(A65,'DOE - FIPStoPayeeCodeConvTable'!$A$3:$A$213,'DOE - FIPStoPayeeCodeConvTable'!$B$3:$B$213) -> Montgomery Co | C65: 0 | D65: 0 | E65: 0 | F65: 0 | G65: 0 | H65: 0 | I65: 0 | J65: 0 | K65: 0 | L65: 0 | M65: 0 | N65: 0 | S65: 0 | U65: 0 | V65: 0 | W65: =LOOKUP(A65,'DOE - FIPStoPayeeCodeConvTable'!$A$3:$A$213,'DOE - FIPStoPayeeCodeConvTable'!$E$3:$E$213) -> 0.2834 | X65: 0.2834 | Y65: 0 | Z65: 0
A66: 125 | B66: =LOOKUP(A66,'DOE - FIPStoPayeeCodeConvTable'!$A$3:$A$213,'DOE - FIPStoPayeeCodeConvTable'!$B$3:$B$213) -> Nelson Co | C66: 0 | D66: 0 | E66: 0 | F66: 0 | G66: 0 | H66: 0 | I66: 0 | J66: 0 | K66: 0 | L66: 0 | M66: 0 | N66: 0 | S66: 0 | U66: 0 | V66: 0 | W66: =LOOKUP(A66,'DOE - FIPStoPayeeCodeConvTable'!$A$3:$A$213,'DOE - FIPStoPayeeCodeConvTable'!$E$3:$E$213) -> 0.3132 | X66: 0.3132 | Y66: 0 | Z66: 0
A67: 127 | B67: =LOOKUP(A67,'DOE - FIPStoPayeeCodeConvTable'!$A$3:$A$213,'DOE - FIPStoPayeeCodeConvTable'!$B$3:$B$213) -> New Kent Co | C67: 0 | D67: 0 | E67: 0 | F67: 0 | G67: 0 | H67: 0 | I67: 0 | J67: 0 | K67: 0 | L67: 0 | M67: 0 | N67: 0 | S67: 0 | U67: 0 | V67: 0 | W67: =LOOKUP(A67,'DOE - FIPStoPayeeCodeConvTable'!$A$3:$A$213,'DOE - FIPStoPayeeCodeConvTable'!$E$3:$E$213) -> 0.4329 | X67: 0.4329 | Y67: 0 | Z67: 0
A68: 131 | B68: =LOOKUP(A68,'DOE - FIPStoPayeeCodeConvTable'!$A$3:$A$213,'DOE - FIPStoPayeeCodeConvTable'!$B$3:$B$213) -> Northampton Co | C68: 0 | D68: 0 | E68: 0 | F68: 0 | G68: 0 | H68: 0 | I68: 0 | J68: 0 | K68: 0 | L68: 0 | M68: 0 | N68: 0 | S68: 0 | U68: 0 | V68: 0 | W68: =LOOKUP(A68,'DOE - FIPStoPayeeCodeConvTable'!$A$3:$A$213,'DOE - FIPStoPayeeCodeConvTable'!$E$3:$E$213) -> 0.1971 | X68: 0.1971 | Y68: 0 | Z68: 0
A69: 133 | B69: =LOOKUP(A69,'DOE - FIPStoPayeeCodeConvTable'!$A$3:$A$213,'DOE - FIPStoPayeeCodeConvTable'!$B$3:$B$213) -> Northumberland Co | C69: 0 | D69: 0 | E69: 0 | F69: 0 | G69: 0 | H69: 0 | I69: 0 | J69: 0 | K69: 0 | L69: 0 | M69: 0 | N69: 0 | S69: =SUM(C69:R69) -> 0 | U69: 0 | V69: 0 | W69: =LOOKUP(A69,'DOE - FIPStoPayeeCodeConvTable'!$A$3:$A$213,'DOE - FIPStoPayeeCodeConvTable'!$E$3:$E$213) -> 0.3304 | X69: 0.3304 | Y69: 0 | Z69: 0
A70: 135 | B70: =LOOKUP(A70,'DOE - FIPStoPayeeCodeConvTable'!$A$3:$A$213,'DOE - FIPStoPayeeCodeConvTable'!$B$3:$B$213) -> Nottoway Co | C70: 0 | D70: 0 | E70: 0 | F70: 0 | G70: 0 | H70: 0 | I70: 0 | J70: 0 | K70: 0 | L70: 0 | M70: 0 | N70: 0 | S70: 0 | U70: =ROUND($U$1*S70,2) -> 0 | V70: =SUM(S70)-SUM(U70) -> 0 | W70: =LOOKUP(A70,'DOE - FIPStoPayeeCodeConvTable'!$A$3:$A$213,'DOE - FIPStoPayeeCodeConvTable'!$E$3:$E$213) -> 0.2686 | X70: 0.2686 | Y70: 0 | Z70: 0
A71: 137 | B71: =LOOKUP(A71,'DOE - FIPStoPayeeCodeConvTable'!$A$3:$A$213,'DOE - FIPStoPayeeCodeConvTable'!$B$3:$B$213) -> Orange Co | C71: 0 | D71: 0 | E71: 0 | F71: 0 | G71: 0 | H71: 0 | I71: 0 | J71: 0 | K71: 0 | L71: 0 | M71: 0 | N71: 0 | S71: 0 | U71: 0 | V71: 0 | W71: =LOOKUP(A71,'DOE - FIPStoPayeeCodeConvTable'!$A$3:$A$213,'DOE - FIPStoPayeeCodeConvTable'!$E$3:$E$213) -> 0.4083 | X71: =$X$1*W71 -> 0.4083 | Y71: =ROUND(X71*V71,2) -> 0 | Z71: =SUM(V71)-SUM(Y71) -> 0
A72: 139 | B72: =LOOKUP(A72,'DOE - FIPStoPayeeCodeConvTable'!$A$3:$A$213,'DOE - FIPStoPayeeCodeConvTable'!$B$3:$B$213) -> Page Co | C72: 326.5 | D72: 326.5 | E72: 326.5 | F72: 326.5 | G72: 326.5 | H72: 326.5 | I72: 326.5 | J72: 0 | K72: 653 | L72: 326.5 | M72: 326.5 | N72: 0 | S72: 3591.5 | U72: 3160.52 | V72: 430.98 | W72: =LOOKUP(A72,'DOE - FIPStoPayeeCodeConvTable'!$A$3:$A$213,'DOE - FIPStoPayeeCodeConvTable'!$E$3:$E$213) -> 0.2865 | X72: 0.2865 | Y72: 123.48 | Z72: 307.5
A73: 141 | B73: =LOOKUP(A73,'DOE - FIPStoPayeeCodeConvTable'!$A$3:$A$213,'DOE - FIPStoPayeeCodeConvTable'!$B$3:$B$213) -> Patrick Co | C73: 0 | D73: 0 | E73: 0 | F73: 0 | G73: 0 | H73: 0 | I73: 0 | J73: 0 | K73: 0 | L73: 0 | M73: 0 | N73: 0 | S73: 0 | U73: 0 | V73: 0 | W73: =LOOKUP(A73,'DOE - FIPStoPayeeCodeConvTable'!$A$3:$A$213,'DOE - FIPStoPayeeCodeConvTable'!$E$3:$E$213) -> 0.2539 | X73: 0.2539 | Y73: 0 | Z73: 0
A74: 143 | B74: =LOOKUP(A74,'DOE - FIPStoPayeeCodeConvTable'!$A$3:$A$213,'DOE - FIPStoPayeeCodeConvTable'!$B$3:$B$213) -> Pittsylvania Co | C74: 0 | D74: 0 | E74: 0 | F74: 0 | G74: 0 | H74: 0 | I74: 0 | J74: 0 | K74: 0 | L74: 0 | M74: 0 | N74: 0 | S74: 0 | U74: 0 | V74: 0 | W74: =LOOKUP(A74,'DOE - FIPStoPayeeCodeConvTable'!$A$3:$A$213,'DOE - FIPStoPayeeCodeConvTable'!$E$3:$E$213) -> 0.2355 | X74: 0.2355 | Y74: 0 | Z74: 0
A75: 145 | B75: =LOOKUP(A75,'DOE - FIPStoPayeeCodeConvTable'!$A$3:$A$213,'DOE - FIPStoPayeeCodeConvTable'!$B$3:$B$213) -> Powhatan Co | C75: 0 | D75: 0 | E75: 0 | F75: 0 | G75: 0 | H75: 0 | I75: 0 | J75: 0 | K75: 0 | L75: 0 | M75: 0 | N75: 0 | S75: 0 | U75: 0 | V75: 0 | W75: =LOOKUP(A75,'DOE - FIPStoPayeeCodeConvTable'!$A$3:$A$213,'DOE - FIPStoPayeeCodeConvTable'!$E$3:$E$213) -> 0.4342 | X75: 0.4342 | Y75: 0 | Z75: 0
A76: 147 | B76: =LOOKUP(A76,'DOE - FIPStoPayeeCodeConvTable'!$A$3:$A$213,'DOE - FIPStoPayeeCodeConvTable'!$B$3:$B$213) -> Prince Edward Co | C76: 0 | D76: 0 | E76: 0 | F76: 0 | G76: 0 | H76: 0 | I76: 0 | J76: 0 | K76: 0 | L76: 0 | M76: 0 | N76: 0 | S76: 0 | U76: 0 | V76: 0 | W76: =LOOKUP(A76,'DOE - FIPStoPayeeCodeConvTable'!$A$3:$A$213,'DOE - FIPStoPayeeCodeConvTable'!$E$3:$E$213) -> 0.2232 | X76: 0.2232 | Y76: 0 | Z76: 0
A77: 149 | B77: =LOOKUP(A77,'DOE - FIPStoPayeeCodeConvTable'!$A$3:$A$213,'DOE - FIPStoPayeeCodeConvTable'!$B$3:$B$213) -> Prince George Co | C77: 0 | D77: 0 | E77: 0 | F77: 0 | G77: 0 | H77: 0 | I77: 0 | J77: 0 | K77: 0 | L77: 0 | M77: 0 | N77: 0 | S77: 0 | U77: 0 | V77: 0 | W77: =LOOKUP(A77,'DOE - FIPStoPayeeCodeConvTable'!$A$3:$A$213,'DOE - FIPStoPayeeCodeConvTable'!$E$3:$E$213) -> 0.3716 | X77: 0.3716 | Y77: 0 | Z77: 0
A78: 153 | B78: =LOOKUP(A78,'DOE - FIPStoPayeeCodeConvTable'!$A$3:$A$213,'DOE - FIPStoPayeeCodeConvTable'!$B$3:$B$213) -> Prince William Co | C78: 0 | D78: 0 | E78: 0 | F78: 0 | G78: 0 | H78: 0 | I78: 0 | J78: 0 | K78: 0 | L78: 0 | M78: 0 | N78: 0 | S78: 0 | U78: 0 | V78: 0 | W78: =LOOKUP(A78,'DOE - FIPStoPayeeCodeConvTable'!$A$3:$A$213,'DOE - FIPStoPayeeCodeConvTable'!$E$3:$E$213) -> 0.3414 | X78: 0.3414 | Y78: 0 | Z78: 0
A79: 155 | B79: =LOOKUP(A79,'DOE - FIPStoPayeeCodeConvTable'!$A$3:$A$213,'DOE - FIPStoPayeeCodeConvTable'!$B$3:$B$213) -> Pulaski Co | C79: 0 | D79: 0 | E79: 0 | F79: 0 | G79: 0 | H79: 0 | I79: 0 | J79: 0 | K79: 0 | L79: 0 | M79: 0 | N79: 0 | S79: 0 | U79: 0 | V79: 0 | W79: =LOOKUP(A79,'DOE - FIPStoPayeeCodeConvTable'!$A$3:$A$213,'DOE - FIPStoPayeeCodeConvTable'!$E$3:$E$213) -> 0.2923 | X79: 0.2923 | Y79: 0 | Z79: 0
A80: 157 | B80: =LOOKUP(A80,'DOE - FIPStoPayeeCodeConvTable'!$A$3:$A$213,'DOE - FIPStoPayeeCodeConvTable'!$B$3:$B$213) -> Rappahannock Co | C80: 0 | D80: 0 | E80: 0 | F80: 0 | G80: 0 | H80: 0 | I80: 0 | J80: 0 | K80: 0 | L80: 0 | M80: 0 | N80: 0 | S80: 0 | U80: 0 | V80: 0 | W80: =LOOKUP(A80,'DOE - FIPStoPayeeCodeConvTable'!$A$3:$A$213,'DOE - FIPStoPayeeCodeConvTable'!$E$3:$E$213) -> 0.4199 | X80: 0.4199 | Y80: 0 | Z80: 0
A81: 159 | B81: =LOOKUP(A81,'DOE - FIPStoPayeeCodeConvTable'!$A$3:$A$213,'DOE - FIPStoPayeeCodeConvTable'!$B$3:$B$213) -> Richmond Co | C81: 0 | D81: 0 | E81: 0 | F81: 0 | G81: 0 | H81: 0 | I81: 0 | J81: 0 | K81: 0 | L81: 0 | M81: 0 | N81: 0 | S81: 0 | U81: 0 | V81: 0 | W81: =LOOKUP(A81,'DOE - FIPStoPayeeCodeConvTable'!$A$3:$A$213,'DOE - FIPStoPayeeCodeConvTable'!$E$3:$E$213) -> 0.3227 | X81: 0.3227 | Y81: 0 | Z81: 0
A82: 161 | B82: =LOOKUP(A82,'DOE - FIPStoPayeeCodeConvTable'!$A$3:$A$213,'DOE - FIPStoPayeeCodeConvTable'!$B$3:$B$213) -> Roanoke Co | C82: 0 | D82: 0 | E82: 0 | F82: 0 | G82: 0 | H82: 0 | I82: 0 | J82: 0 | K82: 0 | L82: 0 | M82: 0 | N82: 0 | S82: 0 | U82: 0 | V82: 0 | W82: =LOOKUP(A82,'DOE - FIPStoPayeeCodeConvTable'!$A$3:$A$213,'DOE - FIPStoPayeeCodeConvTable'!$E$3:$E$213) -> 0.4397 | X82: 0.4397 | Y82: 0 | Z82: 0
A83: 163 | B83: =LOOKUP(A83,'DOE - FIPStoPayeeCodeConvTable'!$A$3:$A$213,'DOE - FIPStoPayeeCodeConvTable'!$B$3:$B$213) -> Rockbridge Co | C83: 0 | D83: 0 | E83: 0 | F83: 0 | G83: 0 | H83: 0 | I83: 0 | J83: 0 | K83: 0 | L83: 0 | M83: 0 | N83: 0 | S83: 0 | U83: 0 | V83: 0 | W83: =LOOKUP(A83,'DOE - FIPStoPayeeCodeConvTable'!$A$3:$A$213,'DOE - FIPStoPayeeCodeConvTable'!$E$3:$E$213) -> 0.2336 | X83: 0.2336 | Y83: 0 | Z83: 0
A84: 165 | B84: =LOOKUP(A84,'DOE - FIPStoPayeeCodeConvTable'!$A$3:$A$213,'DOE - FIPStoPayeeCodeConvTable'!$B$3:$B$213) -> Rockingham Co | C84: 0 | D84: 0 | E84: 0 | F84: 0 | G84: 0 | H84: 0 | I84: 0 | J84: 0 | K84: 0 | L84: 0 | M84: 0 | N84: 653 | S84: 653 | U84: 574.64 | V84: 78.36 | W84: =LOOKUP(A84,'DOE - FIPStoPayeeCodeConvTable'!$A$3:$A$213,'DOE - FIPStoPayeeCodeConvTable'!$E$3:$E$213) -> 0.3445 | X84: 0.3445 | Y84: 27 | Z84: 51.36
A85: 167 | B85: =LOOKUP(A85,'DOE - FIPStoPayeeCodeConvTable'!$A$3:$A$213,'DOE - FIPStoPayeeCodeConvTable'!$B$3:$B$213) -> Russell Co | C85: 0 | D85: 0 | E85: 0 | F85: 0 | G85: 0 | H85: 0 | I85: 653 | J85: 0 | K85: 0 | L85: 0 | M85: 0 | N85: 0 | S85: 653 | U85: 574.64 | V85: 78.36 | W85: =LOOKUP(A85,'DOE - FIPStoPayeeCodeConvTable'!$A$3:$A$213,'DOE - FIPStoPayeeCodeConvTable'!$E$3:$E$213) -> 0.1894 | X85: 0.1894 | Y85: 14.84 | Z85: 63.52
A86: 169 | B86: =LOOKUP(A86,'DOE - FIPStoPayeeCodeConvTable'!$A$3:$A$213,'DOE - FIPStoPayeeCodeConvTable'!$B$3:$B$213) -> Scott Co | C86: 0 | D86: 0 | E86: 0 | F86: 0 | G86: 0 | H86: 0 | I86: 0 | J86: 0 | K86: 0 | L86: 0 | M86: 0 | N86: 0 | S86: 0 | U86: 0 | V86: 0 | W86: =LOOKUP(A86,'DOE - FIPStoPayeeCodeConvTable'!$A$3:$A$213,'DOE - FIPStoPayeeCodeConvTable'!$E$3:$E$213) -> 0.3154 | X86: 0.3154 | Y86: 0 | Z86: 0
A87: 171 | B87: =LOOKUP(A87,'DOE - FIPStoPayeeCodeConvTable'!$A$3:$A$213,'DOE - FIPStoPayeeCodeConvTable'!$B$3:$B$213) -> Shenandoah Co | C87: 0 | D87: 0 | E87: 0 | F87: 0 | G87: 0 | H87: 0 | I87: 0 | J87: 0 | K87: 0 | L87: 0 | M87: 0 | N87: 0 | S87: 0 | U87: 0 | V87: 0 | W87: =LOOKUP(A87,'DOE - FIPStoPayeeCodeConvTable'!$A$3:$A$213,'DOE - FIPStoPayeeCodeConvTable'!$E$3:$E$213) -> 0.3517 | X87: 0.3517 | Y87: 0 | Z87: 0
A88: 173 | B88: =LOOKUP(A88,'DOE - FIPStoPayeeCodeConvTable'!$A$3:$A$213,'DOE - FIPStoPayeeCodeConvTable'!$B$3:$B$213) -> Smyth Co | C88: 0 | D88: 0 | E88: 0 | F88: 0 | G88: 0 | H88: 0 | I88: 0 | J88: 0 | K88: 0 | L88: 0 | M88: 0 | N88: 0 | S88: 0 | U88: 0 | V88: 0 | W88: =LOOKUP(A88,'DOE - FIPStoPayeeCodeConvTable'!$A$3:$A$213,'DOE - FIPStoPayeeCodeConvTable'!$E$3:$E$213) -> 0.2337 | X88: 0.2337 | Y88: 0 | Z88: 0
A89: 175 | B89: =LOOKUP(A89,'DOE - FIPStoPayeeCodeConvTable'!$A$3:$A$213,'DOE - FIPStoPayeeCodeConvTable'!$B$3:$B$213) -> Southampton Co | C89: 0 | D89: 0 | E89: 0 | F89: 0 | G89: 0 | H89: 0 | I89: 0 | J89: 0 | K89: 0 | L89: 0 | M89: 0 | N89: 0 | S89: 0 | U89: 0 | V89: 0 | W89: =LOOKUP(A89,'DOE - FIPStoPayeeCodeConvTable'!$A$3:$A$213,'DOE - FIPStoPayeeCodeConvTable'!$E$3:$E$213) -> 0.323 | X89: 0.323 | Y89: 0 | Z89: 0
A90: 177 | B90: =LOOKUP(A90,'DOE - FIPStoPayeeCodeConvTable'!$A$3:$A$213,'DOE - FIPStoPayeeCodeConvTable'!$B$3:$B$213) -> Spotsylvania Co | C90: 0 | D90: 0 | E90: 0 | F90: 0 | G90: 0 | H90: 0 | I90: 0 | J90: 0 | K90: 0 | L90: 0 | M90: 0 | N90: 0 | S90: 0 | U90: 0 | V90: 0 | W90: =LOOKUP(A90,'DOE - FIPStoPayeeCodeConvTable'!$A$3:$A$213,'DOE - FIPStoPayeeCodeConvTable'!$E$3:$E$213) -> 0.4588 | X90: 0.4588 | Y90: 0 | Z90: 0
A91: 179 | B91: =LOOKUP(A91,'DOE - FIPStoPayeeCodeConvTable'!$A$3:$A$213,'DOE - FIPStoPayeeCodeConvTable'!$B$3:$B$213) -> Stafford Co | C91: 0 | D91: 0 | E91: 0 | F91: 0 | G91: 0 | H91: 0 | I91: 0 | J91: 0 | K91: 0 | L91: 0 | M91: 0 | N91: 0 | S91: 0 | U91: 0 | V91: 0 | W91: =LOOKUP(A91,'DOE - FIPStoPayeeCodeConvTable'!$A$3:$A$213,'DOE - FIPStoPayeeCodeConvTable'!$E$3:$E$213) -> 0.4439 | X91: 0.4439 | Y91: 0 | Z91: 0
A92: 181 | B92: =LOOKUP(A92,'DOE - FIPStoPayeeCodeConvTable'!$A$3:$A$213,'DOE - FIPStoPayeeCodeConvTable'!$B$3:$B$213) -> Surry Co | C92: 0 | D92: 0 | E92: 0 | F92: 0 | G92: 0 | H92: 0 | I92: 0 | J92: 0 | K92: 0 | L92: 0 | M92: 0 | N92: 0 | S92: 0 | U92: 0 | V92: 0 | W92: =LOOKUP(A92,'DOE - FIPStoPayeeCodeConvTable'!$A$3:$A$213,'DOE - FIPStoPayeeCodeConvTable'!$E$3:$E$213) -> 0.3979 | X92: 0.3979 | Y92: 0 | Z92: 0
A93: 183 | B93: =LOOKUP(A93,'DOE - FIPStoPayeeCodeConvTable'!$A$3:$A$213,'DOE - FIPStoPayeeCodeConvTable'!$B$3:$B$213) -> Sussex Co | C93: 0 | D93: 0 | E93: 0 | F93: 0 | G93: 0 | H93: 0 | I93: 0 | J93: 0 | K93: 0 | L93: 0 | M93: 0 | N93: 0 | S93: 0 | U93: 0 | V93: 0 | W93: =LOOKUP(A93,'DOE - FIPStoPayeeCodeConvTable'!$A$3:$A$213,'DOE - FIPStoPayeeCodeConvTable'!$E$3:$E$213) -> 0.2387 | X93: 0.2387 | Y93: 0 | Z93: 0
A94: 185 | B94: =LOOKUP(A94,'DOE - FIPStoPayeeCodeConvTable'!$A$3:$A$213,'DOE - FIPStoPayeeCodeConvTable'!$B$3:$B$213) -> Tazewell Co | C94: 0 | D94: 0 | E94: 0 | F94: 0 | G94: 0 | H94: 0 | I94: 0 | J94: 0 | K94: 0 | L94: 0 | M94: 0 | N94: 0 | S94: 0 | U94: 0 | V94: 0 | W94: =LOOKUP(A94,'DOE - FIPStoPayeeCodeConvTable'!$A$3:$A$213,'DOE - FIPStoPayeeCodeConvTable'!$E$3:$E$213) -> 0.2455 | X94: 0.2455 | Y94: 0 | Z94: 0
A95: 187 | B95: =LOOKUP(A95,'DOE - FIPStoPayeeCodeConvTable'!$A$3:$A$213,'DOE - FIPStoPayeeCodeConvTable'!$B$3:$B$213) -> Warren Co | C95: 0 | D95: 0 | E95: 0 | F95: 0 | G95: 0 | H95: 0 | I95: 0 | J95: 0 | K95: 0 | L95: 0 | M95: 0 | N95: 0 | S95: 0 | U95: 0 | V95: 0 | W95: =LOOKUP(A95,'DOE - FIPStoPayeeCodeConvTable'!$A$3:$A$213,'DOE - FIPStoPayeeCodeConvTable'!$E$3:$E$213) -> 0.3853 | X95: 0.3853 | Y95: 0 | Z95: 0
A96: 191 | B96: =LOOKUP(A96,'DOE - FIPStoPayeeCodeConvTable'!$A$3:$A$213,'DOE - FIPStoPayeeCodeConvTable'!$B$3:$B$213) -> Washington Co | C96: 0 | D96: 0 | E96: 0 | F96: 0 | G96: 0 | H96: 0 | I96: 0 | J96: 0 | K96: 0 | L96: 0 | M96: 0 | N96: 0 | S96: 0 | U96: 0 | V96: 0 | W96: =LOOKUP(A96,'DOE - FIPStoPayeeCodeConvTable'!$A$3:$A$213,'DOE - FIPStoPayeeCodeConvTable'!$E$3:$E$213) -> 0.276 | X96: 0.276 | Y96: 0 | Z96: 0
A97: 193 | B97: =LOOKUP(A97,'DOE - FIPStoPayeeCodeConvTable'!$A$3:$A$213,'DOE - FIPStoPayeeCodeConvTable'!$B$3:$B$213) -> Westmoreland Co | C97: 0 | D97: 0 | E97: 0 | F97: 0 | G97: 0 | H97: 0 | I97: 0 | J97: 0 | K97: 0 | L97: 0 | M97: 0 | N97: 0 | S97: 0 | U97: 0 | V97: 0 | W97: =LOOKUP(A97,'DOE - FIPStoPayeeCodeConvTable'!$A$3:$A$213,'DOE - FIPStoPayeeCodeConvTable'!$E$3:$E$213) -> 0.3025 | X97: 0.3025 | Y97: 0 | Z97: 0
A98: 195 | B98: =LOOKUP(A98,'DOE - FIPStoPayeeCodeConvTable'!$A$3:$A$213,'DOE - FIPStoPayeeCodeConvTable'!$B$3:$B$213) -> Wise Co | C98: 0 | D98: 0 | E98: 0 | F98: 0 | G98: 0 | H98: 0 | I98: 0 | J98: 0 | K98: 0 | L98: 0 | M98: 0 | N98: 0 | S98: 0 | U98: 0 | V98: 0 | W98: =LOOKUP(A98,'DOE - FIPStoPayeeCodeConvTable'!$A$3:$A$213,'DOE - FIPStoPayeeCodeConvTable'!$E$3:$E$213) -> 0.2755 | X98: 0.2755 | Y98: 0 | Z98: 0
